Workbook

Sheet SHELL
A1: Cost Comparison FedEx E & I, UPS Contract, FedEx Contract Rates
A3: Lowest Prices Highlighted in Yellow ** Services Not Available
C8: Zone 2 | D8: Zone 6 | F8: Zone 2 | G8: Zone 6 | I8: Zone 2 | J8: Zone 6
A9: Priority | C9: FedEx | F9: UPS | I9: FedEx | K9: DHL
A10: Overnite | C10: E & I | F10: Contract | I10: Contract | K10: International
A11: Envelope | C11: 8.51 | D11: 9.15 | F11: 5.82 | G11: 7.27 | I11: 6.24 | J11: 8.08 | K11: ** | L11: **
A12: 1 lb | C12: 8.87 | D12: 14.26 | F12: 5.83 | G12: 12.05 | I12: 6.3 | J12: 12.63 | K12: ** | L12: **
A13: 2 lb | C13: 8.87 | D13: 16.1 | F13: 5.86 | G13: 13.62 | I13: 6.44 | J13: 14.3 | K13: ** | L13: **
K14: ** | L14: **
A15: Std | K15: ** | L15: **
A16: Overnite | K16: ** | L16: **
A17: Envelope | C17: 8.43 | D17: 9.15 | F17: 5.81 | G17: 7.37 | I17: 5.85 | J17: 7.38 | K17: ** | L17: **
A18: 1 lb | C18: 8.87 | D18: 14.26 | F18: 5.78 | G18: 7.78 | I18: 5.96 | J18: 11.09 | K18: ** | L18: **
A19: 2 lb | C19: 8.87 | D19: 16.67 | F19: 5.87 | G19: 10.27 | I19: 6.01 | J19: 12.52 | K19: ** | L19: **
K20: ** | L20: **
A21: 2 Day | K21: ** | L21: **
A22: Envelope | C22: 6.82 | D22: 8.51 | F22: 4.79 | G22: 5.83 | I22: 5.13 | J22: 6.19 | K22: ** | L22: **
A23: 1 lb | C23: 6.82 | D23: 8.33 | F23: 4.85 | G23: 5.76 | I23: 5.13 | J23: 6.19 | K23: ** | L23: **
A24: 2 lb | C24: 6.82 | D24: 9.22 | F24: 4.85 | G24: 6.36 | I24: 5.13 | J24: 6.94 | K24: ** | L24: **
K25: ** | L25: **
A26: International
A27: Priority
A28: Envelope | C28: 15.35 | D28: ENGLAND | F28: 24.34 | G28: ENGLAND | I28: 27.84 | J28: ENGLAND | K28: 7.82 | L28: ENGLAND
A29: 1 lb | C29: 23.9 | D29: ENGLAND | F29: 35.12 | G29: ENGLAND | I29: 37.38 | J29: ENGLAND | K29: 10.76 | L29: ENGLAND
A30: 2 lb | C30: 23.9 | D30: ENGLAND | F30: 37.57 | G30: ENGLAND | I30: 37.38 | J30: ENGLAND | K30: 10.76 | L30: ENGLAND

Sheet ZipLkup (hidden)
A1: 4 | B1: 6
A2: 5 | B2: 6
A3: 6 | B3: 5
A4: 7 | B4: 5
A5: 9 | B5: 5
A6: 10 | B6: 6
A7: 11 | B7: 6
A8: 12 | B8: 6
A9: 13 | B9: 6
A10: 14 | B10: 6
A11: 15 | B11: 6
A12: 16 | B12: 6
A13: 17 | B13: 6
A14: 18 | B14: 6
A15: 19 | B15: 6
A16: 20 | B16: 6
A17: 21 | B17: 6
A18: 22 | B18: 6
A19: 23 | B19: 6
A20: 24 | B20: 6
A21: 25 | B21: 6
A22: 26 | B22: 6
A23: 27 | B23: 6
A24: 28 | B24: 6
A25: 29 | B25: 6
A26: 30 | B26: 6
A27: 31 | B27: 6
A28: 32 | B28: 6
A29: 33 | B29: 6
A30: 34 | B30: 6
A31: 35 | B31: 6
A32: 36 | B32: 6
A33: 37 | B33: 6
A34: 38 | B34: 6
A35: 39 | B35: 6
A36: 40 | B36: 6
A37: 41 | B37: 6
A38: 42 | B38: 6
A39: 43 | B39: 6
A40: 44 | B40: 7
A41: 45 | B41: 6
A42: 46 | B42: 7
A43: 47 | B43: 7
A44: 48 | B44: 7
A45: 49 | B45: 6
A46: 50 | B46: 6
A47: 51 | B47: 6
A48: 52 | B48: 6
A49: 53 | B49: 6
A50: 54 | B50: 6
A51: 55 | B51: 6
A52: 56 | B52: 6
A53: 57 | B53: 6
A54: 58 | B54: 6
A55: 59 | B55: 6
A56: 60 | B56: 6
A57: 61 | B57: 6
A58: 62 | B58: 6
A59: 63 | B59: 6
A60: 64 | B60: 6
A61: 65 | B61: 6
A62: 66 | B62: 6
A63: 67 | B63: 6
A64: 68 | B64: 6
A65: 69 | B65: 6
A66: 70 | B66: 6
A67: 71 | B67: 6
A68: 72 | B68: 6
A69: 73 | B69: 6
A70: 74 | B70: 6
A71: 75 | B71: 6
A72: 76 | B72: 6
A73: 77 | B73: 6
A74: 78 | B74: 6
A75: 79 | B75: 6
A76: 80 | B76: 6
A77: 81 | B77: 6
A78: 82 | B78: 6
A79: 83 | B79: 6
A80: 84 | B80: 6
A81: 85 | B81: 6
A82: 86 | B82: 6
A83: 87 | B83: 6
A84: 88 | B84: 6
A85: 89 | B85: 6
A86: 100 | B86: 6
A87: 101 | B87: 6
A88: 102 | B88: 6
A89: 103 | B89: 6
A90: 104 | B90: 6
A91: 105 | B91: 6
A92: 106 | B92: 6
A93: 107 | B93: 6
A94: 108 | B94: 6
A95: 109 | B95: 6
A96: 110 | B96: 6
A97: 111 | B97: 6
A98: 112 | B98: 6
A99: 113 | B99: 6
A100: 114 | B100: 6
A101: 115 | B101: 6
A102: 116 | B102: 6
A103: 117 | B103: 6
A104: 118 | B104: 6
A105: 119 | B105: 6
A106: 120 | B106: 6
A107: 121 | B107: 6
A108: 122 | B108: 6
A109: 123 | B109: 6
A110: 124 | B110: 6
A111: 125 | B111: 6
A112: 126 | B112: 6
A113: 127 | B113: 6
A114: 128 | B114: 6
A115: 129 | B115: 6
A116: 130 | B116: 6
A117: 131 | B117: 6
A118: 132 | B118: 6
A119: 133 | B119: 6
A120: 134 | B120: 6
A121: 135 | B121: 6
A122: 136 | B122: 6
A123: 137 | B123: 6
A124: 138 | B124: 6
A125: 139 | B125: 6
A126: 140 | B126: 5
A127: 141 | B127: 5
A128: 142 | B128: 5
A129: 143 | B129: 5
A130: 144 | B130: 5
A131: 145 | B131: 5
A132: 146 | B132: 5
A133: 147 | B133: 5
A134: 148 | B134: 6
A135: 149 | B135: 6
A136: 150 | B136: 5
A137: 151 | B137: 5
A138: 152 | B138: 5
A139: 153 | B139: 5
A140: 154 | B140: 5
A141: 155 | B141: 5
A142: 156 | B142: 5
A143: 157 | B143: 5
A144: 158 | B144: 5
A145: 159 | B145: 5
A146: 160 | B146: 5
A147: 161 | B147: 5
A148: 162 | B148: 5
A149: 163 | B149: 5
A150: 164 | B150: 5
A151: 165 | B151: 5
A152: 166 | B152: 5
A153: 167 | B153: 5
A154: 168 | B154: 5
A155: 169 | B155: 5
A156: 170 | B156: 5
A157: 171 | B157: 5
A158: 172 | B158: 5
A159: 173 | B159: 5
A160: 174 | B160: 5
A161: 175 | B161: 5
A162: 176 | B162: 5
A163: 177 | B163: 5
A164: 178 | B164: 5
A165: 179 | B165: 6
A166: 180 | B166: 6
A167: 181 | B167: 6
A168: 182 | B168: 6
A169: 183 | B169: 6
A170: 184 | B170: 6
A171: 185 | B171: 6
A172: 186 | B172: 6
A173: 187 | B173: 6
A174: 188 | B174: 6
A175: 189 | B175: 6
A176: 190 | B176: 6
A177: 191 | B177: 6
A178: 192 | B178: 6
A179: 193 | B179: 6
A180: 194 | B180: 6
A181: 195 | B181: 6
A182: 196 | B182: 6
A183: 197 | B183: 6
A184: 198 | B184: 6
A185: 199 | B185: 6
A186: 200 | B186: 5
A187: 201 | B187: 5
A188: 202 | B188: 5
A189: 203 | B189: 5
A190: 204 | B190: 5
A191: 205 | B191: 5
A192: 206 | B192: 5
A193: 207 | B193: 5
A194: 208 | B194: 5
A195: 209 | B195: 5
A196: 210 | B196: 5
A197: 211 | B197: 5
A198: 212 | B198: 5
A199: 213 | B199: 5
A200: 214 | B200: 5
... 752 more rows

Sheet Sheet1 (hidden)
A1: 6 | B1: 2 | D1: 6
A2: 5 | B2: 2 | D2: 6
A3: 5 | B3: 1 | D3: 5
A4: 6 | B4: 34 | D4: 5
A5: 7 | B5: 1 | D5: 5
A6: 6 | B6: 1 | D6: 6
A7: 7 | B7: 3 | D7: 6
A8: 6 | B8: 41 | D8: 6
A9: 6 | B9: 40 | D9: 6
A10: 5 | B10: 8 | D10: 6
A11: 6 | B11: 2 | D11: 6
A12: 5 | B12: 29 | D12: 6
A13: 6 | B13: 21 | D13: 6
A14: 5 | B14: 18 | D14: 6
A15: 6 | B15: 2 | D15: 6
A16: 5 | B16: 69 | D16: 6
A17: 4 | B17: 1 | D17: 6
A18: 5 | B18: 10 | D18: 6
A19: 4 | B19: 4 | D19: 6
A20: 5 | B20: 1 | D20: 6
A21: 4 | B21: 1 | D21: 6
A22: 5 | B22: 1 | D22: 6
A23: 4 | B23: 1 | D23: 6
A24: 5 | B24: 3 | D24: 6
A25: 4 | B25: 1 | D25: 6
A26: 5 | B26: 6 | D26: 6
A27: 4 | B27: 2 | D27: 6
A28: 5 | B28: 5 | D28: 6
A29: 4 | B29: 1 | D29: 6
A30: 5 | B30: 4 | D30: 6
A31: 6 | B31: 5 | D31: 6
A32: 5 | B32: 5 | D32: 6
A33: 5 | B33: 1 | D33: 6
A34: 5 | B34: 6 | D34: 6
A35: 6 | B35: 1 | D35: 6
A36: 4 | B36: 25 | D36: 6
A37: 3 | B37: 1 | D37: 6
A38: 5 | B38: 1 | D38: 6
A39: 4 | B39: 3 | D39: 6
A40: 3 | B40: 4 | D40: 7
A41: 4 | B41: 2 | D41: 6
A42: 3 | B42: 2 | D42: 7
A43: 4 | B43: 1 | D43: 7
A44: 3 | B44: 1 | D44: 7
A45: 4 | B45: 8 | D45: 6
A46: 5 | B46: 1 | D46: 6
A47: 4 | B47: 12 | D47: 6
A48: 5 | B48: 2 | D48: 6
A49: 4 | B49: 2 | D49: 6
A50: 5 | B50: 2 | D50: 6
A51: 4 | B51: 2 | D51: 6
A52: 3 | B52: 1 | D52: 6
A53: 4 | B53: 7 | D53: 6
A54: 5 | B54: 20 | D54: 6
A55: 4 | B55: 5 | D55: 6
A56: 5 | B56: 4 | D56: 6
A57: 4 | B57: 21 | D57: 6
A58: 5 | B58: 10 | D58: 6
A59: 4 | B59: 2 | D59: 6
A60: 5 | B60: 8 | D60: 6
A61: 4 | B61: 16 | D61: 6
A62: 3 | B62: 1 | D62: 6
A63: 4 | B63: 21 | D63: 6
A64: 5 | B64: 5 | D64: 6
A65: 4 | B65: 2 | D65: 6
A66: 5 | B66: 2 | D66: 6
A67: 4 | B67: 6 | D67: 6
A68: 5 | B68: 3 | D68: 6
A69: 4 | B69: 3 | D69: 6
A70: 5 | B70: 6 | D70: 6
A71: 4 | B71: 4 | D71: 6
A72: 5 | B72: 20 | D72: 6
A73: 6 | B73: 6 | D73: 6
A74: 4 | B74: 20 | D74: 6
A75: 3 | B75: 4 | D75: 6
A76: 4 | B76: 5 | D76: 6
A77: 3 | B77: 19 | D77: 6
A78: 2 | B78: 1 | D78: 6
A79: 3 | B79: 7 | D79: 6
A80: 2 | B80: 4 | D80: 6
A81: 3 | B81: 7 | D81: 6
A82: 2 | B82: 1 | D82: 6
A83: 3 | B83: 5 | D83: 6
A84: 2 | B84: 1 | D84: 6
A85: 3 | B85: 2 | D85: 6
A86: 4 | B86: 34 | D86: 6
A87: 3 | B87: 3 | D87: 6
A88: 4 | B88: 2 | D88: 6
A89: 3 | B89: 3 | D89: 6
A90: 2 | B90: 4 | D90: 6
A91: 3 | B91: 2 | D91: 6
A92: 2 | B92: 5 | D92: 6
A93: 3 | B93: 3 | D93: 6
A94: 4 | B94: 1 | D94: 6
A95: 3 | B95: 5 | D95: 6
A96: 4 | B96: 1 | D96: 6
A97: 2 | B97: 6 | D97: 6
A98: 3 | B98: 2 | D98: 6
A99: 2 | B99: 2 | D99: 6
A100: 3 | B100: 8 | D100: 6
A101: 4 | B101: 2 | D101: 6
A102: 3 | B102: 5 | D102: 6
A103: 4 | B103: 20 | D103: 6
A104: 5 | B104: 1 | D104: 6
A105: 4 | B105: 12 | D105: 6
A106: 5 | B106: 9 | D106: 6
A107: 4 | B107: 4 | D107: 6
A108: 5 | B108: 21 | D108: 6
A109: 6 | B109: 7 | D109: 6
A110: 5 | B110: 8 | D110: 6
A111: 6 | B111: 2 | D111: 6
A112: 5 | B112: 1 | D112: 6
A113: 6 | B113: 2 | D113: 6
A114: 5 | B114: 6 | D114: 6
A115: 6 | B115: 2 | D115: 6
A116: 5 | B116: 16 | D116: 6
A117: 4 | B117: 1 | D117: 6
A118: 5 | B118: 2 | D118: 6
A119: 4 | B119: 1 | D119: 6
A120: 5 | B120: 1 | D120: 6
A121: 6 | B121: 42 | D121: 6
A122: 7 | B122: 1 | D122: 6
A123: 6 | B123: 2 | D123: 6
A124: 7 | B124: 1 | D124: 6
A125: 6 | B125: 4 | D125: 6
A126: 7 | B126: 22 | D126: 5
A127: 6 | B127: 1 | D127: 5
A128: 7 | B128: 9 | D128: 5
A129: 6 | B129: 1 | D129: 5
A130: 7 | B130: 7 | D130: 5
A131: 7 | B131: 2 | D131: 5
A132: 6 | B132: 3 | D132: 5
A133: 7 | B133: 1 | D133: 5
A134: 6 | B134: 1 | D134: 6
D135: 6
D136: 5
D137: 5
D138: 5
D139: 5
D140: 5
D141: 5
D142: 5
D143: 5
D144: 5
D145: 5
D146: 5
D147: 5
D148: 5
D149: 5
D150: 5
D151: 5
D152: 5
D153: 5
D154: 5
D155: 5
D156: 5
D157: 5
D158: 5
D159: 5
D160: 5
D161: 5
D162: 5
D163: 5
D164: 5
D165: 6
D166: 6
D167: 6
D168: 6
D169: 6
D170: 6
D171: 6
D172: 6
D173: 6
D174: 6
D175: 6
D176: 6
D177: 6
D178: 6
D179: 6
D180: 6
D181: 6
D182: 6
D183: 6
D184: 6
D185: 6
D186: 5
D187: 5
D188: 5
D189: 5
D190: 5
D191: 5
D192: 5
D193: 5
D194: 5
D195: 5
D196: 5
D197: 5
D198: 5
D199: 5
D200: 5
... 752 more rows

Sheet ZIP-ZONES (hidden)
A1: FEDEXGND ZIP-ZONES | E1: UPS ZIP-ZONES
A3: 000-004 | B3: 6 | E3: 004-005 | F3: 6
A4: 005 | B4: 6 | E4: 006-007 | F4: 5
A5: 010-043 | B5: 6 | E5: 009 | F5: 5
A6: 044 | B6: 7 | E6: 010-043 | F6: 6
A7: 045 | B7: 6 | E7: 044 | F7: 7
A8: 046-048 | B8: 7 | E8: 45 | F8: 6
A9: 049-139 | B9: 6 | E9: 046-048 | F9: 7
A10: 140-147 | B10: 5 | E10: 049-089 | F10: 6
A11: 148-149 | B11: 6 | E11: 100-139 | F11: 6
A12: 150-178 | B12: 5 | E12: 140-147 | F12: 5
A13: 179-199 | B13: 6 | E13: 148-149 | F13: 6
A14: 200-212 | B14: 5 | E14: 150-178 | F14: 5
A15: 213 | B15: 5 | E15: 179-199 | F15: 6
A16: 214-217 | B16: 5 | E16: 200-217 | F16: 5
A17: 218-219 | B17: 6 | E17: 218-219 | F17: 6
A18: 220-268 | B18: 5 | E18: 220-288 | F18: 5
A19: 269 | B19: 5 | E19: 289 | F19: 4
A20: 270-288 | B20: 5 | E20: 290-299 | F20: 5
A21: 289 | B21: 4 | E21: 300-303 | F21: 4
A22: 290-299 | B22: 5 | E22: 304 | F22: 5
A23: 300-303 | B23: 4 | E23: 305 | F23: 4
A24: 304 | B24: 5 | E24: 306 | F24: 5
A25: 305 | B25: 4 | E25: 307 | F25: 4
A26: 306 | B26: 5 | E26: 308-310 | F26: 5
A27: 307 | B27: 4 | E27: 311 | F27: 4
A28: 308-310 | B28: 5 | E28: 312-317 | F28: 5
A29: 311 | B29: 4 | E29: 318-319 | F29: 4
A30: 312-317 | B30: 5 | E30: 320-324 | F30: 5
A31: 318-319 | B31: 4 | E31: 325 | F31: 4
A32: 320-324 | B32: 5 | E32: 326-329 | F32: 5
A33: 325 | B33: 4 | E33: 330-334 | F33: 6
A34: 326-329 | B34: 5 | E34: 335-339 | F34: 5
A35: 330-334 | B35: 6 | E35: 341 | F35: 5
A36: 335-339 | B36: 5 | E36: 342-347 | F36: 5
A37: 340 | B37: 6 | E37: 349 | F37: 6
A38: 341-342 | B38: 5 | E38: 350-374 | F38: 4
A39: 343 | B39: 5 | E39: 375 | F39: 3
A40: 344 | B40: 5 | E40: 376 | F40: 5
A41: 345 | B41: 5 | E41: 377-379 | F41: 4
A42: 346-347 | B42: 5 | E42: 380-383 | F42: 3
A43: 348 | B43: 0 | E43: 384-385 | F43: 4
A44: 349 | B44: 6 | E44: 386-387 | F44: 3
A45: 350-352 | B45: 4 | E45: 388 | F45: 4
A46: 353 | B46: 0 | E46: 389 | F46: 3
A47: 354-374 | B47: 4 | E47: 390-397 | F47: 4
A48: 375 | B48: 3 | E48: 398 | F48: 5
A49: 376 | B49: 5 | E49: 399-410 | F49: 4
A50: 377-379 | B50: 4 | E50: 411-412 | F50: 5
A51: 380-383 | B51: 3 | E51: 413-414 | F51: 4
A52: 384-385 | B52: 4 | E52: 415-416 | F52: 5
A53: 386-387 | B53: 3 | E53: 417-418 | F53: 4
A54: 388 | B54: 4 | E54: 420 | F54: 3
A55: 389 | B55: 3 | E55: 421-427 | F55: 4
A56: 390-397 | B56: 4 | E56: 430-449 | F56: 5
A57: 398 | B57: 5 | E57: 450-454 | F57: 4
A58: 399-410 | B58: 4 | E58: 455-458 | F58: 5
A59: 411-412 | B59: 5 | E59: 459-479 | F59: 4
A60: 413-414 | B60: 4 | E60: 480-489 | F60: 5
A61: 415-416 | B61: 5 | E61: 490-491 | F61: 4
A62: 417-418 | B62: 4 | E62: 492-499 | F62: 5
A63: 419 | B63: 0 | E63: 500-515 | F63: 4
A64: 420 | B64: 3 | E64: 516 | F64: 3
A65: 421-427 | B65: 4 | E65: 520-540 | F65: 4
A66: 428-429 | B66: 0 | E66: 541-545 | F66: 5
A67: 430-449 | B67: 5 | E67: 546-547 | F67: 4
A68: 450-454 | B68: 4 | E68: 548-549 | F68: 5
A69: 455-458 | B69: 5 | E69: 550-555 | F69: 4
A70: 459-479 | B70: 4 | E70: 556-558 | F70: 5
A71: 480-489 | B71: 5 | E71: 559-561 | F71: 4
A72: 490-491 | B72: 4 | E72: 562-567 | F72: 5
A73: 492-499 | B73: 5 | E73: 570-573 | F73: 4
A74: 500-515 | B74: 4 | E74: 574-593 | F74: 5
A75: 516 | B75: 3 | E75: 594-599 | F75: 6
A76: 517-519 | B76: 0 | E76: 600-619 | F76: 4
A77: 520-528 | B77: 4 | E77: 620-623 | F77: 3
A78: 529 | B78: 0 | E78: 624-628 | F78: 4
A79: 530-532 | B79: 4 | E79: 629-647 | F79: 3
A80: 533 | B80: 0 | E80: 648 | F80: 2
A81: 534-535 | B81: 4 | E81: 649-655 | F81: 3
A82: 536 | B82: NA | E82: 656-659 | F82: 2
A83: 537-540 | B83: 4 | E83: 660-666 | F83: 3
A84: 541-545 | B84: 5 | E84: 667 | F84: 2
A85: 546-547 | B85: 4 | E85: 668-672 | F85: 3
A86: 548-549 | B86: 5 | E86: 673 | F86: 2
A87: 550-551 | B87: 4 | E87: 674-675 | F87: 3
A88: 552 | B88: NA | E88: 676-709 | F88: 4
A89: 553-555 | B89: 4 | E89: 710-712 | F89: 3
A90: 556-558 | B90: 5 | E90: 713-714 | F90: 4
A91: 559-561 | B91: 4 | E91: 716-718 | F91: 3
A92: 562-567 | B92: 5 | E92: 719-722 | F92: 2
A93: 568-569 | B93: NA | E93: 723-724 | F93: 3
A94: 570-573 | B94: 4 | E94: 725-729 | F94: 2
A95: 574-577 | B95: 5 | E95: 730-732 | F95: 3
A96: 578-579 | B96: NA | E96: 733 | F96: 4
A97: 580-588 | B97: 5 | E97: 734-738 | F97: 3
A98: 589 | B98: NA | E98: 739 | F98: 4
A99: 590-593 | B99: 5 | E99: 740-745 | F99: 2
A100: 594-599 | B100: 6 | E100: 746-747 | F100: 3
A101: 600-619 | B101: 4 | E101: 748-749 | F101: 2
A102: 620 | B102: 3 | E102: 750-757 | F102: 3
A103: 621 | B103: NA | E103: 758-759 | F103: 4
A104: 622-623 | B104: 3 | E104: 760-764 | F104: 3
A105: 624-628 | B105: 4 | E105: 765-784 | F105: 4
A106: 629-631 | B106: 3 | E106: 785 | F106: 5
A107: 632 | B107: NA | E107: 786-797 | F107: 4
A108: 633-641 | B108: 3 | E108: 798-806 | F108: 5
A109: 642-643 | B109: NA | E109: 807-810 | F109: 4
A110: 644-647 | B110: 3 | E110: 811-831 | F110: 5
A111: 648 | B111: 2 | E111: 832-838 | F111: 6
A112: 649-655 | B112: 3 | E112: 840-847 | F112: 5
A113: 656-658 | B113: 2 | E113: 850-851 | F113: 6
A114: 659 | B114: NA | E114: 852 | F114: 5
A115: 660-662 | B115: 3 | E115: 853-854 | F115: 6
A116: 663 | B116: NA | E116: 855-860 | F116: 5
A117: 664-666 | B117: 3 | E117: 863-864 | F117: 6
A118: 667 | B118: 2 | E118: 865-880 | F118: 5
A119: 668-672 | B119: 3 | E119: 881 | F119: 4
A120: 673 | B120: 2 | E120: 882-883 | F120: 5
A121: 674-675 | B121: 3 | E121: 884 | F121: 4
A122: 676-681 | B122: 4 | E122: 885 | F122: 5
A123: 682 | B123: NA | E123: 889-930 | F123: 6
A124: 683-693 | B124: 4 | E124: 931 | F124: 7
A125: 694-699 | B125: NA | E125: 932-933 | F125: 6
A126: 700-701 | B126: 4 | E126: 934 | F126: 7
A127: 702 | B127: NA | E127: 935-938 | F127: 6
A128: 703-708 | B128: 4 | E128: 939-960 | F128: 7
A129: 709 | B129: NA | E129: 961 | F129: 6
A130: 710-712 | B130: 3 | E130: 970-978 | F130: 7
A131: 713-714 | B131: 4 | E131: 979 | F131: 6
A132: 715 | B132: NA | E132: 980-986 | F132: 7
A133: 716-718 | B133: 3 | E133: 988-989 | F133: 7
A134: 719-722 | B134: 2 | E134: 990-992 | F134: 6
A135: 723-724 | B135: 3 | E135: 993 | F135: 7
A136: 725-729 | B136: 2 | E136: 994 | F136: 6
A137: 730-731 | B137: 3
A138: 732 | B138: NA
A139: 733 | B139: 4
A140: 734-738 | B140: 3
A141: 739 | B141: 4
A142: 740-741 | B142: 2
A143: 742 | B143: NA
A144: 743-745 | B144: 2
A145: 746-747 | B145: 3
A146: 748-749 | B146: 2
B147: 2
A148: 750-757 | B148: 3
B149: 3
A150: 758-759 | B150: 4
A151: 760-764 | B151: 3
A152: 765-784 | B152: 4
A153: 785 | B153: 5
A154: 786-797 | B154: 4
A155: 798-806 | B155: 5
A156: 807-810 | B156: 4
A157: 811-816 | B157: 5
A158: 817-819 | B158: NA
A159: 820-831 | B159: 5
A160: 832-838 | B160: 6
A161: 839 | B161: NA
A162: 840-847 | B162: 5
A163: 848-849 | B163: NA
A164: 850 | B164: 6
A165: 851 | B165: 6
A166: 852 | B166: 5
A167: 853 | B167: 6
A168: 854 | B168: NA
A169: 855-857 | B169: 5
A170: 858 | B170: NA
A171: 859-860 | B171: 5
A172: 861-862 | B172: NA
A173: 863-864 | B173: 6
A174: 865 | B174: 5
A175: 866-869 | B175: NA
A176: 870-875 | B176: 5
A177: 876 | B177: NA
A178: 877-880 | B178: 5
A179: 881 | B179: 4
A180: 882-883 | B180: 5
A181: 884 | B181: 4
A182: 885 | B182: 5
A183: 886-888 | B183: NA
A184: 889-891 | B184: 6
A185: 892 | B185: NA
A186: 893-895 | B186: 6
A187: 896 | B187: NA
A188: 897-898 | B188: 6
A189: 899 | B189: NA
A190: 900-908 | B190: 6
A191: 909 | B191: NA
A192: 910-928 | B192: 6
A193: 929 | B193: NA
A194: 930 | B194: 6
A195: 931 | B195: 7
A196: 932-933 | B196: 6
A197: 934 | B197: 7
A198: 935-938 | B198: 6
A199: 939-960 | B199: 7
A200: 961 | B200: 6
A201: 962-966 | B201: 7
... 8 more rows

Sheet LOOKUP
H1: Ups, Fedex E & I and Fedex Contract Rate Comparision are Basic Rates. Not included are Extended Area Surcharge, Fuel Surcharge or Additional Handling charges. UPS and Fedex Zone Charts are for Days in Transit Comparision Only.
A3: Invalid = Service not available
A5: USE 1ST 3 NO. OF ZIP CODE | B5: 727
A6: INPUT Weight | B6: 1 | C6: Letter = .5
A7: UPS Zone | B7: =INDEX('ZIP-ZONES'!$F$3:$F$136,MATCH($B$5,0+LEFT('ZIP-ZONES'!$E$3:$E$136,3),1)) -> 2
A8: FEDEX ZONE | B8: =INDEX('ZIP-ZONES'!$B$3:$B$209,MATCH($B$5,0+LEFT('ZIP-ZONES'!$A$3:$A$209,3),1)) -> 2
B9: =IFERROR(IF(B6>=F17,VLOOKUP(B6,'Ground Current'!A7:K156,B7),VLOOKUP(F17,'Ground Current'!A7:K156,B7)),"**") -> 3.5394 | C9: =IFERROR(IF(B6>=F17,VLOOKUP(B6,'NDA Multi'!A6:K156,B7),VLOOKUP(F17,'NDA Multi'!A6:K156,B7)),"**") -> 5.8344 | D9: =IFERROR(IF((B6>=F17),VLOOKUP(B6,'ND Svr Multi'!A6:H156,B7),VLOOKUP(F17,'ND Svr Multi'!J6:Q156,B7)),"**") -> 5.7834 | E9: =IFERROR(IF((B6>=F17),VLOOKUP(B6,'2DA AM Multi'!A6:H156,B7),VLOOKUP(F17,'2DA AM Multi'!A6:H156,B7)),"**") -> 5.6916 | F9: =IFERROR(IF(B6>=F17,VLOOKUP(B6,'2DA Multi'!A6:K156,B7),VLOOKUP(F17,'2DA Multi'!A6:K156,B7)),"**") -> 4.845 | G9: =IFERROR(IF(B6>=F17,VLOOKUP(B6,'3DS Multi'!A7:H156,B7),VLOOKUP(F17,'3DS Multi'!A7:H156,B7)),"**") -> 4.794
A10: UPS RATES | B10: GND | C10: NDA | D10: ND Svr | E10: 2DA AM | F10: 2 DA | G10: 3DS
A11: Comm | B11: =B9 -> 3.5394 | C11: 5.8344 | D11: 5.7834 | E11: 5.6916 | F11: 4.845 | G11: 4.794
A12: Residental | B12: =B13 -> 4.8794 | C12: =C13 -> 7.4244 | D12: =D13 -> 7.3734 | E12: =E13 -> ** | F12: =F13 -> 6.435 | G12: =G13 -> 6.384
B13: =IFERROR(IF(B6>=F17,VLOOKUP(B6,'Ground Current'!M7:T156,B7),VLOOKUP(F17,'Ground Current'!M7:T156,B7)),"**") -> 4.8794 | C13: =IFERROR(IF(B6>=F17,VLOOKUP(B6,'NDA Multi'!M6:T156,B7),VLOOKUP(F17,'NDA Multi'!M6:T156,B7)),"**") -> 7.4244 | D13: =IFERROR(IF(B6>=F17,VLOOKUP(B6,'ND Svr Multi'!J6:Q156,B7),VLOOKUP(F17,'ND Svr Multi'!J6:TQ156,B7)),"**") -> 7.3734 | E13: ="**" -> ** | F13: =IFERROR(IF(B6>=F17,VLOOKUP(B6,'2DA Multi'!M6:T156,B7),VLOOKUP(F17,'2DA Multi'!M6:T156,B7)),"**") -> 6.435 | G13: =IFERROR(IF(B6>=F17,VLOOKUP(B6,'3DS Multi'!J7:Q156,B7),VLOOKUP(F17,'3DS Multi'!J7:Q156,B7)),"**") -> 6.384
A15: Dimensional Weight | E15: Cubic | F15: Dimensonal
A16: Calculator | B16: Length | C16: Width | D16: Height | E16: Inches | F16: Weight
A17: Enter Measurements | B17: 1 | C17: 1 | D17: 1 | E17: =B17*C17*D17 -> 1 | F17: =ROUND(IF(E17>=1728,E17/139,E17/166),0) -> 0
A19: If True Weight is above Dimensonal Weight Use True Weight
A20: If True Weight is below you must Use Dimensonal Weight
A22: Fedex E & I RATES | B22: GND | C22: PO | D22: SO | E22: E2AM | F22: E2 | G22: ESP | J22: BEST RATE | K22: GND | L22: PO | M22: SO | N22: E2AM | O22: E2 | P22: ESP
A23: Cost | B23: =IFERROR(VLOOKUP(B6,'GND E&I'!A11:H60,B7,'GND E&I'!B10:H10),"Invalid") -> 6.36 | C23: =VLOOKUP(B6,'PO E&I'!A6:H50,B7,'PO E&I'!B5:H5) -> 8.87 | D23: =VLOOKUP(B6,'SO E&I'!A7:H59,B7,'SO E&I'!B6:H6) -> 8.61 | E23: =VLOOKUP(B6,E2AM!A14:H50,B7,E2AM!B13:I13) -> 9.67 | F23: =VLOOKUP(B6,'E2 E&I'!A14:H50,'E2 E&I'!B13:P13) -> 8.33 | G23: =IFERROR(VLOOKUP(B6,'ESP E&I'!A14:H50,B7,'ESP E&I'!B13:H13),"Invalid") -> 6 | J23: COMM | K23: =IFERROR(IFS(B11<G23,("UPS "& "$"& ROUND(B11,2)),"FEDEX "& "$"& G23,"No Rate"),IF(B11<G27,("UPS "& "$"& ROUND(B11,2)),IF(B11>G27,"FEDEX "& "$"& G27,"No Rate"))) -> UPS $3.54 | L23: =IF(C11<C23,"UPS "& "$"& ROUND(C11,2),"FEDEX "& "$"& ROUND(C23,2)) -> UPS $5.83 | M23: =IF(D11<D23,"UPS "& "$"& ROUND(D11,2),"FEDEX "& "$"& ROUND(D23,2)) -> UPS $5.78 | N23: =IF(E11<E23,"UPS "& "$"& ROUND(E11,2),"FEDEX "& "$"& ROUND(E23,2)) -> UPS $5.69 | O23: =IF(F11<F23,"UPS "& "$"& ROUND(F11,2),"FEDEX "& "$"& ROUND(F23,2)) -> UPS $4.85 | P23: =IF(G11<F23,"UPS "& "$"& ROUND(G11,2),"FEDEX "& "$"& ROUND(E23,2)) -> UPS $4.79
A24: Residental | B24: =IFERROR((B23 + 3.85),"Invalid") -> 10.21 | C24: =C23+3.85 -> 12.72 | D24: =D23+3.85 -> 12.46 | E24: =E23+3.85 -> 13.52 | F24: =F23+3.85 -> 12.18 | G24: =IFERROR((G23+3.85),"Invalid") -> 9.85 | J24: RESIDENTAL | K24: =IFERROR(IFS(B12<B24,("UPS "& "$"& ROUND(B12,2)),"FEDEX "& "$"& B24,"No Rate"),IF(B12<B24,("UPS "& "$"& ROUND(B12,2)),IF(B12>B28,"FEDEX "& "$"& B28,"No Rate"))) -> UPS $4.88 | L24: =IF(C12<C24,"UPS "& "$"& ROUND(C12,2),"FEDEX "& "$"& ROUND(C24,2)) -> UPS $7.42 | M24: =IF(D12<D24,"UPS "& "$"& ROUND(D12,2),"FEDEX "& "$"& ROUND(D24,2)) -> UPS $7.37 | N24: =IF(E12<E24,"UPS "& "$"& ROUND(F12,2),"FEDEX E&I "& "$"& ROUND(E24,2)) -> FEDEX E&I $13.52 | O24: =IF(F12<F24,"UPS "&"$"&ROUND(F12,2),"FEDEX "&"$"&ROUND(F24,2)) -> UPS $6.44 | P24: =IFERROR(IF(G12<F24,"UPS "&"$"&ROUND(G12,2),"FEDEX "&"$"&ROUND(E24,2)),"Invalid") -> UPS $6.38
B25: =IF(B6>=F17,VLOOKUP(B6,'FX GND'!A7:H156,B8),VLOOKUP(F17,'FX GND'!A7:H156,B8)) -> 3.7 | C25: =IF(B6>=F17,VLOOKUP(B6,'FX PO'!A8:H60,B8),VLOOKUP(F17,'FX PO'!A8:H60,B8)) -> 6.3 | D25: =IF(B6>=F17,VLOOKUP(B6,'FX STD'!A7:H59,B8),VLOOKUP(F17,'FX STD'!A7:H59,B8)) -> 5.96 | E25: =IF(B6>=F17,VLOOKUP(B6,'Fx2DA AM'!A30:M182,B8),VLOOKUP(F17,'Fx2DA AM'!A30:M182,B8)) -> 5.71 | F25: =IF(B6>=F17,VLOOKUP(B6,'Fx2DAY Air'!A7:H59,B8),VLOOKUP(F17,'Fx2DAY Air'!A7:H59,B8)) -> 5.13 | G25: =IF(B6>=F17,VLOOKUP(B6,'FxExpress Saver'!A7:H59,B8),VLOOKUP(F17,'FxExpress Saver'!A7:H59,B8)) -> 4.88 | N25: UPS DOES NOT HAVE EARLY RESIDENTAL DELIVERLY
A26: Fedex Contract Rate | B26: GND | C26: NDA | D26: ND Svr | E26: 2 DA AM | F26: 2DA | G26: 3DS
A27: Comm | B27: =B25 -> 3.7 | C27: =C25 -> 6.3 | D27: =D25 -> 5.96 | E27: =E25 -> 5.71 | F27: =F25 -> 5.13 | G27: =G25 -> 4.88
A28: Residental | B28: =B29 -> 7.55 | C28: =C29 -> 10.15 | D28: =D29 -> 9.81 | E28: =E29 -> 9.56 | F28: =F29 -> 8.98 | G28: =G29 -> 8.73
B29: =IFERROR((B27+3.85),"**") -> 7.55 | C29: =SUM(C27)+ 3.85 -> 10.15 | D29: =D27 + 3.85 -> 9.81 | E29: =E27 + 3.85 -> 9.56 | F29: =SUM(F27,3.85) -> 8.98 | G29: =IFERROR((G27+3.85),"**") -> 8.73
A31: INTERNATIONAL SHIPPING LETTER RATE COMPARISON
B32: DHL | C32: UPS | D32: FEDEX | E32: FEDEX E& I
A33: UK - ENGLAND | B33: 7.82 | C33: 24.34 | D33: 27.22 | E33: 19.3
A34: SAUDI ARABIA-RIYADH | B34: 13.44 | C34: 27.8 | D34: 39.29 | E34: 21.9
A35: IRAQ - BAGDAD | B35: 12.54 | C35: 51.99 | D35: 60.48 | E35: 17.1
A36: CHINA - BEIJING | B36: 12.02 | C36: 26.43 | D36: 30.94 | E36: 15.35

Sheet Ground Current (hidden)
A1: UPS Ground Service | M1: =M1:X89UPS Ground Service ->  | Q1: Residential Surcharge | T1: 1.34
A2: - Commercial | M2: - Residential
A3: (Per Package Rates from 48 State Origin) | I3: Metro AK & HI | J3: PR | K3: Remote AK | M3: (Per Package Rates from 48 State Origin) | U3: Metro AK & HI | V3: PR | W3: Remote AK
A4: Rates below do not include Residential Surcharge | M4: Rates Include Residential Surcharge
B5: 2 | C5: 3 | D5: 4 | E5: 5 | F5: 6 | G5: 7 | H5: 8 | I5: Zone 44 | J5: Zone 45 | K5: Zone 46 | M5: Lbs. | N5: 2 | O5: 3 | P5: 4 | Q5: 5 | R5: 6 | S5: 7 | T5: 8 | U5: Zone 44 | V5: Zone 45 | W5: Zone 46
A7: 1 | B7: 3.5394 | C7: 3.5394 | D7: 3.5394 | E7: 3.5394 | F7: 3.5394 | G7: 3.5802 | H7: 3.6822 | I7: 15.5142 | J7: 14.9532 | K7: 15.5142 | M7: 1 | N7: 4.8794 | O7: 4.8794 | P7: 4.8794 | Q7: 4.8794 | R7: 4.8794 | S7: 4.9202 | T7: 5.0222 | U7: 16.8542 | V7: 16.2932 | W7: 16.8542
A8: 2 | B8: 3.5394 | C8: 3.5394 | D8: 3.5394 | E8: 3.6516 | F8: 3.8556 | G8: 3.8556 | H8: 3.8556 | I8: 17.2278 | J8: 16.6056 | K8: 17.2278 | M8: 2 | N8: 4.8794 | O8: 4.8794 | P8: 4.8794 | Q8: 4.9916 | R8: 5.1956 | S8: 5.1956 | T8: 5.1956 | U8: 18.5678 | V8: 17.9456 | W8: 18.5678
A9: 3 | B9: 3.5394 | C9: 3.5394 | D9: 3.8454 | E9: 3.8556 | F9: 3.8556 | G9: 3.8964 | H9: 4.2024 | I9: 18.7884 | J9: 18.0948 | K9: 18.7884 | M9: 3 | N9: 4.8794 | O9: 4.8794 | P9: 5.1854 | Q9: 5.1956 | R9: 5.1956 | S9: 5.2364 | T9: 5.5424 | U9: 20.1284 | V9: 19.4348 | W9: 20.1284
A10: 4 | B10: 3.5394 | C10: 3.5394 | D10: 3.8556 | E10: 3.8556 | F10: 3.9882 | G10: 4.1106 | H10: 4.4778 | I10: 20.5326 | J10: 19.7778 | K10: 20.5326 | M10: 4 | N10: 4.8794 | O10: 4.8794 | P10: 5.1956 | Q10: 5.1956 | R10: 5.3282 | S10: 5.4506 | T10: 5.8178 | U10: 21.8726 | V10: 21.1178 | W10: 21.8726
A11: 5 | B11: 3.5394 | C11: 3.6618 | D11: 3.8556 | E11: 3.9066 | F11: 4.1718 | G11: 4.3248 | H11: 4.743 | I11: 22.3686 | J11: 21.5322 | K11: 22.3686 | M11: 5 | N11: 4.8794 | O11: 5.0018 | P11: 5.1956 | Q11: 5.2466 | R11: 5.5118 | S11: 5.6648 | T11: 6.083 | U11: 23.7086 | V11: 22.8722 | W11: 23.7086
A12: 6 | B12: 3.5394 | C12: 3.7842 | D12: 3.8556 | E12: 3.9066 | F12: 4.2126 | G12: 4.3554 | H12: 4.7634 | I12: 24.2862 | J12: 23.3988 | K12: 24.2862 | M12: 6 | N12: 4.8794 | O12: 5.1242 | P12: 5.1956 | Q12: 5.2466 | R12: 5.5526 | S12: 5.6954 | T12: 6.1034 | U12: 25.6262 | V12: 24.7388 | W12: 25.6262
A13: 7 | B13: 3.672 | C13: 3.8556 | D13: 3.8556 | E13: 4.029 | F13: 4.2942 | G13: 4.5186 | H13: 4.9776 | I13: 25.9488 | J13: 24.99 | K13: 25.9488 | M13: 7 | N13: 5.012 | O13: 5.1956 | P13: 5.1956 | Q13: 5.369 | R13: 5.6342 | S13: 5.8586 | T13: 6.3176 | U13: 27.2888 | V13: 26.33 | W13: 27.2888
A14: 8 | B14: 3.8046 | C14: 3.8556 | D14: 3.8556 | E14: 4.131 | F14: 4.437 | G14: 4.7226 | H14: 5.304 | I14: 27.4992 | J14: 26.4792 | K14: 27.4992 | M14: 8 | N14: 5.1446 | O14: 5.1956 | P14: 5.1956 | Q14: 5.471 | R14: 5.777 | S14: 6.0626 | T14: 6.644 | U14: 28.8392 | V14: 27.8192 | W14: 28.8392
A15: 9 | B15: 3.8556 | C15: 3.8556 | D15: 3.9372 | E15: 4.233 | F15: 4.5492 | G15: 4.9674 | H15: 5.6406 | I15: 29.4372 | J15: 28.3458 | K15: 29.4372 | M15: 9 | N15: 5.1956 | O15: 5.1956 | P15: 5.2772 | Q15: 5.573 | R15: 5.8892 | S15: 6.3074 | T15: 6.9806 | U15: 30.7772 | V15: 29.6858 | W15: 30.7772
A16: 10 | B16: 3.8556 | C16: 3.8556 | D16: 3.9576 | E16: 4.2534 | F16: 4.743 | G16: 5.3448 | H16: 6.018 | I16: 31.2528 | J16: 30.1002 | K16: 31.2528 | M16: 10 | N16: 5.1956 | O16: 5.1956 | P16: 5.2976 | Q16: 5.5934 | R16: 6.083 | S16: 6.6848 | T16: 7.358 | U16: 32.5928 | V16: 31.4402 | W16: 32.5928
A17: 11 | B17: 6 | C17: 6 | D17: 3.8658 | E17: 4.1514 | F17: 4.641 | G17: 5.3652 | H17: 6.0792 | I17: 33.0276 | J17: 31.8138 | K17: 33.0276 | M17: 11 | N17: 5.0834 | O17: 5.0834 | P17: 5.2058 | Q17: 5.4914 | R17: 5.981 | S17: 6.7052 | T17: 7.4192 | U17: 34.3676 | V17: 33.1538 | W17: 34.3676
A18: 12 | B18: 3.7434 | C18: 3.7434 | D18: 3.9066 | E18: 4.233 | F18: 4.8654 | G18: 5.7222 | H18: 6.5076 | I18: 34.4658 | J18: 33.1806 | K18: 34.4658 | M18: 12 | N18: 5.0834 | O18: 5.0834 | P18: 5.2466 | Q18: 5.573 | R18: 6.2054 | S18: 7.0622 | T18: 7.8476 | U18: 35.8058 | V18: 34.5206 | W18: 35.8058
A19: 13 | B19: 3.7434 | C19: 3.7434 | D19: 3.978 | E19: 4.3452 | F19: 5.0898 | G19: 6.0996 | H19: 6.9564 | I19: 35.8632 | J19: 34.5474 | K19: 35.8632 | M19: 13 | N19: 5.0834 | O19: 5.0834 | P19: 5.318 | Q19: 5.6852 | R19: 6.4298 | S19: 7.4396 | T19: 8.2964 | U19: 37.2032 | V19: 35.8874 | W19: 37.2032
A20: 14 | B20: 3.7434 | C20: 3.8454 | D20: 4.0596 | E20: 4.4472 | F20: 5.3652 | G20: 6.4566 | H20: 7.3848 | I20: 37.3728 | J20: 35.9856 | K20: 37.3728 | M20: 14 | N20: 5.0834 | O20: 5.1854 | P20: 5.3996 | Q20: 5.7872 | R20: 6.7052 | S20: 7.7966 | T20: 8.7248 | U20: 38.7128 | V20: 37.3256 | W20: 38.7128
A21: 15 | B21: 3.7434 | C21: 3.9576 | D21: 4.131 | E21: 4.539 | F21: 5.6508 | G21: 6.8136 | H21: 7.8438 | I21: 38.7396 | J21: 37.3116 | K21: 38.7396 | M21: 15 | N21: 5.0834 | O21: 5.2976 | P21: 5.471 | Q21: 5.879 | R21: 6.9908 | S21: 8.1536 | T21: 9.1838 | U21: 40.0796 | V21: 38.6516 | W21: 40.0796
A22: 16 | B22: 3.8046 | C22: 4.029 | D22: 4.2024 | E22: 4.6206 | F22: 5.8752 | G22: 7.1094 | H22: 8.211 | I22: 40.6266 | J22: 39.117 | K22: 40.6266 | M22: 16 | N22: 5.1446 | O22: 5.369 | P22: 5.5424 | Q22: 5.9606 | R22: 7.2152 | S22: 8.4494 | T22: 9.551 | U22: 41.9666 | V22: 40.457 | W22: 41.9666
A23: 17 | B23: 3.8454 | C23: 4.1718 | D23: 4.3248 | E23: 4.8246 | F23: 6.171 | G23: 7.4562 | H23: 8.6088 | I23: 42.0444 | J23: 40.494 | K23: 42.0444 | M23: 17 | N23: 5.1854 | O23: 5.5118 | P23: 5.6648 | Q23: 6.1646 | R23: 7.511 | S23: 8.7962 | T23: 9.9488 | U23: 43.3844 | V23: 41.834 | W23: 43.3844
A24: 18 | B24: 3.8862 | C24: 4.3146 | D24: 4.4574 | E24: 5.0694 | F24: 6.477 | G24: 7.7928 | H24: 9.0372 | I24: 43.962 | J24: 42.33 | K24: 43.962 | M24: 18 | N24: 5.2262 | O24: 5.6546 | P24: 5.7974 | Q24: 6.4094 | R24: 7.817 | S24: 9.1328 | T24: 10.3772 | U24: 45.302 | V24: 43.67 | W24: 45.302
A25: 19 | B25: 3.978 | C25: 4.4472 | D25: 4.6206 | E25: 5.304 | F25: 6.7524 | G25: 8.1396 | H25: 9.486 | I25: 45.7368 | J25: 44.0436 | K25: 45.7368 | M25: 19 | N25: 5.318 | O25: 5.7872 | P25: 5.9606 | Q25: 6.644 | R25: 8.0924 | S25: 9.4796 | T25: 10.826 | U25: 47.0768 | V25: 45.3836 | W25: 47.0768
A26: 20 | B26: 4.0392 | C26: 4.5492 | D26: 4.7634 | E26: 5.61 | F26: 7.1196 | G26: 8.5782 | H26: 10.0368 | I26: 47.4402 | J26: 45.6858 | K26: 47.4402 | M26: 20 | N26: 5.3792 | O26: 5.8892 | P26: 6.1034 | Q26: 6.95 | R26: 8.4596 | S26: 9.9182 | T26: 11.3768 | U26: 48.7802 | V26: 47.0258 | W26: 48.7802
A27: 21 | B27: 4.0596 | C27: 4.6206 | D27: 4.8348 | E27: 5.6508 | F27: 7.191 | G27: 8.619 | H27: 10.1286 | I27: 48.7152 | J27: 46.9098 | K27: 48.7152 | M27: 21 | N27: 5.3996 | O27: 5.9606 | P27: 6.1748 | Q27: 6.9908 | R27: 8.531 | S27: 9.959 | T27: 11.4686 | U27: 50.0552 | V27: 48.2498 | W27: 50.0552
A28: 22 | B28: 4.1616 | C28: 4.7736 | D28: 5.0082 | E28: 5.8752 | F28: 7.4766 | G28: 8.9556 | H28: 10.5774 | I28: 50.2146 | J28: 48.3684 | K28: 50.2146 | M28: 22 | N28: 5.5016 | O28: 6.1136 | P28: 6.3482 | Q28: 7.2152 | R28: 8.8166 | S28: 10.2956 | T28: 11.9174 | U28: 51.5546 | V28: 49.7084 | W28: 51.5546
A29: 23 | B29: 4.2534 | C29: 4.9164 | D29: 5.1714 | E29: 6.0894 | F29: 7.7622 | G29: 9.282 | H29: 10.9956 | I29: 51.7446 | J29: 49.8372 | K29: 51.7446 | M29: 23 | N29: 5.5934 | O29: 6.2564 | P29: 6.5114 | Q29: 7.4294 | R29: 9.1022 | S29: 10.622 | T29: 12.3356 | U29: 53.0846 | V29: 51.1772 | W29: 53.0846
A30: 24 | B30: 4.3554 | C30: 5.0388 | D30: 5.3448 | E30: 6.273 | F30: 8.0478 | G30: 9.6084 | H30: 11.424 | I30: 53.4378 | J30: 51.4692 | K30: 53.4378 | M30: 24 | N30: 5.6954 | O30: 6.3788 | P30: 6.6848 | Q30: 7.613 | R30: 9.3878 | S30: 10.9484 | T30: 12.764 | U30: 54.7778 | V30: 52.8092 | W30: 54.7778
A31: 25 | B31: 4.4574 | C31: 5.1714 | D31: 5.5182 | E31: 6.4668 | F31: 8.3334 | G31: 9.9348 | H31: 11.8728 | I31: 55.1004 | J31: 53.0706 | K31: 55.1004 | M31: 25 | N31: 5.7974 | O31: 6.5114 | P31: 6.8582 | Q31: 7.8068 | R31: 9.6734 | S31: 11.2748 | T31: 13.2128 | U31: 56.4404 | V31: 54.4106 | W31: 56.4404
A32: 26 | B32: 4.5696 | C32: 5.2938 | D32: 5.6712 | E32: 6.681 | F32: 8.6394 | G32: 10.2714 | H32: 12.2808 | I32: 56.9568 | J32: 54.8556 | K32: 56.9568 | M32: 26 | N32: 5.9096 | O32: 6.6338 | P32: 7.0112 | Q32: 8.021 | R32: 9.9794 | S32: 11.6114 | T32: 13.6208 | U32: 58.2968 | V32: 56.1956 | W32: 58.2968
A33: 27 | B33: 4.692 | C33: 5.4264 | D33: 5.8446 | E33: 6.8952 | F33: 8.9352 | G33: 10.5978 | H33: 12.7092 | I33: 58.5276 | J33: 56.355 | K33: 58.5276 | M33: 27 | N33: 6.032 | O33: 6.7664 | P33: 7.1846 | Q33: 8.2352 | R33: 10.2752 | S33: 11.9378 | T33: 14.0492 | U33: 59.8676 | V33: 57.695 | W33: 59.8676
A34: 28 | B34: 4.7838 | C34: 5.5488 | D34: 6.0282 | E34: 7.089 | F34: 9.231 | G34: 10.9242 | H34: 13.158 | I34: 60.0984 | J34: 57.885 | K34: 60.0984 | M34: 28 | N34: 6.1238 | O34: 6.8888 | P34: 7.3682 | Q34: 8.429 | R34: 10.571 | S34: 12.2642 | T34: 14.498 | U34: 61.4384 | V34: 59.225 | W34: 61.4384
A35: 29 | B35: 4.8858 | C35: 5.6712 | D35: 6.2016 | E35: 7.293 | F35: 9.5268 | G35: 11.2506 | H35: 13.6068 | I35: 61.5774 | J35: 59.3028 | K35: 61.5774 | M35: 29 | N35: 6.2258 | O35: 7.0112 | P35: 7.5416 | Q35: 8.633 | R35: 10.8668 | S35: 12.5906 | T35: 14.9468 | U35: 62.9174 | V35: 60.6428 | W35: 62.9174
A36: 30 | B36: 5.0082 | C36: 5.8242 | D36: 6.3852 | E36: 7.5276 | F36: 9.8328 | G36: 11.5872 | H36: 14.0454 | I36: 63.0462 | J36: 60.7206 | K36: 63.0462 | M36: 30 | N36: 6.3482 | O36: 7.1642 | P36: 7.7252 | Q36: 8.8676 | R36: 11.1728 | S36: 12.9272 | T36: 15.3854 | U36: 64.3862 | V36: 62.0606 | W36: 64.3862
A37: 31 | B37: 5.1 | C37: 5.9364 | D37: 6.5484 | E37: 7.7214 | F37: 10.1082 | G37: 11.9238 | H37: 14.4432 | I37: 64.5966 | J37: 62.22 | K37: 64.5966 | M37: 31 | N37: 6.44 | O37: 7.2764 | P37: 7.8884 | Q37: 9.0614 | R37: 11.4482 | S37: 13.2638 | T37: 15.7832 | U37: 65.9366 | V37: 63.56 | W37: 65.9366
A38: 32 | B38: 5.151 | C38: 6.069 | D38: 6.732 | E38: 7.9254 | F38: 10.3938 | G38: 12.24 | H38: 14.892 | I38: 65.994 | J38: 63.5664 | K38: 65.994 | M38: 32 | N38: 6.491 | O38: 7.409 | P38: 8.072 | Q38: 9.2654 | R38: 11.7338 | S38: 13.58 | T38: 16.232 | U38: 67.334 | V38: 64.9064 | W38: 67.334
A39: 33 | B39: 5.253 | C39: 6.2016 | D39: 6.8952 | E39: 8.16 | F39: 10.6692 | G39: 12.5766 | H39: 15.3102 | I39: 67.3914 | J39: 64.8924 | K39: 67.3914 | M39: 33 | N39: 6.593 | O39: 7.5416 | P39: 8.2352 | Q39: 9.5 | R39: 12.0092 | S39: 13.9166 | T39: 16.6502 | U39: 68.7314 | V39: 66.2324 | W39: 68.7314
A40: 34 | B40: 5.355 | C40: 6.3444 | D40: 7.0584 | E40: 8.364 | F40: 10.965 | G40: 12.903 | H40: 15.7488 | I40: 68.8806 | J40: 66.3408 | K40: 68.8806 | M40: 34 | N40: 6.695 | O40: 7.6844 | P40: 8.3984 | Q40: 9.704 | R40: 12.305 | S40: 14.243 | T40: 17.0888 | U40: 70.2206 | V40: 67.6808 | W40: 70.2206
A41: 35 | B41: 5.4468 | C41: 6.4872 | D41: 7.242 | E41: 8.5782 | F41: 11.2506 | G41: 13.2294 | H41: 16.1466 | I41: 70.584 | J41: 67.983 | K41: 70.584 | M41: 35 | N41: 6.7868 | O41: 7.8272 | P41: 8.582 | Q41: 9.9182 | R41: 12.5906 | S41: 14.5694 | T41: 17.4866 | U41: 71.924 | V41: 69.323 | W41: 71.924
A42: 36 | B42: 5.5488 | C42: 6.5994 | D42: 7.395 | E42: 8.7924 | F42: 11.526 | G42: 13.566 | H42: 16.5342 | I42: 72.2466 | J42: 69.5844 | K42: 72.2466 | M42: 36 | N42: 6.8888 | O42: 7.9394 | P42: 8.735 | Q42: 10.1324 | R42: 12.866 | S42: 14.906 | T42: 17.8742 | U42: 73.5866 | V42: 70.9244 | W42: 73.5866
A43: 37 | B43: 5.6304 | C43: 6.7524 | D43: 7.5684 | E43: 8.9964 | F43: 11.781 | G43: 13.8822 | H43: 16.8606 | I43: 73.899 | J43: 71.1654 | K43: 73.899 | M43: 37 | N43: 6.9704 | O43: 8.0924 | P43: 8.9084 | Q43: 10.3364 | R43: 13.121 | S43: 15.2222 | T43: 18.2006 | U43: 75.239 | V43: 72.5054 | W43: 75.239
A44: 38 | B44: 5.7222 | C44: 6.885 | D44: 7.7418 | E44: 9.231 | F44: 12.0462 | G44: 14.2188 | H44: 17.1666 | I44: 75.6636 | J44: 72.8688 | K44: 75.6636 | M44: 38 | N44: 7.0622 | O44: 8.225 | P44: 9.0818 | Q44: 10.571 | R44: 13.3862 | S44: 15.5588 | T44: 18.5066 | U44: 77.0036 | V44: 74.2088 | W44: 77.0036
A45: 39 | B45: 5.814 | C45: 7.0074 | D45: 7.905 | E45: 9.4248 | F45: 12.3114 | G45: 14.5452 | H45: 17.493 | I45: 77.3058 | J45: 74.4396 | K45: 77.3058 | M45: 39 | N45: 7.154 | O45: 8.3474 | P45: 9.245 | Q45: 10.7648 | R45: 13.6514 | S45: 15.8852 | T45: 18.833 | U45: 78.6458 | V45: 75.7796 | W45: 78.6458
A46: 40 | B46: 5.8854 | C46: 7.1706 | D46: 8.0784 | E46: 9.639 | F46: 12.5868 | G46: 14.8716 | H46: 17.799 | I46: 78.948 | J46: 76.0308 | K46: 78.948 | M46: 40 | N46: 7.2254 | O46: 8.5106 | P46: 9.4184 | Q46: 10.979 | R46: 13.9268 | S46: 16.2116 | T46: 19.139 | U46: 80.288 | V46: 77.3708 | W46: 80.288
A47: 41 | B47: 5.9976 | C47: 7.2828 | D47: 8.2314 | E47: 9.8532 | F47: 12.8418 | G47: 15.2082 | H47: 18.1254 | I47: 80.4678 | J47: 77.4996 | K47: 80.4678 | M47: 41 | N47: 7.3376 | O47: 8.6228 | P47: 9.5714 | Q47: 11.1932 | R47: 14.1818 | S47: 16.5482 | T47: 19.4654 | U47: 81.8078 | V47: 78.8396 | W47: 81.8078
A48: 42 | B48: 6.0894 | C48: 7.4052 | D48: 8.3946 | E48: 10.0572 | F48: 13.0866 | G48: 15.5244 | H48: 18.4314 | I48: 81.9774 | J48: 78.9684 | K48: 81.9774 | M48: 42 | N48: 7.4294 | O48: 8.7452 | P48: 9.7346 | Q48: 11.3972 | R48: 14.4266 | S48: 16.8644 | T48: 19.7714 | U48: 83.3174 | V48: 80.3084 | W48: 83.3174
A49: 43 | B49: 6.1608 | C49: 7.548 | D49: 8.5782 | E49: 10.2714 | F49: 13.3212 | G49: 15.861 | H49: 18.7476 | I49: 83.6502 | J49: 80.5698 | K49: 83.6502 | M49: 43 | N49: 7.5008 | O49: 8.888 | P49: 9.9182 | Q49: 11.6114 | R49: 14.6612 | S49: 17.201 | T49: 20.0876 | U49: 84.9902 | V49: 81.9098 | W49: 84.9902
A50: 44 | B50: 6.2322 | C50: 7.6602 | D50: 8.7006 | E50: 10.4856 | F50: 13.5762 | G50: 16.1772 | H50: 19.0638 | I50: 85.323 | J50: 82.1712 | K50: 85.323 | M50: 44 | N50: 7.5722 | O50: 9.0002 | P50: 10.0406 | Q50: 11.8256 | R50: 14.9162 | S50: 17.5172 | T50: 20.4038 | U50: 86.663 | V50: 83.5112 | W50: 86.663
A51: 45 | B51: 6.3036 | C51: 7.803 | D51: 8.874 | E51: 10.6998 | F51: 13.8006 | G51: 16.5138 | H51: 19.38 | I51: 86.9754 | J51: 83.7624 | K51: 86.9754 | M51: 45 | N51: 7.6436 | O51: 9.143 | P51: 10.214 | Q51: 12.0398 | R51: 15.1406 | S51: 17.8538 | T51: 20.72 | U51: 88.3154 | V51: 85.1024 | W51: 88.3154
A52: 46 | B52: 6.3852 | C52: 7.9254 | D52: 8.9964 | E52: 10.9038 | F52: 14.0148 | G52: 16.8504 | H52: 19.7064 | I52: 88.6584 | J52: 85.3842 | K52: 88.6584 | M52: 46 | N52: 7.7252 | O52: 9.2654 | P52: 10.3364 | Q52: 12.2438 | R52: 15.3548 | S52: 18.1904 | T52: 21.0464 | U52: 89.9984 | V52: 86.7242 | W52: 89.9984
A53: 47 | B53: 6.4464 | C53: 8.0478 | D53: 9.1494 | E53: 11.0874 | F53: 14.2188 | G53: 17.1666 | H53: 20.0124 | I53: 90.3516 | J53: 87.006 | K53: 90.3516 | M53: 47 | N53: 7.7864 | O53: 9.3878 | P53: 10.4894 | Q53: 12.4274 | R53: 15.5588 | S53: 18.5066 | T53: 21.3524 | U53: 91.6916 | V53: 88.346 | W53: 91.6916
A54: 48 | B54: 6.4872 | C54: 8.16 | D54: 9.282 | E54: 11.2914 | F54: 14.4126 | G54: 17.5032 | H54: 20.3388 | I54: 91.902 | J54: 88.5054 | K54: 91.902 | M54: 48 | N54: 7.8272 | O54: 9.5 | P54: 10.622 | Q54: 12.6314 | R54: 15.7526 | S54: 18.8432 | T54: 21.6788 | U54: 93.242 | V54: 89.8454 | W54: 93.242
A55: 49 | B55: 6.5076 | C55: 8.16 | D55: 9.4248 | E55: 11.475 | F55: 14.6268 | G55: 17.8194 | H55: 20.6652 | I55: 93.4728 | J55: 90.0252 | K55: 93.4728 | M55: 49 | N55: 7.8476 | O55: 9.5 | P55: 10.7648 | Q55: 12.815 | R55: 15.9668 | S55: 19.1594 | T55: 22.0052 | U55: 94.8128 | V55: 91.3652 | W55: 94.8128
A56: 50 | B56: 6.528 | C56: 8.1804 | D56: 9.435 | E56: 11.5056 | F56: 14.8002 | G56: 18.156 | H56: 20.9712 | I56: 95.0538 | J56: 91.5348 | K56: 95.0538 | M56: 50 | N56: 7.868 | O56: 9.5204 | P56: 10.775 | Q56: 12.8456 | R56: 16.1402 | S56: 19.496 | T56: 22.3112 | U56: 96.3938 | V56: 92.8748 | W56: 96.3938
A57: 51 | B57: 6.5484 | C57: 8.211 | D57: 9.4452 | E57: 11.5362 | F57: 14.8818 | G57: 18.2172 | H57: 21.0324 | I57: 96.6552 | J57: 93.0852 | K57: 96.6552 | M57: 51 | N57: 7.8884 | O57: 9.551 | P57: 10.7852 | Q57: 12.8762 | R57: 16.2218 | S57: 19.5572 | T57: 22.3724 | U57: 97.9952 | V57: 94.4252 | W57: 97.9952
A58: 52 | B58: 6.5586 | C58: 8.2212 | D58: 9.4758 | E58: 11.5872 | F58: 14.9532 | G58: 18.2682 | H58: 21.1344 | I58: 98.2158 | J58: 94.5846 | K58: 98.2158 | M58: 52 | N58: 7.8986 | O58: 9.5612 | P58: 10.8158 | Q58: 12.9272 | R58: 16.2932 | S58: 19.6082 | T58: 22.4744 | U58: 99.5558 | V58: 95.9246 | W58: 99.5558
A59: 53 | B59: 6.63 | C59: 8.313 | D59: 9.5778 | E59: 11.7402 | F59: 14.9838 | G59: 18.3396 | H59: 21.1956 | I59: 99.705 | J59: 96.0228 | K59: 99.705 | M59: 53 | N59: 7.97 | O59: 9.653 | P59: 10.9178 | Q59: 13.0802 | R59: 16.3238 | S59: 19.6796 | T59: 22.5356 | U59: 101.045 | V59: 97.3628 | W59: 101.045
A60: 54 | B60: 6.6912 | C60: 8.3844 | D60: 9.7104 | E60: 11.9034 | F60: 14.994 | G60: 18.5232 | H60: 21.5016 | I60: 101.286 | J60: 97.5426 | K60: 101.286 | M60: 54 | N60: 8.0312 | O60: 9.7244 | P60: 11.0504 | Q60: 13.2434 | R60: 16.334 | S60: 19.8632 | T60: 22.8416 | U60: 102.626 | V60: 98.8826 | W60: 102.626
A61: 55 | B61: 6.7626 | C61: 8.4456 | D61: 9.8022 | E61: 12.0564 | F61: 15.1878 | G61: 18.6558 | H61: 21.8076 | I61: 102.8568 | J61: 99.0522 | K61: 102.8568 | M61: 55 | N61: 8.1026 | O61: 9.7856 | P61: 11.1422 | Q61: 13.3964 | R61: 16.5278 | S61: 19.9958 | T61: 23.1476 | U61: 104.1968 | V61: 100.3922 | W61: 104.1968
A62: 56 | B62: 6.8238 | C62: 8.5374 | D62: 9.9144 | E62: 12.2298 | F62: 15.351 | G62: 18.7986 | H62: 22.1136 | I62: 104.448 | J62: 100.5924 | K62: 104.448 | M62: 56 | N62: 8.1638 | O62: 9.8774 | P62: 11.2544 | Q62: 13.5698 | R62: 16.691 | S62: 20.1386 | T62: 23.4536 | U62: 105.788 | V62: 101.9324 | W62: 105.788
A63: 57 | B63: 6.8952 | C63: 8.619 | D63: 10.0164 | E63: 12.4236 | F63: 15.5142 | G63: 18.9312 | H63: 22.389 | I63: 106.1004 | J63: 102.1836 | K63: 106.1004 | M63: 57 | N63: 8.2352 | O63: 9.959 | P63: 11.3564 | Q63: 13.7636 | R63: 16.8542 | S63: 20.2712 | T63: 23.729 | U63: 107.4404 | V63: 103.5236 | W63: 107.4404
A64: 58 | B64: 6.9564 | C64: 8.7006 | D64: 10.1286 | E64: 12.5562 | F64: 15.6978 | G64: 19.0434 | H64: 22.6134 | I64: 107.6814 | J64: 103.7136 | K64: 107.6814 | M64: 58 | N64: 8.2964 | O64: 10.0406 | P64: 11.4686 | Q64: 13.8962 | R64: 17.0378 | S64: 20.3834 | T64: 23.9534 | U64: 109.0214 | V64: 105.0536 | W64: 109.0214
A65: 59 | B65: 7.0278 | C65: 8.8026 | D65: 10.251 | E65: 12.6582 | F65: 15.8508 | G65: 19.1658 | H65: 22.7664 | I65: 109.3338 | J65: 105.2946 | K65: 109.3338 | M65: 59 | N65: 8.3678 | O65: 10.1426 | P65: 11.591 | Q65: 13.9982 | R65: 17.1908 | S65: 20.5058 | T65: 24.1064 | U65: 110.6738 | V65: 106.6346 | W65: 110.6738
A66: 60 | B66: 7.089 | C66: 8.9046 | D66: 10.3632 | E66: 12.75 | F66: 15.963 | G66: 19.278 | H66: 22.9194 | I66: 111.0474 | J66: 106.9368 | K66: 111.0474 | M66: 60 | N66: 8.429 | O66: 10.2446 | P66: 11.7032 | Q66: 14.09 | R66: 17.303 | S66: 20.618 | T66: 24.2594 | U66: 112.3874 | V66: 108.2768 | W66: 112.3874
A67: 61 | B67: 7.1706 | C67: 8.976 | D67: 10.4754 | E67: 12.903 | F67: 16.116 | G67: 19.3698 | H67: 23.052 | I67: 112.3938 | J67: 108.2526 | K67: 112.3938 | M67: 61 | N67: 8.5106 | O67: 10.316 | P67: 11.8154 | Q67: 14.243 | R67: 17.456 | S67: 20.7098 | T67: 24.392 | U67: 113.7338 | V67: 109.5926 | W67: 113.7338
A68: 62 | B68: 7.2216 | C68: 9.0474 | D68: 10.5774 | E68: 13.0152 | F68: 16.2384 | G68: 19.482 | H68: 23.205 | I68: 114.2604 | J68: 110.0478 | K68: 114.2604 | M68: 62 | N68: 8.5616 | O68: 10.3874 | P68: 11.9174 | Q68: 14.3552 | R68: 17.5784 | S68: 20.822 | T68: 24.545 | U68: 115.6004 | V68: 111.3878 | W68: 115.6004
A69: 63 | B69: 7.2828 | C69: 9.1494 | D69: 10.659 | E69: 13.1172 | F69: 16.3404 | G69: 19.6248 | H69: 23.3376 | I69: 116.1168 | J69: 111.8226 | K69: 116.1168 | M69: 63 | N69: 8.6228 | O69: 10.4894 | P69: 11.999 | Q69: 14.4572 | R69: 17.6804 | S69: 20.9648 | T69: 24.6776 | U69: 117.4568 | V69: 113.1626 | W69: 117.4568
A70: 64 | B70: 7.3338 | C70: 9.2412 | D70: 10.7814 | E70: 13.2192 | F70: 16.4526 | G70: 19.7574 | H70: 23.4804 | I70: 118.0548 | J70: 113.6994 | K70: 118.0548 | M70: 64 | N70: 8.6738 | O70: 10.5812 | P70: 12.1214 | Q70: 14.5592 | R70: 17.7926 | S70: 21.0974 | T70: 24.8204 | U70: 119.3948 | V70: 115.0394 | W70: 119.3948
A71: 65 | B71: 7.395 | C71: 9.3432 | D71: 10.9038 | E71: 13.3008 | F71: 16.5954 | G71: 19.8594 | H71: 23.613 | I71: 119.9724 | J71: 115.5456 | K71: 119.9724 | M71: 65 | N71: 8.735 | O71: 10.6832 | P71: 12.2438 | Q71: 14.6408 | R71: 17.9354 | S71: 21.1994 | T71: 24.953 | U71: 121.3124 | V71: 116.8856 | W71: 121.3124
A72: 66 | B72: 7.4664 | C72: 9.4656 | D72: 11.0262 | E72: 13.3824 | F72: 16.7586 | G72: 19.9512 | H72: 23.7864 | I72: 121.839 | J72: 117.3306 | K72: 121.839 | M72: 66 | N72: 8.8064 | O72: 10.8056 | P72: 12.3662 | Q72: 14.7224 | R72: 18.0986 | S72: 21.2912 | T72: 25.1264 | U72: 123.179 | V72: 118.6706 | W72: 123.179
A73: 67 | B73: 7.5276 | C73: 9.5574 | D73: 11.1486 | E73: 13.4946 | F73: 16.9116 | G73: 20.043 | H73: 23.8476 | I73: 123.675 | J73: 119.1156 | K73: 123.675 | M73: 67 | N73: 8.8676 | O73: 10.8974 | P73: 12.4886 | Q73: 14.8346 | R73: 18.2516 | S73: 21.383 | T73: 25.1876 | U73: 125.015 | V73: 120.4556 | W73: 125.015
A74: 68 | B74: 7.5786 | C74: 9.6492 | D74: 11.22 | E74: 13.5456 | F74: 16.983 | G74: 20.1654 | H74: 23.8986 | I74: 125.4498 | J74: 120.8292 | K74: 125.4498 | M74: 68 | N74: 8.9186 | O74: 10.9892 | P74: 12.56 | Q74: 14.8856 | R74: 18.323 | S74: 21.5054 | T74: 25.2386 | U74: 126.7898 | V74: 122.1692 | W74: 126.7898
A75: 69 | B75: 7.6398 | C75: 9.741 | D75: 11.2404 | E75: 13.566 | F75: 17.0748 | G75: 20.2776 | H75: 23.97 | I75: 127.3062 | J75: 122.5938 | K75: 127.3062 | M75: 69 | N75: 8.9798 | O75: 11.081 | P75: 12.5804 | Q75: 14.906 | R75: 18.4148 | S75: 21.6176 | T75: 25.31 | U75: 128.6462 | V75: 123.9338 | W75: 128.6462
A76: 70 | B76: 7.701 | C76: 9.843 | D76: 11.2506 | E76: 13.5864 | F76: 17.1666 | G76: 20.3796 | H76: 24.0312 | I76: 129.9786 | J76: 125.1846 | K76: 129.9786 | M76: 70 | N76: 9.041 | O76: 11.183 | P76: 12.5906 | Q76: 14.9264 | R76: 18.5066 | S76: 21.7196 | T76: 25.3712 | U76: 131.3186 | V76: 126.5246 | W76: 131.3186
A77: 71 | B77: 7.7826 | C77: 9.8634 | D77: 11.2608 | E77: 13.6068 | F77: 17.238 | G77: 20.502 | H77: 24.0924 | I77: 131.9676 | J77: 127.092 | K77: 131.9676 | M77: 71 | N77: 9.1226 | O77: 11.2034 | P77: 12.6008 | Q77: 14.9468 | R77: 18.578 | S77: 21.842 | T77: 25.4324 | U77: 133.3076 | V77: 128.432 | W77: 133.3076
A78: 72 | B78: 8.16 | C78: 10.1388 | D78: 11.3526 | E78: 13.7088 | F78: 17.289 | G78: 20.5224 | H78: 24.1128 | I78: 133.9362 | J78: 128.9892 | K78: 133.9362 | M78: 72 | N78: 9.5 | O78: 11.4788 | P78: 12.6926 | Q78: 15.0488 | R78: 18.629 | S78: 21.8624 | T78: 25.4528 | U78: 135.2762 | V78: 130.3292 | W78: 135.2762
A79: 73 | B79: 8.5782 | C79: 10.506 | D79: 11.6076 | E79: 14.0556 | F79: 17.3502 | G79: 20.5734 | H79: 24.1332 | I79: 135.8844 | J79: 130.8762 | K79: 135.8844 | M79: 73 | N79: 9.9182 | O79: 11.846 | P79: 12.9476 | Q79: 15.3956 | R79: 18.6902 | S79: 21.9134 | T79: 25.4732 | U79: 137.2244 | V79: 132.2162 | W79: 137.2244
A80: 74 | B80: 8.9658 | C80: 10.8936 | D80: 11.9748 | E80: 14.4228 | F80: 17.6766 | G80: 20.7264 | H80: 24.1536 | I80: 137.19 | J80: 132.1206 | K80: 137.19 | M80: 74 | N80: 10.3058 | O80: 12.2336 | P80: 13.3148 | Q80: 15.7628 | R80: 19.0166 | S80: 22.0664 | T80: 25.4936 | U80: 138.53 | V80: 133.4606 | W80: 138.53
A81: 75 | B81: 9.3636 | C81: 11.2506 | D81: 12.3114 | E81: 14.79 | F81: 17.9928 | G81: 21.1038 | H81: 24.174 | I81: 138.7608 | J81: 133.6404 | K81: 138.7608 | M81: 75 | N81: 10.7036 | O81: 12.5906 | P81: 13.6514 | Q81: 16.13 | R81: 19.3328 | S81: 22.4438 | T81: 25.514 | U81: 140.1008 | V81: 134.9804 | W81: 140.1008
A82: 76 | B82: 9.7716 | C82: 11.6076 | D82: 12.6684 | E82: 15.1572 | F82: 18.309 | G82: 21.5016 | H82: 24.2148 | I82: 140.4642 | J82: 135.2826 | K82: 140.4642 | M82: 76 | N82: 11.1116 | O82: 12.9476 | P82: 14.0084 | Q82: 16.4972 | R82: 19.649 | S82: 22.8416 | T82: 25.5548 | U82: 141.8042 | V82: 136.6226 | W82: 141.8042
A83: 77 | B83: 10.1796 | C83: 11.985 | D83: 13.0152 | E83: 15.4836 | F83: 18.6456 | G83: 21.8892 | H83: 24.276 | I83: 141.6372 | J83: 136.3944 | K83: 141.6372 | M83: 77 | N83: 11.5196 | O83: 13.325 | P83: 14.3552 | Q83: 16.8236 | R83: 19.9856 | S83: 23.2292 | T83: 25.616 | U83: 142.9772 | V83: 137.7344 | W83: 142.9772
A84: 78 | B84: 10.5876 | C84: 12.3522 | D84: 13.3518 | E84: 15.8304 | F84: 18.9618 | G84: 22.2768 | H84: 24.3066 | I84: 142.3818 | J84: 137.1186 | K84: 142.3818 | M84: 78 | N84: 11.9276 | O84: 13.6922 | P84: 14.6918 | Q84: 17.1704 | R84: 20.3018 | S84: 23.6168 | T84: 25.6466 | U84: 143.7218 | V84: 138.4586 | W84: 143.7218
A85: 79 | B85: 10.9752 | C85: 12.7194 | D85: 13.7088 | E85: 16.1772 | F85: 19.2882 | G85: 22.593 | H85: 24.3984 | I85: 142.4022 | J85: 137.139 | K85: 142.4022 | M85: 79 | N85: 12.3152 | O85: 14.0594 | P85: 15.0488 | Q85: 17.5172 | R85: 20.6282 | S85: 23.933 | T85: 25.7384 | U85: 143.7422 | V85: 138.479 | W85: 143.7422
A86: 80 | B86: 11.3832 | C86: 13.0968 | D86: 14.0556 | E86: 16.524 | F86: 19.6146 | G86: 22.899 | H86: 24.7044 | I86: 143.9016 | J86: 138.5772 | K86: 143.9016 | M86: 80 | N86: 12.7232 | O86: 14.4368 | P86: 15.3956 | Q86: 17.864 | R86: 20.9546 | S86: 24.239 | T86: 26.0444 | U86: 145.2416 | V86: 139.9172 | W86: 145.2416
A87: 81 | B87: 11.6688 | C87: 13.413 | D87: 14.3922 | E87: 16.7484 | F87: 19.8696 | G87: 23.2152 | H87: 25.0002 | I87: 145.1154 | J87: 139.7502 | K87: 145.1154 | M87: 81 | N87: 13.0088 | O87: 14.753 | P87: 15.7322 | Q87: 18.0884 | R87: 21.2096 | S87: 24.5552 | T87: 26.3402 | U87: 146.4554 | V87: 141.0902 | W87: 146.4554
A88: 82 | B88: 12.0666 | C88: 13.7394 | D88: 14.7492 | E88: 17.0952 | F88: 20.1246 | G88: 23.5314 | H88: 25.2858 | I88: 145.8294 | J88: 140.4438 | K88: 145.8294 | M88: 82 | N88: 13.4066 | O88: 15.0794 | P88: 16.0892 | Q88: 18.4352 | R88: 21.4646 | S88: 24.8714 | T88: 26.6258 | U88: 147.1694 | V88: 141.7838 | W88: 147.1694
A89: 83 | B89: 12.4848 | C89: 14.076 | D89: 15.0858 | E89: 17.4318 | F89: 20.4306 | G89: 23.8476 | H89: 25.5816 | I89: 147.4308 | J89: 141.984 | K89: 147.4308 | M89: 83 | N89: 13.8248 | O89: 15.416 | P89: 16.4258 | Q89: 18.7718 | R89: 21.7706 | S89: 25.1876 | T89: 26.9216 | U89: 148.7708 | V89: 143.324 | W89: 148.7708
A90: 84 | B90: 12.8928 | C90: 14.4228 | D90: 15.4122 | E90: 17.7582 | F90: 20.7366 | G90: 24.1332 | H90: 25.857 | I90: 149.1342 | J90: 143.6262 | K90: 149.1342 | M90: 84 | N90: 14.2328 | O90: 15.7628 | P90: 16.7522 | Q90: 19.0982 | R90: 22.0766 | S90: 25.4732 | T90: 27.197 | U90: 150.4742 | V90: 144.9662 | W90: 150.4742
A91: 85 | B91: 13.3008 | C91: 14.7798 | D91: 15.7488 | E91: 18.0948 | F91: 21.0426 | G91: 24.3984 | H91: 26.1528 | I91: 150.8478 | J91: 145.2786 | K91: 150.8478 | M91: 85 | N91: 14.6408 | O91: 16.1198 | P91: 17.0888 | Q91: 19.4348 | R91: 22.3826 | S91: 25.7384 | T91: 27.4928 | U91: 152.1878 | V91: 146.6186 | W91: 152.1878
A92: 86 | B92: 13.7394 | C92: 15.147 | D92: 16.0752 | E92: 18.4314 | F92: 21.3486 | G92: 24.6738 | H92: 26.4384 | I92: 152.439 | J92: 146.8086 | K92: 152.439 | M92: 86 | N92: 15.0794 | O92: 16.487 | P92: 17.4152 | Q92: 19.7714 | R92: 22.6886 | S92: 26.0138 | T92: 27.7784 | U92: 153.779 | V92: 148.1486 | W92: 153.779
A93: 87 | B93: 14.1678 | C93: 15.4938 | D93: 16.4628 | E93: 18.768 | F93: 21.624 | G93: 24.9288 | H93: 26.724 | I93: 154.1526 | J93: 148.461 | K93: 154.1526 | M93: 87 | N93: 15.5078 | O93: 16.8338 | P93: 17.8028 | Q93: 20.108 | R93: 22.964 | S93: 26.2688 | T93: 28.064 | U93: 155.4926 | V93: 149.801 | W93: 155.4926
A94: 88 | B94: 14.6166 | C94: 15.8508 | D94: 16.7994 | E94: 19.0944 | F94: 21.9096 | G94: 25.1736 | H94: 27.03 | I94: 155.856 | J94: 150.1032 | K94: 155.856 | M94: 88 | N94: 15.9566 | O94: 17.1908 | P94: 18.1394 | Q94: 20.4344 | R94: 23.2496 | S94: 26.5136 | T94: 28.37 | U94: 157.196 | V94: 151.4432 | W94: 157.196
A95: 89 | B95: 15.0348 | C95: 16.1874 | D95: 17.1258 | E95: 19.4208 | F95: 22.185 | G95: 25.449 | H95: 27.3258 | I95: 157.4778 | J95: 151.674 | K95: 157.4778 | M95: 89 | N95: 16.3748 | O95: 17.5274 | P95: 18.4658 | Q95: 20.7608 | R95: 23.525 | S95: 26.789 | T95: 28.6658 | U95: 158.8178 | V95: 153.014 | W95: 158.8178
A96: 90 | B96: 15.4836 | C96: 16.5546 | D96: 17.4624 | E96: 19.6962 | F96: 22.4604 | G96: 25.704 | H96: 27.6012 | I96: 159.0792 | J96: 153.204 | K96: 159.0792 | M96: 90 | N96: 16.8236 | O96: 17.8946 | P96: 18.8024 | Q96: 21.0362 | R96: 23.8004 | S96: 27.044 | T96: 28.9412 | U96: 160.4192 | V96: 154.544 | W96: 160.4192
A97: 91 | B97: 15.8712 | C97: 16.9218 | D97: 17.85 | E97: 20.0226 | F97: 22.746 | G97: 25.959 | H97: 27.9072 | I97: 160.7826 | J97: 154.8564 | K97: 160.7826 | M97: 91 | N97: 17.2112 | O97: 18.2618 | P97: 19.19 | Q97: 21.3626 | R97: 24.086 | S97: 27.299 | T97: 29.2472 | U97: 162.1226 | V97: 156.1964 | W97: 162.1226
A98: 92 | B98: 16.2486 | C98: 17.2584 | D98: 18.1764 | E98: 20.3184 | F98: 23.0214 | G98: 26.2344 | H98: 28.1928 | I98: 162.3024 | J98: 156.315 | K98: 162.3024 | M98: 92 | N98: 17.5886 | O98: 18.5984 | P98: 19.5164 | Q98: 21.6584 | R98: 24.3614 | S98: 27.5744 | T98: 29.5328 | U98: 163.6424 | V98: 157.655 | W98: 163.6424
A99: 93 | B99: 16.626 | C99: 17.6154 | D99: 18.5742 | E99: 20.6448 | F99: 23.2968 | G99: 26.4996 | H99: 28.4886 | I99: 163.9038 | J99: 157.845 | K99: 163.9038 | M99: 93 | N99: 17.966 | O99: 18.9554 | P99: 19.9142 | Q99: 21.9848 | R99: 24.6368 | S99: 27.8396 | T99: 29.8286 | U99: 165.2438 | V99: 159.185 | W99: 165.2438
A100: 94 | B100: 17.0238 | C100: 17.9826 | D100: 18.8904 | E100: 20.91 | F100: 23.5824 | G100: 26.7954 | H100: 28.7742 | I100: 165.444 | J100: 159.3444 | K100: 165.444 | M100: 94 | N100: 18.3638 | O100: 19.3226 | P100: 20.2304 | Q100: 22.25 | R100: 24.9224 | S100: 28.1354 | T100: 30.1142 | U100: 166.784 | V100: 160.6844 | W100: 166.784
A101: 95 | B101: 17.4216 | C101: 18.3192 | D101: 19.2882 | E101: 21.2262 | F101: 23.8476 | G101: 27.081 | H101: 29.0802 | I101: 167.0352 | J101: 160.8744 | K101: 167.0352 | M101: 95 | N101: 18.7616 | O101: 19.6592 | P101: 20.6282 | Q101: 22.5662 | R101: 25.1876 | S101: 28.421 | T101: 30.4202 | U101: 168.3752 | V101: 162.2144 | W101: 168.3752
A102: 96 | B102: 17.8092 | C102: 18.666 | D102: 19.6758 | E102: 21.5526 | F102: 24.1332 | G102: 27.3564 | H102: 29.376 | I102: 168.5754 | J102: 162.3432 | K102: 168.5754 | M102: 96 | N102: 19.1492 | O102: 20.006 | P102: 21.0158 | Q102: 22.8926 | R102: 25.4732 | S102: 28.6964 | T102: 30.716 | U102: 169.9154 | V102: 163.6832 | W102: 169.9154
A103: 97 | B103: 18.2172 | C103: 19.023 | D103: 19.992 | E103: 21.8892 | F103: 24.4086 | G103: 27.6318 | H103: 29.682 | I103: 170.1972 | J103: 163.8936 | K103: 170.1972 | M103: 97 | N103: 19.5572 | O103: 20.363 | P103: 21.332 | Q103: 23.2292 | R103: 25.7486 | S103: 28.9718 | T103: 31.022 | U103: 171.5372 | V103: 165.2336 | W103: 171.5372
A104: 98 | B104: 18.6354 | C104: 19.329 | D104: 20.3796 | E104: 22.1544 | F104: 24.7044 | G104: 27.9174 | H104: 29.9778 | I104: 171.6966 | J104: 165.3624 | K104: 171.6966 | M104: 98 | N104: 19.9754 | O104: 20.669 | P104: 21.7196 | Q104: 23.4944 | R104: 26.0444 | S104: 29.2574 | T104: 31.3178 | U104: 173.0366 | V104: 166.7024 | W104: 173.0366
A105: 99 | B105: 19.0332 | C105: 19.6452 | D105: 20.7672 | E105: 22.4298 | F105: 24.9798 | G105: 28.1826 | H105: 30.2634 | I105: 173.3082 | J105: 166.9128 | K105: 173.3082 | M105: 99 | N105: 20.3732 | O105: 20.9852 | P105: 22.1072 | Q105: 23.7698 | R105: 26.3198 | S105: 29.5226 | T105: 31.6034 | U105: 174.6482 | V105: 168.2528 | W105: 174.6482
A106: 100 | B106: 19.4412 | C106: 19.9614 | D106: 21.1446 | E106: 22.7664 | F106: 25.2552 | G106: 28.4682 | H106: 30.5694 | I106: 174.9198 | J106: 168.453 | K106: 174.9198 | M106: 100 | N106: 20.7812 | O106: 21.3014 | P106: 22.4846 | Q106: 24.1064 | R106: 26.5952 | S106: 29.8082 | T106: 31.9094 | U106: 176.2598 | V106: 169.793 | W106: 176.2598
A107: 101 | B107: 22.8684 | C107: 23.4906 | D107: 25.1226 | E107: 26.928 | F107: 29.4882 | G107: 33.201 | H107: 35.6184 | I107: 176.5212 | J107: 170.0034 | K107: 176.5212 | M107: 101 | N107: 24.2084 | O107: 24.8306 | P107: 26.4626 | Q107: 28.268 | R107: 30.8282 | S107: 34.541 | T107: 36.9584 | U107: 177.8612 | V107: 171.3434 | W107: 177.8612
A108: 102 | B108: 23.0928 | C108: 23.8578 | D108: 25.4184 | E108: 27.2952 | F108: 29.7942 | G108: 33.5274 | H108: 35.9652 | I108: 178.143 | J108: 171.564 | K108: 178.143 | M108: 102 | N108: 24.4328 | O108: 25.1978 | P108: 26.7584 | Q108: 28.6352 | R108: 31.1342 | S108: 34.8674 | T108: 37.3052 | U108: 179.483 | V108: 172.904 | W108: 179.483
A109: 103 | B109: 23.4906 | C109: 24.225 | D109: 25.7346 | E109: 27.5808 | F109: 30.1104 | G109: 33.8538 | H109: 36.2916 | I109: 179.7546 | J109: 173.1144 | K109: 179.7546 | M109: 103 | N109: 24.8306 | O109: 25.565 | P109: 27.0746 | Q109: 28.9208 | R109: 31.4504 | S109: 35.1938 | T109: 37.6316 | U109: 181.0946 | V109: 174.4544 | W109: 181.0946
A110: 104 | B110: 23.8578 | C110: 24.6024 | D110: 26.0508 | E110: 27.8766 | F110: 30.4062 | G110: 34.17 | H110: 36.6282 | I110: 181.458 | J110: 174.7566 | K110: 181.458 | M110: 104 | N110: 25.1978 | O110: 25.9424 | P110: 27.3908 | Q110: 29.2166 | R110: 31.7462 | S110: 35.51 | T110: 37.9682 | U110: 182.798 | V110: 176.0966 | W110: 182.798
A111: 105 | B111: 24.2658 | C111: 24.9798 | D111: 26.367 | E111: 28.1724 | F111: 30.7326 | G111: 34.5066 | H111: 36.9444 | I111: 183.0696 | J111: 176.307 | K111: 183.0696 | M111: 105 | N111: 25.6058 | O111: 26.3198 | P111: 27.707 | Q111: 29.5124 | R111: 32.0726 | S111: 35.8466 | T111: 38.2844 | U111: 184.4096 | V111: 177.647 | W111: 184.4096
A112: 106 | B112: 24.6636 | C112: 25.3572 | D112: 26.6934 | E112: 28.4682 | F112: 31.0284 | G112: 34.8126 | H112: 37.281 | I112: 184.7526 | J112: 177.939 | K112: 184.7526 | M112: 106 | N112: 26.0036 | O112: 26.6972 | P112: 28.0334 | Q112: 29.8082 | R112: 32.3684 | S112: 36.1526 | T112: 38.621 | U112: 186.0926 | V112: 179.279 | W112: 186.0926
A113: 107 | B113: 25.0614 | C113: 25.7448 | D113: 26.9994 | E113: 28.764 | F113: 31.3548 | G113: 35.139 | H113: 37.6176 | I113: 186.4662 | J113: 179.5812 | K113: 186.4662 | M113: 107 | N113: 26.4014 | O113: 27.0848 | P113: 28.3394 | Q113: 30.104 | R113: 32.6948 | S113: 36.479 | T113: 38.9576 | U113: 187.8062 | V113: 180.9212 | W113: 187.8062
A114: 108 | B114: 25.4694 | C114: 26.1324 | D114: 27.3258 | E114: 29.07 | F114: 31.671 | G114: 35.4552 | H114: 37.9542 | I114: 188.1594 | J114: 181.2234 | K114: 188.1594 | M114: 108 | N114: 26.8094 | O114: 27.4724 | P114: 28.6658 | Q114: 30.41 | R114: 33.011 | S114: 36.7952 | T114: 39.2942 | U114: 189.4994 | V114: 182.5634 | W114: 189.4994
A115: 109 | B115: 25.857 | C115: 26.4996 | D115: 27.6216 | E115: 29.376 | F115: 31.9566 | G115: 35.7918 | H115: 38.2908 | I115: 189.7812 | J115: 182.7636 | K115: 189.7812 | M115: 109 | N115: 27.197 | O115: 27.8396 | P115: 28.9616 | Q115: 30.716 | R115: 33.2966 | S115: 37.1318 | T115: 39.6308 | U115: 191.1212 | V115: 184.1036 | W115: 191.1212
A116: 110 | B116: 26.2956 | C116: 26.8974 | D116: 27.9582 | E116: 29.6718 | F116: 32.2932 | G116: 36.1182 | H116: 38.6274 | I116: 191.3826 | J116: 184.314 | K116: 191.3826 | M116: 110 | N116: 27.6356 | O116: 28.2374 | P116: 29.2982 | Q116: 31.0118 | R116: 33.6332 | S116: 37.4582 | T116: 39.9674 | U116: 192.7226 | V116: 185.654 | W116: 192.7226
A117: 111 | B117: 26.5812 | C117: 27.2034 | D117: 28.2846 | E117: 29.9778 | F117: 32.589 | G117: 36.4344 | H117: 38.9436 | I117: 193.5552 | J117: 186.405 | K117: 193.5552 | M117: 111 | N117: 27.9212 | O117: 28.5434 | P117: 29.6246 | Q117: 31.3178 | R117: 33.929 | S117: 37.7744 | T117: 40.2836 | U117: 194.8952 | V117: 187.745 | W117: 194.8952
A118: 112 | B118: 26.8566 | C118: 27.5094 | D118: 28.6008 | E118: 30.2736 | F118: 32.9052 | G118: 36.7608 | H118: 39.27 | I118: 195.7482 | J118: 188.5164 | K118: 195.7482 | M118: 112 | N118: 28.1966 | O118: 28.8494 | P118: 29.9408 | Q118: 31.6136 | R118: 34.2452 | S118: 38.1008 | T118: 40.61 | U118: 197.0882 | V118: 189.8564 | W118: 197.0882
A119: 113 | B119: 27.1422 | C119: 27.8256 | D119: 28.9374 | E119: 30.5796 | F119: 33.201 | G119: 37.0668 | H119: 39.5862 | I119: 197.4516 | J119: 190.1586 | K119: 197.4516 | M119: 113 | N119: 28.4822 | O119: 29.1656 | P119: 30.2774 | Q119: 31.9196 | R119: 34.541 | S119: 38.4068 | T119: 40.9262 | U119: 198.7916 | V119: 191.4986 | W119: 198.7916
A120: 114 | B120: 27.4278 | C120: 28.1316 | D120: 29.2434 | E120: 30.8754 | F120: 33.5274 | G120: 37.3932 | H120: 39.9228 | I120: 199.1652 | J120: 191.811 | K120: 199.1652 | M120: 114 | N120: 28.7678 | O120: 29.4716 | P120: 30.5834 | Q120: 32.2154 | R120: 34.8674 | S120: 38.7332 | T120: 41.2628 | U120: 200.5052 | V120: 193.151 | W120: 200.5052
A121: 115 | B121: 27.7236 | C121: 28.4682 | D121: 29.58 | E121: 31.1814 | F121: 33.8334 | G121: 37.7196 | H121: 40.2492 | I121: 200.8584 | J121: 193.443 | K121: 200.8584 | M121: 115 | N121: 29.0636 | O121: 29.8082 | P121: 30.92 | Q121: 32.5214 | R121: 35.1734 | S121: 39.0596 | T121: 41.5892 | U121: 202.1984 | V121: 194.783 | W121: 202.1984
A122: 116 | B122: 28.0194 | C122: 28.764 | D122: 29.8962 | E122: 31.4772 | F122: 34.1496 | G122: 38.0358 | H122: 40.5756 | I122: 202.5006 | J122: 195.0138 | K122: 202.5006 | M122: 116 | N122: 29.3594 | O122: 30.104 | P122: 31.2362 | Q122: 32.8172 | R122: 35.4896 | S122: 39.3758 | T122: 41.9156 | U122: 203.8406 | V122: 196.3538 | W122: 203.8406
A123: 117 | B123: 28.305 | C123: 29.0904 | D123: 30.2226 | E123: 31.7832 | F123: 34.4556 | G123: 38.3622 | H123: 40.902 | I123: 204.1122 | J123: 196.5642 | K123: 204.1122 | M123: 117 | N123: 29.645 | O123: 30.4304 | P123: 31.5626 | Q123: 33.1232 | R123: 35.7956 | S123: 39.7022 | T123: 42.242 | U123: 205.4522 | V123: 197.9042 | W123: 205.4522
A124: 118 | B124: 28.6008 | C124: 29.4066 | D124: 30.5694 | E124: 32.0892 | F124: 34.7718 | G124: 38.6784 | H124: 41.2182 | I124: 205.734 | J124: 198.1248 | K124: 205.734 | M124: 118 | N124: 29.9408 | O124: 30.7466 | P124: 31.9094 | Q124: 33.4292 | R124: 36.1118 | S124: 40.0184 | T124: 42.5582 | U124: 207.074 | V124: 199.4648 | W124: 207.074
A125: 119 | B125: 28.8966 | C125: 29.7432 | D125: 30.8856 | E125: 32.3952 | F125: 35.0982 | G125: 39.0048 | H125: 41.5548 | I125: 208.7124 | J125: 201.0012 | K125: 208.7124 | M125: 119 | N125: 30.2366 | O125: 31.0832 | P125: 32.2256 | Q125: 33.7352 | R125: 36.4382 | S125: 40.3448 | T125: 42.8948 | U125: 210.0524 | V125: 202.3412 | W125: 210.0524
A126: 120 | B126: 29.3964 | C126: 30.0696 | D126: 31.2222 | E126: 32.691 | F126: 35.394 | G126: 39.3108 | H126: 41.8812 | I126: 210.426 | J126: 202.6536 | K126: 210.426 | M126: 120 | N126: 30.7364 | O126: 31.4096 | P126: 32.5622 | Q126: 34.031 | R126: 36.734 | S126: 40.6508 | T126: 43.2212 | U126: 211.766 | V126: 203.9936 | W126: 211.766
A127: 121 | B127: 29.7636 | C127: 30.3858 | D127: 31.5384 | E127: 33.0072 | F127: 35.7306 | G127: 39.6474 | H127: 42.2076 | I127: 212.2416 | J127: 204.3978 | K127: 212.2416 | M127: 121 | N127: 31.1036 | O127: 31.7258 | P127: 32.8784 | Q127: 34.3472 | R127: 37.0706 | S127: 40.9874 | T127: 43.5476 | U127: 213.5816 | V127: 205.7378 | W127: 213.5816
A128: 122 | B128: 30.0798 | C128: 30.7122 | D128: 31.8852 | E128: 33.3132 | F128: 36.0366 | G128: 39.9636 | H128: 42.5442 | I128: 214.0266 | J128: 206.1318 | K128: 214.0266 | M128: 122 | N128: 31.4198 | O128: 32.0522 | P128: 33.2252 | Q128: 34.6532 | R128: 37.3766 | S128: 41.3036 | T128: 43.8842 | U128: 215.3666 | V128: 207.4718 | W128: 215.3666
A129: 123 | B129: 30.3756 | C129: 31.0182 | D129: 32.232 | E129: 33.609 | F129: 36.3528 | G129: 40.2798 | H129: 42.8706 | I129: 215.8626 | J129: 207.8862 | K129: 215.8626 | M129: 123 | N129: 31.7156 | O129: 32.3582 | P129: 33.572 | Q129: 34.949 | R129: 37.6928 | S129: 41.6198 | T129: 44.2106 | U129: 217.2026 | V129: 209.2262 | W129: 217.2026
A130: 124 | B130: 30.6816 | C130: 31.365 | D130: 32.5584 | E130: 33.9354 | F130: 36.669 | G130: 40.6062 | H130: 43.2174 | I130: 217.6578 | J130: 209.6202 | K130: 217.6578 | M130: 124 | N130: 32.0216 | O130: 32.705 | P130: 33.8984 | Q130: 35.2754 | R130: 38.009 | S130: 41.9462 | T130: 44.5574 | U130: 218.9978 | V130: 210.9602 | W130: 218.9978
A131: 125 | B131: 30.9672 | C131: 31.6914 | D131: 32.9052 | E131: 34.221 | F131: 36.975 | G131: 40.9122 | H131: 43.5336 | I131: 219.4734 | J131: 211.3644 | K131: 219.4734 | M131: 125 | N131: 32.3072 | O131: 33.0314 | P131: 34.2452 | Q131: 35.561 | R131: 38.315 | S131: 42.2522 | T131: 44.8736 | U131: 220.8134 | V131: 212.7044 | W131: 220.8134
A132: 126 | B132: 31.2834 | C132: 32.0076 | D132: 33.2316 | E132: 34.5474 | F132: 37.3014 | G132: 41.2386 | H132: 43.8804 | I132: 221.2584 | J132: 213.0984 | K132: 221.2584 | M132: 126 | N132: 32.6234 | O132: 33.3476 | P132: 34.5716 | Q132: 35.8874 | R132: 38.6414 | S132: 42.5786 | T132: 45.2204 | U132: 222.5984 | V132: 214.4384 | W132: 222.5984
A133: 127 | B133: 31.569 | C133: 32.3442 | D133: 33.5784 | E133: 34.8432 | F133: 37.6074 | G133: 41.565 | H133: 44.2068 | I133: 223.0842 | J133: 214.8426 | K133: 223.0842 | M133: 127 | N133: 32.909 | O133: 33.6842 | P133: 34.9184 | Q133: 36.1832 | R133: 38.9474 | S133: 42.905 | T133: 45.5468 | U133: 224.4242 | V133: 216.1826 | W133: 224.4242
A134: 128 | B134: 31.8852 | C134: 32.6706 | D134: 33.9354 | E134: 35.1594 | F134: 37.9338 | G134: 41.871 | H134: 44.5434 | I134: 224.8896 | J134: 216.5868 | K134: 224.8896 | M134: 128 | N134: 33.2252 | O134: 34.0106 | P134: 35.2754 | Q134: 36.4994 | R134: 39.2738 | S134: 43.211 | T134: 45.8834 | U134: 226.2296 | V134: 217.9268 | W134: 226.2296
A135: 129 | B135: 32.181 | C135: 33.0072 | D135: 34.2618 | E135: 35.4756 | F135: 38.25 | G135: 42.1974 | H135: 44.88 | I135: 226.695 | J135: 218.3208 | K135: 226.695 | M135: 129 | N135: 33.521 | O135: 34.3472 | P135: 35.6018 | Q135: 36.8156 | R135: 39.59 | S135: 43.5374 | T135: 46.22 | U135: 228.035 | V135: 219.6608 | W135: 228.035
A136: 130 | B136: 32.487 | C136: 33.3336 | D136: 34.5984 | E136: 35.7816 | F136: 38.556 | G136: 42.5238 | H136: 45.2064 | I136: 228.5106 | J136: 220.065 | K136: 228.5106 | M136: 130 | N136: 33.827 | O136: 34.6736 | P136: 35.9384 | Q136: 37.1216 | R136: 39.896 | S136: 43.8638 | T136: 46.5464 | U136: 229.8506 | V136: 221.405 | W136: 229.8506
A137: 131 | B137: 32.8134 | C137: 33.6804 | D137: 34.9554 | E137: 36.0978 | F137: 38.8824 | G137: 42.8502 | H137: 45.543 | I137: 231.4278 | J137: 222.87 | K137: 231.4278 | M137: 131 | N137: 34.1534 | O137: 35.0204 | P137: 36.2954 | Q137: 37.4378 | R137: 40.2224 | S137: 44.1902 | T137: 46.883 | U137: 232.7678 | V137: 224.21 | W137: 232.7678
A138: 132 | B138: 33.099 | C138: 34.017 | D138: 35.3022 | E138: 36.4038 | F138: 39.1986 | G138: 43.1766 | H138: 45.8694 | I138: 233.2332 | J138: 224.6142 | K138: 233.2332 | M138: 132 | N138: 34.439 | O138: 35.357 | P138: 36.6422 | Q138: 37.7438 | R138: 40.5386 | S138: 44.5166 | T138: 47.2094 | U138: 234.5732 | V138: 225.9542 | W138: 234.5732
A139: 133 | B139: 33.4356 | C139: 34.3434 | D139: 35.6592 | E139: 36.7098 | F139: 39.5148 | G139: 43.4826 | H139: 46.206 | I139: 235.0488 | J139: 226.3788 | K139: 235.0488 | M139: 133 | N139: 34.7756 | O139: 35.6834 | P139: 36.9992 | Q139: 38.0498 | R139: 40.8548 | S139: 44.8226 | T139: 47.546 | U139: 236.3888 | V139: 227.7188 | W139: 236.3888
A140: 134 | B140: 33.7212 | C140: 34.6902 | D140: 35.9958 | E140: 37.0362 | F140: 39.831 | G140: 43.809 | H140: 46.5426 | I140: 236.8746 | J140: 228.123 | K140: 236.8746 | M140: 134 | N140: 35.0612 | O140: 36.0302 | P140: 37.3358 | Q140: 38.3762 | R140: 41.171 | S140: 45.149 | T140: 47.8826 | U140: 238.2146 | V140: 229.463 | W140: 238.2146
A141: 135 | B141: 34.0476 | C141: 35.037 | D141: 36.3528 | E141: 37.3524 | F141: 40.1574 | G141: 44.115 | H141: 46.869 | I141: 238.6902 | J141: 229.8672 | K141: 238.6902 | M141: 135 | N141: 35.3876 | O141: 36.377 | P141: 37.6928 | Q141: 38.6924 | R141: 41.4974 | S141: 45.455 | T141: 48.209 | U141: 240.0302 | V141: 231.2072 | W141: 240.0302
A142: 136 | B142: 34.3434 | C142: 35.3634 | D142: 36.7098 | E142: 37.6482 | F142: 40.4838 | G142: 44.4414 | H142: 47.2158 | I142: 240.4956 | J142: 231.6114 | K142: 240.4956 | M142: 136 | N142: 35.6834 | O142: 36.7034 | P142: 38.0498 | Q142: 38.9882 | R142: 41.8238 | S142: 45.7814 | T142: 48.5558 | U142: 241.8356 | V142: 232.9514 | W142: 241.8356
A143: 137 | B143: 34.6596 | C143: 35.7204 | D143: 37.0566 | E143: 37.9644 | F143: 40.8 | G143: 44.7474 | H143: 47.5422 | I143: 242.3316 | J143: 233.376 | K143: 242.3316 | M143: 137 | N143: 35.9996 | O143: 37.0604 | P143: 38.3966 | Q143: 39.3044 | R143: 42.14 | S143: 46.0874 | T143: 48.8822 | U143: 243.6716 | V143: 234.716 | W143: 243.6716
A144: 138 | B144: 34.9656 | C144: 36.057 | D144: 37.4136 | E144: 38.2908 | F144: 41.1264 | G144: 45.0738 | H144: 47.8788 | I144: 244.1472 | J144: 235.1406 | K144: 244.1472 | M144: 138 | N144: 36.3056 | O144: 37.397 | P144: 38.7536 | Q144: 39.6308 | R144: 42.4664 | S144: 46.4138 | T144: 49.2188 | U144: 245.4872 | V144: 236.4806 | W144: 245.4872
A145: 139 | B145: 35.2818 | C145: 36.4038 | D145: 37.7604 | E145: 38.607 | F145: 41.4426 | G145: 45.4002 | H145: 48.2154 | I145: 245.9526 | J145: 236.8848 | K145: 245.9526 | M145: 139 | N145: 36.6218 | O145: 37.7438 | P145: 39.1004 | Q145: 39.947 | R145: 42.7826 | S145: 46.7402 | T145: 49.5554 | U145: 247.2926 | V145: 238.2248 | W145: 247.2926
A146: 140 | B146: 35.598 | C146: 36.7608 | D146: 38.1174 | E146: 38.913 | F146: 41.7588 | G146: 45.7164 | H146: 48.552 | I146: 247.6662 | J146: 238.527 | K146: 247.6662 | M146: 140 | N146: 36.938 | O146: 38.1008 | P146: 39.4574 | Q146: 40.253 | R146: 43.0988 | S146: 47.0564 | T146: 49.892 | U146: 249.0062 | V146: 239.867 | W146: 249.0062
A147: 141 | B147: 35.904 | C147: 37.0872 | D147: 38.4744 | E147: 39.2292 | F147: 42.0852 | G147: 46.0326 | H147: 48.8886 | I147: 249.4002 | J147: 240.1896 | K147: 249.4002 | M147: 141 | N147: 37.244 | O147: 38.4272 | P147: 39.8144 | Q147: 40.5692 | R147: 43.4252 | S147: 47.3726 | T147: 50.2286 | U147: 250.7402 | V147: 241.5296 | W147: 250.7402
A148: 142 | B148: 36.2304 | C148: 37.4544 | D148: 38.8314 | E148: 39.5454 | F148: 42.3912 | G148: 46.3386 | H148: 49.2048 | I148: 251.1546 | J148: 241.8828 | K148: 251.1546 | M148: 142 | N148: 37.5704 | O148: 38.7944 | P148: 40.1714 | Q148: 40.8854 | R148: 43.7312 | S148: 47.6786 | T148: 50.5448 | U148: 252.4946 | V148: 243.2228 | W148: 252.4946
A149: 143 | B149: 36.5466 | C149: 37.791 | D149: 39.1884 | E149: 39.8718 | F149: 42.7278 | G149: 46.6752 | H149: 49.5516 | I149: 252.858 | J149: 243.525 | K149: 252.858 | M149: 143 | N149: 37.8866 | O149: 39.131 | P149: 40.5284 | Q149: 41.2118 | R149: 44.0678 | S149: 48.0152 | T149: 50.8916 | U149: 254.198 | V149: 244.865 | W149: 254.198
A150: 144 | B150: 36.873 | C150: 38.1378 | D150: 39.5454 | E150: 40.1676 | F150: 43.0338 | G150: 46.9812 | H150: 49.878 | I150: 254.6022 | J150: 245.1978 | K150: 254.6022 | M150: 144 | N150: 38.213 | O150: 39.4778 | P150: 40.8854 | Q150: 41.5076 | R150: 44.3738 | S150: 48.3212 | T150: 51.218 | U150: 255.9422 | V150: 246.5378 | W150: 255.9422
A151: 145 | B151: 37.179 | C151: 38.4948 | D151: 39.9228 | E151: 40.5042 | F151: 43.3704 | G151: 47.2974 | H151: 50.2044 | I151: 256.3872 | J151: 246.9216 | K151: 256.3872 | M151: 145 | N151: 38.519 | O151: 39.8348 | P151: 41.2628 | Q151: 41.8442 | R151: 44.7104 | S151: 48.6374 | T151: 51.5444 | U151: 257.7272 | V151: 248.2616 | W151: 257.7272
A152: 146 | B152: 37.5054 | C152: 38.8416 | D152: 40.2798 | E152: 40.8306 | F152: 43.6866 | G152: 47.6238 | H152: 50.541 | I152: 258.2232 | J152: 248.6862 | K152: 258.2232 | M152: 146 | N152: 38.8454 | O152: 40.1816 | P152: 41.6198 | Q152: 42.1706 | R152: 45.0266 | S152: 48.9638 | T152: 51.881 | U152: 259.5632 | V152: 250.0262 | W152: 259.5632
A153: 147 | B153: 37.8216 | C153: 39.1986 | D153: 40.647 | E153: 41.1468 | F153: 44.013 | G153: 47.9298 | H153: 50.8878 | I153: 260.0388 | J153: 250.4304 | K153: 260.0388 | M153: 147 | N153: 39.1616 | O153: 40.5386 | P153: 41.987 | Q153: 42.4868 | R153: 45.353 | S153: 49.2698 | T153: 52.2278 | U153: 261.3788 | V153: 251.7704 | W153: 261.3788
A154: 148 | B154: 38.1378 | C154: 39.5454 | D154: 41.0142 | E154: 41.463 | F154: 44.3394 | G154: 48.2664 | H154: 51.2142 | I154: 261.8544 | J154: 252.1848 | K154: 261.8544 | M154: 148 | N154: 39.4778 | O154: 40.8854 | P154: 42.3542 | Q154: 42.803 | R154: 45.6794 | S154: 49.6064 | T154: 52.5542 | U154: 263.1944 | V154: 253.5248 | W154: 263.1944
A155: 149 | B155: 38.4642 | C155: 39.9024 | D155: 41.3814 | E155: 41.7792 | F155: 44.6454 | G155: 48.5622 | H155: 51.5406 | I155: 264.945 | J155: 255.153 | K155: 264.945 | M155: 149 | N155: 39.8042 | O155: 41.2424 | P155: 42.7214 | Q155: 43.1192 | R155: 45.9854 | S155: 49.9022 | T155: 52.8806 | U155: 266.285 | V155: 256.493 | W155: 266.285
A156: 150 | B156: 38.8008 | C156: 40.2696 | D156: 41.7486 | E156: 42.1158 | F156: 44.982 | G156: 48.8988 | H156: 51.8772 | I156: 266.7606 | J156: 256.9074 | K156: 266.7606 | M156: 150 | N156: 40.1408 | O156: 41.6096 | P156: 43.0886 | Q156: 43.4558 | R156: 46.322 | S156: 50.2388 | T156: 53.2172 | U156: 268.1006 | V156: 258.2474 | W156: 268.1006

Sheet NDA Multi (hidden)
A1: UPS Next Day Air Service | M1: UPS Next Day Air Service | Q1: Residential Surcharge | T1: 1.59
A2: - Commercial | M2: -Residential
A3: (Per Package Rates from 48 State Origin) | M3: (Per Package Rates from 48 State Origin)
A4: Rates below do not include Residential Surcharge | M4: Rates Include Residential Surcharge
A5: Lbs. | B5: 2 | C5: 3 | D5: 4 | E5: 5 | F5: 6 | G5: 7 | H5: 8 | I5: Zone 124 | J5: Zone 125 | K5: Zone 126 | M5: Lbs. | N5: 2 | O5: 3 | P5: 4 | Q5: 5 | R5: 6 | S5: 7 | T5: 8 | U5: Zone 124 | V5: Zone 125 | W5: Zone 126
A6: 0.5 | B6: 5.8242 | C6: 5.8242 | D6: 6.7014 | E6: 7.2114 | F6: 7.2726 | G6: 8.007 | H6: 8.1396 | I6: 8.67 | J6: 8.67 | K6: 9.1086 | M6: 0.5 | N6: 7.4142 | O6: 7.4142 | P6: 8.2914 | Q6: 8.8014 | R6: 8.8626 | S6: 9.597 | T6: 9.7296 | U6: 10.26 | V6: 10.26 | W6: 10.6986
A7: 1 | B7: 5.8344 | C7: 7.8234 | D7: 9.996 | E7: 11.0976 | F7: 12.0462 | G7: 12.8724 | H7: 13.2294 | I7: 13.617 | J7: 13.617 | K7: 13.6374 | M7: 1 | N7: 7.4244 | O7: 9.4134 | P7: 11.586 | Q7: 12.6876 | R7: 13.6362 | S7: 14.4624 | T7: 14.8194 | U7: 15.207 | V7: 15.207 | W7: 15.2274
A8: 2 | B8: 5.9568 | C8: 8.4456 | D8: 11.2608 | E8: 12.2808 | F8: 13.617 | G8: 14.1882 | H8: 14.7696 | I8: 14.8716 | J8: 14.8716 | K8: 14.8818 | M8: 2 | N8: 7.5468 | O8: 10.0356 | P8: 12.8508 | Q8: 13.8708 | R8: 15.207 | S8: 15.7782 | T8: 16.3596 | U8: 16.4616 | V8: 16.4616 | W8: 16.4718
A9: 3 | B9: 6.7014 | C9: 9.0474 | D9: 12.4746 | E9: 13.6068 | F9: 15.0858 | G9: 15.5958 | H9: 16.1466 | I9: 16.5954 | J9: 16.5954 | K9: 18.6252 | M9: 3 | N9: 8.2914 | O9: 10.6374 | P9: 14.0646 | Q9: 15.1968 | R9: 16.6758 | S9: 17.1858 | T9: 17.7366 | U9: 18.1854 | V9: 18.1854 | W9: 20.2152
A10: 4 | B10: 7.2318 | C10: 9.486 | D10: 13.5252 | E10: 14.8818 | F10: 16.473 | G10: 16.983 | H10: 17.646 | I10: 18.1254 | J10: 18.1254 | K10: 20.3082 | M10: 4 | N10: 8.8218 | O10: 11.076 | P10: 15.1152 | Q10: 16.4718 | R10: 18.063 | S10: 18.573 | T10: 19.236 | U10: 19.7154 | V10: 19.7154 | W10: 21.8982
A11: 5 | B11: 7.3032 | C11: 9.8838 | D11: 14.7798 | E11: 16.2894 | F11: 17.8602 | G11: 18.3906 | H11: 19.0536 | I11: 19.6146 | J11: 19.6146 | K11: 21.8688 | M11: 5 | N11: 8.8932 | O11: 11.4738 | P11: 16.3698 | Q11: 17.8794 | R11: 19.4502 | S11: 19.9806 | T11: 20.6436 | U11: 21.2046 | V11: 21.2046 | W11: 23.4588
A12: 6 | B12: 8.0886 | C12: 10.4346 | D12: 15.9936 | E12: 17.544 | F12: 19.3494 | G12: 19.686 | H12: 20.5224 | I12: 21.012 | J12: 21.012 | K12: 23.5416 | M12: 6 | N12: 9.6786 | O12: 12.0246 | P12: 17.5836 | Q12: 19.134 | R12: 20.9394 | S12: 21.276 | T12: 22.1124 | U12: 22.602 | V12: 22.602 | W12: 25.1316
A13: 7 | B13: 8.466 | C13: 10.9548 | D13: 17.0952 | E13: 18.8496 | F13: 20.7264 | G13: 21.2058 | H13: 21.93 | I13: 22.4094 | J13: 22.4094 | K13: 25.2042 | M13: 7 | N13: 10.056 | O13: 12.5448 | P13: 18.6852 | Q13: 20.4396 | R13: 22.3164 | S13: 22.7958 | T13: 23.52 | U13: 23.9994 | V13: 23.9994 | W13: 26.7942
A14: 8 | B14: 8.5476 | C14: 11.4954 | D14: 18.1968 | E14: 20.0634 | F14: 22.1034 | G14: 22.6848 | H14: 23.3376 | I14: 23.7762 | J14: 23.7762 | K14: 26.4486 | M14: 8 | N14: 10.1376 | O14: 13.0854 | P14: 19.7868 | Q14: 21.6534 | R14: 23.6934 | S14: 24.2748 | T14: 24.9276 | U14: 25.3662 | V14: 25.3662 | W14: 28.0386
A15: 9 | B15: 8.6496 | C15: 11.9238 | D15: 19.2372 | E15: 21.3588 | F15: 23.4906 | G15: 24.1638 | H15: 24.837 | I15: 25.2858 | J15: 25.2858 | K15: 28.1826 | M15: 9 | N15: 10.2396 | O15: 13.5138 | P15: 20.8272 | Q15: 22.9488 | R15: 25.0806 | S15: 25.7538 | T15: 26.427 | U15: 26.8758 | V15: 26.8758 | W15: 29.7726
A16: 10 | B16: 8.6598 | C16: 11.934 | D16: 20.1246 | E16: 22.4808 | F16: 23.5008 | G16: 24.1842 | H16: 25.4898 | I16: 26.775 | J16: 26.775 | K16: 28.1928 | M16: 10 | N16: 10.2498 | O16: 13.524 | P16: 21.7146 | Q16: 24.0708 | R16: 25.0908 | S16: 25.7742 | T16: 27.0798 | U16: 28.365 | V16: 28.365 | W16: 29.7828
A17: 11 | B17: 9.5574 | C17: 13.0866 | D17: 21.1854 | E17: 23.6844 | F17: 26.2548 | G17: 27.0912 | H17: 27.7236 | I17: 28.2642 | J17: 28.2642 | K17: 31.1712 | M17: 11 | N17: 11.1474 | O17: 14.6766 | P17: 22.7754 | Q17: 25.2744 | R17: 27.8448 | S17: 28.6812 | T17: 29.3136 | U17: 29.8542 | V17: 29.8542 | W17: 32.7612
A18: 12 | B18: 9.9552 | C18: 13.617 | D18: 22.3278 | E18: 24.7962 | F18: 27.54 | G18: 28.56 | H18: 29.2128 | I18: 29.6514 | J18: 29.6514 | K18: 31.8954 | M18: 12 | N18: 11.5452 | O18: 15.207 | P18: 23.9178 | Q18: 26.3862 | R18: 29.13 | S18: 30.15 | T18: 30.8028 | U18: 31.2414 | V18: 31.2414 | W18: 33.4854
A19: 13 | B19: 10.098 | C19: 14.127 | D19: 23.3886 | E19: 25.9284 | F19: 28.6518 | G19: 30.0798 | H19: 30.6306 | I19: 31.1406 | J19: 31.1406 | K19: 32.8134 | M19: 13 | N19: 11.688 | O19: 15.717 | P19: 24.9786 | Q19: 27.5184 | R19: 30.2418 | S19: 31.6698 | T19: 32.2206 | U19: 32.7306 | V19: 32.7306 | W19: 34.4034
A20: 14 | B20: 10.506 | C20: 14.6676 | D20: 24.5922 | E20: 27.0198 | F20: 29.7636 | G20: 31.3854 | H20: 32.1198 | I20: 32.5278 | J20: 32.5278 | K20: 33.7416 | M20: 14 | N20: 12.096 | O20: 16.2576 | P20: 26.1822 | Q20: 28.6098 | R20: 31.3536 | S20: 32.9754 | T20: 33.7098 | U20: 34.1178 | V20: 34.1178 | W20: 35.3316
A21: 15 | B21: 10.6284 | C21: 15.0552 | D21: 25.4184 | E21: 28.1112 | F21: 29.784 | G21: 32.4054 | H21: 33.354 | I21: 33.5274 | J21: 33.5274 | K21: 34.5984 | M21: 15 | N21: 12.2184 | O21: 16.6452 | P21: 27.0084 | Q21: 29.7012 | R21: 31.374 | S21: 33.9954 | T21: 34.944 | U21: 35.1174 | V21: 35.1174 | W21: 36.1884
A22: 16 | B22: 11.0568 | C22: 15.7182 | D22: 26.6322 | E22: 29.1618 | F22: 31.875 | G22: 33.2418 | H22: 34.1802 | I22: 34.8534 | J22: 34.8534 | K22: 36.1488 | M22: 16 | N22: 12.6468 | O22: 17.3082 | P22: 28.2222 | Q22: 30.7518 | R22: 33.465 | S22: 34.8318 | T22: 35.7702 | U22: 36.4434 | V22: 36.4434 | W22: 37.7388
A23: 17 | B23: 11.5056 | C23: 16.2384 | D23: 27.3972 | E23: 30.0798 | F23: 32.5992 | G23: 33.9864 | H23: 34.935 | I23: 35.6388 | J23: 35.6388 | K23: 37.179 | M23: 17 | N23: 13.0956 | O23: 17.8284 | P23: 28.9872 | Q23: 31.6698 | R23: 34.1892 | S23: 35.5764 | T23: 36.525 | U23: 37.2288 | V23: 37.2288 | W23: 38.769
A24: 18 | B24: 11.9034 | C24: 16.7586 | D24: 28.2234 | E24: 30.7122 | F24: 33.3336 | G24: 34.7412 | H24: 35.853 | I24: 36.516 | J24: 36.516 | K24: 38.6886 | M24: 18 | N24: 13.4934 | O24: 18.3486 | P24: 29.8134 | Q24: 32.3022 | R24: 34.9236 | S24: 36.3312 | T24: 37.443 | U24: 38.106 | V24: 38.106 | W24: 40.2786
A25: 19 | B25: 12.138 | C25: 17.2074 | D25: 28.8864 | E25: 31.365 | F25: 34.0884 | G25: 35.5164 | H25: 36.8016 | I25: 37.7298 | J25: 37.7298 | K25: 39.729 | M25: 19 | N25: 13.728 | O25: 18.7974 | P25: 30.4764 | Q25: 32.955 | R25: 35.6784 | S25: 37.1064 | T25: 38.3916 | U25: 39.3198 | V25: 39.3198 | W25: 41.319
A26: 20 | B26: 12.1482 | C26: 17.4318 | D26: 29.6208 | E26: 32.1198 | F26: 34.833 | G26: 36.3426 | H26: 37.638 | I26: 38.4744 | J26: 38.4744 | K26: 42.3708 | M26: 20 | N26: 13.7382 | O26: 19.0218 | P26: 31.2108 | Q26: 33.7098 | R26: 36.423 | S26: 37.9326 | T26: 39.228 | U26: 40.0644 | V26: 40.0644 | W26: 43.9608
A27: 21 | B27: 12.7908 | C27: 18.1152 | D27: 30.2634 | E27: 32.946 | F27: 35.547 | G27: 37.0668 | H27: 38.6682 | I27: 39.3618 | J27: 39.3618 | K27: 43.5438 | M27: 21 | N27: 14.3808 | O27: 19.7052 | P27: 31.8534 | Q27: 34.536 | R27: 37.137 | S27: 38.6568 | T27: 40.2582 | U27: 40.9518 | V27: 40.9518 | W27: 45.1338
A28: 22 | B28: 13.1682 | C28: 18.5232 | D28: 30.9876 | E28: 33.6804 | F28: 36.2916 | G28: 37.9338 | H28: 39.5046 | I28: 40.2288 | J28: 40.2288 | K28: 44.5536 | M28: 22 | N28: 14.7582 | O28: 20.1132 | P28: 32.5776 | Q28: 35.2704 | R28: 37.8816 | S28: 39.5238 | T28: 41.0946 | U28: 41.8188 | V28: 41.8188 | W28: 46.1436
A29: 23 | B29: 13.4232 | C29: 18.9006 | D29: 31.7322 | E29: 34.5168 | F29: 37.1382 | G29: 38.7396 | H29: 40.443 | I29: 41.3202 | J29: 41.3202 | K29: 45.2778 | M29: 23 | N29: 15.0132 | O29: 20.4906 | P29: 33.3222 | Q29: 36.1068 | R29: 38.7282 | S29: 40.3296 | T29: 42.033 | U29: 42.9102 | V29: 42.9102 | W29: 46.8678
A30: 24 | B30: 13.719 | C30: 19.2372 | D30: 32.5788 | E30: 35.3838 | F30: 38.1174 | G30: 39.5862 | H30: 41.259 | I30: 42.1158 | J30: 42.1158 | K30: 46.1652 | M30: 24 | N30: 15.309 | O30: 20.8272 | P30: 34.1688 | Q30: 36.9738 | R30: 39.7074 | S30: 41.1762 | T30: 42.849 | U30: 43.7058 | V30: 43.7058 | W30: 47.7552
A31: 25 | B31: 13.8312 | C31: 19.3392 | D31: 33.405 | E31: 36.1182 | F31: 38.5152 | G31: 40.5552 | H31: 42.1158 | I31: 43.4214 | J31: 43.4214 | K31: 46.4406 | M31: 25 | N31: 15.4212 | O31: 20.9292 | P31: 34.995 | Q31: 37.7082 | R31: 40.1052 | S31: 42.1452 | T31: 43.7058 | U31: 45.0114 | V31: 45.0114 | W31: 48.0306
A32: 26 | B32: 14.3718 | C32: 20.0838 | D32: 34.323 | E32: 36.9954 | F32: 40.1676 | G32: 41.5854 | H32: 42.993 | I32: 44.0844 | J32: 44.0844 | K32: 47.9298 | M32: 26 | N32: 15.9618 | O32: 21.6738 | P32: 35.913 | Q32: 38.5854 | R32: 41.7576 | S32: 43.1754 | T32: 44.583 | U32: 45.6744 | V32: 45.6744 | W32: 49.5198
A33: 27 | B33: 14.637 | C33: 20.451 | D33: 35.1696 | E33: 38.0562 | F33: 41.2794 | G33: 42.483 | H33: 43.809 | I33: 45.0024 | J33: 45.0024 | K33: 48.7458 | M33: 27 | N33: 16.227 | O33: 22.041 | P33: 36.7596 | Q33: 39.6462 | R33: 42.8694 | S33: 44.073 | T33: 45.399 | U33: 46.5924 | V33: 46.5924 | W33: 50.3358
A34: 28 | B34: 15.0144 | C34: 20.91 | D34: 36.0978 | E34: 39.1476 | F34: 42.126 | G34: 43.3296 | H34: 44.7372 | I34: 45.8286 | J34: 45.8286 | K34: 49.776 | M34: 28 | N34: 16.6044 | O34: 22.5 | P34: 37.6878 | Q34: 40.7376 | R34: 43.716 | S34: 44.9196 | T34: 46.3272 | U34: 47.4186 | V34: 47.4186 | W34: 51.366
A35: 29 | B35: 15.1674 | C35: 21.2568 | D35: 37.0158 | E35: 39.984 | F35: 43.0236 | G35: 44.2782 | H35: 45.6858 | I35: 46.5732 | J35: 46.5732 | K35: 50.9184 | M35: 29 | N35: 16.7574 | O35: 22.8468 | P35: 38.6058 | Q35: 41.574 | R35: 44.6136 | S35: 45.8682 | T35: 47.2758 | U35: 48.1632 | V35: 48.1632 | W35: 52.5084
A36: 30 | B36: 15.1776 | C36: 21.2772 | D36: 37.7604 | E36: 40.8918 | F36: 43.0338 | G36: 45.1146 | H36: 45.9918 | I36: 47.4198 | J36: 47.4198 | K36: 51.102 | M36: 30 | N36: 16.7676 | O36: 22.8672 | P36: 39.3504 | Q36: 42.4818 | R36: 44.6238 | S36: 46.7046 | T36: 47.5818 | U36: 49.0098 | V36: 49.0098 | W36: 52.692
A37: 31 | B37: 15.861 | C37: 22.0524 | D37: 38.5662 | E37: 41.8302 | F37: 44.7678 | G37: 46.0428 | H37: 47.5422 | I37: 48.2766 | J37: 48.2766 | K37: 52.7748 | M37: 31 | N37: 17.451 | O37: 23.6424 | P37: 40.1562 | Q37: 43.4202 | R37: 46.3578 | S37: 47.6328 | T37: 49.1322 | U37: 49.8666 | V37: 49.8666 | W37: 54.3648
A38: 32 | B38: 16.3098 | C38: 22.5624 | D38: 39.423 | E38: 42.7686 | F38: 45.6858 | G38: 46.9608 | H38: 48.45 | I38: 49.1742 | J38: 49.1742 | K38: 53.907 | M38: 32 | N38: 17.8998 | O38: 24.1524 | P38: 41.013 | Q38: 44.3586 | R38: 47.2758 | S38: 48.5508 | T38: 50.04 | U38: 50.7642 | V38: 50.7642 | W38: 55.497
A39: 33 | B39: 16.6872 | C39: 23.1336 | D39: 40.1676 | E39: 43.6764 | F39: 46.6242 | G39: 48.0114 | H39: 49.5516 | I39: 50.2962 | J39: 50.2962 | K39: 55.0698 | M39: 33 | N39: 18.2772 | O39: 24.7236 | P39: 41.7576 | Q39: 45.2664 | R39: 48.2142 | S39: 49.6014 | T39: 51.1416 | U39: 51.8862 | V39: 51.8862 | W39: 56.6598
A40: 34 | B40: 17.0544 | C40: 23.4906 | D40: 41.0958 | E40: 44.6046 | F40: 47.6238 | G40: 49.0416 | H40: 50.592 | I40: 51.3162 | J40: 51.3162 | K40: 56.1204 | M40: 34 | N40: 18.6444 | O40: 25.0806 | P40: 42.6858 | Q40: 46.1946 | R40: 49.2138 | S40: 50.6316 | T40: 52.182 | U40: 52.9062 | V40: 52.9062 | W40: 57.7104
A41: 35 | B41: 17.4216 | C41: 23.9292 | D41: 42.0036 | E41: 45.543 | F41: 48.5316 | G41: 50.082 | H41: 51.5814 | I41: 52.3668 | J41: 52.3668 | K41: 57.2424 | M41: 35 | N41: 19.0116 | O41: 25.5192 | P41: 43.5936 | Q41: 47.133 | R41: 50.1216 | S41: 51.672 | T41: 53.1714 | U41: 53.9568 | V41: 53.9568 | W41: 58.8324
A42: 36 | B42: 18.003 | C42: 24.2964 | D42: 42.9114 | E42: 46.4508 | F42: 49.4802 | G42: 51.1836 | H42: 52.5912 | I42: 53.3664 | J42: 53.3664 | K42: 58.497 | M42: 36 | N42: 19.593 | O42: 25.8864 | P42: 44.5014 | Q42: 48.0408 | R42: 51.0702 | S42: 52.7736 | T42: 54.1812 | U42: 54.9564 | V42: 54.9564 | W42: 60.087
A43: 37 | B43: 18.0132 | C43: 24.99 | D43: 43.758 | E43: 47.3994 | F43: 50.4798 | G43: 52.3158 | H43: 53.6928 | I43: 54.4986 | J43: 54.4986 | K43: 59.4456 | M43: 37 | N43: 19.6032 | O43: 26.58 | P43: 45.348 | Q43: 48.9894 | R43: 52.0698 | S43: 53.9058 | T43: 55.2828 | U43: 56.0886 | V43: 56.0886 | W43: 61.0356
A44: 38 | B44: 18.2988 | C44: 25.3878 | D44: 44.523 | E44: 48.2358 | F44: 51.4386 | G44: 53.5398 | H44: 54.7026 | I44: 55.5186 | J44: 55.5186 | K44: 60.6084 | M44: 38 | N44: 19.8888 | O44: 26.9778 | P44: 46.113 | Q44: 49.8258 | R44: 53.0286 | S44: 55.1298 | T44: 56.2926 | U44: 57.1086 | V44: 57.1086 | W44: 62.1984
A45: 39 | B45: 18.9006 | C45: 25.8264 | D45: 45.3492 | E45: 49.1334 | F45: 52.4076 | G45: 54.6414 | H45: 55.794 | I45: 56.61 | J45: 56.61 | K45: 60.6288 | M45: 39 | N45: 20.4906 | O45: 27.4164 | P45: 46.9392 | Q45: 50.7234 | R45: 53.9976 | S45: 56.2314 | T45: 57.384 | U45: 58.2 | V45: 58.2 | W45: 62.2188
A46: 40 | B46: 18.9108 | C46: 26.265 | D46: 46.1856 | E46: 50.0616 | F46: 53.3358 | G46: 55.692 | H46: 56.9262 | I46: 57.7524 | J46: 57.7524 | K46: 60.639 | M46: 40 | N46: 20.5008 | O46: 27.855 | P46: 47.7756 | Q46: 51.6516 | R46: 54.9258 | S46: 57.282 | T46: 58.5162 | U46: 59.3424 | V46: 59.3424 | W46: 62.229
A47: 41 | B47: 19.533 | C47: 26.8056 | D47: 47.0016 | E47: 51.0102 | F47: 54.3558 | G47: 56.5998 | H47: 57.987 | I47: 58.8642 | J47: 58.8642 | K47: 64.4232 | M47: 41 | N47: 21.123 | O47: 28.3956 | P47: 48.5916 | Q47: 52.6002 | R47: 55.9458 | S47: 58.1898 | T47: 59.577 | U47: 60.4542 | V47: 60.4542 | W47: 66.0132
A48: 42 | B48: 19.8186 | C48: 27.3462 | D48: 47.9298 | E48: 51.9282 | F48: 55.4676 | G48: 57.9156 | H48: 59.1804 | I48: 60.078 | J48: 60.078 | K48: 65.4432 | M48: 42 | N48: 21.4086 | O48: 28.9362 | P48: 49.5198 | Q48: 53.5182 | R48: 57.0576 | S48: 59.5056 | T48: 60.7704 | U48: 61.668 | V48: 61.668 | W48: 67.0332
A49: 43 | B49: 20.3388 | C49: 27.8562 | D49: 48.8784 | E49: 52.8462 | F49: 56.4978 | G49: 58.854 | H49: 60.3942 | I49: 61.2816 | J49: 61.2816 | K49: 66.504 | M49: 43 | N49: 21.9288 | O49: 29.4462 | P49: 50.4684 | Q49: 54.4362 | R49: 58.0878 | S49: 60.444 | T49: 61.9842 | U49: 62.8716 | V49: 62.8716 | W49: 68.094
A50: 44 | B50: 20.7978 | C50: 28.407 | D50: 49.6944 | E50: 53.7744 | F50: 57.4872 | G50: 59.8842 | H50: 61.6794 | I50: 62.6076 | J50: 62.6076 | K50: 67.7586 | M50: 44 | N50: 22.3878 | O50: 29.997 | P50: 51.2844 | Q50: 55.3644 | R50: 59.0772 | S50: 61.4742 | T50: 63.2694 | U50: 64.1976 | V50: 64.1976 | W50: 69.3486
A51: 45 | B51: 21.2364 | C51: 28.9986 | D51: 50.592 | E51: 54.6924 | F51: 58.6092 | G51: 60.9246 | H51: 62.6688 | I51: 63.597 | J51: 63.597 | K51: 69.0336 | M51: 45 | N51: 22.8264 | O51: 30.5886 | P51: 52.182 | Q51: 56.2824 | R51: 60.1992 | S51: 62.5146 | T51: 64.2588 | U51: 65.187 | V51: 65.187 | W51: 70.6236
A52: 46 | B52: 21.6444 | C52: 29.6208 | D52: 51.4794 | E52: 55.6206 | F52: 59.721 | G52: 61.9752 | H52: 63.7704 | I52: 64.719 | J52: 64.719 | K52: 69.921 | M52: 46 | N52: 23.2344 | O52: 31.2108 | P52: 53.0694 | Q52: 57.2106 | R52: 61.311 | S52: 63.5652 | T52: 65.3604 | U52: 66.309 | V52: 66.309 | W52: 71.511
A53: 47 | B53: 22.0116 | C53: 30.2532 | D53: 52.377 | E53: 56.4672 | F53: 60.8226 | G53: 62.8626 | H53: 64.7802 | I53: 65.7594 | J53: 65.7594 | K53: 69.9414 | M53: 47 | N53: 23.6016 | O53: 31.8432 | P53: 53.967 | Q53: 58.0572 | R53: 62.4126 | S53: 64.4526 | T53: 66.3702 | U53: 67.3494 | V53: 67.3494 | W53: 71.5314
A54: 48 | B54: 22.1544 | C54: 30.8448 | D54: 53.1216 | E54: 57.3954 | F54: 61.9242 | G54: 64.005 | H54: 65.9838 | I54: 66.9732 | J54: 66.9732 | K54: 71.4816 | M54: 48 | N54: 23.7444 | O54: 32.4348 | P54: 54.7116 | Q54: 58.9854 | R54: 63.5142 | S54: 65.595 | T54: 67.5738 | U54: 68.5632 | V54: 68.5632 | W54: 73.0716
A55: 49 | B55: 22.3278 | C55: 31.5588 | D55: 53.8764 | E55: 57.5586 | F55: 61.9446 | G55: 65.025 | H55: 67.1568 | I55: 68.1564 | J55: 68.1564 | K55: 71.502 | M55: 49 | N55: 23.9178 | O55: 33.1488 | P55: 55.4664 | Q55: 59.1486 | R55: 63.5346 | S55: 66.615 | T55: 68.7468 | U55: 69.7464 | V55: 69.7464 | W55: 73.092
A56: 50 | B56: 22.338 | C56: 31.5996 | D56: 53.8968 | E56: 57.579 | F56: 61.9548 | G56: 65.0352 | H56: 67.1772 | I56: 68.1666 | J56: 68.1666 | K56: 71.5122 | M56: 50 | N56: 23.928 | O56: 33.1896 | P56: 55.4868 | Q56: 59.169 | R56: 63.5448 | S56: 66.6252 | T56: 68.7672 | U56: 69.7566 | V56: 69.7566 | W56: 73.1022
A57: 51 | B57: 23.5416 | C57: 32.8746 | D57: 55.59 | E57: 60.1596 | F57: 65.331 | G57: 67.2792 | H57: 69.7374 | I57: 70.7574 | J57: 70.7574 | K57: 73.899 | M57: 51 | N57: 25.1316 | O57: 34.4646 | P57: 57.18 | Q57: 61.7496 | R57: 66.921 | S57: 68.8692 | T57: 71.3274 | U57: 72.3474 | V57: 72.3474 | W57: 75.489
A58: 52 | B58: 23.8986 | C58: 33.5682 | D58: 56.457 | E58: 61.0776 | F58: 66.4326 | G58: 68.3808 | H58: 71.1042 | I58: 72.165 | J58: 72.165 | K58: 76.3572 | M58: 52 | N58: 25.4886 | O58: 35.1582 | P58: 58.047 | Q58: 62.6676 | R58: 68.0226 | S58: 69.9708 | T58: 72.6942 | U58: 73.755 | V58: 73.755 | W58: 77.9472
A59: 53 | B59: 24.3678 | C59: 34.119 | D59: 57.3138 | E59: 62.0976 | F59: 67.626 | G59: 69.5028 | H59: 72.2976 | I59: 73.389 | J59: 73.389 | K59: 76.3776 | M59: 53 | N59: 25.9578 | O59: 35.709 | P59: 58.9038 | Q59: 63.6876 | R59: 69.216 | S59: 71.0928 | T59: 73.8876 | U59: 74.979 | V59: 74.979 | W59: 77.9676
A60: 54 | B60: 24.7656 | C60: 34.8024 | D60: 58.2624 | E60: 63.0156 | F60: 68.646 | G60: 70.8492 | H60: 73.6644 | I60: 74.7558 | J60: 74.7558 | K60: 78.4686 | M60: 54 | N60: 26.3556 | O60: 36.3924 | P60: 59.8524 | Q60: 64.6056 | R60: 70.236 | S60: 72.4392 | T60: 75.2544 | U60: 76.3458 | V60: 76.3458 | W60: 80.0586
A61: 55 | B61: 25.1328 | C61: 35.4348 | D61: 59.2926 | E61: 63.8724 | F61: 69.6864 | G61: 72.0222 | H61: 74.7558 | I61: 75.888 | J61: 75.888 | K61: 81.0084 | M61: 55 | N61: 26.7228 | O61: 37.0248 | P61: 60.8826 | Q61: 65.4624 | R61: 71.2764 | S61: 73.6122 | T61: 76.3458 | U61: 77.478 | V61: 77.478 | W61: 82.5984
A62: 56 | B62: 25.602 | C62: 36.1182 | D62: 60.3738 | E62: 64.617 | F62: 70.7778 | G62: 73.3584 | H62: 75.9594 | I62: 77.1018 | J62: 77.1018 | K62: 81.0288 | M62: 56 | N62: 27.192 | O62: 37.7082 | P62: 61.9638 | Q62: 66.207 | R62: 72.3678 | S62: 74.9484 | T62: 77.5494 | U62: 78.6918 | V62: 78.6918 | W62: 82.6188
A63: 57 | B63: 26.0814 | C63: 36.7404 | D63: 61.4652 | E63: 65.7696 | F63: 71.7978 | G63: 74.562 | H63: 77.265 | I63: 78.3972 | J63: 78.3972 | K63: 83.385 | M63: 57 | N63: 27.6714 | O63: 38.3304 | P63: 63.0552 | Q63: 67.3596 | R63: 73.3878 | S63: 76.152 | T63: 78.855 | U63: 79.9872 | V63: 79.9872 | W63: 84.975
A64: 58 | B64: 26.6526 | C64: 37.3524 | D64: 62.577 | E64: 66.6672 | F64: 72.8994 | G64: 75.888 | H64: 78.6318 | I64: 79.7946 | J64: 79.7946 | K64: 83.4054 | M64: 58 | N64: 28.2426 | O64: 38.9424 | P64: 64.167 | Q64: 68.2572 | R64: 74.4894 | S64: 77.478 | T64: 80.2218 | U64: 81.3846 | V64: 81.3846 | W64: 84.9954
A65: 59 | B65: 27.03 | C65: 37.9746 | D65: 63.6684 | E65: 67.4832 | F65: 74.001 | G65: 77.0814 | H65: 80.019 | I65: 81.2022 | J65: 81.2022 | K65: 84.6498 | M65: 59 | N65: 28.62 | O65: 39.5646 | P65: 65.2584 | Q65: 69.0732 | R65: 75.591 | S65: 78.6714 | T65: 81.609 | U65: 82.7922 | V65: 82.7922 | W65: 86.2398
A66: 60 | B66: 27.3156 | C66: 38.2398 | D66: 64.7088 | E66: 68.6358 | F66: 75.1944 | G66: 78.3972 | H66: 80.9778 | I66: 82.1712 | J66: 82.1712 | K66: 85.731 | M66: 60 | N66: 28.9056 | O66: 39.8298 | P66: 66.2988 | Q66: 70.2258 | R66: 76.7844 | S66: 79.9872 | T66: 82.5678 | U66: 83.7612 | V66: 83.7612 | W66: 87.321
A67: 61 | B67: 28.05 | C67: 39.2904 | D67: 65.8104 | E67: 69.5028 | F67: 76.3878 | G67: 79.6008 | H67: 80.9982 | I67: 83.9868 | J67: 83.9868 | K67: 89.0766 | M67: 61 | N67: 29.64 | O67: 40.8804 | P67: 67.4004 | Q67: 71.0928 | R67: 77.9778 | S67: 81.1908 | T67: 82.5882 | U67: 85.5768 | V67: 85.5768 | W67: 90.6666
A68: 62 | B68: 28.7232 | C68: 40.0044 | D68: 66.8202 | E68: 70.8288 | F68: 77.5812 | G68: 80.9064 | H68: 84.0276 | I68: 85.272 | J68: 85.272 | K68: 90.1272 | M68: 62 | N68: 30.3132 | O68: 41.5944 | P68: 68.4102 | Q68: 72.4188 | R68: 79.1712 | S68: 82.4964 | T68: 85.6176 | U68: 86.862 | V68: 86.862 | W68: 91.7172
A69: 63 | B69: 29.2026 | C69: 40.7796 | D69: 67.9524 | E69: 71.8488 | F69: 78.8562 | G69: 82.314 | H69: 85.4148 | I69: 86.6898 | J69: 86.6898 | K69: 91.239 | M69: 63 | N69: 30.7926 | O69: 42.3696 | P69: 69.5424 | Q69: 73.4388 | R69: 80.4462 | S69: 83.904 | T69: 87.0048 | U69: 88.2798 | V69: 88.2798 | W69: 92.829
A70: 64 | B70: 29.7534 | C70: 41.5854 | D70: 69.054 | E70: 73.0524 | F70: 80.172 | G70: 83.7318 | H70: 86.7918 | I70: 88.0668 | J70: 88.0668 | K70: 93.3096 | M70: 64 | N70: 31.3434 | O70: 43.1754 | P70: 70.644 | Q70: 74.6424 | R70: 81.762 | S70: 85.3218 | T70: 88.3818 | U70: 89.6568 | V70: 89.6568 | W70: 94.8996
A71: 65 | B71: 29.937 | C71: 42.381 | D71: 70.0638 | E71: 74.2356 | F71: 81.447 | G71: 85.221 | H71: 87.9648 | I71: 88.0872 | J71: 88.0872 | K71: 93.33 | M71: 65 | N71: 31.527 | O71: 43.971 | P71: 71.6538 | Q71: 75.8256 | R71: 83.037 | S71: 86.811 | T71: 89.5548 | U71: 89.6772 | V71: 89.6772 | W71: 94.92
A72: 66 | B72: 30.8142 | C72: 43.146 | D72: 71.1858 | E72: 75.4392 | F72: 82.722 | G72: 86.6184 | H72: 89.5458 | I72: 90.8718 | J72: 90.8718 | K72: 95.115 | M72: 66 | N72: 32.4042 | O72: 44.736 | P72: 72.7758 | Q72: 77.0292 | R72: 84.312 | S72: 88.2084 | T72: 91.1358 | U72: 92.4618 | V72: 92.4618 | W72: 96.705
A73: 67 | B73: 30.957 | C73: 43.9722 | D73: 72.2058 | E73: 76.755 | F73: 84.1296 | G73: 88.1076 | H73: 91.0962 | I73: 92.4528 | J73: 92.4528 | K73: 96.696 | M73: 67 | N73: 32.547 | O73: 45.5622 | P73: 73.7958 | Q73: 78.345 | R73: 85.7196 | S73: 89.6976 | T73: 92.6862 | U73: 94.0428 | V73: 94.0428 | W73: 98.286
A74: 68 | B74: 31.926 | C74: 44.7372 | D74: 73.3176 | E74: 78.03 | F74: 85.4148 | G74: 88.128 | H74: 92.565 | I74: 93.9318 | J74: 93.9318 | K74: 98.7258 | M74: 68 | N74: 33.516 | O74: 46.3272 | P74: 74.9076 | Q74: 79.62 | R74: 87.0048 | S74: 89.718 | T74: 94.155 | U74: 95.5218 | V74: 95.5218 | W74: 100.3158
A75: 69 | B75: 32.4054 | C75: 45.543 | D75: 74.409 | E75: 79.3254 | F75: 85.4352 | G75: 88.5666 | H75: 94.1256 | I75: 95.523 | J75: 95.523 | K75: 100.3272 | M75: 69 | N75: 33.9954 | O75: 47.133 | P75: 75.999 | Q75: 80.9154 | R75: 87.0252 | S75: 90.1566 | T75: 95.7156 | U75: 97.113 | V75: 97.113 | W75: 101.9172
A76: 70 | B76: 32.4156 | C76: 45.8898 | D76: 74.4192 | E76: 80.5392 | F76: 86.7204 | G76: 89.6682 | H76: 95.4108 | I76: 96.8184 | J76: 96.8184 | K76: 101.7858 | M76: 70 | N76: 34.0056 | O76: 47.4798 | P76: 76.0092 | Q76: 82.1292 | R76: 88.3104 | S76: 91.2582 | T76: 97.0008 | U76: 98.4084 | V76: 98.4084 | W76: 103.3758
A77: 71 | B77: 33.5274 | C77: 47.1852 | D77: 76.5612 | E77: 81.8346 | F77: 87.1182 | G77: 90.9024 | H77: 97.1346 | I77: 98.5728 | J77: 98.5728 | K77: 103.2954 | M77: 71 | N77: 35.1174 | O77: 48.7752 | P77: 78.1512 | Q77: 83.4246 | R77: 88.7082 | S77: 92.4924 | T77: 98.7246 | U77: 100.1628 | V77: 100.1628 | W77: 104.8854
A78: 72 | B78: 33.8232 | C78: 47.5728 | D78: 76.5714 | E78: 83.1402 | F78: 88.179 | G78: 92.0856 | H78: 97.155 | I78: 98.583 | J78: 98.583 | K78: 105.264 | M78: 72 | N78: 35.4132 | O78: 49.1628 | P78: 78.1614 | Q78: 84.7302 | R78: 89.769 | S78: 93.6756 | T78: 98.745 | U78: 100.173 | V78: 100.173 | W78: 106.854
A79: 73 | B79: 33.8334 | C79: 48.8784 | D79: 76.602 | E79: 83.1504 | F79: 89.3826 | G79: 93.5442 | H79: 98.8584 | I79: 100.2864 | J79: 100.2864 | K79: 108.1812 | M79: 73 | N79: 35.4234 | O79: 50.4684 | P79: 78.192 | Q79: 84.7404 | R79: 90.9726 | S79: 95.1342 | T79: 100.4484 | U79: 101.8764 | V79: 101.8764 | W79: 109.7712
A80: 74 | B80: 33.8436 | C80: 49.674 | D80: 77.5914 | E80: 85.7106 | F80: 90.7902 | G80: 97.3488 | H80: 99.297 | I80: 100.3068 | J80: 100.3068 | K80: 108.1914 | M80: 74 | N80: 35.4336 | O80: 51.264 | P80: 79.1814 | Q80: 87.3006 | R80: 92.3802 | S80: 98.9388 | T80: 100.887 | U80: 101.8968 | V80: 101.8968 | W80: 109.7814
A81: 75 | B81: 33.864 | C81: 50.0922 | D81: 79.7946 | E81: 85.731 | F81: 91.4838 | G81: 98.685 | H81: 100.3068 | I81: 100.317 | J81: 100.317 | K81: 108.2118 | M81: 75 | N81: 35.454 | O81: 51.6822 | P81: 81.3846 | Q81: 87.321 | R81: 93.0738 | S81: 100.275 | T81: 101.8968 | U81: 101.907 | V81: 101.907 | W81: 109.8018
A82: 76 | B82: 35.9754 | C82: 51.3264 | D82: 81.9162 | E82: 88.2096 | F82: 93.279 | G82: 98.685 | H82: 103.9278 | I82: 104.499 | J82: 104.499 | K82: 112.9752 | M82: 76 | N82: 37.5654 | O82: 52.9164 | P82: 83.5062 | Q82: 89.7996 | R82: 94.869 | S82: 100.275 | T82: 105.5178 | U82: 106.089 | V82: 106.089 | W82: 114.5652
A83: 77 | B83: 35.9958 | C83: 51.6528 | D83: 82.2834 | E83: 88.23 | F83: 94.503 | G83: 99.297 | H83: 104.142 | I83: 106.8756 | J83: 106.8756 | K83: 112.9854 | M83: 77 | N83: 37.5858 | O83: 53.2428 | P83: 83.8734 | Q83: 89.82 | R83: 96.093 | S83: 100.887 | T83: 105.732 | U83: 108.4656 | V83: 108.4656 | W83: 114.5754
A84: 78 | B84: 35.9958 | C84: 51.9486 | D84: 82.2936 | E84: 88.689 | F84: 95.676 | G84: 100.6026 | H84: 105.7434 | I84: 108.2628 | J84: 108.2628 | K84: 113.9544 | M84: 78 | N84: 37.5858 | O84: 53.5386 | P84: 83.8836 | Q84: 90.279 | R84: 97.266 | S84: 102.1926 | T84: 107.3334 | U84: 109.8528 | V84: 109.8528 | W84: 115.5444
A85: 79 | B85: 36.006 | C85: 53.142 | D85: 82.5792 | E85: 91.2186 | F85: 96.9102 | G85: 101.9898 | H85: 107.2938 | I85: 109.6602 | J85: 109.6602 | K85: 116.1168 | M85: 79 | N85: 37.596 | O85: 54.732 | P85: 84.1692 | Q85: 92.8086 | R85: 98.5002 | S85: 103.5798 | T85: 108.8838 | U85: 111.2502 | V85: 111.2502 | W85: 117.7068
A86: 80 | B86: 36.0264 | C86: 53.1522 | D86: 83.2218 | E86: 91.3104 | F86: 97.41 | G86: 103.5198 | H86: 108.2526 | I86: 111.0576 | J86: 111.0576 | K86: 117.1878 | M86: 80 | N86: 37.6164 | O86: 54.7422 | P86: 84.8118 | Q86: 92.9004 | R86: 99 | S86: 105.1098 | T86: 109.8426 | U86: 112.6476 | V86: 112.6476 | W86: 118.7778
A87: 81 | B87: 38.454 | C87: 54.2028 | D87: 84.2316 | E87: 92.4222 | F87: 98.9706 | G87: 104.8662 | H87: 109.9662 | I87: 111.078 | J87: 111.078 | K87: 117.504 | M87: 81 | N87: 40.044 | O87: 55.7928 | P87: 85.8216 | Q87: 94.0122 | R87: 100.5606 | S87: 106.4562 | T87: 111.5562 | U87: 112.668 | V87: 112.668 | W87: 119.094
A88: 82 | B88: 39.066 | C88: 55.9368 | D88: 87.0468 | E88: 95.268 | F88: 99.6948 | G88: 106.3656 | H88: 112.0776 | I88: 113.7402 | J88: 113.7402 | K88: 121.2372 | M88: 82 | N88: 40.656 | O88: 57.5268 | P88: 88.6368 | Q88: 96.858 | R88: 101.2848 | S88: 107.9556 | T88: 113.6676 | U88: 115.3302 | V88: 115.3302 | W88: 122.8272
A89: 83 | B89: 39.5148 | C89: 56.61 | D89: 87.1896 | E89: 95.268 | F89: 101.5716 | G89: 107.8854 | H89: 112.8222 | I89: 114.0666 | J89: 114.0666 | K89: 121.2678 | M89: 83 | N89: 41.1048 | O89: 58.2 | P89: 88.7796 | Q89: 96.858 | R89: 103.1616 | S89: 109.4754 | T89: 114.4122 | U89: 115.6566 | V89: 115.6566 | W89: 122.8578
A90: 84 | B90: 39.5352 | C90: 56.7018 | D90: 88.128 | E90: 95.9106 | F90: 101.592 | G90: 109.446 | H90: 114.0666 | I90: 114.1074 | J90: 114.1074 | K90: 121.278 | M90: 84 | N90: 41.1252 | O90: 58.2918 | P90: 89.718 | Q90: 97.5006 | R90: 103.182 | S90: 111.036 | T90: 115.6566 | U90: 115.6974 | V90: 115.6974 | W90: 122.868
A91: 85 | B91: 39.5454 | C91: 57.4056 | D91: 89.5458 | E91: 98.6748 | F91: 103.9992 | G91: 110.8638 | H91: 115.464 | I91: 115.566 | J91: 115.566 | K91: 124.0116 | M91: 85 | N91: 41.1354 | O91: 58.9956 | P91: 91.1358 | Q91: 100.2648 | R91: 105.5892 | S91: 112.4538 | T91: 117.054 | U91: 117.156 | V91: 117.156 | W91: 125.6016
A92: 86 | B92: 40.8204 | C92: 58.1196 | D92: 91.443 | E92: 98.685 | F92: 104.0196 | G92: 112.2408 | H92: 116.841 | I92: 118.0344 | J92: 118.0344 | K92: 124.032 | M92: 86 | N92: 42.4104 | O92: 59.7096 | P92: 93.033 | Q92: 100.275 | R92: 105.6096 | S92: 113.8308 | T92: 118.431 | U92: 119.6244 | V92: 119.6244 | W92: 125.622
A93: 87 | B93: 40.8408 | C93: 59.3538 | D93: 92.8608 | E93: 99.6336 | F93: 104.0196 | G93: 113.8116 | H93: 118.1364 | I93: 119.3502 | J93: 119.3502 | K93: 128.01 | M93: 87 | N93: 42.4308 | O93: 60.9438 | P93: 94.4508 | Q93: 101.2236 | R93: 105.6096 | S93: 115.4016 | T93: 119.7264 | U93: 120.9402 | V93: 120.9402 | W93: 129.6
A94: 88 | B94: 40.851 | C94: 59.4966 | D94: 93.7686 | E94: 100.7148 | F94: 107.0592 | G94: 115.0764 | H94: 120.3396 | I94: 121.0128 | J94: 121.0128 | K94: 128.0304 | M94: 88 | N94: 42.441 | O94: 61.0866 | P94: 95.3586 | Q94: 102.3048 | R94: 108.6492 | S94: 116.6664 | T94: 121.9296 | U94: 122.6028 | V94: 122.6028 | W94: 129.6204
A95: 89 | B95: 40.8714 | C95: 59.5068 | D95: 95.676 | E95: 101.7756 | F95: 112.4244 | G95: 116.3616 | H95: 120.972 | I95: 123.1752 | J95: 123.1752 | K95: 131.835 | M95: 89 | N95: 42.4614 | O95: 61.0968 | P95: 97.266 | Q95: 103.3656 | R95: 114.0144 | S95: 117.9516 | T95: 122.562 | U95: 124.7652 | V95: 124.7652 | W95: 133.425
A96: 90 | B96: 40.8816 | C96: 59.517 | D96: 97.2264 | E96: 102.8976 | F96: 112.4346 | G96: 117.6264 | H96: 122.247 | I96: 123.1956 | J96: 123.1956 | K96: 133.5588 | M96: 90 | N96: 42.4716 | O96: 61.107 | P96: 98.8164 | Q96: 104.4876 | R96: 114.0246 | S96: 119.2164 | T96: 123.837 | U96: 124.7856 | V96: 124.7856 | W96: 135.1488
A97: 91 | B97: 43.248 | C97: 62.0874 | D97: 98.532 | E97: 104.1828 | F97: 114.903 | G97: 118.983 | H97: 123.6036 | I97: 126.327 | J97: 126.327 | K97: 136.068 | M97: 91 | N97: 44.838 | O97: 63.6774 | P97: 100.122 | Q97: 105.7728 | R97: 116.493 | S97: 120.573 | T97: 125.1936 | U97: 127.917 | V97: 127.917 | W97: 137.658
A98: 92 | B98: 43.2786 | C98: 62.0976 | D98: 99.8274 | E98: 105.621 | F98: 114.9336 | G98: 121.0128 | H98: 125.358 | I98: 127.7142 | J98: 127.7142 | K98: 137.292 | M98: 92 | N98: 44.8686 | O98: 63.6876 | P98: 101.4174 | Q98: 107.211 | R98: 116.5236 | S98: 122.6028 | T98: 126.948 | U98: 129.3042 | V98: 129.3042 | W98: 138.882
A99: 93 | B99: 43.2888 | C99: 62.3016 | D99: 101.0208 | E99: 106.9062 | F99: 114.9438 | G99: 122.3286 | H99: 126.3678 | I99: 129.0912 | J99: 129.0912 | K99: 137.3124 | M99: 93 | N99: 44.8788 | O99: 63.8916 | P99: 102.6108 | Q99: 108.4962 | R99: 116.5338 | S99: 123.9186 | T99: 127.9578 | U99: 130.6812 | V99: 130.6812 | W99: 138.9024
A100: 94 | B100: 43.299 | C100: 62.9238 | D100: 102.255 | E100: 108.12 | F100: 115.2294 | G100: 122.9406 | H100: 127.6428 | I100: 130.3968 | J100: 130.3968 | K100: 140.8008 | M100: 94 | N100: 44.889 | O100: 64.5138 | P100: 103.845 | Q100: 109.71 | R100: 116.8194 | S100: 124.5306 | T100: 129.2328 | U100: 131.9868 | V100: 131.9868 | W100: 142.3908
A101: 95 | B101: 43.299 | C101: 62.934 | D101: 103.2036 | E101: 109.3134 | F101: 116.535 | G101: 124.1238 | H101: 129.0912 | I101: 130.407 | J101: 130.407 | K101: 140.811 | M101: 95 | N101: 44.889 | O101: 64.524 | P101: 104.7936 | Q101: 110.9034 | R101: 118.125 | S101: 125.7138 | T101: 130.6812 | U101: 131.997 | V101: 131.997 | W101: 142.401
A102: 96 | B102: 45.8286 | C102: 65.4126 | D102: 104.3256 | E102: 110.5068 | F102: 117.8202 | G102: 125.4906 | H102: 130.3764 | I102: 130.4274 | J102: 130.4274 | K102: 140.8314 | M102: 96 | N102: 47.4186 | O102: 67.0026 | P102: 105.9156 | Q102: 112.0968 | R102: 119.4102 | S102: 127.0806 | T102: 131.9664 | U102: 132.0174 | V102: 132.0174 | W102: 142.4214
A103: 97 | B103: 46.2366 | C103: 65.5044 | D103: 105.3864 | E103: 111.843 | F103: 121.2882 | G103: 127.6326 | H103: 132.6306 | I103: 133.3548 | J103: 133.3548 | K103: 140.8416 | M103: 97 | N103: 47.8266 | O103: 67.0944 | P103: 106.9764 | Q103: 113.433 | R103: 122.8782 | S103: 129.2226 | T103: 134.2206 | U103: 134.9448 | V103: 134.9448 | W103: 142.4316
A104: 98 | B104: 46.257 | C104: 66.2082 | D104: 106.4982 | E104: 111.8532 | F104: 121.3086 | G104: 128.1222 | H104: 133.161 | I104: 133.4874 | J104: 133.4874 | K104: 146.6352 | M104: 98 | N104: 47.847 | O104: 67.7982 | P104: 108.0882 | Q104: 113.4432 | R104: 122.8986 | S104: 129.7122 | T104: 134.751 | U104: 135.0774 | V104: 135.0774 | W104: 148.2252
A105: 99 | B105: 47.2158 | C105: 66.2796 | D105: 107.3652 | E105: 114.2298 | F105: 121.5228 | G105: 129.489 | H105: 134.5278 | I105: 134.946 | J105: 134.946 | K105: 149.5626 | M105: 99 | N105: 48.8058 | O105: 67.8696 | P105: 108.9552 | Q105: 115.8198 | R105: 123.1128 | S105: 131.079 | T105: 136.1178 | U105: 136.536 | V105: 136.536 | W105: 151.1526
A106: 100 | B106: 47.6136 | C106: 67.575 | D106: 108.0792 | E106: 115.4436 | F106: 125.8272 | G106: 131.0292 | H106: 135.9558 | I106: 138.1386 | J106: 138.1386 | K106: 149.5728 | M106: 100 | N106: 49.2036 | O106: 69.165 | P106: 109.6692 | Q106: 117.0336 | R106: 127.4172 | S106: 132.6192 | T106: 137.5458 | U106: 139.7286 | V106: 139.7286 | W106: 151.1628
A107: 101 | B107: 48.0726 | C107: 68.238 | D107: 109.1706 | E107: 116.586 | F107: 127.092 | G107: 132.345 | H107: 137.3124 | I107: 139.5258 | J107: 139.5258 | K107: 151.0926 | M107: 101 | N107: 49.6626 | O107: 69.828 | P107: 110.7606 | Q107: 118.176 | R107: 128.682 | S107: 133.935 | T107: 138.9024 | U107: 141.1158 | V107: 141.1158 | W107: 152.6826
A108: 102 | B108: 48.552 | C108: 68.9214 | D108: 110.2212 | E108: 117.7488 | F108: 128.3364 | G108: 133.6506 | H108: 138.669 | I108: 140.9028 | J108: 140.9028 | K108: 152.6022 | M108: 102 | N108: 50.142 | O108: 70.5114 | P108: 111.8112 | Q108: 119.3388 | R108: 129.9264 | S108: 135.2406 | T108: 140.259 | U108: 142.4928 | V108: 142.4928 | W108: 154.1922
A109: 103 | B109: 49.0314 | C109: 69.5946 | D109: 111.3126 | E109: 118.9014 | F109: 129.6114 | G109: 134.9562 | H109: 140.0358 | I109: 142.29 | J109: 142.29 | K109: 154.1118 | M109: 103 | N109: 50.6214 | O109: 71.1846 | P109: 112.9026 | Q109: 120.4914 | R109: 131.2014 | S109: 136.5462 | T109: 141.6258 | U109: 143.88 | V109: 143.88 | W109: 155.7018
A110: 104 | B110: 49.5006 | C110: 70.278 | D110: 112.3938 | E110: 120.0438 | F110: 130.866 | G110: 136.272 | H110: 141.3924 | I110: 143.667 | J110: 143.667 | K110: 155.6214 | M110: 104 | N110: 51.0906 | O110: 71.868 | P110: 113.9838 | Q110: 121.6338 | R110: 132.456 | S110: 137.862 | T110: 142.9824 | U110: 145.257 | V110: 145.257 | W110: 157.2114
A111: 105 | B111: 49.98 | C111: 70.941 | D111: 113.4852 | E111: 121.2066 | F111: 132.1206 | G111: 137.5776 | H111: 142.749 | I111: 145.0542 | J111: 145.0542 | K111: 157.1412 | M111: 105 | N111: 51.57 | O111: 72.531 | P111: 115.0752 | Q111: 122.7966 | R111: 133.7106 | S111: 139.1676 | T111: 144.339 | U111: 146.6442 | V111: 146.6442 | W111: 158.7312
A112: 106 | B112: 50.4594 | C112: 71.6244 | D112: 114.546 | E112: 122.3694 | F112: 133.3854 | G112: 138.8934 | H112: 144.1158 | I112: 146.4312 | J112: 146.4312 | K112: 158.661 | M112: 106 | N112: 52.0494 | O112: 73.2144 | P112: 116.136 | Q112: 123.9594 | R112: 134.9754 | S112: 140.4834 | T112: 145.7058 | U112: 148.0212 | V112: 148.0212 | W112: 160.251
A113: 107 | B113: 50.9388 | C113: 72.2976 | D113: 115.6374 | E113: 123.522 | F113: 134.6502 | G113: 140.199 | H113: 145.4724 | I113: 147.8184 | J113: 147.8184 | K113: 160.1604 | M113: 107 | N113: 52.5288 | O113: 73.8876 | P113: 117.2274 | Q113: 125.112 | R113: 136.2402 | S113: 141.789 | T113: 147.0624 | U113: 149.4084 | V113: 149.4084 | W113: 161.7504
A114: 108 | B114: 51.3978 | C114: 72.9708 | D114: 116.7186 | E114: 124.6848 | F114: 135.8946 | G114: 141.5046 | H114: 146.8188 | I114: 149.1954 | J114: 149.1954 | K114: 161.6802 | M114: 108 | N114: 52.9878 | O114: 74.5608 | P114: 118.3086 | Q114: 126.2748 | R114: 137.4846 | S114: 143.0946 | T114: 148.4088 | U114: 150.7854 | V114: 150.7854 | W114: 163.2702
A115: 109 | B115: 51.8772 | C115: 73.6542 | D115: 117.81 | E115: 125.8272 | F115: 137.1594 | G115: 142.8204 | H115: 148.1856 | I115: 150.5826 | J115: 150.5826 | K115: 163.1898 | M115: 109 | N115: 53.4672 | O115: 75.2442 | P115: 119.4 | Q115: 127.4172 | R115: 138.7494 | S115: 144.4104 | T115: 149.7756 | U115: 152.1726 | V115: 152.1726 | W115: 164.7798
A116: 110 | B116: 52.3668 | C116: 74.3172 | D116: 118.8708 | E116: 126.9798 | F116: 138.414 | G116: 144.126 | H116: 149.5422 | I116: 151.9596 | J116: 151.9596 | K116: 164.7096 | M116: 110 | N116: 53.9568 | O116: 75.9072 | P116: 120.4608 | Q116: 128.5698 | R116: 140.004 | S116: 145.716 | T116: 151.1322 | U116: 153.5496 | V116: 153.5496 | W116: 166.2996
A117: 111 | B117: 52.8258 | C117: 75.0006 | D117: 119.9622 | E117: 128.1426 | F117: 139.6788 | G117: 145.4316 | H117: 150.909 | I117: 153.3468 | J117: 153.3468 | K117: 166.2192 | M117: 111 | N117: 54.4158 | O117: 76.5906 | P117: 121.5522 | Q117: 129.7326 | R117: 141.2688 | S117: 147.0216 | T117: 152.499 | U117: 154.9368 | V117: 154.9368 | W117: 167.8092
A118: 112 | B118: 53.3154 | C118: 75.6738 | D118: 121.0434 | E118: 129.285 | F118: 140.9232 | G118: 146.7474 | H118: 152.2656 | I118: 154.7238 | J118: 154.7238 | K118: 167.7288 | M118: 112 | N118: 54.9054 | O118: 77.2638 | P118: 122.6334 | Q118: 130.875 | R118: 142.5132 | S118: 148.3374 | T118: 153.8556 | U118: 156.3138 | V118: 156.3138 | W118: 169.3188
A119: 113 | B119: 53.7948 | C119: 76.3572 | D119: 122.1348 | E119: 130.4376 | F119: 142.1982 | G119: 148.053 | H119: 153.6324 | I119: 156.111 | J119: 156.111 | K119: 169.2486 | M119: 113 | N119: 55.3848 | O119: 77.9472 | P119: 123.7248 | Q119: 132.0276 | R119: 143.7882 | S119: 149.643 | T119: 155.2224 | U119: 157.701 | V119: 157.701 | W119: 170.8386
A120: 114 | B120: 54.2742 | C120: 77.0304 | D120: 123.2058 | E120: 131.6004 | F120: 143.4528 | G120: 149.3688 | H120: 154.989 | I120: 157.488 | J120: 157.488 | K120: 170.7582 | M120: 114 | N120: 55.8642 | O120: 78.6204 | P120: 124.7958 | Q120: 133.1904 | R120: 145.0428 | S120: 150.9588 | T120: 156.579 | U120: 159.078 | V120: 159.078 | W120: 172.3482
A121: 115 | B121: 54.7434 | C121: 77.7036 | D121: 124.287 | E121: 132.753 | F121: 144.7074 | G121: 150.6744 | H121: 156.3456 | I121: 158.8752 | J121: 158.8752 | K121: 172.2678 | M121: 115 | N121: 56.3334 | O121: 79.2936 | P121: 125.877 | Q121: 134.343 | R121: 146.2974 | S121: 152.2644 | T121: 157.9356 | U121: 160.4652 | V121: 160.4652 | W121: 173.8578
A122: 116 | B122: 55.2126 | C122: 78.387 | D122: 125.3784 | E122: 133.9056 | F122: 145.962 | G122: 151.98 | H122: 157.7124 | I122: 160.2318 | J122: 160.2318 | K122: 173.7876 | M122: 116 | N122: 56.8026 | O122: 79.977 | P122: 126.9684 | Q122: 135.4956 | R122: 147.552 | S122: 153.57 | T122: 159.3024 | U122: 161.8218 | V122: 161.8218 | W122: 175.3776
A123: 117 | B123: 55.692 | C123: 79.05 | D123: 126.4392 | E123: 135.0684 | F123: 147.237 | G123: 153.2958 | H123: 159.0588 | I123: 161.619 | J123: 161.619 | K123: 175.2972 | M123: 117 | N123: 57.282 | O123: 80.64 | P123: 128.0292 | Q123: 136.6584 | R123: 148.827 | S123: 154.8858 | T123: 160.6488 | U123: 163.209 | V123: 163.209 | W123: 176.8872
A124: 118 | B124: 56.1612 | C124: 79.7334 | D124: 127.5306 | E124: 136.221 | F124: 148.4814 | G124: 154.6218 | H124: 160.4256 | I124: 162.996 | J124: 162.996 | K124: 176.817 | M124: 118 | N124: 57.7512 | O124: 81.3234 | P124: 129.1206 | Q124: 137.811 | R124: 150.0714 | S124: 156.2118 | T124: 162.0156 | U124: 164.586 | V124: 164.586 | W124: 178.407
A125: 119 | B125: 56.6406 | C125: 80.3964 | D125: 128.6118 | E125: 137.3634 | F125: 149.7462 | G125: 155.9376 | H125: 161.7822 | I125: 164.3832 | J125: 164.3832 | K125: 178.3164 | M125: 119 | N125: 58.2306 | O125: 81.9864 | P125: 130.2018 | Q125: 138.9534 | R125: 151.3362 | S125: 157.5276 | T125: 163.3722 | U125: 165.9732 | V125: 165.9732 | W125: 179.9064
A126: 120 | B126: 57.12 | C126: 81.0798 | D126: 129.7032 | E126: 138.5262 | F126: 151.0008 | G126: 157.2432 | H126: 163.149 | I126: 165.7602 | J126: 165.7602 | K126: 179.8362 | M126: 120 | N126: 58.71 | O126: 82.6698 | P126: 131.2932 | Q126: 140.1162 | R126: 152.5908 | S126: 158.8332 | T126: 164.739 | U126: 167.3502 | V126: 167.3502 | W126: 181.4262
A127: 121 | B127: 57.6096 | C127: 81.7632 | D127: 130.764 | E127: 139.6788 | F127: 152.2554 | G127: 158.5488 | H127: 164.4954 | I127: 167.1474 | J127: 167.1474 | K127: 181.356 | M127: 121 | N127: 59.1996 | O127: 83.3532 | P127: 132.354 | Q127: 141.2688 | R127: 153.8454 | S127: 160.1388 | T127: 166.0854 | U127: 168.7374 | V127: 168.7374 | W127: 182.946
A128: 122 | B128: 58.0686 | C128: 82.4364 | D128: 131.8554 | E128: 140.8314 | F128: 153.51 | G128: 159.8646 | H128: 165.8724 | I128: 168.5244 | J128: 168.5244 | K128: 182.8656 | M128: 122 | N128: 59.6586 | O128: 84.0264 | P128: 133.4454 | Q128: 142.4214 | R128: 155.1 | S128: 161.4546 | T128: 167.4624 | U128: 170.1144 | V128: 170.1144 | W128: 184.4556
A129: 123 | B129: 58.548 | C129: 83.1096 | D129: 132.9264 | E129: 141.9942 | F129: 154.7646 | G129: 161.1702 | H129: 167.2188 | I129: 169.9116 | J129: 169.9116 | K129: 184.3752 | M129: 123 | N129: 60.138 | O129: 84.6996 | P129: 134.5164 | Q129: 143.5842 | R129: 156.3546 | S129: 162.7602 | T129: 168.8088 | U129: 171.5016 | V129: 171.5016 | W129: 185.9652
A130: 124 | B130: 59.0274 | C130: 83.7726 | D130: 134.0178 | E130: 143.1366 | F130: 156.0396 | G130: 162.4758 | H130: 168.5754 | I130: 171.2988 | J130: 171.2988 | K130: 185.8848 | M130: 124 | N130: 60.6174 | O130: 85.3626 | P130: 135.6078 | Q130: 144.7266 | R130: 157.6296 | S130: 164.0658 | T130: 170.1654 | U130: 172.8888 | V130: 172.8888 | W130: 187.4748
A131: 125 | B131: 59.4966 | C131: 84.4662 | D131: 135.0888 | E131: 144.2892 | F131: 157.284 | G131: 163.7916 | H131: 169.9422 | I131: 172.6758 | J131: 172.6758 | K131: 187.4046 | M131: 125 | N131: 61.0866 | O131: 86.0562 | P131: 136.6788 | Q131: 145.8792 | R131: 158.874 | S131: 165.3816 | T131: 171.5322 | U131: 174.2658 | V131: 174.2658 | W131: 188.9946
A132: 126 | B132: 59.976 | C132: 85.1292 | D132: 136.1802 | E132: 145.4622 | F132: 158.5488 | G132: 165.0972 | H132: 171.2988 | I132: 174.063 | J132: 174.063 | K132: 188.9244 | M132: 126 | N132: 61.566 | O132: 86.7192 | P132: 137.7702 | Q132: 147.0522 | R132: 160.1388 | S132: 166.6872 | T132: 172.8888 | U132: 175.653 | V132: 175.653 | W132: 190.5144
A133: 127 | B133: 60.4554 | C133: 85.8126 | D133: 137.2512 | E133: 146.6046 | F133: 159.8034 | G133: 166.413 | H133: 172.6656 | I133: 175.44 | J133: 175.44 | K133: 190.4238 | M133: 127 | N133: 62.0454 | O133: 87.4026 | P133: 138.8412 | Q133: 148.1946 | R133: 161.3934 | S133: 168.003 | T133: 174.2556 | U133: 177.03 | V133: 177.03 | W133: 192.0138
A134: 128 | B134: 60.9348 | C134: 86.4858 | D134: 138.3426 | E134: 147.7572 | F134: 161.0682 | G134: 167.7186 | H134: 174.012 | I134: 176.8272 | J134: 176.8272 | K134: 191.9436 | M134: 128 | N134: 62.5248 | O134: 88.0758 | P134: 139.9326 | Q134: 149.3472 | R134: 162.6582 | S134: 169.3086 | T134: 175.602 | U134: 178.4172 | V134: 178.4172 | W134: 193.5336
A135: 129 | B135: 61.404 | C135: 87.1692 | D135: 139.4238 | E135: 148.92 | F135: 162.3126 | G135: 169.0242 | H135: 175.389 | I135: 178.2042 | J135: 178.2042 | K135: 193.4532 | M135: 129 | N135: 62.994 | O135: 88.7592 | P135: 141.0138 | Q135: 150.51 | R135: 163.9026 | S135: 170.6142 | T135: 176.979 | U135: 179.7942 | V135: 179.7942 | W135: 195.0432
A136: 130 | B136: 61.8834 | C136: 87.8424 | D136: 140.4846 | E136: 150.0726 | F136: 163.5774 | G136: 170.34 | H136: 176.7354 | I136: 179.5914 | J136: 179.5914 | K136: 194.973 | M136: 130 | N136: 63.4734 | O136: 89.4324 | P136: 142.0746 | Q136: 151.6626 | R136: 165.1674 | S136: 171.93 | T136: 178.3254 | U136: 181.1814 | V136: 181.1814 | W136: 196.563
A137: 131 | B137: 62.3526 | C137: 88.5258 | D137: 141.576 | E137: 151.215 | F137: 164.8422 | G137: 171.6456 | H137: 178.1022 | I137: 180.9684 | J137: 180.9684 | K137: 196.4826 | M137: 131 | N137: 63.9426 | O137: 90.1158 | P137: 143.166 | Q137: 152.805 | R137: 166.4322 | S137: 173.2356 | T137: 179.6922 | U137: 182.5584 | V137: 182.5584 | W137: 198.0726
A138: 132 | B138: 62.8218 | C138: 89.1888 | D138: 142.647 | E138: 152.3778 | F138: 166.0968 | G138: 172.9614 | H138: 179.4588 | I138: 182.3454 | J138: 182.3454 | K138: 197.9922 | M138: 132 | N138: 64.4118 | O138: 90.7788 | P138: 144.237 | Q138: 153.9678 | R138: 167.6868 | S138: 174.5514 | T138: 181.0488 | U138: 183.9354 | V138: 183.9354 | W138: 199.5822
A139: 133 | B139: 63.3012 | C139: 89.8518 | D139: 143.7384 | E139: 153.5304 | F139: 167.3514 | G139: 174.267 | H139: 180.8154 | I139: 183.7224 | J139: 183.7224 | K139: 199.512 | M139: 133 | N139: 64.8912 | O139: 91.4418 | P139: 145.3284 | Q139: 155.1204 | R139: 168.9414 | S139: 175.857 | T139: 182.4054 | U139: 185.3124 | V139: 185.3124 | W139: 201.102
A140: 134 | B140: 63.7908 | C140: 90.5454 | D140: 144.8094 | E140: 154.6728 | F140: 168.6264 | G140: 175.5726 | H140: 182.172 | I140: 185.1096 | J140: 185.1096 | K140: 201.0216 | M140: 134 | N140: 65.3808 | O140: 92.1354 | P140: 146.3994 | Q140: 156.2628 | R140: 170.2164 | S140: 177.1626 | T140: 183.762 | U140: 186.6996 | V140: 186.6996 | W140: 202.6116
A141: 135 | B141: 64.2702 | C141: 91.2186 | D141: 145.9008 | E141: 155.8356 | F141: 169.8708 | G141: 176.8884 | H141: 183.5388 | I141: 186.4866 | J141: 186.4866 | K141: 202.5312 | M141: 135 | N141: 65.8602 | O141: 92.8086 | P141: 147.4908 | Q141: 157.4256 | R141: 171.4608 | S141: 178.4784 | T141: 185.1288 | U141: 188.0766 | V141: 188.0766 | W141: 204.1212
A142: 136 | B142: 64.7394 | C142: 91.8918 | D142: 146.9616 | E142: 156.9984 | F142: 171.1356 | G142: 178.194 | H142: 184.8954 | I142: 187.8738 | J142: 187.8738 | K142: 204.051 | M142: 136 | N142: 66.3294 | O142: 93.4818 | P142: 148.5516 | Q142: 158.5884 | R142: 172.7256 | S142: 179.784 | T142: 186.4854 | U142: 189.4638 | V142: 189.4638 | W142: 205.641
A143: 137 | B143: 65.2188 | C143: 92.565 | D143: 148.053 | E143: 158.151 | F143: 172.38 | G143: 179.5098 | H143: 186.252 | I143: 189.2508 | J143: 189.2508 | K143: 205.5606 | M143: 137 | N143: 66.8088 | O143: 94.155 | P143: 149.643 | Q143: 159.741 | R143: 173.97 | S143: 181.0998 | T143: 187.842 | U143: 190.8408 | V143: 190.8408 | W143: 207.1506
A144: 138 | B144: 65.688 | C144: 93.2586 | D144: 149.1342 | E144: 159.3138 | F144: 173.655 | G144: 180.8256 | H144: 187.6188 | I144: 190.638 | J144: 190.638 | K144: 207.0804 | M144: 138 | N144: 67.278 | O144: 94.8486 | P144: 150.7242 | Q144: 160.9038 | R144: 175.245 | S144: 182.4156 | T144: 189.2088 | U144: 192.228 | V144: 192.228 | W144: 208.6704
A145: 139 | B145: 66.1572 | C145: 93.9216 | D145: 150.2256 | E145: 160.4562 | F145: 174.8994 | G145: 182.1312 | H145: 188.9754 | I145: 192.015 | J145: 192.015 | K145: 208.5798 | M145: 139 | N145: 67.7472 | O145: 95.5116 | P145: 151.8156 | Q145: 162.0462 | R145: 176.4894 | S145: 183.7212 | T145: 190.5654 | U145: 193.605 | V145: 193.605 | W145: 210.1698
A146: 140 | B146: 66.6366 | C146: 94.5846 | D146: 151.2864 | E146: 161.6088 | F146: 176.1642 | G146: 183.447 | H146: 190.3218 | I146: 193.4022 | J146: 193.4022 | K146: 210.0996 | M146: 140 | N146: 68.2266 | O146: 96.1746 | P146: 152.8764 | Q146: 163.1988 | R146: 177.7542 | S146: 185.037 | T146: 191.9118 | U146: 194.9922 | V146: 194.9922 | W146: 211.6896
A147: 141 | B147: 67.116 | C147: 95.268 | D147: 152.3778 | E147: 162.7716 | F147: 177.429 | G147: 184.7526 | H147: 191.6988 | I147: 194.7792 | J147: 194.7792 | K147: 211.6194 | M147: 141 | N147: 68.706 | O147: 96.858 | P147: 153.9678 | Q147: 164.3616 | R147: 179.019 | S147: 186.3426 | T147: 193.2888 | U147: 196.3692 | V147: 196.3692 | W147: 213.2094
A148: 142 | B148: 67.5954 | C148: 95.9412 | D148: 153.4692 | E148: 163.914 | F148: 178.6836 | G148: 186.0582 | H148: 193.0452 | I148: 196.1664 | J148: 196.1664 | K148: 213.129 | M148: 142 | N148: 69.1854 | O148: 97.5312 | P148: 155.0592 | Q148: 165.504 | R148: 180.2736 | S148: 187.6482 | T148: 194.6352 | U148: 197.7564 | V148: 197.7564 | W148: 214.719
A149: 143 | B149: 68.0646 | C149: 96.6246 | D149: 154.5504 | E149: 165.0666 | F149: 179.9382 | G149: 187.374 | H149: 194.4222 | I149: 197.5434 | J149: 197.5434 | K149: 214.6386 | M149: 143 | N149: 69.6546 | O149: 98.2146 | P149: 156.1404 | Q149: 166.6566 | R149: 181.5282 | S149: 188.964 | T149: 196.0122 | U149: 199.1334 | V149: 199.1334 | W149: 216.2286
A150: 144 | B150: 68.544 | C150: 97.2978 | D150: 155.6214 | E150: 166.2294 | F150: 181.2132 | G150: 188.6796 | H150: 195.7686 | I150: 198.9306 | J150: 198.9306 | K150: 216.1482 | M150: 144 | N150: 70.134 | O150: 98.8878 | P150: 157.2114 | Q150: 167.8194 | R150: 182.8032 | S150: 190.2696 | T150: 197.3586 | U150: 200.5206 | V150: 200.5206 | W150: 217.7382
A151: 145 | B151: 69.0336 | C151: 97.9812 | D151: 156.7026 | E151: 167.382 | F151: 182.4576 | G151: 189.9954 | H151: 197.1456 | I151: 200.3076 | J151: 200.3076 | K151: 217.668 | M151: 145 | N151: 70.6236 | O151: 99.5712 | P151: 158.2926 | Q151: 168.972 | R151: 184.0476 | S151: 191.5854 | T151: 198.7356 | U151: 201.8976 | V151: 201.8976 | W151: 219.258
A152: 146 | B152: 69.4824 | C152: 98.6442 | D152: 157.794 | E152: 168.5244 | F152: 183.702 | G152: 191.301 | H152: 198.492 | I152: 201.6948 | J152: 201.6948 | K152: 219.1878 | M152: 146 | N152: 71.0724 | O152: 100.2342 | P152: 159.384 | Q152: 170.1144 | R152: 185.292 | S152: 192.891 | T152: 200.082 | U152: 203.2848 | V152: 203.2848 | W152: 220.7778
A153: 147 | B153: 69.972 | C153: 99.3174 | D153: 158.8752 | E153: 169.6974 | F153: 184.9668 | G153: 192.6066 | H153: 199.8384 | I153: 203.0718 | J153: 203.0718 | K153: 220.6872 | M153: 147 | N153: 71.562 | O153: 100.9074 | P153: 160.4652 | Q153: 171.2874 | R153: 186.5568 | S153: 194.1966 | T153: 201.4284 | U153: 204.6618 | V153: 204.6618 | W153: 222.2772
A154: 148 | B154: 70.4514 | C154: 100.0008 | D154: 159.9462 | E154: 170.85 | F154: 186.2316 | G154: 193.9224 | H154: 201.2154 | I154: 204.459 | J154: 204.459 | K154: 222.207 | M154: 148 | N154: 72.0414 | O154: 101.5908 | P154: 161.5362 | Q154: 172.44 | R154: 187.8216 | S154: 195.5124 | T154: 202.8054 | U154: 206.049 | V154: 206.049 | W154: 223.797
A155: 149 | B155: 70.9206 | C155: 100.674 | D155: 161.0274 | E155: 171.9924 | F155: 187.4862 | G155: 195.228 | H155: 202.5618 | I155: 205.8156 | J155: 205.8156 | K155: 223.7166 | M155: 149 | N155: 72.5106 | O155: 102.264 | P155: 162.6174 | Q155: 173.5824 | R155: 189.0762 | S155: 196.818 | T155: 204.1518 | U155: 207.4056 | V155: 207.4056 | W155: 225.3066
A156: 150 | B156: 71.4 | C156: 101.3472 | D156: 162.1188 | E156: 173.1552 | F156: 188.7408 | G156: 196.5336 | H156: 203.9286 | I156: 207.2028 | J156: 207.2028 | K156: 225.2364 | M156: 150 | N156: 72.99 | O156: 102.9372 | P156: 163.7088 | Q156: 174.7452 | R156: 190.3308 | S156: 198.1236 | T156: 205.5186 | U156: 208.7928 | V156: 208.7928 | W156: 226.8264

Sheet ND Svr Multi (hidden)
A1: UPS Next Day Saver Service | J1: UPS Next Day Saver Service | N1: Residential Surcharge | Q1: 1.59
A2: - Commercial | J2: - Residential
A3: (Per Package Rates from 48 State Origin) | J3: (Per Package Rates from 48 State Origin)
A4: Rates below do not include Residential Surcharge | J4: Rates Include Residential Surcharge
A5: Lbs. | B5: 2 | C5: 3 | D5: 4 | E5: 5 | F5: 6 | G5: 7 | H5: 8 | J5: Lbs. | K5: 2 | L5: 3 | M5: 4 | N5: 5 | O5: 6 | P5: 7 | Q5: 8
A6: 0.5 | B6: 5.814 | C6: 5.814 | D6: 6.7932 | E6: 7.3134 | F6: 7.3746 | G6: 8.1294 | H6: 8.262 | J6: 0.5 | K6: 7.404 | L6: 7.404 | M6: 8.3832 | N6: 8.9034 | O6: 8.9646 | P6: 9.7194 | Q6: 9.852
A7: 1 | B7: 5.7834 | C7: 5.865 | D7: 7.293 | E7: 7.7316 | F7: 7.7826 | G7: 8.2722 | H7: 8.7108 | J7: 1 | K7: 7.3734 | L7: 7.455 | M7: 8.883 | N7: 9.3216 | O7: 9.3726 | P7: 9.8622 | Q7: 10.3008
A8: 2 | B8: 5.865 | C8: 6.6606 | D8: 8.5374 | E8: 9.4554 | F8: 10.2714 | G8: 10.9548 | H8: 11.2506 | J8: 2 | K8: 7.455 | L8: 8.2506 | M8: 10.1274 | N8: 11.0454 | O8: 11.8614 | P8: 12.5448 | Q8: 12.8406
A9: 3 | B9: 5.865 | C9: 7.0482 | D9: 9.6288 | E9: 10.4652 | F9: 11.5974 | G9: 12.0564 | H9: 12.5664 | J9: 3 | K9: 7.455 | L9: 8.6382 | M9: 11.2188 | N9: 12.0552 | O9: 13.1874 | P9: 13.6464 | Q9: 14.1564
A10: 4 | B10: 5.865 | C10: 7.4664 | D10: 10.6488 | E10: 11.5974 | F10: 12.8622 | G10: 13.26 | H10: 13.719 | J10: 4 | K10: 7.455 | L10: 9.0564 | M10: 12.2388 | N10: 13.1874 | O10: 14.4522 | P10: 14.85 | Q10: 15.309
A11: 5 | B11: 6.069 | C11: 7.9458 | D11: 11.5566 | E11: 12.7092 | F11: 14.0352 | G11: 14.433 | H11: 15.0042 | J11: 5 | K11: 7.659 | L11: 9.5358 | M11: 13.1466 | N11: 14.2992 | O11: 15.6252 | P11: 16.023 | Q11: 16.5942
A12: 6 | B12: 6.2424 | C12: 8.0682 | D12: 12.6276 | E12: 13.8108 | F12: 14.9838 | G12: 15.3918 | H12: 15.9324 | J12: 6 | K12: 7.8324 | L12: 9.6582 | M12: 14.2176 | N12: 15.4008 | O12: 16.5738 | P12: 16.9818 | Q12: 17.5224
A13: 7 | B13: 6.5994 | C13: 9.0678 | D13: 13.6578 | E13: 14.7186 | F13: 16.2486 | G13: 16.4832 | H13: 17.187 | J13: 7 | K13: 8.1894 | L13: 10.6578 | M13: 15.2478 | N13: 16.3086 | O13: 17.8386 | P13: 18.0732 | Q13: 18.777
A14: 8 | B14: 6.732 | C14: 9.4656 | D14: 14.6166 | E14: 15.9834 | F14: 17.3706 | G14: 17.7276 | H14: 18.3498 | J14: 8 | K14: 8.322 | L14: 11.0556 | M14: 16.2066 | N14: 17.5734 | O14: 18.9606 | P14: 19.3176 | Q14: 19.9398
A15: 9 | B15: 7.0788 | C15: 9.741 | D15: 15.5652 | E15: 17.0238 | F15: 18.5436 | G15: 18.9822 | H15: 19.533 | J15: 9 | K15: 8.6688 | L15: 11.331 | M15: 17.1552 | N15: 18.6138 | O15: 20.1336 | P15: 20.5722 | Q15: 21.123
A16: 10 | B16: 7.4562 | C16: 10.1592 | D16: 16.4424 | E16: 18.1356 | F16: 19.6962 | G16: 20.2266 | H16: 20.7774 | J16: 10 | K16: 9.0462 | L16: 11.7492 | M16: 18.0324 | N16: 19.7256 | O16: 21.2862 | P16: 21.8166 | Q16: 22.3674
A17: 11 | B17: 7.6092 | C17: 10.5672 | D17: 17.2074 | E17: 19.0842 | F17: 20.859 | G17: 21.3996 | H17: 22.0218 | J17: 11 | K17: 9.1992 | L17: 12.1572 | M17: 18.7974 | N17: 20.6742 | O17: 22.449 | P17: 22.9896 | Q17: 23.6118
A18: 12 | B18: 7.8744 | C18: 11.0262 | D18: 18.0948 | E18: 20.1348 | F18: 22.0218 | G18: 22.6542 | H18: 23.205 | J18: 12 | K18: 9.4644 | L18: 12.6162 | M18: 19.6848 | N18: 21.7248 | O18: 23.6118 | P18: 24.2442 | Q18: 24.795
A19: 13 | B19: 8.1396 | C19: 11.577 | D19: 19.0842 | E19: 21.0528 | F19: 23.0928 | G19: 23.8986 | H19: 24.4494 | J19: 13 | K19: 9.7296 | L19: 13.167 | M19: 20.6742 | N19: 22.6428 | O19: 24.6828 | P19: 25.4886 | Q19: 26.0394
A20: 14 | B20: 8.2518 | C20: 12.1686 | D20: 19.9716 | E20: 22.0116 | F20: 24.0414 | G20: 25.1532 | H20: 25.6428 | J20: 14 | K20: 9.8418 | L20: 13.7586 | M20: 21.5616 | N20: 23.6016 | O20: 25.6314 | P20: 26.7432 | Q20: 27.2328
A21: 15 | B21: 8.5476 | C21: 12.6276 | D21: 21.012 | E21: 22.95 | F21: 24.9594 | G21: 26.2548 | H21: 26.8974 | J21: 15 | K21: 10.1376 | L21: 14.2176 | M21: 22.602 | N21: 24.54 | O21: 26.5494 | P21: 27.8448 | Q21: 28.4874
A22: 16 | B22: 8.8842 | C22: 13.0764 | D22: 21.7362 | E22: 23.8578 | F22: 25.8876 | G22: 27.1014 | H22: 27.9174 | J22: 16 | K22: 10.4742 | L22: 14.6664 | M22: 23.3262 | N22: 25.4478 | O22: 27.4776 | P22: 28.6914 | Q22: 29.5074
A23: 17 | B23: 9.0576 | C23: 13.3722 | D23: 22.7766 | E23: 24.7554 | F23: 26.7444 | G23: 27.8256 | H23: 28.611 | J23: 17 | K23: 10.6476 | L23: 14.9622 | M23: 24.3666 | N23: 26.3454 | O23: 28.3344 | P23: 29.4156 | Q23: 30.201
A24: 18 | B24: 9.5268 | C24: 13.617 | D24: 23.4294 | E24: 25.5306 | F24: 27.3768 | G24: 28.4478 | H24: 29.2332 | J24: 18 | K24: 11.1168 | L24: 15.207 | M24: 25.0194 | N24: 27.1206 | O24: 28.9668 | P24: 30.0378 | Q24: 30.8232
A25: 19 | B25: 9.8124 | C25: 13.974 | D25: 24.1332 | E25: 26.0712 | F25: 27.9684 | G25: 29.07 | H25: 30.0186 | J25: 19 | K25: 11.4024 | L25: 15.564 | M25: 25.7232 | N25: 27.6612 | O25: 29.5584 | P25: 30.66 | Q25: 31.6086
A26: 20 | B26: 10.0674 | C26: 14.3616 | D26: 24.6942 | E26: 26.6118 | F26: 28.6008 | G26: 29.7126 | H26: 30.7938 | J26: 20 | K26: 11.6574 | L26: 15.9516 | M26: 26.2842 | N26: 28.2018 | O26: 30.1908 | P26: 31.3026 | Q26: 32.3838
A27: 21 | B27: 10.2612 | C27: 14.7798 | D27: 26.6118 | E27: 28.9374 | F27: 30.957 | G27: 32.2626 | H27: 33.4254 | J27: 21 | K27: 11.8512 | L27: 16.3698 | M27: 28.2018 | N27: 30.5274 | O27: 32.547 | P27: 33.8526 | Q27: 35.0154
A28: 22 | B28: 10.5264 | C28: 15.0654 | D28: 27.336 | E28: 29.6412 | F28: 31.875 | G28: 33.1806 | H28: 34.3332 | J28: 22 | K28: 12.1164 | L28: 16.6554 | M28: 28.926 | N28: 31.2312 | O28: 33.465 | P28: 34.7706 | Q28: 35.9232
A29: 23 | B29: 10.9038 | C29: 15.402 | D29: 28.0194 | E29: 30.3246 | F29: 32.6706 | G29: 34.0782 | H29: 35.0778 | J29: 23 | K29: 12.4938 | L29: 16.992 | M29: 29.6094 | N29: 31.9146 | O29: 34.2606 | P29: 35.6682 | Q29: 36.6678
A30: 24 | B30: 11.067 | C30: 15.6774 | D30: 28.7946 | E30: 31.059 | F30: 33.4254 | G30: 34.8024 | H30: 35.8938 | J30: 24 | K30: 12.657 | L30: 17.2674 | M30: 30.3846 | N30: 32.649 | O30: 35.0154 | P30: 36.3924 | Q30: 37.4838
A31: 25 | B31: 11.3628 | C31: 15.9324 | D31: 29.5596 | E31: 31.8546 | F31: 34.3128 | G31: 35.5776 | H31: 36.6384 | J31: 25 | K31: 12.9528 | L31: 17.5224 | M31: 31.1496 | N31: 33.4446 | O31: 35.9028 | P31: 37.1676 | Q31: 38.2284
A32: 26 | B32: 11.628 | C32: 16.2792 | D32: 30.345 | E32: 32.8848 | F32: 35.2206 | G32: 36.822 | H32: 37.536 | J32: 26 | K32: 13.218 | L32: 17.8692 | M32: 31.935 | N32: 34.4748 | O32: 36.8106 | P32: 38.412 | Q32: 39.126
A33: 27 | B33: 11.883 | C33: 16.7382 | D33: 31.2222 | E33: 33.66 | F33: 36.0468 | G33: 37.587 | H33: 38.352 | J33: 27 | K33: 13.473 | L33: 18.3282 | M33: 32.8122 | N33: 35.25 | O33: 37.6368 | P33: 39.177 | Q33: 39.942
A34: 28 | B34: 12.0666 | C34: 17.1972 | D34: 32.0178 | E34: 34.4046 | F34: 36.7302 | G34: 38.5254 | H34: 39.3414 | J34: 28 | K34: 13.6566 | L34: 18.7872 | M34: 33.6078 | N34: 35.9946 | O34: 38.3202 | P34: 40.1154 | Q34: 40.9314
A35: 29 | B35: 12.4338 | C35: 17.646 | D35: 32.8848 | E35: 35.1186 | F35: 37.638 | G35: 39.423 | H35: 40.4736 | J35: 29 | K35: 14.0238 | L35: 19.236 | M35: 34.4748 | N35: 36.7086 | O35: 39.228 | P35: 41.013 | Q35: 42.0636
A36: 30 | B36: 12.7092 | C36: 17.9622 | D36: 33.6192 | E36: 35.8122 | F36: 38.352 | G36: 40.1268 | H36: 41.565 | J36: 30 | K36: 14.2992 | L36: 19.5522 | M36: 35.2092 | N36: 37.4022 | O36: 39.942 | P36: 41.7168 | Q36: 43.155
A37: 31 | B37: 12.8928 | C37: 18.1764 | D37: 34.4964 | E37: 36.618 | F37: 39.2496 | G37: 40.851 | H37: 42.3708 | J37: 31 | K37: 14.4828 | L37: 19.7664 | M37: 36.0864 | N37: 38.208 | O37: 40.8396 | P37: 42.441 | Q37: 43.9608
A38: 32 | B38: 13.158 | C38: 18.3702 | D38: 35.2206 | E38: 37.536 | F38: 40.1268 | G38: 41.565 | H38: 43.2276 | J38: 32 | K38: 14.748 | L38: 19.9602 | M38: 36.8106 | N38: 39.126 | O38: 41.7168 | P38: 43.155 | Q38: 44.8176
A39: 33 | B39: 13.4232 | C39: 18.6762 | D39: 35.8122 | E39: 38.352 | F39: 41.0448 | G39: 42.3912 | H39: 44.0436 | J39: 33 | K39: 15.0132 | L39: 20.2662 | M39: 37.4022 | N39: 39.942 | O39: 42.6348 | P39: 43.9812 | Q39: 45.6336
A40: 34 | B40: 13.7292 | C40: 19.074 | D40: 36.5466 | E40: 39.1374 | F40: 42.0852 | G40: 43.1562 | H40: 45.033 | J40: 34 | K40: 15.3192 | L40: 20.664 | M40: 38.1366 | N40: 40.7274 | O40: 43.6752 | P40: 44.7462 | Q40: 46.623
A41: 35 | B41: 13.9638 | C41: 19.4922 | D41: 37.4442 | E41: 39.831 | F41: 42.9828 | G41: 44.1048 | H41: 45.9306 | J41: 35 | K41: 15.5538 | L41: 21.0822 | M41: 39.0342 | N41: 41.421 | O41: 44.5728 | P41: 45.6948 | Q41: 47.5206
A42: 36 | B42: 14.3616 | C42: 19.8696 | D42: 38.2092 | E42: 40.647 | F42: 43.809 | G42: 45.0738 | H42: 46.7976 | J42: 36 | K42: 15.9516 | L42: 21.4596 | M42: 39.7992 | N42: 42.237 | O42: 45.399 | P42: 46.6638 | Q42: 48.3876
A43: 37 | B43: 14.6268 | C43: 20.3082 | D43: 39.0354 | E43: 41.463 | F43: 44.6964 | G43: 45.9204 | H43: 47.8176 | J43: 37 | K43: 16.2168 | L43: 21.8982 | M43: 40.6254 | N43: 43.053 | O43: 46.2864 | P43: 47.5104 | Q43: 49.4076
A44: 38 | B44: 14.9022 | C44: 20.5734 | D44: 40.0758 | E44: 42.4728 | F44: 45.594 | G44: 46.7058 | H44: 48.4296 | J44: 38 | K44: 16.4922 | L44: 22.1634 | M44: 41.6658 | N44: 44.0628 | O44: 47.184 | P44: 48.2958 | Q44: 50.0196
A45: 39 | B45: 15.1572 | C45: 20.9916 | D45: 40.9734 | E45: 43.4826 | F45: 46.512 | G45: 47.379 | H45: 49.2558 | J45: 39 | K45: 16.7472 | L45: 22.5816 | M45: 42.5634 | N45: 45.0726 | O45: 48.102 | P45: 48.969 | Q45: 50.8458
A46: 40 | B46: 15.5448 | C46: 21.4812 | D46: 41.769 | E46: 44.3904 | F46: 47.6544 | G46: 48.2154 | H46: 50.1636 | J46: 40 | K46: 17.1348 | L46: 23.0712 | M46: 43.359 | N46: 45.9804 | O46: 49.2444 | P46: 49.8054 | Q46: 51.7536
A47: 41 | B47: 15.81 | C47: 21.9912 | D47: 42.534 | E47: 45.4206 | F47: 48.6438 | G47: 49.2558 | H47: 51.2448 | J47: 41 | K47: 17.4 | L47: 23.5812 | M47: 44.124 | N47: 47.0106 | O47: 50.2338 | P47: 50.8458 | Q47: 52.8348
A48: 42 | B48: 16.0752 | C48: 22.2972 | D48: 43.35 | E48: 46.308 | F48: 49.6332 | G48: 50.1636 | H48: 52.3464 | J48: 42 | K48: 17.6652 | L48: 23.8872 | M48: 44.94 | N48: 47.898 | O48: 51.2232 | P48: 51.7536 | Q48: 53.9364
A49: 43 | B49: 16.3506 | C49: 22.593 | D49: 44.1048 | E49: 47.328 | F49: 50.643 | G49: 51.153 | H49: 53.5704 | J49: 43 | K49: 17.9406 | L49: 24.183 | M49: 45.6948 | N49: 48.918 | O49: 52.233 | P49: 52.743 | Q49: 55.1604
A50: 44 | B50: 16.626 | C50: 23.0928 | D50: 44.9004 | E50: 48.3276 | F50: 51.5712 | G50: 52.1934 | H50: 54.774 | J50: 44 | K50: 18.216 | L50: 24.6828 | M50: 46.4904 | N50: 49.9176 | O50: 53.1612 | P50: 53.7834 | Q50: 56.364
A51: 45 | B51: 16.9116 | C51: 23.4906 | D51: 45.7266 | E51: 49.2558 | F51: 52.6932 | G51: 53.0706 | H51: 55.998 | J51: 45 | K51: 18.5016 | L51: 25.0806 | M51: 47.3166 | N51: 50.8458 | O51: 54.2832 | P51: 54.6606 | Q51: 57.588
A52: 46 | B52: 17.1972 | C52: 24.0006 | D52: 46.512 | E52: 50.1636 | F52: 53.6724 | G52: 54.06 | H52: 57.018 | J52: 46 | K52: 18.7872 | L52: 25.5906 | M52: 48.102 | N52: 51.7536 | O52: 55.2624 | P52: 55.65 | Q52: 58.608
A53: 47 | B53: 17.4624 | C53: 24.3984 | D53: 47.379 | E53: 50.9592 | F53: 54.5802 | G53: 55.1106 | H53: 57.9258 | J53: 47 | K53: 19.0524 | L53: 25.9884 | M53: 48.969 | N53: 52.5492 | O53: 56.1702 | P53: 56.7006 | Q53: 59.5158
A54: 48 | B54: 17.8092 | C54: 24.9084 | D54: 48.3276 | E54: 51.765 | F54: 55.4166 | G54: 56.2122 | H54: 58.803 | J54: 48 | K54: 19.3992 | L54: 26.4984 | M54: 49.9176 | N54: 53.355 | O54: 57.0066 | P54: 57.8022 | Q54: 60.393
A55: 49 | B55: 18.0948 | C55: 25.4082 | D55: 49.1742 | E55: 52.6932 | F55: 56.2836 | G55: 57.0996 | H55: 59.6496 | J55: 49 | K55: 19.6848 | L55: 26.9982 | M55: 50.7642 | N55: 54.2832 | O55: 57.8736 | P55: 58.6896 | Q55: 61.2396
A56: 50 | B56: 18.36 | C56: 25.8978 | D56: 49.8882 | E56: 53.2848 | F56: 57.1404 | G56: 58.0482 | H56: 60.2004 | J56: 50 | K56: 19.95 | L56: 27.4878 | M56: 51.4782 | N56: 54.8748 | O56: 58.7304 | P56: 59.6382 | Q56: 61.7904
A57: 51 | B57: 18.7068 | C57: 26.2854 | D57: 49.8984 | E57: 53.3052 | F57: 57.1506 | G57: 58.0584 | H57: 60.231 | J57: 51 | K57: 20.2968 | L57: 27.8754 | M57: 51.4884 | N57: 54.8952 | O57: 58.7406 | P57: 59.6484 | Q57: 61.821
A58: 52 | B58: 18.9924 | C58: 26.7954 | D58: 51.4896 | E58: 55.1616 | F58: 58.803 | G58: 60.129 | H58: 62.577 | J58: 52 | K58: 20.5824 | L58: 28.3854 | M58: 53.0796 | N58: 56.7516 | O58: 60.393 | P58: 61.719 | Q58: 64.167
A59: 53 | B59: 19.3596 | C59: 27.2034 | D59: 52.2648 | E59: 56.2122 | F59: 59.6496 | G59: 61.3632 | H59: 63.7704 | J59: 53 | K59: 20.9496 | L59: 28.7934 | M59: 53.8548 | N59: 57.8022 | O59: 61.2396 | P59: 62.9532 | Q59: 65.3604
A60: 54 | B60: 19.737 | C60: 27.7848 | D60: 53.0808 | E60: 57.1914 | F60: 60.333 | G60: 62.679 | H60: 65.0862 | J60: 54 | K60: 21.327 | L60: 29.3748 | M60: 54.6708 | N60: 58.7814 | O60: 61.923 | P60: 64.269 | Q60: 66.6762
A61: 55 | B61: 19.9818 | C61: 28.2948 | D61: 53.9478 | E61: 58.3542 | F61: 61.149 | G61: 64.0764 | H61: 66.2796 | J61: 55 | K61: 21.5718 | L61: 29.8848 | M61: 55.5378 | N61: 59.9442 | O61: 62.739 | P61: 65.6664 | Q61: 67.8696
A62: 56 | B62: 20.3592 | C62: 28.9068 | D62: 54.9066 | E62: 59.1396 | F62: 62.0466 | G62: 64.9842 | H62: 67.4628 | J62: 56 | K62: 21.9492 | L62: 30.4968 | M62: 56.4966 | N62: 60.7296 | O62: 63.6366 | P62: 66.5742 | Q62: 69.0528
A63: 57 | B63: 20.7264 | C63: 29.3862 | D63: 55.8348 | E63: 59.772 | F63: 62.985 | G63: 66.351 | H63: 68.6256 | J63: 57 | K63: 22.3164 | L63: 30.9762 | M63: 57.4248 | N63: 61.362 | O63: 64.575 | P63: 67.941 | Q63: 70.2156
A64: 58 | B64: 21.1854 | C64: 30.0186 | D64: 56.508 | E64: 60.9042 | F64: 64.1682 | G64: 67.5444 | H64: 69.5334 | J64: 58 | K64: 22.7754 | L64: 31.6086 | M64: 58.098 | N64: 62.4942 | O64: 65.7582 | P64: 69.1344 | Q64: 71.1234
A65: 59 | B65: 21.6444 | C65: 30.702 | D65: 57.0996 | E65: 61.7304 | F65: 65.5248 | G65: 68.8194 | H65: 70.8288 | J65: 59 | K65: 23.2344 | L65: 32.292 | M65: 58.6896 | N65: 63.3204 | O65: 67.1148 | P65: 70.4094 | Q65: 72.4188
A66: 60 | B66: 22.0218 | C66: 31.4874 | D66: 58.0074 | E66: 62.4954 | F66: 66.7794 | G66: 69.9516 | H66: 72.012 | J66: 60 | K66: 23.6118 | L66: 33.0774 | M66: 59.5974 | N66: 64.0854 | O66: 68.3694 | P66: 71.5416 | Q66: 73.602
A67: 61 | B67: 22.3686 | C67: 32.2014 | D67: 58.9356 | E67: 63.5562 | F67: 67.932 | G67: 71.2368 | H67: 73.1748 | J67: 61 | K67: 23.9586 | L67: 33.7914 | M67: 60.5256 | N67: 65.1462 | O67: 69.522 | P67: 72.8268 | Q67: 74.7648
A68: 62 | B68: 22.746 | C68: 32.793 | D68: 59.8536 | E68: 64.3008 | F68: 69.1152 | G68: 72.4302 | H68: 74.4294 | J68: 62 | K68: 24.336 | L68: 34.383 | M68: 61.4436 | N68: 65.8908 | O68: 70.7052 | P68: 74.0202 | Q68: 76.0194
A69: 63 | B69: 23.3886 | C69: 33.2826 | D69: 60.7818 | E69: 65.0862 | F69: 70.3494 | G69: 73.491 | H69: 75.8166 | J69: 63 | K69: 24.9786 | L69: 34.8726 | M69: 62.3718 | N69: 66.6762 | O69: 71.9394 | P69: 75.081 | Q69: 77.4066
A70: 64 | B70: 23.715 | C70: 33.9252 | D70: 61.7508 | E70: 66.096 | F70: 71.553 | G70: 74.562 | H70: 77.1834 | J70: 64 | K70: 25.305 | L70: 35.5152 | M70: 63.3408 | N70: 67.686 | O70: 73.143 | P70: 76.152 | Q70: 78.7734
A71: 65 | B71: 24.1842 | C71: 34.5882 | D71: 62.679 | E71: 67.116 | F71: 72.777 | G71: 75.9594 | H71: 78.5502 | J71: 65 | K71: 25.7742 | L71: 36.1782 | M71: 64.269 | N71: 68.706 | O71: 74.367 | P71: 77.5494 | Q71: 80.1402
A72: 66 | B72: 24.5616 | C72: 35.2002 | D72: 63.5562 | E72: 68.034 | F72: 73.848 | G72: 77.163 | H72: 79.6926 | J72: 66 | K72: 26.1516 | L72: 36.7902 | M72: 65.1462 | N72: 69.624 | O72: 75.438 | P72: 78.753 | Q72: 81.2826
A73: 67 | B73: 25.0002 | C73: 35.2206 | D73: 63.5766 | E73: 68.0442 | F73: 75.1026 | G73: 78.5502 | H73: 80.7228 | J73: 67 | K73: 26.5902 | L73: 36.8106 | M73: 65.1666 | N73: 69.6342 | O73: 76.6926 | P73: 80.1402 | Q73: 82.3128
A74: 68 | B74: 25.3776 | C74: 36.618 | D74: 65.5248 | E74: 70.0434 | F74: 76.2042 | G74: 79.6926 | H74: 81.957 | J74: 68 | K74: 26.9676 | L74: 38.208 | M74: 67.1148 | N74: 71.6334 | O74: 77.7942 | P74: 81.2826 | Q74: 83.547
A75: 69 | B75: 25.8468 | C75: 37.2912 | D75: 66.504 | E75: 71.043 | F75: 77.3772 | G75: 80.8452 | H75: 83.2626 | J75: 69 | K75: 27.4368 | L75: 38.8812 | M75: 68.094 | N75: 72.633 | O75: 78.9672 | P75: 82.4352 | Q75: 84.8526
A76: 70 | B76: 26.3058 | C76: 37.9236 | D76: 67.2894 | E76: 72.0732 | F76: 78.7236 | G76: 81.957 | H76: 84.5478 | J76: 70 | K76: 27.8958 | L76: 39.5136 | M76: 68.8794 | N76: 73.6632 | O76: 80.3136 | P76: 83.547 | Q76: 86.1378
A77: 71 | B77: 26.8362 | C77: 38.6784 | D77: 68.3298 | E77: 73.1646 | F77: 80.0394 | G77: 83.0382 | H77: 85.9758 | J77: 71 | K77: 28.4262 | L77: 40.2684 | M77: 69.9198 | N77: 74.7546 | O77: 81.6294 | P77: 84.6282 | Q77: 87.5658
A78: 72 | B78: 27.3564 | C78: 39.3108 | D78: 68.901 | E78: 74.0826 | F78: 80.5086 | G78: 83.8746 | H78: 87.1998 | J78: 72 | K78: 28.9464 | L78: 40.9008 | M78: 70.491 | N78: 75.6726 | O78: 82.0986 | P78: 85.4646 | Q78: 88.7898
A79: 73 | B79: 27.9174 | C79: 39.9228 | D79: 69.8292 | E79: 75.1026 | F79: 81.6714 | G79: 85.272 | H79: 88.6992 | J79: 73 | K79: 29.5074 | L79: 41.5128 | M79: 71.4192 | N79: 76.6926 | O79: 83.2614 | P79: 86.862 | Q79: 90.2892
A80: 74 | B80: 28.2948 | C80: 40.8102 | D80: 70.9308 | E80: 76.2042 | F80: 82.773 | G80: 86.6184 | H80: 90.3312 | J80: 74 | K80: 29.8848 | L80: 42.4002 | M80: 72.5208 | N80: 77.7942 | O80: 84.363 | P80: 88.2084 | Q80: 91.9212
A81: 75 | B81: 28.8558 | C81: 41.5344 | D81: 71.859 | E81: 77.3772 | F81: 84.0786 | G81: 87.7812 | H81: 91.9326 | J81: 75 | K81: 30.4458 | L81: 43.1244 | M81: 73.449 | N81: 78.9672 | O81: 85.6686 | P81: 89.3712 | Q81: 93.5226
A82: 76 | B82: 29.2944 | C82: 42.0954 | D82: 72.675 | E82: 78.5502 | F82: 84.711 | G82: 89.2194 | H82: 92.8812 | J82: 76 | K82: 30.8844 | L82: 43.6854 | M82: 74.265 | N82: 80.1402 | O82: 86.301 | P82: 90.8094 | Q82: 94.4712
A83: 77 | B83: 29.7432 | C83: 42.1158 | D83: 73.6848 | E83: 79.6926 | F83: 86.3736 | G83: 90.5454 | H83: 94.5846 | J83: 77 | K83: 31.3332 | L83: 43.7058 | M83: 75.2748 | N83: 81.2826 | O83: 87.9636 | P83: 92.1354 | Q83: 96.1746
A84: 78 | B84: 30.3042 | C84: 43.4418 | D84: 74.562 | E84: 80.9676 | F84: 87.4956 | G84: 91.9326 | H84: 96.1962 | J84: 78 | K84: 31.8942 | L84: 45.0318 | M84: 76.152 | N84: 82.5576 | O84: 89.0856 | P84: 93.5226 | Q84: 97.7862
A85: 79 | B85: 30.7428 | C85: 44.1354 | D85: 75.5922 | E85: 82.1202 | F85: 88.5972 | G85: 93.1464 | H85: 97.9302 | J85: 79 | K85: 32.3328 | L85: 45.7254 | M85: 77.1822 | N85: 83.7102 | O85: 90.1872 | P85: 94.7364 | Q85: 99.5202
A86: 80 | B86: 31.1202 | C86: 44.9412 | D86: 76.4592 | E86: 83.3748 | F86: 89.7498 | G86: 94.452 | H86: 99.3582 | J86: 80 | K86: 32.7102 | L86: 46.5312 | M86: 78.0492 | N86: 84.9648 | O86: 91.3398 | P86: 96.042 | Q86: 100.9482
A87: 81 | B87: 31.1916 | C87: 45.6552 | D87: 77.0712 | E87: 84.5478 | F87: 90.1986 | G87: 95.8596 | H87: 100.2456 | J87: 81 | K87: 32.7816 | L87: 47.2452 | M87: 78.6612 | N87: 86.1378 | O87: 91.7886 | P87: 97.4496 | Q87: 101.8356
A88: 82 | B88: 32.1096 | C88: 46.4712 | D88: 77.9994 | E88: 85.5882 | F88: 91.647 | G88: 97.104 | H88: 101.8368 | J88: 82 | K88: 33.6996 | L88: 48.0612 | M88: 79.5894 | N88: 87.1782 | O88: 93.237 | P88: 98.694 | Q88: 103.4268
A89: 83 | B89: 32.844 | C89: 47.1852 | D89: 79.6518 | E89: 86.8122 | F89: 92.3202 | G89: 98.5014 | H89: 103.122 | J89: 83 | K89: 34.434 | L89: 48.7752 | M89: 81.2418 | N89: 88.4022 | O89: 93.9102 | P89: 100.0914 | Q89: 104.712
A90: 84 | B90: 33.3132 | C90: 47.9604 | D90: 80.7228 | E90: 87.7302 | F90: 94.0542 | G90: 99.909 | H90: 104.4684 | J90: 84 | K90: 34.9032 | L90: 49.5504 | M90: 82.3128 | N90: 89.3202 | O90: 95.6442 | P90: 101.499 | Q90: 106.0584
A91: 85 | B91: 33.66 | C91: 48.6948 | D91: 81.6102 | E91: 88.8114 | F91: 94.0644 | G91: 101.337 | H91: 105.6312 | J91: 85 | K91: 35.25 | L91: 50.2848 | M91: 83.2002 | N91: 90.4014 | O91: 95.6544 | P91: 102.927 | Q91: 107.2212
A92: 86 | B92: 33.8334 | C92: 49.4802 | D92: 82.926 | E92: 89.8314 | F92: 96.2982 | G92: 102.6528 | H92: 106.9164 | J92: 86 | K92: 35.4234 | L92: 51.0702 | M92: 84.516 | N92: 91.4214 | O92: 97.8882 | P92: 104.2428 | Q92: 108.5064
A93: 87 | B93: 34.5474 | C93: 50.2044 | D93: 84.6702 | E93: 91.035 | F93: 96.3288 | G93: 103.9278 | H93: 108.2016 | J93: 87 | K93: 36.1374 | L93: 51.7944 | M93: 86.2602 | N93: 92.625 | O93: 97.9188 | P93: 105.5178 | Q93: 109.7916
A94: 88 | B94: 34.9656 | C94: 51.0306 | D94: 85.9758 | E94: 92.2692 | F94: 96.3288 | G94: 105.3864 | H94: 109.395 | J94: 88 | K94: 36.5556 | L94: 52.6206 | M94: 87.5658 | N94: 93.8592 | O94: 97.9188 | P94: 106.9764 | Q94: 110.985
A95: 89 | B95: 35.3022 | C95: 51.816 | D95: 86.8224 | E95: 93.2586 | F95: 99.1338 | G95: 106.5594 | H95: 110.6496 | J95: 89 | K95: 36.8922 | L95: 53.406 | M95: 88.4124 | N95: 94.8486 | O95: 100.7238 | P95: 108.1494 | Q95: 112.2396
A96: 90 | B96: 35.8632 | C96: 52.6116 | D96: 88.5972 | E96: 94.2378 | F96: 100.929 | G96: 107.7426 | H96: 112.0164 | J96: 90 | K96: 37.4532 | L96: 54.2016 | M96: 90.1872 | N96: 95.8278 | O96: 102.519 | P96: 109.3326 | Q96: 113.6064
A97: 91 | B97: 35.8632 | C97: 53.3256 | D97: 90.015 | E97: 95.2782 | F97: 102.0408 | G97: 108.9258 | H97: 113.1894 | J97: 91 | K97: 37.4532 | L97: 54.9156 | M97: 91.605 | N97: 96.8682 | O97: 103.6308 | P97: 110.5158 | Q97: 114.7794
A98: 92 | B98: 36.5874 | C98: 54.1212 | D98: 91.2492 | E98: 96.4818 | F98: 103.1526 | G98: 110.1804 | H98: 114.444 | J98: 92 | K98: 38.1774 | L98: 55.7112 | M98: 92.8392 | N98: 98.0718 | O98: 104.7426 | P98: 111.7704 | Q98: 116.034
A99: 93 | B99: 37.1382 | C99: 54.7536 | D99: 92.4426 | E99: 97.8078 | F99: 104.3766 | G99: 111.384 | H99: 115.7394 | J99: 93 | K99: 38.7282 | L99: 56.3436 | M99: 94.0326 | N99: 99.3978 | O99: 105.9666 | P99: 112.974 | Q99: 117.3294
A100: 94 | B100: 37.587 | C100: 55.3962 | D100: 93.5442 | E100: 99.0012 | F100: 105.57 | G100: 112.5366 | H100: 117.0144 | J100: 94 | K100: 39.177 | L100: 56.9862 | M100: 95.1342 | N100: 100.5912 | O100: 107.16 | P100: 114.1266 | Q100: 118.6044
A101: 95 | B101: 37.587 | C101: 55.9878 | D101: 94.6866 | E101: 100.113 | F101: 106.692 | G101: 113.8422 | H101: 118.2078 | J101: 95 | K101: 39.177 | L101: 57.5778 | M101: 96.2766 | N101: 101.703 | O101: 108.282 | P101: 115.4322 | Q101: 119.7978
A102: 96 | B102: 37.6074 | C102: 56.6304 | D102: 95.5638 | E102: 101.2248 | F102: 107.8956 | G102: 114.9336 | H102: 119.544 | J102: 96 | K102: 39.1974 | L102: 58.2204 | M102: 97.1538 | N102: 102.8148 | O102: 109.4856 | P102: 116.5236 | Q102: 121.134
A103: 97 | B103: 39.1476 | C103: 57.2526 | D103: 96.6144 | E103: 102.3264 | F103: 109.0992 | G103: 116.2086 | H103: 120.7374 | J103: 97 | K103: 40.7376 | L103: 58.8426 | M103: 98.2044 | N103: 103.9164 | O103: 110.6892 | P103: 117.7986 | Q103: 122.3274
A104: 98 | B104: 39.4536 | C104: 57.885 | D104: 97.5834 | E104: 103.5606 | F104: 110.2008 | G104: 117.4734 | H104: 122.0022 | J104: 98 | K104: 41.0436 | L104: 59.475 | M104: 99.1734 | N104: 105.1506 | O104: 111.7908 | P104: 119.0634 | Q104: 123.5922
A105: 99 | B105: 39.4638 | C105: 58.497 | D105: 98.6034 | E105: 103.581 | F105: 111.435 | G105: 118.6464 | H105: 123.2976 | J105: 99 | K105: 41.0538 | L105: 60.087 | M105: 100.1934 | N105: 105.171 | O105: 113.025 | P105: 120.2364 | Q105: 124.8876
A106: 100 | B106: 39.474 | C106: 59.0274 | D106: 99.4296 | E106: 105.774 | F106: 112.5366 | G106: 119.901 | H106: 124.5828 | J106: 100 | K106: 41.064 | L106: 60.6174 | M106: 101.0196 | N106: 107.364 | O106: 114.1266 | P106: 121.491 | Q106: 126.1728
A107: 101 | B107: 39.4944 | C107: 59.0886 | D107: 100.0722 | E107: 106.6104 | F107: 112.8834 | G107: 120.4722 | H107: 124.899 | J107: 101 | K107: 41.0844 | L107: 60.6786 | M107: 101.6622 | N107: 108.2004 | O107: 114.4734 | P107: 122.0622 | Q107: 126.489
A108: 102 | B108: 39.882 | C108: 59.6904 | D108: 101.082 | E108: 107.6712 | F108: 114.0054 | G108: 121.6554 | H108: 126.1434 | J108: 102 | K108: 41.472 | L108: 61.2804 | M108: 102.672 | N108: 109.2612 | O108: 115.5954 | P108: 123.2454 | Q108: 127.7334
A109: 103 | B109: 40.2798 | C109: 60.2718 | D109: 102.0816 | E109: 108.7422 | F109: 115.1478 | G109: 122.859 | H109: 127.4082 | J109: 103 | K109: 41.8698 | L109: 61.8618 | M109: 103.6716 | N109: 110.3322 | O109: 116.7378 | P109: 124.449 | Q109: 128.9982
A110: 104 | B110: 40.6674 | C110: 60.8634 | D110: 103.0812 | E110: 109.803 | F110: 116.2698 | G110: 124.0728 | H110: 128.6424 | J110: 104 | K110: 42.2574 | L110: 62.4534 | M110: 104.6712 | N110: 111.393 | O110: 117.8598 | P110: 125.6628 | Q110: 130.2324
A111: 105 | B111: 41.0754 | C111: 61.4652 | D111: 104.0808 | E111: 110.874 | F111: 117.3918 | G111: 125.2764 | H111: 129.897 | J111: 105 | K111: 42.6654 | L111: 63.0552 | M111: 105.6708 | N111: 112.464 | O111: 118.9818 | P111: 126.8664 | Q111: 131.487
A112: 106 | B112: 41.4528 | C112: 62.0568 | D112: 105.0906 | E112: 111.9552 | F112: 118.5444 | G112: 126.48 | H112: 131.1414 | J112: 106 | K112: 43.0428 | L112: 63.6468 | M112: 106.6806 | N112: 113.5452 | O112: 120.1344 | P112: 128.07 | Q112: 132.7314
A113: 107 | B113: 41.8608 | C113: 62.6484 | D113: 106.08 | E113: 113.016 | F113: 119.6562 | G113: 127.6836 | H113: 132.396 | J113: 107 | K113: 43.4508 | L113: 64.2384 | M113: 107.67 | N113: 114.606 | O113: 121.2462 | P113: 129.2736 | Q113: 133.986
A114: 108 | B114: 42.2484 | C114: 63.2298 | D114: 107.0898 | E114: 114.0564 | F114: 120.7782 | G114: 128.8872 | H114: 133.6404 | J114: 108 | K114: 43.8384 | L114: 64.8198 | M114: 108.6798 | N114: 115.6464 | O114: 122.3682 | P114: 130.4772 | Q114: 135.2304
A115: 109 | B115: 42.6564 | C115: 63.8214 | D115: 108.0894 | E115: 115.1478 | F115: 121.9002 | G115: 130.101 | H115: 134.8848 | J115: 109 | K115: 44.2464 | L115: 65.4114 | M115: 109.6794 | N115: 116.7378 | O115: 123.4902 | P115: 131.691 | Q115: 136.4748
A116: 110 | B116: 43.044 | C116: 64.413 | D116: 109.089 | E116: 116.2086 | F116: 123.0426 | G116: 131.3046 | H116: 136.1496 | J116: 110 | K116: 44.634 | L116: 66.003 | M116: 110.679 | N116: 117.7986 | O116: 124.6326 | P116: 132.8946 | Q116: 137.7396
A117: 111 | B117: 43.4418 | C117: 65.0046 | D117: 110.0784 | E117: 117.2694 | F117: 124.1646 | G117: 132.5082 | H117: 137.4042 | J117: 111 | K117: 45.0318 | L117: 66.5946 | M117: 111.6684 | N117: 118.8594 | O117: 125.7546 | P117: 134.0982 | Q117: 138.9942
A118: 112 | B118: 43.8396 | C118: 65.586 | D118: 111.0882 | E118: 118.3404 | F118: 125.2968 | G118: 133.7016 | H118: 138.6384 | J118: 112 | K118: 45.4296 | L118: 67.176 | M118: 112.6782 | N118: 119.9304 | O118: 126.8868 | P118: 135.2916 | Q118: 140.2284
A119: 113 | B119: 44.217 | C119: 66.1776 | D119: 112.0776 | E119: 119.4012 | F119: 126.429 | G119: 134.9052 | H119: 139.8828 | J119: 113 | K119: 45.807 | L119: 67.7676 | M119: 113.6676 | N119: 120.9912 | O119: 128.019 | P119: 136.4952 | Q119: 141.4728
A120: 114 | B120: 44.625 | C120: 66.7692 | D120: 113.0874 | E120: 120.4722 | F120: 127.551 | G120: 136.119 | H120: 141.1374 | J120: 114 | K120: 46.215 | L120: 68.3592 | M120: 114.6774 | N120: 122.0622 | O120: 129.141 | P120: 137.709 | Q120: 142.7274
A121: 115 | B121: 45.0126 | C121: 67.3506 | D121: 114.087 | E121: 121.5432 | F121: 128.6934 | G121: 137.3226 | H121: 142.392 | J121: 115 | K121: 46.6026 | L121: 68.9406 | M121: 115.677 | N121: 123.1332 | O121: 130.2834 | P121: 138.9126 | Q121: 143.982
A122: 116 | B122: 45.4206 | C122: 67.9728 | D122: 115.0866 | E122: 122.604 | F122: 129.8154 | G122: 138.5262 | H122: 143.6466 | J122: 116 | K122: 47.0106 | L122: 69.5628 | M122: 116.6766 | N122: 124.194 | O122: 131.4054 | P122: 140.1162 | Q122: 145.2366
A123: 117 | B123: 45.798 | C123: 68.5542 | D123: 116.0862 | E123: 123.6648 | F123: 130.9374 | G123: 139.7298 | H123: 144.8706 | J123: 117 | K123: 47.388 | L123: 70.1442 | M123: 117.6762 | N123: 125.2548 | O123: 132.5274 | P123: 141.3198 | Q123: 146.4606
A124: 118 | B124: 46.206 | C124: 69.1458 | D124: 117.096 | E124: 124.7358 | F124: 132.0798 | G124: 140.9334 | H124: 146.1354 | J124: 118 | K124: 47.796 | L124: 70.7358 | M124: 118.686 | N124: 126.3258 | O124: 133.6698 | P124: 142.5234 | Q124: 147.7254
A125: 119 | B125: 46.5936 | C125: 69.7374 | D125: 118.1058 | E125: 125.8068 | F125: 133.2018 | G125: 142.137 | H125: 147.3798 | J125: 119 | K125: 48.1836 | L125: 71.3274 | M125: 119.6958 | N125: 127.3968 | O125: 134.7918 | P125: 143.727 | Q125: 148.9698
A126: 120 | B126: 46.9914 | C126: 70.329 | D126: 119.0952 | E126: 126.8676 | F126: 134.3238 | G126: 143.3406 | H126: 148.6344 | J126: 120 | K126: 48.5814 | L126: 71.919 | M126: 120.6852 | N126: 128.4576 | O126: 135.9138 | P126: 144.9306 | Q126: 150.2244
A127: 121 | B127: 47.379 | C127: 70.9104 | D127: 120.0948 | E127: 127.9386 | F127: 135.4662 | G127: 144.5442 | H127: 149.889 | J127: 121 | K127: 48.969 | L127: 72.5004 | M127: 121.6848 | N127: 129.5286 | O127: 137.0562 | P127: 146.1342 | Q127: 151.479
A128: 122 | B128: 47.787 | C128: 71.502 | D128: 121.0944 | E128: 128.9994 | F128: 136.5882 | G128: 145.7478 | H128: 151.1232 | J128: 122 | K128: 49.377 | L128: 73.092 | M128: 122.6844 | N128: 130.5894 | O128: 138.1782 | P128: 147.3378 | Q128: 152.7132
A129: 123 | B129: 48.1848 | C129: 72.0936 | D129: 122.094 | E129: 130.0602 | F129: 137.7102 | G129: 146.9514 | H129: 152.3778 | J129: 123 | K129: 49.7748 | L129: 73.6836 | M129: 123.684 | N129: 131.6502 | O129: 139.3002 | P129: 148.5414 | Q129: 153.9678
A130: 124 | B130: 48.5622 | C130: 72.675 | D130: 123.0936 | E130: 131.1312 | F130: 138.8628 | G130: 148.155 | H130: 153.6222 | J130: 124 | K130: 50.1522 | L130: 74.265 | M130: 124.6836 | N130: 132.7212 | O130: 140.4528 | P130: 149.745 | Q130: 155.2122
A131: 125 | B131: 48.9702 | C131: 73.2666 | D131: 124.1034 | E131: 132.192 | F131: 139.9746 | G131: 149.3688 | H131: 154.887 | J131: 125 | K131: 50.5602 | L131: 74.8566 | M131: 125.6934 | N131: 133.782 | O131: 141.5646 | P131: 150.9588 | Q131: 156.477
A132: 126 | B132: 49.3578 | C132: 73.8582 | D132: 125.0826 | E132: 133.2528 | F132: 141.0966 | G132: 150.5724 | H132: 156.1212 | J132: 126 | K132: 50.9478 | L132: 75.4482 | M132: 126.6726 | N132: 134.8428 | O132: 142.6866 | P132: 152.1624 | Q132: 157.7112
A133: 127 | B133: 49.7556 | C133: 74.4498 | D133: 126.0924 | E133: 134.3238 | F133: 142.2288 | G133: 151.776 | H133: 157.3656 | J133: 127 | K133: 51.3456 | L133: 76.0398 | M133: 127.6824 | N133: 135.9138 | O133: 143.8188 | P133: 153.366 | Q133: 158.9556
A134: 128 | B134: 50.1432 | C134: 75.0516 | D134: 127.092 | E134: 135.3846 | F134: 143.361 | G134: 152.9796 | H134: 158.6202 | J134: 128 | K134: 51.7332 | L134: 76.6416 | M134: 128.682 | N134: 136.9746 | O134: 144.951 | P134: 154.5696 | Q134: 160.2102
A135: 129 | B135: 50.5512 | C135: 75.6534 | D135: 128.0916 | E135: 136.4556 | F135: 144.483 | G135: 154.1832 | H135: 159.8748 | J135: 129 | K135: 52.1412 | L135: 77.2434 | M135: 129.6816 | N135: 138.0456 | O135: 146.073 | P135: 155.7732 | Q135: 161.4648
A136: 130 | B136: 50.9388 | C136: 76.2348 | D136: 129.1014 | E136: 137.5266 | F136: 145.6152 | G136: 155.3868 | H136: 161.1294 | J136: 130 | K136: 52.5288 | L136: 77.8248 | M136: 130.6914 | N136: 139.1166 | O136: 147.2052 | P136: 156.9768 | Q136: 162.7194
A137: 131 | B137: 51.3366 | C137: 76.8264 | D137: 130.101 | E137: 138.5874 | F137: 146.7474 | G137: 156.5904 | H137: 162.3636 | J137: 131 | K137: 52.9266 | L137: 78.4164 | M137: 131.691 | N137: 140.1774 | O137: 148.3374 | P137: 158.1804 | Q137: 163.9536
A138: 132 | B138: 51.7242 | C138: 77.418 | D138: 131.1108 | E138: 139.6482 | F138: 147.8694 | G138: 157.794 | H138: 163.6182 | J138: 132 | K138: 53.3142 | L138: 79.008 | M138: 132.7008 | N138: 141.2382 | O138: 149.4594 | P138: 159.384 | Q138: 165.2082
A139: 133 | B139: 52.1322 | C139: 77.9994 | D139: 132.1002 | E139: 140.7192 | F139: 149.0016 | G139: 158.9976 | H139: 164.8626 | J139: 133 | K139: 53.7222 | L139: 79.5894 | M139: 133.6902 | N139: 142.3092 | O139: 150.5916 | P139: 160.5876 | Q139: 166.4526
A140: 134 | B140: 52.5198 | C140: 78.591 | D140: 133.11 | E140: 141.7902 | F140: 150.1338 | G140: 160.2012 | H140: 166.1172 | J140: 134 | K140: 54.1098 | L140: 80.181 | M140: 134.7 | N140: 143.3802 | O140: 151.7238 | P140: 161.7912 | Q140: 167.7072
A141: 135 | B141: 52.9176 | C141: 79.1826 | D141: 134.0994 | E141: 142.851 | F141: 151.2558 | G141: 161.415 | H141: 167.3616 | J141: 135 | K141: 54.5076 | L141: 80.7726 | M141: 135.6894 | N141: 144.441 | O141: 152.8458 | P141: 163.005 | Q141: 168.9516
A142: 136 | B142: 53.3154 | C142: 79.7742 | D142: 135.1092 | E142: 143.9322 | F142: 152.388 | G142: 162.6288 | H142: 168.6162 | J142: 136 | K142: 54.9054 | L142: 81.3642 | M142: 136.6992 | N142: 145.5222 | O142: 153.978 | P142: 164.2188 | Q142: 170.2062
A143: 137 | B143: 53.703 | C143: 80.3556 | D143: 136.1088 | E143: 144.9828 | F143: 153.5202 | G143: 163.8222 | H143: 169.8708 | J143: 137 | K143: 55.293 | L143: 81.9456 | M143: 137.6988 | N143: 146.5728 | O143: 155.1102 | P143: 165.4122 | Q143: 171.4608
A144: 138 | B144: 54.1008 | C144: 80.9472 | D144: 137.1084 | E144: 146.0538 | F144: 154.6422 | G144: 165.036 | H144: 171.105 | J144: 138 | K144: 55.6908 | L144: 82.5372 | M144: 138.6984 | N144: 147.6438 | O144: 156.2322 | P144: 166.626 | Q144: 172.695
A145: 139 | B145: 54.4884 | C145: 81.549 | D145: 138.0978 | E145: 147.135 | F145: 155.7744 | G145: 166.2192 | H145: 172.3494 | J145: 139 | K145: 56.0784 | L145: 83.139 | M145: 139.6878 | N145: 148.725 | O145: 157.3644 | P145: 167.8092 | Q145: 173.9394
A146: 140 | B146: 54.8964 | C146: 82.1406 | D146: 139.1076 | E146: 148.1856 | F146: 156.9066 | G146: 167.4534 | H146: 173.6142 | J146: 140 | K146: 56.4864 | L146: 83.7306 | M146: 140.6976 | N146: 149.7756 | O146: 158.4966 | P146: 169.0434 | Q146: 175.2042
A147: 141 | B147: 55.284 | C147: 82.7322 | D147: 140.097 | E147: 149.2362 | F147: 158.0286 | G147: 168.6366 | H147: 174.8586 | J147: 141 | K147: 56.874 | L147: 84.3222 | M147: 141.687 | N147: 150.8262 | O147: 159.6186 | P147: 170.2266 | Q147: 176.4486
A148: 142 | B148: 55.6818 | C148: 83.3238 | D148: 141.1068 | E148: 150.3174 | F148: 159.171 | G148: 169.8504 | H148: 176.1132 | J148: 142 | K148: 57.2718 | L148: 84.9138 | M148: 142.6968 | N148: 151.9074 | O148: 160.761 | P148: 171.4404 | Q148: 177.7032
A149: 143 | B149: 56.0694 | C149: 83.9154 | D149: 142.1064 | E149: 151.3884 | F149: 160.2828 | G149: 171.0438 | H149: 177.3678 | J149: 143 | K149: 57.6594 | L149: 85.5054 | M149: 143.6964 | N149: 152.9784 | O149: 161.8728 | P149: 172.6338 | Q149: 178.9578
A150: 144 | B150: 56.4774 | C150: 84.507 | D150: 143.106 | E150: 152.4492 | F150: 161.415 | G150: 172.2576 | H150: 178.602 | J150: 144 | K150: 58.0674 | L150: 86.097 | M150: 144.696 | N150: 154.0392 | O150: 163.005 | P150: 173.8476 | Q150: 180.192
A151: 145 | B151: 56.8548 | C151: 85.0986 | D151: 144.1056 | E151: 153.5202 | F151: 162.5472 | G151: 173.451 | H151: 179.8566 | J151: 145 | K151: 58.4448 | L151: 86.6886 | M151: 145.6956 | N151: 155.1102 | O151: 164.1372 | P151: 175.041 | Q151: 181.4466
A152: 146 | B152: 57.2628 | C152: 85.68 | D152: 145.1154 | E152: 154.581 | F152: 163.6794 | G152: 174.675 | H152: 181.101 | J152: 146 | K152: 58.8528 | L152: 87.27 | M152: 146.7054 | N152: 156.171 | O152: 165.2694 | P152: 176.265 | Q152: 182.691
A153: 147 | B153: 57.6504 | C153: 86.2716 | D153: 146.1252 | E153: 155.6418 | F153: 164.8014 | G153: 175.8684 | H153: 182.3658 | J153: 147 | K153: 59.2404 | L153: 87.8616 | M153: 147.7152 | N153: 157.2318 | O153: 166.3914 | P153: 177.4584 | Q153: 183.9558
A154: 148 | B154: 58.0482 | C154: 86.8632 | D154: 147.1146 | E154: 156.723 | F154: 165.9336 | G154: 177.0822 | H154: 183.5898 | J154: 148 | K154: 59.6382 | L154: 88.4532 | M154: 148.7046 | N154: 158.313 | O154: 167.5236 | P154: 178.6722 | Q154: 185.1798
A155: 149 | B155: 58.446 | C155: 87.4548 | D155: 148.1142 | E155: 157.7838 | F155: 167.0658 | G155: 178.2654 | H155: 184.8444 | J155: 149 | K155: 60.036 | L155: 89.0448 | M155: 149.7042 | N155: 159.3738 | O155: 168.6558 | P155: 179.8554 | Q155: 186.4344
A156: 150 | B156: 57.81761337 | C156: 86.48701761 | D156: 146.6136079 | E156: 156.2124295 | F156: 165.610328 | G156: 176.815881 | H156: 183.4822304 | J156: 150 | K156: 60.4236 | L156: 89.6466 | M156: 150.7038 | N156: 160.4346 | O156: 169.7778 | P156: 181.0692 | Q156: 187.6788

Sheet 2DA Multi (hidden)
A1: UPS Second Day Air Service | M1: UPS Second Day Air Service
A2: - Commercial | M2: - Residential | R2: Residential Surcharge | U2: 1.59
A3: (Per Package Rates from 48 State Origin) | M3: (Per Package Rates from 48 State Origin)
A4: Rates below do not include Residential Surcharge | M4: Rates Include Residential Surcharge
A5: Lbs. | B5: 2 | C5: 3 | D5: 4 | E5: 5 | F5: 6 | G5: 7 | H5: 8 | I5: Zone 224 | J5: Zone 225 | K5: Zone 226 | M5: Lbs. | N5: 2 | O5: 3 | P5: 4 | Q5: 5 | R5: 6 | S5: 7 | T5: 8 | U5: Zone 224 | V5: Zone 225 | W5: Zone 226
A6: 0.5 | B6: 4.794 | C6: 4.794 | D6: 4.794 | E6: 4.794 | F6: 5.8344 | G6: 6.0792 | H6: 6.1302 | I6: 9.8634 | J6: 9.8634 | K6: 10.9752 | M6: 0.5 | N6: 6.384 | O6: 6.384 | P6: 6.384 | Q6: 6.384 | R6: 7.4244 | S6: 7.6692 | T6: 7.7202 | U6: 7.9956 | V6: 8.267721429 | W6: 8.539842857
A7: 1 | B7: 4.845 | C7: 4.845 | D7: 4.845 | E7: 4.845 | F7: 5.763 | G7: 6.0282 | H7: 6.12 | I7: 9.4452 | J7: 9.4452 | K7: 10.0878 | M7: 1 | N7: 6.435 | O7: 6.435 | P7: 6.435 | Q7: 6.435 | R7: 7.353 | S7: 7.6182 | T7: 7.71 | U7: 7.932942857 | V7: 8.18685 | W7: 8.440757143
A8: 2 | B8: 4.845 | C8: 4.845 | D8: 4.845 | E8: 5.1102 | F8: 6.3648 | G8: 6.9258 | H8: 7.2216 | I8: 10.5468 | J8: 10.5468 | K8: 12.4848 | M8: 2 | N8: 6.435 | O8: 6.435 | P8: 6.435 | Q8: 6.7002 | R8: 7.9548 | S8: 8.5158 | T8: 8.8116 | U8: 9.156942857 | V8: 9.614485714 | W8: 10.07202857
A9: 3 | B9: 4.845 | C9: 4.845 | D9: 4.845 | E9: 5.5998 | F9: 7.3134 | G9: 8.0376 | H9: 8.2926 | I9: 12.036 | J9: 12.036 | K9: 13.0458 | M9: 3 | N9: 6.435 | O9: 6.435 | P9: 6.435 | Q9: 7.1898 | R9: 8.9034 | S9: 9.6276 | T9: 9.8826 | U9: 10.5864 | V9: 11.27198571 | W9: 11.95757143
A10: 4 | B10: 4.845 | C10: 4.845 | D10: 4.9062 | E10: 6.528 | F10: 8.4456 | G10: 9.1596 | H10: 9.4554 | I10: 12.8418 | J10: 12.8418 | K10: 13.7088 | M10: 4 | N10: 6.435 | O10: 6.435 | P10: 6.4962 | Q10: 8.118 | R10: 10.0356 | S10: 10.7496 | T10: 11.0454 | U10: 12.1878 | V10: 13.11636429 | W10: 14.04492857
A11: 5 | B11: 4.845 | C11: 4.845 | D11: 5.355 | E11: 7.242 | F11: 9.4248 | G11: 10.1796 | H11: 10.761 | I11: 13.9434 | J11: 13.9434 | K11: 14.2698 | M11: 5 | N11: 6.435 | O11: 6.435 | P11: 6.945 | Q11: 8.832 | R11: 11.0148 | S11: 11.7696 | T11: 12.351 | U11: 13.75277143 | V11: 14.91302143 | W11: 16.07327143
A12: 6 | B12: 4.845 | C12: 4.845 | D12: 5.814 | E12: 7.8948 | F12: 10.4754 | G12: 11.322 | H12: 11.7708 | I12: 14.79 | J12: 14.79 | K12: 15.1572 | M12: 6 | N12: 6.435 | O12: 6.435 | P12: 7.404 | Q12: 9.4848 | R12: 12.0654 | S12: 12.912 | T12: 13.3608 | U12: 15.21282857 | V12: 16.584 | W12: 17.95517143
A13: 7 | B13: 4.845 | C13: 5.1816 | D13: 6.2934 | E13: 8.6394 | F13: 11.7708 | G13: 12.5562 | H13: 12.954 | I13: 15.9528 | J13: 15.9528 | K13: 15.9222 | M13: 7 | N13: 6.435 | O13: 6.7716 | P13: 7.8834 | Q13: 10.2294 | R13: 13.3608 | S13: 14.1462 | T13: 14.544 | U13: 16.84628571 | V13: 18.43748571 | W13: 20.02868571
A14: 8 | B14: 4.845 | C14: 5.661 | D14: 6.7422 | E14: 9.4044 | F14: 13.0254 | G14: 13.8312 | H14: 14.2596 | I14: 16.7586 | J14: 16.7586 | K14: 16.7892 | M14: 8 | N14: 6.435 | O14: 7.251 | P14: 8.3322 | Q14: 10.9944 | R14: 14.6154 | S14: 15.4212 | T14: 15.8496 | U14: 18.53802857 | V14: 20.35472143 | W14: 22.17141429
A15: 9 | B15: 5.1102 | C15: 5.9058 | D15: 7.2726 | E15: 10.098 | F15: 14.1474 | G15: 15.1572 | H15: 15.657 | I15: 17.952 | J15: 17.952 | K15: 17.7888 | M15: 9 | N15: 6.7002 | O15: 7.4958 | P15: 8.8626 | Q15: 11.688 | R15: 15.7374 | S15: 16.7472 | T15: 17.247 | U15: 20.21374286 | V15: 22.2501 | W15: 24.28645714
A16: 10 | B16: 5.3346 | C16: 6.2628 | D16: 7.8438 | E16: 10.7916 | F16: 15.1062 | G16: 16.4832 | H16: 16.932 | I16: 19.4514 | J16: 19.4514 | K16: 18.6354 | M16: 10 | N16: 6.9246 | O16: 7.8528 | P16: 9.4338 | Q16: 12.3816 | R16: 16.6962 | S16: 18.0732 | T16: 18.522 | U16: 21.76851429 | V16: 24.00049286 | W16: 26.23247143
A17: 11 | B17: 5.5692 | C17: 6.5994 | D17: 8.2008 | E17: 11.5362 | F17: 16.3302 | G17: 17.6766 | H17: 18.309 | I17: 20.6142 | J17: 20.6142 | K17: 20.2164 | M17: 11 | N17: 7.1592 | O17: 8.1894 | P17: 9.7908 | Q17: 13.1262 | R17: 17.9202 | S17: 19.2666 | T17: 19.899 | U17: 23.4078 | V17: 25.85434286 | W17: 28.30088571
A18: 12 | B18: 5.865 | C18: 6.987 | D18: 8.6598 | E18: 12.1788 | F18: 17.5746 | G18: 18.9414 | H18: 19.584 | I18: 21.3588 | J18: 21.3588 | K18: 21.0936 | M18: 12 | N18: 7.455 | O18: 8.577 | P18: 10.2498 | Q18: 13.7688 | R18: 19.1646 | S18: 20.5314 | T18: 21.174 | U18: 24.98588571 | V18: 27.62805 | W18: 30.27021429
A19: 13 | B19: 6.2628 | C19: 7.344 | D19: 8.9658 | E19: 12.9132 | F19: 18.717 | G19: 19.8594 | H19: 20.706 | I19: 22.1238 | J19: 22.1238 | K19: 21.7056 | M19: 13 | N19: 7.8528 | O19: 8.934 | P19: 10.5558 | Q19: 14.5032 | R19: 20.307 | S19: 21.4494 | T19: 22.296 | U19: 26.28711429 | V19: 29.07681429 | W19: 31.86651429
A20: 14 | B20: 6.5586 | C20: 7.7316 | D20: 9.5472 | E20: 13.6578 | F20: 19.8594 | G20: 20.8998 | H20: 21.6342 | I20: 22.9908 | J20: 22.9908 | K20: 22.6032 | M20: 14 | N20: 8.1486 | O20: 9.3216 | P20: 11.1372 | Q20: 15.2478 | R20: 21.4494 | S20: 22.4898 | T20: 23.2242 | U20: 27.55628571 | V20: 30.48040714 | W20: 33.40452857
A21: 15 | B21: 6.8136 | C21: 7.9152 | D21: 10.0164 | E21: 14.1882 | F21: 20.8998 | G21: 21.8382 | H21: 22.6236 | I21: 24.0414 | J21: 24.0414 | K21: 23.8782 | M21: 15 | N21: 8.4036 | O21: 9.5052 | P21: 11.6064 | Q21: 15.7782 | R21: 22.4898 | S21: 23.4282 | T21: 24.2136 | U21: 28.79777143 | V21: 31.87489286 | W21: 34.95201429
A22: 16 | B22: 6.987 | C22: 8.1804 | D22: 10.455 | E22: 14.6472 | F22: 21.8382 | G22: 22.9398 | H22: 23.5722 | I22: 25.0308 | J22: 25.0308 | K22: 24.2352 | M22: 16 | N22: 8.577 | O22: 9.7704 | P22: 12.045 | Q22: 16.2372 | R22: 23.4282 | S22: 24.5298 | T22: 25.1622 | U22: 30.0582 | V22: 33.29597143 | W22: 36.53374286
A23: 17 | B23: 7.2012 | C23: 8.4354 | D23: 10.8936 | E23: 15.3306 | F23: 22.8072 | G23: 24.1638 | H23: 24.684 | I23: 26.2242 | J23: 26.2242 | K23: 25.3266 | M23: 17 | N23: 8.7912 | O23: 10.0254 | P23: 12.4836 | Q23: 16.9206 | R23: 24.3972 | S23: 25.7538 | T23: 26.274 | U23: 31.49494286 | V23: 34.91704286 | W23: 38.33914286
A24: 18 | B24: 7.4664 | C24: 8.7108 | D24: 11.3016 | E24: 15.8814 | F24: 23.7456 | G24: 25.245 | H24: 26.1426 | I24: 27.7848 | J24: 27.7848 | K24: 27.4686 | M24: 18 | N24: 9.0564 | O24: 10.3008 | P24: 12.8916 | Q24: 17.4714 | R24: 25.3356 | S24: 26.835 | T24: 27.7326 | U24: 33.02348571 | V24: 36.64995 | W24: 40.27641429
A25: 19 | B25: 7.7316 | C25: 8.9454 | D25: 11.628 | E25: 16.524 | F25: 24.6228 | G25: 26.418 | H25: 26.9994 | I25: 28.7028 | J25: 28.7028 | K25: 27.897 | M25: 19 | N25: 9.3216 | O25: 10.5354 | P25: 13.218 | Q25: 18.114 | R25: 26.2128 | S25: 28.008 | T25: 28.5894 | U25: 34.24894286 | V25: 38.02549286 | W25: 41.80204286
A26: 20 | B26: 8.0172 | C26: 9.333 | D26: 12.0768 | E26: 17.289 | F26: 25.4796 | G26: 27.3054 | H26: 27.9786 | I26: 29.7126 | J26: 29.7126 | K26: 28.968 | M26: 20 | N26: 9.6072 | O26: 10.923 | P26: 13.6668 | Q26: 18.879 | R26: 27.0696 | S26: 28.8954 | T26: 29.5686 | U26: 35.40591429 | V26: 39.30705 | W26: 43.20818571
A27: 21 | B27: 8.3946 | C27: 9.7104 | D27: 12.5358 | E27: 17.8602 | F27: 26.418 | G27: 28.2234 | H27: 29.2842 | I27: 31.0998 | J27: 31.0998 | K27: 30.3858 | M27: 21 | N27: 9.9846 | O27: 11.3004 | P27: 14.1258 | Q27: 19.4502 | R27: 28.008 | S27: 29.8134 | T27: 30.8742 | U27: 36.73337143 | V27: 40.78969286 | W27: 44.84601429
A28: 22 | B28: 8.6394 | C28: 10.1592 | D28: 12.8724 | E28: 18.3498 | F28: 27.2646 | G28: 29.2944 | H28: 30.3654 | I28: 32.2524 | J28: 32.2524 | K28: 31.6812 | M28: 22 | N28: 10.2294 | O28: 11.7492 | P28: 14.4624 | Q28: 19.9398 | R28: 28.8546 | S28: 30.8844 | T28: 31.9554 | U28: 37.98797143 | V28: 42.19656429 | W28: 46.40515714
A29: 23 | B29: 8.8536 | C29: 10.3836 | D29: 13.3212 | E29: 18.8904 | F29: 28.2234 | G29: 30.2634 | H29: 31.4976 | I29: 33.4662 | J29: 33.4662 | K29: 32.8032 | M29: 23 | N29: 10.4436 | O29: 11.9736 | P29: 14.9112 | Q29: 20.4804 | R29: 29.8134 | S29: 31.8534 | T29: 33.0876 | U29: 39.30814286 | V29: 43.68649286 | W29: 48.06484286
A30: 24 | B30: 9.0372 | C30: 10.7916 | D30: 13.7496 | E30: 19.6146 | F30: 29.2638 | G30: 31.4466 | H30: 32.6196 | I30: 34.6392 | J30: 34.6392 | K30: 34.0476 | M30: 24 | N30: 10.6272 | O30: 12.3816 | P30: 15.3396 | Q30: 21.2046 | R30: 30.8538 | S30: 33.0366 | T30: 34.2096 | U30: 40.74634286 | V30: 45.30246429 | W30: 49.85858571
A31: 25 | B31: 9.333 | C31: 11.0976 | D31: 14.0148 | E31: 20.3082 | F31: 30.2124 | G31: 32.5686 | H31: 33.7314 | I31: 35.8632 | J31: 35.8632 | K31: 35.292 | M31: 25 | N31: 10.923 | O31: 12.6876 | P31: 15.6048 | Q31: 21.8982 | R31: 31.8024 | S31: 34.1586 | T31: 35.3214 | U31: 42.1044 | V31: 46.83064286 | W31: 51.55688571
A32: 26 | B32: 9.6084 | C32: 11.3934 | D32: 14.5452 | E32: 20.9508 | F32: 31.2528 | G32: 33.66 | H32: 34.6392 | I32: 36.8118 | J32: 36.8118 | K32: 36.4548 | M32: 26 | N32: 11.1984 | O32: 12.9834 | P32: 16.1352 | Q32: 22.5408 | R32: 32.8428 | S32: 35.25 | T32: 36.2292 | U32: 43.359 | V32: 48.22804286 | W32: 53.09708571
A33: 27 | B33: 9.9246 | C33: 11.7198 | D33: 14.9226 | E33: 21.6954 | F33: 32.3136 | G33: 34.8024 | H33: 35.7306 | I33: 37.9848 | J33: 37.9848 | K33: 37.6074 | M33: 27 | N33: 11.5146 | O33: 13.3098 | P33: 16.5126 | Q33: 23.2854 | R33: 33.9036 | S33: 36.3924 | T33: 37.3206 | U33: 44.74474286 | V33: 49.77953571 | W33: 54.81432857
A34: 28 | B34: 10.2408 | C34: 12.1278 | D34: 15.2388 | E34: 22.2156 | F34: 33.1092 | G34: 35.6796 | H34: 36.618 | I34: 39.2088 | J34: 39.2088 | K34: 39.0252 | M34: 28 | N34: 11.8308 | O34: 13.7178 | P34: 16.8288 | Q34: 23.8056 | R34: 34.6992 | S34: 37.2696 | T34: 38.208 | U34: 45.78077143 | V34: 50.9274 | W34: 56.07402857
A35: 29 | B35: 10.5264 | C35: 12.3216 | D35: 15.7182 | E35: 22.7256 | F35: 34.017 | G35: 36.618 | H35: 37.689 | I35: 40.2186 | J35: 40.2186 | K35: 40.1676 | M35: 29 | N35: 12.1164 | O35: 13.9116 | P35: 17.3082 | Q35: 24.3156 | R35: 35.607 | S35: 38.208 | T35: 39.279 | U35: 47.01788571 | V35: 52.31715 | W35: 57.61641429
A36: 30 | B36: 10.71 | C36: 12.6582 | D36: 16.2486 | E36: 23.4702 | F36: 34.9452 | G36: 37.5768 | H36: 38.6478 | I36: 41.4528 | J36: 41.4528 | K36: 41.2488 | M36: 30 | N36: 12.3 | O36: 14.2482 | P36: 17.8386 | Q36: 25.0602 | R36: 36.5352 | S36: 39.1668 | T36: 40.2378 | U36: 48.24771429 | V36: 53.68868571 | W36: 59.12965714
A37: 31 | B37: 11.0262 | C37: 13.0866 | D37: 16.6974 | E37: 24.0006 | F37: 35.7306 | G37: 38.403 | H37: 39.6678 | I37: 42.483 | J37: 42.483 | K37: 42.5544 | M37: 31 | N37: 12.6162 | O37: 14.6766 | P37: 18.2874 | Q37: 25.5906 | R37: 37.3206 | S37: 39.993 | T37: 41.2578 | U37: 49.33328571 | V37: 54.8901 | W37: 60.44691429
A38: 32 | B38: 11.1894 | C38: 13.3722 | D38: 17.1564 | E38: 24.5922 | F38: 36.771 | G38: 39.4638 | H38: 40.6368 | I38: 43.8294 | J38: 43.8294 | K38: 43.758 | M38: 32 | N38: 12.7794 | O38: 14.9622 | P38: 18.7464 | Q38: 26.1822 | R38: 38.361 | S38: 41.0538 | T38: 42.2268 | U38: 50.63597143 | V38: 56.35525714 | W38: 62.07454286
A39: 33 | B39: 11.5056 | C39: 13.7088 | D39: 17.6256 | E39: 25.1022 | F39: 37.7706 | G39: 40.3716 | H39: 41.6568 | I39: 45.0228 | J39: 45.0228 | K39: 44.8902 | M39: 33 | N39: 13.0956 | O39: 15.2988 | P39: 19.2156 | Q39: 26.6922 | R39: 39.3606 | S39: 41.9616 | T39: 43.2468 | U39: 51.82791429 | V39: 57.68235 | W39: 63.53678571
A40: 34 | B40: 11.8728 | C40: 13.9842 | D40: 18.0132 | E40: 25.9794 | F40: 38.913 | G40: 41.361 | H40: 42.6972 | I40: 46.1958 | J40: 46.1958 | K40: 46.1244 | M40: 34 | N40: 13.4628 | O40: 15.5742 | P40: 19.6032 | Q40: 27.5694 | R40: 40.503 | S40: 42.951 | T40: 44.2872 | U40: 53.15391429 | V40: 59.15843571 | W40: 65.16295714
A41: 35 | B41: 12.1074 | C41: 14.382 | D41: 18.411 | E41: 26.4996 | F41: 40.0758 | G41: 42.4116 | H41: 43.758 | I41: 47.4606 | J41: 47.4606 | K41: 47.4402 | M41: 35 | N41: 13.6974 | O41: 15.972 | P41: 20.001 | Q41: 28.0896 | R41: 41.6658 | S41: 44.0016 | T41: 45.348 | U41: 54.49302857 | V41: 60.66002143 | W41: 66.82701429
A42: 36 | B42: 12.2706 | C42: 14.7186 | D42: 18.7578 | E42: 27.03 | F42: 41.1672 | G42: 43.758 | H42: 44.8596 | I42: 48.5418 | J42: 48.5418 | K42: 48.5112 | M42: 36 | N42: 13.8606 | O42: 16.3086 | P42: 20.3478 | Q42: 28.62 | R42: 42.7572 | S42: 45.348 | T42: 46.4496 | U42: 55.99242857 | V42: 62.35868571 | W42: 68.72494286
A43: 37 | B43: 12.5154 | C43: 14.9328 | D43: 19.2168 | E43: 27.7236 | F43: 42.2688 | G43: 44.9106 | H43: 46.053 | I43: 49.8168 | J43: 49.8168 | K43: 49.9392 | M43: 37 | N43: 14.1054 | O43: 16.5228 | P43: 20.8068 | Q43: 29.3136 | R43: 43.8588 | S43: 46.5006 | T43: 47.643 | U43: 57.48162857 | V43: 64.0395 | W43: 70.59737143
A44: 38 | B44: 12.7296 | C44: 15.1776 | D44: 19.7166 | E44: 28.2948 | F44: 43.3602 | G44: 46.0836 | H44: 47.2974 | I44: 50.9592 | J44: 50.9592 | K44: 51.0306 | M44: 38 | N44: 14.3196 | O44: 16.7676 | P44: 21.3066 | Q44: 29.8848 | R44: 44.9502 | S44: 47.6736 | T44: 48.8874 | U44: 58.99268571 | V44: 65.74836429 | W44: 72.50404286
A45: 39 | B45: 13.1172 | C45: 15.5652 | D45: 20.043 | E45: 28.8456 | F45: 44.4006 | G45: 47.2974 | H45: 48.5316 | I45: 52.173 | J45: 52.173 | K45: 52.2852 | M45: 39 | N45: 14.7072 | O45: 17.1552 | P45: 21.633 | Q45: 30.4356 | R45: 45.9906 | S45: 48.8874 | T45: 50.1216 | U45: 60.42797143 | V45: 67.35887143 | W45: 74.28977143
A46: 40 | B46: 13.464 | C46: 15.9732 | D46: 20.502 | E46: 29.5188 | F46: 45.4206 | G46: 48.4602 | H46: 49.6128 | I46: 53.2032 | J46: 53.2032 | K46: 53.5704 | M46: 40 | N46: 15.054 | O46: 17.5632 | P46: 22.092 | Q46: 31.1088 | R46: 47.0106 | S46: 50.0502 | T46: 51.2028 | U46: 61.77437143 | V46: 68.85790714 | W46: 75.94144286
A47: 41 | B47: 13.821 | C47: 16.3608 | D47: 20.7468 | E47: 30.0696 | F47: 46.4202 | G47: 49.7046 | H47: 50.9592 | I47: 54.3558 | J47: 54.3558 | K47: 54.0804 | M47: 41 | N47: 15.411 | O47: 17.9508 | P47: 22.3368 | Q47: 31.6596 | R47: 48.0102 | S47: 51.2946 | T47: 52.5492 | U47: 63.28397143 | V47: 70.56167143 | W47: 77.83937143
A48: 42 | B48: 14.0148 | C48: 16.7382 | D48: 21.165 | E48: 30.6714 | F48: 47.4198 | G48: 50.9592 | H48: 52.2342 | I48: 55.6002 | J48: 55.6002 | K48: 55.3044 | M48: 42 | N48: 15.6048 | O48: 18.3282 | P48: 22.755 | Q48: 32.2614 | R48: 49.0098 | S48: 52.5492 | T48: 53.8242 | U48: 64.81251429 | V48: 72.28947857 | W48: 79.76644286
A49: 43 | B49: 14.331 | C49: 17.085 | D49: 21.5016 | E49: 31.1916 | F49: 48.5316 | G49: 51.8976 | H49: 53.3154 | I49: 56.6304 | J49: 56.6304 | K49: 56.7018 | M49: 43 | N49: 15.921 | O49: 18.675 | P49: 23.0916 | Q49: 32.7816 | R49: 50.1216 | S49: 53.4876 | T49: 54.9054 | U49: 66.0846 | V49: 73.71347143 | W49: 81.34234286
A50: 44 | B50: 14.6166 | C50: 17.3298 | D50: 21.9606 | E50: 31.7526 | F50: 49.4802 | G50: 52.785 | H50: 54.366 | I50: 57.7524 | J50: 57.7524 | K50: 57.6912 | M50: 44 | N50: 16.2066 | O50: 18.9198 | P50: 23.5506 | Q50: 33.3426 | R50: 51.0702 | S50: 54.375 | T50: 55.956 | U50: 67.29985714 | V50: 75.07407857 | W50: 82.8483
A51: 45 | B51: 14.9226 | C51: 17.7276 | D51: 22.2972 | E51: 32.2014 | F51: 50.3574 | G51: 53.754 | H51: 55.1718 | I51: 58.6092 | J51: 58.6092 | K51: 58.8336 | M51: 45 | N51: 16.5126 | O51: 19.3176 | P51: 23.8872 | Q51: 33.7914 | R51: 51.9474 | S51: 55.344 | T51: 56.7618 | U51: 68.34608571 | V51: 76.23396429 | W51: 84.12184286
A52: 46 | B52: 15.0858 | C52: 17.9418 | D52: 22.746 | E52: 32.6808 | F52: 51.2346 | G52: 54.6108 | H52: 56.508 | I52: 60.027 | J52: 60.027 | K52: 60.0576 | M52: 46 | N52: 16.6758 | O52: 19.5318 | P52: 24.336 | Q52: 34.2708 | R52: 52.8246 | S52: 56.2008 | T52: 58.098 | U52: 69.71871429 | V52: 77.79347143 | W52: 85.86822857
A53: 47 | B53: 15.4122 | C53: 18.2784 | D53: 23.154 | E53: 33.15 | F53: 52.2342 | G53: 55.4778 | H53: 57.5994 | I53: 61.1694 | J53: 61.1694 | K53: 61.4856 | M53: 47 | N53: 17.0022 | O53: 19.8684 | P53: 24.744 | Q53: 34.74 | R53: 53.8242 | S53: 57.0678 | T53: 59.1894 | U53: 70.92522857 | V53: 79.14096429 | W53: 87.3567
A54: 48 | B54: 15.7182 | C54: 18.7068 | D54: 23.562 | E54: 33.6294 | F54: 53.1522 | G54: 56.4264 | H54: 58.5684 | I54: 62.1996 | J54: 62.1996 | K54: 62.5362 | M54: 48 | N54: 17.3082 | O54: 20.2968 | P54: 25.152 | Q54: 35.2194 | R54: 54.7422 | S54: 58.0164 | T54: 60.1584 | U54: 72.06762857 | V54: 80.40977143 | W54: 88.75191429
A55: 49 | B55: 16.0242 | C55: 19.1454 | D55: 23.9496 | E55: 34.2108 | F55: 54.0498 | G55: 57.2322 | H55: 59.6802 | I55: 63.3726 | J55: 63.3726 | K55: 62.9034 | M55: 49 | N55: 17.6142 | O55: 20.7354 | P55: 25.5396 | Q55: 35.8008 | R55: 55.6398 | S55: 58.8222 | T55: 61.2702 | U55: 73.23771429 | V55: 81.71063571 | W55: 90.18355714
A56: 50 | B56: 16.269 | C56: 19.4004 | D56: 24.327 | E56: 34.8024 | F56: 54.978 | G56: 58.1094 | H56: 60.6186 | I56: 64.3926 | J56: 64.3926 | K56: 62.9238 | M56: 50 | N56: 17.859 | O56: 20.9904 | P56: 25.917 | Q56: 36.3924 | R56: 56.568 | S56: 59.6994 | T56: 62.2086 | U56: 74.39322857 | V56: 83.00457857 | W56: 91.61592857
A57: 51 | B57: 16.5036 | C57: 19.6146 | D57: 24.735 | E57: 35.3022 | F57: 55.896 | G57: 59.1804 | H57: 61.6794 | I57: 65.5044 | J57: 65.5044 | K57: 64.4742 | M57: 51 | N57: 18.0936 | O57: 21.2046 | P57: 26.325 | Q57: 36.8922 | R57: 57.486 | S57: 60.7704 | T57: 63.2694 | U57: 75.69445714 | V57: 84.47374286 | W57: 93.25302857
A58: 52 | B58: 16.6974 | C58: 19.9206 | D58: 25.194 | E58: 36.1488 | F58: 56.7324 | G58: 60.2616 | H58: 62.7504 | I58: 66.6468 | J58: 66.6468 | K58: 66.9834 | M58: 52 | N58: 18.2874 | O58: 21.5106 | P58: 26.784 | Q58: 37.7388 | R58: 58.3224 | S58: 61.8516 | T58: 64.3404 | U58: 77.03065714 | V58: 85.97277857 | W58: 94.9149
A59: 53 | B59: 17.0136 | C59: 20.3082 | D59: 25.5408 | E59: 36.6792 | F59: 57.5994 | G59: 61.3326 | H59: 63.5256 | I59: 66.6672 | J59: 66.6672 | K59: 67.0038 | M59: 53 | N59: 18.6036 | O59: 21.8982 | P59: 27.1308 | Q59: 38.2692 | R59: 59.1894 | S59: 62.9226 | T59: 65.1156 | U59: 78.1104 | V59: 87.16909286 | W59: 96.22778571
A60: 54 | B60: 17.2482 | C60: 20.6448 | D60: 25.9284 | E60: 37.2504 | F60: 58.5684 | G60: 62.526 | H60: 64.4742 | I60: 68.493 | J60: 68.493 | K60: 67.0242 | M60: 54 | N60: 18.8382 | O60: 22.2348 | P60: 27.5184 | Q60: 38.8404 | R60: 60.1584 | S60: 64.116 | T60: 66.0642 | U60: 79.40725714 | V60: 88.62441429 | W60: 97.84157143
A61: 55 | B61: 17.5848 | C61: 20.9814 | D61: 26.2446 | E61: 37.9236 | F61: 59.5986 | G61: 63.7194 | H61: 65.4432 | I61: 69.4926 | J61: 69.4926 | K61: 70.4514 | M61: 55 | N61: 19.1748 | O61: 22.5714 | P61: 27.8346 | Q61: 39.5136 | R61: 61.1886 | S61: 65.3094 | T61: 67.0332 | U61: 80.71868571 | V61: 90.0903 | W61: 99.46191429
A62: 56 | B62: 17.8398 | C62: 21.267 | D62: 26.622 | E62: 38.5356 | F62: 60.5166 | G62: 64.719 | H62: 66.6162 | I62: 70.7676 | J62: 70.7676 | K62: 71.0124 | M62: 56 | N62: 19.4298 | O62: 22.857 | P62: 28.212 | Q62: 40.1256 | R62: 62.1066 | S62: 66.309 | T62: 68.2062 | U62: 82.05342857 | V62: 91.59370714 | W62: 101.1339857
A63: 57 | B63: 18.0642 | C63: 21.6036 | D63: 27.0504 | E63: 39.066 | F63: 61.5672 | G63: 65.79 | H63: 67.83 | I63: 72.0528 | J63: 72.0528 | K63: 71.0226 | M63: 57 | N63: 19.6542 | O63: 23.1936 | P63: 28.6404 | Q63: 40.656 | R63: 63.1572 | S63: 67.38 | T63: 69.42 | U63: 83.46977143 | V63: 93.19073571 | W63: 102.9117
A64: 58 | B64: 18.411 | C64: 21.9606 | D64: 27.54 | E64: 39.7086 | F64: 62.7504 | G64: 66.9222 | H64: 68.8806 | I64: 73.134 | J64: 73.134 | K64: 72.1344 | M64: 58 | N64: 20.001 | O64: 23.5506 | P64: 29.13 | Q64: 41.2986 | R64: 64.3404 | S64: 68.5122 | T64: 70.4706 | U64: 84.83511429 | V64: 94.71162857 | W64: 104.5881429
A65: 59 | B65: 18.6354 | C65: 22.2156 | D65: 28.0602 | E65: 40.4328 | F65: 63.903 | G65: 68.0034 | H65: 69.9924 | I65: 74.3478 | J65: 74.3478 | K65: 73.032 | M65: 59 | N65: 20.2254 | O65: 23.8056 | P65: 29.6502 | Q65: 42.0228 | R65: 65.493 | S65: 69.5934 | T65: 71.5824 | U65: 86.26602857 | V65: 96.31922143 | W65: 106.3724143
A66: 60 | B66: 18.7986 | C66: 22.44 | D66: 28.4988 | E66: 41.004 | F66: 65.0352 | G66: 69.1662 | H66: 70.8696 | I66: 75.2454 | J66: 75.2454 | K66: 73.8582 | M66: 60 | N66: 20.3886 | O66: 24.03 | P66: 30.0888 | Q66: 42.594 | R66: 66.6252 | S66: 70.7562 | T66: 72.4596 | U66: 87.59202857 | V66: 97.81352143 | W66: 108.0350143
A67: 61 | B67: 19.1454 | C67: 22.746 | D67: 28.8864 | E67: 41.5344 | F67: 66.0042 | G67: 69.9516 | H67: 72.012 | I67: 75.4086 | J67: 75.4086 | K67: 77.4996 | M67: 61 | N67: 20.7354 | O67: 24.336 | P67: 30.4764 | Q67: 43.1244 | R67: 67.5942 | S67: 71.5416 | T67: 73.602 | U67: 88.79125714 | V67: 99.153 | W67: 109.5147429
A68: 62 | B68: 19.4922 | C68: 23.1846 | D68: 29.2332 | E68: 42.2076 | F68: 66.9222 | G68: 71.145 | H68: 73.2768 | I68: 77.826 | J68: 77.826 | K68: 79.305 | M68: 62 | N68: 21.0822 | O68: 24.7746 | P68: 30.8232 | Q68: 43.7976 | R68: 68.5122 | S68: 72.735 | T68: 74.8668 | U68: 90.22217143 | V68: 100.7565857 | W68: 111.291
A69: 63 | B69: 19.8084 | C69: 23.562 | D69: 29.6004 | E69: 42.7584 | F69: 67.8912 | G69: 72.318 | H69: 74.6844 | I69: 79.2132 | J69: 79.2132 | K69: 79.3254 | M69: 63 | N69: 21.3984 | O69: 25.152 | P69: 31.1904 | Q69: 44.3484 | R69: 69.4812 | S69: 73.908 | T69: 76.2744 | U69: 91.74051429 | V69: 102.4701857 | W69: 113.1998571
A70: 64 | B70: 20.1654 | C70: 23.8986 | D70: 29.9472 | E70: 43.35 | F70: 68.901 | G70: 73.491 | H70: 75.6534 | I70: 79.2336 | J70: 79.2336 | K70: 79.3356 | M70: 64 | N70: 21.7554 | O70: 25.4886 | P70: 31.5372 | Q70: 44.94 | R70: 70.491 | S70: 75.081 | T70: 77.2434 | U70: 93.01988571 | V70: 103.89855 | W70: 114.7772143
A71: 65 | B71: 20.4714 | C71: 24.2556 | D71: 30.4062 | E71: 43.9926 | F71: 69.921 | G71: 74.7048 | H71: 76.9692 | I71: 81.7428 | J71: 81.7428 | K71: 80.325 | M71: 65 | N71: 22.0614 | O71: 25.8456 | P71: 31.9962 | Q71: 45.5826 | R71: 71.511 | S71: 76.2948 | T71: 78.5592 | U71: 94.53677143 | V71: 105.6048643 | W71: 116.6729571
A72: 66 | B72: 20.7264 | C72: 24.5004 | D72: 30.8346 | E72: 44.7066 | F72: 71.0634 | G72: 75.6534 | H72: 78.336 | I72: 82.0284 | J72: 82.0284 | K72: 81.906 | M72: 66 | N72: 22.3164 | O72: 26.0904 | P72: 32.4246 | Q72: 46.2966 | R72: 72.6534 | S72: 77.2434 | T72: 79.926 | U72: 96.04491429 | V72: 107.3079 | W72: 118.5708857
A73: 67 | B73: 20.91 | C73: 24.9696 | D73: 31.314 | E73: 45.4308 | F73: 71.9406 | G73: 76.7652 | H73: 79.4682 | I73: 84.3948 | J73: 84.3948 | K73: 83.1708 | M73: 67 | N73: 22.5 | O73: 26.5596 | P73: 32.904 | Q73: 47.0208 | R73: 73.5306 | S73: 78.3552 | T73: 81.0582 | U73: 97.40297143 | V73: 108.8277 | W73: 120.2524286
A74: 68 | B74: 21.165 | C74: 25.194 | D74: 31.7526 | E74: 46.2162 | F74: 72.9096 | G74: 77.7852 | H74: 80.4678 | I74: 85.4658 | J74: 85.4658 | K74: 84.1908 | M74: 68 | N74: 22.755 | O74: 26.784 | P74: 33.3426 | Q74: 47.8062 | R74: 74.4996 | S74: 79.3752 | T74: 82.0578 | U74: 98.69545714 | V74: 110.2757357 | W74: 121.8560143
A75: 69 | B75: 21.5118 | C75: 25.551 | D75: 32.1504 | E75: 47.0628 | F75: 73.8174 | G75: 78.846 | H75: 81.8754 | I75: 85.7616 | J75: 85.7616 | K75: 84.6702 | M75: 69 | N75: 23.1018 | O75: 27.141 | P75: 33.7404 | Q75: 48.6528 | R75: 75.4074 | S75: 80.436 | T75: 83.4654 | U75: 100.1846571 | V75: 111.9470786 | W75: 123.7095
A76: 70 | B76: 21.8484 | C76: 25.9488 | D76: 32.6706 | E76: 47.8686 | F76: 74.7048 | G76: 79.8354 | H76: 82.7934 | I76: 86.7 | J76: 86.7 | K76: 85.6902 | M76: 70 | N76: 23.4384 | O76: 27.5388 | P76: 34.2606 | Q76: 49.4586 | R76: 76.2948 | S76: 81.4254 | T76: 84.3834 | U76: 101.3489143 | V76: 113.229 | W76: 125.1090857
A77: 71 | B77: 22.1238 | C77: 26.2956 | D77: 33.1092 | E77: 48.5316 | F77: 75.7248 | G77: 80.7534 | H77: 83.8848 | I77: 87.8424 | J77: 87.8424 | K77: 87.8118 | M77: 71 | N77: 23.7138 | O77: 27.8856 | P77: 34.6992 | Q77: 50.1216 | R77: 77.3148 | S77: 82.3434 | T77: 85.4748 | U77: 102.6239143 | V77: 114.6529929 | W77: 126.6820714
A78: 72 | B78: 22.3992 | C78: 26.775 | D78: 33.5172 | E78: 49.266 | F78: 76.7652 | G78: 81.906 | H78: 85.1394 | I78: 89.1582 | J78: 89.1582 | K78: 88.1586 | M78: 72 | N78: 23.9892 | O78: 28.365 | P78: 35.1072 | Q78: 50.856 | R78: 78.3552 | S78: 83.496 | T78: 86.7294 | U78: 104.0898 | V78: 116.2944643 | W78: 128.4991286
A79: 73 | B79: 22.6032 | C79: 26.9892 | D79: 34.017 | E79: 50.0922 | F79: 77.8566 | G79: 83.028 | H79: 86.1084 | I79: 90.168 | J79: 90.168 | K79: 89.148 | M79: 73 | N79: 24.1932 | O79: 28.5792 | P79: 35.607 | Q79: 51.6822 | R79: 79.4466 | S79: 84.618 | T79: 87.6984 | U79: 105.4653429 | V79: 117.8379429 | W79: 130.2105429
A80: 74 | B80: 22.9194 | C80: 27.3258 | D80: 34.476 | E80: 50.7348 | F80: 78.897 | G80: 84.2928 | H80: 87.414 | I80: 92.8404 | J80: 92.8404 | K80: 91.6674 | M80: 74 | N80: 24.5094 | O80: 28.9158 | P80: 36.066 | Q80: 52.3248 | R80: 80.487 | S80: 85.8828 | T80: 89.004 | U80: 107.0040857 | V80: 119.5697571 | W80: 132.1354286
A81: 75 | B81: 23.2458 | C81: 27.7746 | D81: 34.8534 | E81: 51.4386 | F81: 79.968 | G81: 85.4148 | H81: 88.5666 | I81: 94.0236 | J81: 94.0236 | K81: 92.82 | M81: 75 | N81: 24.8358 | O81: 29.3646 | P81: 36.4434 | Q81: 53.0286 | R81: 81.558 | S81: 87.0048 | T81: 90.1566 | U81: 108.3927429 | V81: 121.1197929 | W81: 133.8468429
A82: 76 | B82: 23.4906 | C82: 28.0806 | D82: 35.2818 | E82: 52.0302 | F82: 80.427 | G82: 86.6592 | H82: 89.5254 | I82: 94.8804 | J82: 94.8804 | K82: 94.0848 | M82: 76 | N82: 25.0806 | O82: 29.6706 | P82: 36.8718 | Q82: 53.6202 | R82: 82.017 | S82: 88.2492 | T82: 91.1154 | U82: 109.5759429 | V82: 122.4476143 | W82: 135.3192857
A83: 77 | B83: 23.8986 | C83: 28.4478 | D83: 35.7204 | E83: 52.683 | F83: 82.1508 | G83: 87.6486 | H83: 90.6066 | I83: 94.9008 | J83: 94.9008 | K83: 94.1256 | M83: 77 | N83: 25.4886 | O83: 30.0378 | P83: 37.3104 | Q83: 54.273 | R83: 83.7408 | S83: 89.2386 | T83: 92.1966 | U83: 111.0345429 | V83: 124.0686857 | W83: 137.1028286
A84: 78 | B84: 24.1332 | C84: 28.6824 | D84: 36.2406 | E84: 53.448 | F84: 82.1712 | G84: 88.7808 | H84: 91.341 | I84: 95.6658 | J84: 95.6658 | K84: 94.6662 | M84: 78 | N84: 25.7232 | O84: 30.2724 | P84: 37.8306 | Q84: 55.038 | R84: 83.7612 | S84: 90.3708 | T84: 92.931 | U84: 111.954 | V84: 125.0879571 | W84: 138.2219143
A85: 79 | B85: 24.3984 | C85: 29.0394 | D85: 36.7302 | E85: 54.2334 | F85: 84.3438 | G85: 89.8008 | H85: 92.8812 | I85: 97.2672 | J85: 97.2672 | K85: 96.237 | M85: 79 | N85: 25.9884 | O85: 30.6294 | P85: 38.3202 | Q85: 55.8234 | R85: 85.9338 | S85: 91.3908 | T85: 94.4712 | U85: 113.8774286 | V85: 127.2554571 | W85: 140.6334857
A86: 80 | B86: 24.786 | C86: 29.376 | D86: 37.2504 | E86: 54.927 | F86: 85.4148 | G86: 90.9024 | H86: 92.8914 | I86: 98.4606 | J86: 98.4606 | K86: 97.4406 | M86: 80 | N86: 26.376 | O86: 30.966 | P86: 38.8404 | Q86: 56.517 | R86: 87.0048 | S86: 92.4924 | T86: 94.4814 | U86: 114.6016286 | V86: 128.0135357 | W86: 141.4254429
A87: 81 | B87: 25.0002 | C87: 29.7126 | D87: 37.2708 | E87: 54.9474 | F87: 85.4352 | G87: 90.9228 | H87: 92.9118 | I87: 99.1848 | J87: 99.1848 | K87: 97.7466 | M87: 81 | N87: 26.5902 | O87: 31.3026 | P87: 38.8608 | Q87: 56.5374 | R87: 87.0252 | S87: 92.5128 | T87: 94.5018 | U87: 114.5214857 | V87: 127.8900429 | W87: 141.2586
A88: 82 | B88: 25.2858 | C88: 30.0798 | D88: 38.0868 | E88: 56.3346 | F88: 87.3936 | G88: 93.1872 | H88: 96.2472 | I88: 100.7862 | J88: 100.7862 | K88: 99.858 | M88: 82 | N88: 26.8758 | O88: 31.6698 | P88: 39.6768 | Q88: 57.9246 | R88: 88.9836 | S88: 94.7772 | T88: 97.8372 | U88: 118.0215429 | V88: 131.8931786 | W88: 145.7648143
A89: 83 | B89: 25.4694 | C89: 30.4266 | D89: 38.5866 | E89: 56.355 | F89: 88.3932 | G89: 93.5442 | H89: 97.3896 | I89: 101.9592 | J89: 101.9592 | K89: 101.1534 | M89: 83 | N89: 27.0594 | O89: 32.0166 | P89: 40.1766 | Q89: 57.945 | R89: 89.9832 | S89: 95.1342 | T89: 98.9796 | U89: 119.0138571 | V89: 133.0068 | W89: 146.9997429
A90: 84 | B90: 25.7856 | C90: 30.8346 | D90: 38.9232 | E90: 57.3342 | F90: 88.4136 | G90: 95.7066 | H90: 98.3484 | I90: 102.9792 | J90: 102.9792 | K90: 102.2448 | M90: 84 | N90: 27.3756 | O90: 32.4246 | P90: 40.5132 | Q90: 58.9242 | R90: 90.0036 | S90: 97.2966 | T90: 99.9384 | U90: 120.4855714 | V90: 134.6613857 | W90: 148.8372
A91: 85 | B91: 26.0916 | C91: 31.2426 | D91: 39.3006 | E91: 58.2522 | F91: 90.3618 | G91: 96.9816 | H91: 99.399 | I91: 104.091 | J91: 104.091 | K91: 103.4178 | M91: 85 | N91: 27.6816 | O91: 32.8326 | P91: 40.8906 | Q91: 59.8422 | R91: 91.9518 | S91: 98.5716 | T91: 100.989 | U91: 122.1744 | V91: 136.5480214 | W91: 150.9216429
A92: 86 | B92: 26.4588 | C92: 31.263 | D92: 39.7596 | E92: 58.9254 | F92: 90.372 | G92: 98.2362 | H92: 100.5618 | I92: 105.2844 | J92: 105.2844 | K92: 104.5602 | M92: 86 | N92: 28.0488 | O92: 32.853 | P92: 41.3496 | Q92: 60.5154 | R92: 91.962 | S92: 99.8262 | T92: 102.1518 | U92: 123.3678 | V92: 137.8987929 | W92: 152.4297857
A93: 87 | B93: 26.6424 | C93: 31.8852 | D93: 40.2084 | E93: 59.5884 | F93: 90.3924 | G93: 98.2566 | H93: 101.5614 | I93: 106.335 | J93: 106.335 | K93: 105.6822 | M93: 87 | N93: 28.2324 | O93: 33.4752 | P93: 41.7984 | Q93: 61.1784 | R93: 91.9824 | S93: 99.8466 | T93: 103.1514 | U93: 123.9069429 | V93: 138.4670786 | W93: 153.0272143
A94: 88 | B94: 26.8872 | C94: 32.2728 | D94: 40.6878 | E94: 60.1392 | F94: 90.4128 | G94: 98.277 | H94: 101.5818 | I94: 107.5182 | J94: 107.5182 | K94: 106.8756 | M94: 88 | N94: 28.4772 | O94: 33.8628 | P94: 42.2778 | Q94: 61.7292 | R94: 92.0028 | S94: 99.867 | T94: 103.1718 | U94: 123.8865429 | V94: 138.3800143 | W94: 152.8734857
A95: 89 | B95: 27.1728 | C95: 32.4666 | D95: 41.0958 | E95: 60.7104 | F95: 90.423 | G95: 98.2872 | H95: 101.592 | I95: 108.8748 | J95: 108.8748 | K95: 108.069 | M95: 89 | N95: 28.7628 | O95: 34.0566 | P95: 42.6858 | Q95: 62.3004 | R95: 92.013 | S95: 99.8772 | T95: 103.182 | U95: 123.8719714 | V95: 138.3086143 | W95: 152.7452571
A96: 90 | B96: 27.6318 | C96: 32.8032 | D96: 41.4834 | E96: 61.3428 | F96: 94.2378 | G96: 102.9282 | H96: 105.0702 | I96: 110.0376 | J96: 110.0376 | K96: 109.3338 | M96: 90 | N96: 29.2218 | O96: 34.3932 | P96: 43.0734 | Q96: 62.9328 | R96: 95.8278 | S96: 104.5182 | T96: 106.6602 | U96: 128.8495714 | V96: 144.0395571 | W96: 159.2295429
A97: 91 | B97: 28.0194 | C97: 33.2214 | D97: 41.5038 | E97: 62.1282 | F97: 94.2582 | G97: 104.2134 | H97: 106.2126 | I97: 111.2106 | J97: 111.2106 | K97: 110.5782 | M97: 91 | N97: 29.6094 | O97: 34.8114 | P97: 43.0938 | Q97: 63.7182 | R97: 95.8482 | S97: 105.8034 | T97: 107.8026 | U97: 130.0007143 | V97: 145.3335 | W97: 160.6662857
A98: 92 | B98: 28.3764 | C98: 33.558 | D98: 42.3606 | E98: 62.1486 | F98: 94.2786 | G98: 104.2338 | H98: 107.2836 | I98: 112.3428 | J98: 112.3428 | K98: 111.7308 | M98: 92 | N98: 29.9664 | O98: 35.148 | P98: 43.9506 | Q98: 63.7386 | R98: 95.8686 | S98: 105.8238 | T98: 108.8736 | U98: 130.4801143 | V98: 145.8369429 | W98: 161.1937714
A99: 93 | B99: 28.611 | C99: 34.0476 | D99: 42.3708 | E99: 62.169 | F99: 94.299 | G99: 104.2542 | H99: 107.304 | I99: 113.4444 | J99: 113.4444 | K99: 112.914 | M99: 93 | N99: 30.201 | O99: 35.6376 | P99: 43.9608 | Q99: 63.759 | R99: 95.889 | S99: 105.8442 | T99: 108.894 | U99: 130.3722857 | V99: 145.6730143 | W99: 160.9737429
A100: 94 | B100: 28.8456 | C100: 34.068 | D100: 42.8502 | E100: 62.1792 | F100: 94.3194 | G100: 107.4468 | H100: 108.3648 | I100: 113.4648 | J100: 113.4648 | K100: 112.9242 | M100: 94 | N100: 30.4356 | O100: 35.658 | P100: 44.4402 | Q100: 63.7692 | R100: 95.9094 | S100: 109.0368 | T100: 109.9548 | U100: 132.2840571 | V100: 147.8835 | W100: 163.4829429
A101: 95 | B101: 29.0904 | C101: 34.0884 | D101: 43.7376 | E101: 62.1996 | F101: 94.3398 | G101: 107.457 | H101: 110.4762 | I101: 115.6578 | J101: 115.6578 | K101: 115.005 | M101: 95 | N101: 30.6804 | O101: 35.6784 | P101: 45.3276 | Q101: 63.7896 | R101: 95.9298 | S101: 109.047 | T101: 112.0662 | U101: 133.4308286 | V101: 149.1985714 | W101: 164.9663143
A102: 96 | B102: 29.3046 | C102: 34.476 | D102: 44.1048 | E102: 62.5668 | F102: 95.1252 | G102: 107.4774 | H102: 111.6288 | I102: 116.9124 | J102: 116.9124 | K102: 116.1474 | M102: 96 | N102: 30.8946 | O102: 36.066 | P102: 45.6948 | Q102: 64.1568 | R102: 96.7152 | S102: 109.0674 | T102: 113.2188 | U102: 134.2584857 | V102: 150.1154786 | W102: 165.9724714
A103: 97 | B103: 29.6004 | C103: 34.4964 | D103: 44.115 | E103: 65.5248 | F103: 102.2754 | G103: 107.508 | H103: 112.2102 | I103: 118.0344 | J103: 118.0344 | K103: 117.2388 | M103: 97 | N103: 31.1904 | O103: 36.0864 | P103: 45.705 | Q103: 67.1148 | R103: 103.8654 | S103: 109.098 | T103: 113.8002 | U103: 136.9818857 | V103: 153.1252071 | W103: 169.2685286
A104: 98 | B104: 29.8554 | C104: 34.5168 | D104: 44.6148 | E104: 65.5452 | F104: 102.2958 | G104: 111.7512 | H104: 112.2306 | I104: 118.065 | J104: 118.065 | K104: 117.3204 | M104: 98 | N104: 31.4454 | O104: 36.1068 | P104: 46.2048 | Q104: 67.1352 | R104: 103.8858 | S104: 113.3412 | T104: 113.8206 | U104: 138.7450286 | V104: 155.1477214 | W104: 171.5504143
A105: 99 | B105: 30.1206 | C105: 34.8738 | D105: 44.6352 | E105: 65.5656 | F105: 102.3162 | G105: 111.7716 | H105: 112.2408 | I105: 118.1058 | J105: 118.1058 | K105: 117.3714 | M105: 99 | N105: 31.7106 | O105: 36.4638 | P105: 46.2252 | Q105: 67.1556 | R105: 103.9062 | S105: 113.3616 | T105: 113.8308 | U105: 138.6415714 | V105: 154.9929 | W105: 171.3442286
A106: 100 | B106: 30.3552 | C106: 34.8942 | D106: 44.6556 | E106: 65.5758 | F106: 104.091 | G106: 112.1082 | H106: 114.444 | I106: 122.0736 | J106: 122.0736 | K106: 121.9818 | M106: 100 | N106: 31.9452 | O106: 36.4842 | P106: 46.2456 | Q106: 67.1658 | R106: 105.681 | S106: 113.6982 | T106: 116.034 | U106: 140.4834 | V106: 157.1308929 | W106: 173.7783857
A107: 101 | B107: 30.651 | C107: 35.241 | D107: 45.0942 | E107: 66.2184 | F107: 105.1212 | G107: 113.2098 | H107: 115.5864 | I107: 123.2976 | J107: 123.2976 | K107: 123.2262 | M107: 101 | N107: 32.241 | O107: 36.831 | P107: 46.6842 | Q107: 67.8084 | R107: 106.7112 | S107: 114.7998 | T107: 117.1764 | U107: 141.8604 | V107: 158.6736429 | W107: 175.4868857
A108: 102 | B108: 30.957 | C108: 35.2614 | D108: 45.5328 | E108: 66.8916 | F108: 106.182 | G108: 114.342 | H108: 116.7288 | I108: 124.5114 | J108: 124.5114 | K108: 124.4706 | M108: 102 | N108: 32.547 | O108: 36.8514 | P108: 47.1228 | Q108: 68.4816 | R108: 107.772 | S108: 115.932 | T108: 118.3188 | U108: 143.3073429 | V108: 160.3118357 | W108: 177.3163286
A109: 103 | B109: 31.263 | C109: 35.5776 | D109: 46.002 | E109: 67.5546 | F109: 107.2224 | G109: 115.464 | H109: 117.8712 | I109: 125.7456 | J109: 125.7456 | K109: 125.715 | M109: 103 | N109: 32.853 | O109: 37.1676 | P109: 47.592 | Q109: 69.1446 | R109: 108.8124 | S109: 117.054 | T109: 119.4612 | U109: 144.7003714 | V109: 161.8724357 | W109: 179.0445
A110: 104 | B110: 31.569 | C110: 35.9244 | D110: 46.4304 | E110: 68.1972 | F110: 108.2526 | G110: 116.586 | H110: 119.0034 | I110: 126.9594 | J110: 126.9594 | K110: 126.9594 | M110: 104 | N110: 33.159 | O110: 37.5144 | P110: 48.0204 | Q110: 69.7872 | R110: 109.8426 | S110: 118.176 | T110: 120.5934 | U110: 146.0773714 | V110: 163.4148214 | W110: 180.7522714
A111: 105 | B111: 31.8648 | C111: 36.261 | D111: 46.869 | E111: 68.85 | F111: 109.293 | G111: 117.708 | H111: 120.156 | I111: 128.1834 | J111: 128.1834 | K111: 128.1834 | M111: 105 | N111: 33.4548 | O111: 37.851 | P111: 48.459 | Q111: 70.44 | R111: 110.883 | S111: 119.298 | T111: 121.746 | U111: 147.4747714 | V111: 164.9816143 | W111: 182.4884571
A112: 106 | B112: 32.181 | C112: 36.6078 | D112: 47.3382 | E112: 69.513 | F112: 110.3334 | G112: 118.8198 | H112: 121.2984 | I112: 129.3972 | J112: 129.3972 | K112: 129.4278 | M112: 106 | N112: 33.771 | O112: 38.1978 | P112: 48.9282 | Q112: 71.103 | R112: 111.9234 | S112: 120.4098 | T112: 122.8884 | U112: 148.8561429 | V112: 166.52655 | W112: 184.1969571
A113: 107 | B113: 32.4666 | C113: 36.9546 | D113: 47.7768 | E113: 70.1658 | F113: 111.384 | G113: 119.9418 | H113: 122.4408 | I113: 130.6212 | J113: 130.6212 | K113: 130.6824 | M113: 107 | N113: 34.0566 | O113: 38.5446 | P113: 49.3668 | Q113: 71.7558 | R113: 112.974 | S113: 121.5318 | T113: 124.0308 | U113: 150.2520857 | V113: 168.0915214 | W113: 185.9309571
A114: 108 | B114: 32.7828 | C114: 37.3014 | D114: 48.2256 | E114: 70.8186 | F114: 112.4142 | G114: 121.0638 | H114: 123.5832 | I114: 131.8452 | J114: 131.8452 | K114: 131.9166 | M114: 108 | N114: 34.3728 | O114: 38.8914 | P114: 49.8156 | Q114: 72.4086 | R114: 114.0042 | S114: 122.6538 | T114: 125.1732 | U114: 151.6334571 | V114: 169.63755 | W114: 187.6416429
A115: 109 | B115: 33.0786 | C115: 37.6482 | D115: 48.654 | E115: 71.4816 | F115: 113.4546 | G115: 122.196 | H115: 124.7256 | I115: 133.059 | J115: 133.059 | K115: 133.161 | M115: 109 | N115: 34.6686 | O115: 39.2382 | P115: 50.244 | Q115: 73.0716 | R115: 115.0446 | S115: 123.786 | T115: 126.3156 | U115: 153.0294 | V115: 171.2021571 | W115: 189.3749143
A116: 110 | B116: 33.3948 | C116: 37.9848 | D116: 49.113 | E116: 72.1242 | F116: 114.495 | G116: 123.2976 | H116: 125.8884 | I116: 134.283 | J116: 134.283 | K116: 134.385 | M116: 110 | N116: 34.9848 | O116: 39.5748 | P116: 50.703 | Q116: 73.7142 | R116: 116.085 | S116: 124.8876 | T116: 127.4784 | U116: 154.4166 | V116: 172.7554714 | W116: 191.0943429
A117: 111 | B117: 33.6804 | C117: 38.3316 | D117: 49.5618 | E117: 72.7872 | F117: 115.5456 | G117: 124.4196 | H117: 127.0308 | I117: 135.4968 | J117: 135.4968 | K117: 135.6396 | M117: 111 | N117: 35.2704 | O117: 39.9216 | P117: 51.1518 | Q117: 74.3772 | R117: 117.1356 | S117: 126.0096 | T117: 128.6208 | U117: 155.814 | V117: 174.3215357 | W117: 192.8290714
A118: 112 | B118: 33.9966 | C118: 38.6784 | D118: 50.0004 | E118: 73.4502 | F118: 116.586 | G118: 125.5518 | H118: 128.1732 | I118: 136.7412 | J118: 136.7412 | K118: 136.884 | M118: 112 | N118: 35.5866 | O118: 40.2684 | P118: 51.5904 | Q118: 75.0402 | R118: 118.176 | S118: 127.1418 | T118: 129.7632 | U118: 157.2041143 | V118: 175.8777643 | W118: 194.5514143
A119: 113 | B119: 34.2822 | C119: 39.0252 | D119: 50.4594 | E119: 74.1132 | F119: 117.6264 | G119: 126.6738 | H119: 129.3156 | I119: 137.9448 | J119: 137.9448 | K119: 138.1182 | M119: 113 | N119: 35.8722 | O119: 40.6152 | P119: 52.0494 | Q119: 75.7032 | R119: 119.2164 | S119: 128.2638 | T119: 130.9056 | U119: 158.5986 | V119: 177.4401857 | W119: 196.2817714
A120: 114 | B120: 34.5984 | C120: 39.3618 | D120: 50.9082 | E120: 74.7558 | F120: 118.6668 | G120: 127.7754 | H120: 130.4478 | I120: 139.1586 | J120: 139.1586 | K120: 139.3626 | M120: 114 | N120: 36.1884 | O120: 40.9518 | P120: 52.4982 | Q120: 76.3458 | R120: 120.2568 | S120: 129.3654 | T120: 132.0378 | U120: 159.9683143 | V120: 178.9731 | W120: 197.9778857
A121: 115 | B121: 34.8942 | C121: 39.7086 | D121: 51.3366 | E121: 75.4086 | F121: 119.697 | G121: 128.9076 | H121: 131.5902 | I121: 140.3826 | J121: 140.3826 | K121: 140.5968 | M121: 115 | N121: 36.4842 | O121: 41.2986 | P121: 52.9266 | Q121: 76.9986 | R121: 121.287 | S121: 130.4976 | T121: 133.1802 | U121: 161.3598857 | V121: 180.5329714 | W121: 199.7060571
A122: 116 | B122: 35.2104 | C122: 40.0656 | D122: 51.7956 | E122: 76.0716 | F122: 120.7578 | G122: 130.0296 | H122: 132.7326 | I122: 141.6066 | J122: 141.6066 | K122: 141.8412 | M122: 116 | N122: 36.8004 | O122: 41.6556 | P122: 53.3856 | Q122: 77.6616 | R122: 122.3478 | S122: 131.6196 | T122: 134.3226 | U122: 162.75 | V122: 182.0877429 | W122: 201.4254857
A123: 117 | B123: 35.5062 | C123: 40.4022 | D123: 52.2444 | E123: 76.7244 | F123: 121.788 | G123: 131.1618 | H123: 133.875 | I123: 142.8408 | J123: 142.8408 | K123: 143.0856 | M123: 117 | N123: 37.0962 | O123: 41.9922 | P123: 53.8344 | Q123: 78.3144 | R123: 123.378 | S123: 132.7518 | T123: 135.465 | U123: 164.1430286 | V123: 183.6490714 | W123: 203.1551143
A124: 118 | B124: 35.8122 | C124: 40.7592 | D124: 52.683 | E124: 77.3874 | F124: 122.8182 | G124: 132.2838 | H124: 135.0276 | I124: 144.0444 | J124: 144.0444 | K124: 144.3198 | M124: 118 | N124: 37.4022 | O124: 42.3492 | P124: 54.273 | Q124: 78.9774 | R124: 124.4082 | S124: 133.8738 | T124: 136.6176 | U124: 165.5331429 | V124: 185.2056643 | W124: 204.8781857
A125: 119 | B125: 36.108 | C125: 41.0958 | D125: 53.1318 | E125: 78.0402 | F125: 123.8586 | G125: 133.3956 | H125: 136.17 | I125: 145.2786 | J125: 145.2786 | K125: 145.5744 | M125: 119 | N125: 37.698 | O125: 42.6858 | P125: 54.7218 | Q125: 79.6302 | R125: 125.4486 | S125: 134.9856 | T125: 137.76 | U125: 166.9203429 | V125: 186.7600714 | W125: 206.5998
A126: 120 | B126: 36.414 | C126: 41.4324 | D126: 53.5806 | E126: 78.6828 | F126: 124.9194 | G126: 134.5176 | H126: 137.3328 | I126: 146.4822 | J126: 146.4822 | K126: 146.7984 | M126: 120 | N126: 38.004 | O126: 43.0224 | P126: 55.1706 | Q126: 80.2728 | R126: 126.5094 | S126: 136.1076 | T126: 138.9228 | U126: 168.3250286 | V126: 188.3345143 | W126: 208.344
A127: 121 | B127: 36.72 | C127: 41.7894 | D127: 54.0192 | E127: 79.3458 | F127: 125.9496 | G127: 135.6396 | H127: 138.4752 | I127: 147.7062 | J127: 147.7062 | K127: 148.0428 | M127: 121 | N127: 38.31 | O127: 43.3794 | P127: 55.6092 | Q127: 80.9358 | R127: 127.5396 | S127: 137.2296 | T127: 140.0652 | U127: 169.7093143 | V127: 189.8841857 | W127: 210.0590571
A128: 122 | B128: 37.026 | C128: 42.1362 | D128: 54.468 | E128: 79.9986 | F128: 126.99 | G128: 136.7718 | H128: 139.6176 | I128: 148.9404 | J128: 148.9404 | K128: 149.2872 | M128: 122 | N128: 38.616 | O128: 43.7262 | P128: 56.058 | Q128: 81.5886 | R128: 128.58 | S128: 138.3618 | T128: 141.2076 | U128: 171.1008857 | V128: 191.4426 | W128: 211.7843143
A129: 123 | B129: 37.3218 | C129: 42.483 | D129: 54.927 | E129: 80.6514 | F129: 128.0304 | G129: 137.8734 | H129: 140.76 | I129: 150.144 | J129: 150.144 | K129: 150.5316 | M129: 123 | N129: 38.9118 | O129: 44.073 | P129: 56.517 | Q129: 82.2414 | R129: 129.6204 | S129: 139.4634 | T129: 142.35 | U129: 172.4822571 | V129: 192.9893571 | W129: 213.4964571
A130: 124 | B130: 37.6278 | C130: 42.8196 | D130: 55.3656 | E130: 81.3144 | F130: 129.0708 | G130: 138.9954 | H130: 141.8922 | I130: 151.3782 | J130: 151.3782 | K130: 151.776 | M130: 124 | N130: 39.2178 | O130: 44.4096 | P130: 56.9556 | Q130: 82.9044 | R130: 130.6608 | S130: 140.5854 | T130: 143.4822 | U130: 173.8665429 | V130: 194.5397571 | W130: 215.2129714
A131: 125 | B131: 37.9236 | C131: 43.1562 | D131: 55.8042 | E131: 81.9774 | F131: 130.1214 | G131: 140.1276 | H131: 143.0346 | I131: 152.6022 | J131: 152.6022 | K131: 153 | M131: 125 | N131: 39.5136 | O131: 44.7462 | P131: 57.3942 | Q131: 83.5674 | R131: 131.7114 | S131: 141.7176 | T131: 144.6246 | U131: 175.2668571 | V131: 196.1094643 | W131: 216.9520714
A132: 126 | B132: 38.2398 | C132: 43.5132 | D132: 56.2428 | E132: 82.6098 | F132: 131.1618 | G132: 141.2496 | H132: 144.177 | I132: 153.8262 | J132: 153.8262 | K132: 154.2546 | M132: 126 | N132: 39.8298 | O132: 45.1032 | P132: 57.8328 | Q132: 84.1998 | R132: 132.7518 | S132: 142.8396 | T132: 145.767 | U132: 176.6467714 | V132: 197.6540357 | W132: 218.6613
A133: 127 | B133: 38.556 | C133: 43.8702 | D133: 56.7018 | E133: 83.2728 | F133: 132.192 | G133: 142.3716 | H133: 145.3194 | I133: 155.04 | J133: 155.04 | K133: 155.499 | M133: 127 | N133: 40.146 | O133: 45.4602 | P133: 58.2918 | Q133: 84.8628 | R133: 133.782 | S133: 143.9616 | T133: 146.9094 | U133: 178.0281429 | V133: 199.1989714 | W133: 220.3698
A134: 128 | B134: 38.8518 | C134: 44.2068 | D134: 57.1506 | E134: 83.946 | F134: 133.2324 | G134: 143.4834 | H134: 146.4618 | I134: 156.2436 | J134: 156.2436 | K134: 156.7332 | M134: 128 | N134: 40.4418 | O134: 45.7968 | P134: 58.7406 | Q134: 85.536 | R134: 134.8224 | S134: 145.0734 | T134: 148.0518 | U134: 179.4182571 | V134: 200.7562929 | W134: 222.0943286
A135: 129 | B135: 39.1578 | C135: 44.5434 | D135: 57.5892 | E135: 84.5886 | F135: 134.2626 | G135: 144.6054 | H135: 147.6042 | I135: 157.4778 | J135: 157.4778 | K135: 157.9776 | M135: 129 | N135: 40.7478 | O135: 46.1334 | P135: 59.1792 | Q135: 86.1786 | R135: 135.8526 | S135: 146.1954 | T135: 149.1942 | U135: 180.8025429 | V135: 202.3074214 | W135: 223.8123
A136: 130 | B136: 39.4536 | C136: 44.9004 | D136: 58.0584 | E136: 85.2414 | F136: 135.3234 | G136: 145.7274 | H136: 148.7772 | I136: 158.7018 | J136: 158.7018 | K136: 159.2118 | M136: 130 | N136: 41.0436 | O136: 46.4904 | P136: 59.6484 | Q136: 86.8314 | R136: 136.9134 | S136: 147.3174 | T136: 150.3672 | U136: 182.2145143 | V136: 203.88915 | W136: 225.5637857
A137: 131 | B137: 39.7596 | C137: 45.237 | D137: 58.4868 | E137: 85.9044 | F137: 136.3638 | G137: 146.8494 | H137: 149.9196 | I137: 159.9258 | J137: 159.9258 | K137: 160.4562 | M137: 131 | N137: 41.3496 | O137: 46.827 | P137: 60.0768 | Q137: 87.4944 | R137: 137.9538 | S137: 148.4394 | T137: 151.5096 | U137: 183.6046286 | V137: 205.4468357 | W137: 227.2890429
A138: 132 | B138: 40.0656 | C138: 45.594 | D138: 58.9254 | E138: 86.547 | F138: 137.4042 | G138: 147.9612 | H138: 151.062 | I138: 161.1396 | J138: 161.1396 | K138: 161.7108 | M138: 132 | N138: 41.6556 | O138: 47.184 | P138: 60.5154 | Q138: 88.137 | R138: 138.9942 | S138: 149.5512 | T138: 152.652 | U138: 184.9845429 | V138: 206.9917714 | W138: 228.999
A139: 133 | B139: 40.3716 | C139: 45.9306 | D139: 59.3946 | E139: 87.2202 | F139: 138.4344 | G139: 149.0832 | H139: 152.2044 | I139: 162.3636 | J139: 162.3636 | K139: 162.9348 | M139: 133 | N139: 41.9616 | O139: 47.5206 | P139: 60.9846 | Q139: 88.8102 | R139: 140.0244 | S139: 150.6732 | T139: 153.7944 | U139: 186.3732 | V139: 208.5461786 | W139: 230.7191571
A140: 134 | B140: 40.6674 | C140: 46.2672 | D140: 59.8332 | E140: 87.873 | F140: 139.4952 | G140: 150.2052 | H140: 153.3366 | I140: 163.5774 | J140: 163.5774 | K140: 164.1894 | M140: 134 | N140: 42.2574 | O140: 47.8572 | P140: 61.4232 | Q140: 89.463 | R140: 141.0852 | S140: 151.7952 | T140: 154.9266 | U140: 187.7647714 | V140: 210.1056857 | W140: 232.4466
A141: 135 | B141: 40.9836 | C141: 46.6242 | D141: 60.2718 | E141: 88.536 | F141: 140.5356 | G141: 151.3374 | H141: 154.479 | I141: 164.8014 | J141: 164.8014 | K141: 165.4134 | M141: 135 | N141: 42.5736 | O141: 48.2142 | P141: 61.8618 | Q141: 90.126 | R141: 142.1256 | S141: 152.9274 | T141: 156.069 | U141: 189.1534286 | V141: 211.6597286 | W141: 234.1660286
A142: 136 | B142: 41.2692 | C142: 46.9608 | D142: 60.7104 | E142: 89.1786 | F142: 141.5556 | G142: 152.4594 | H142: 155.6214 | I142: 166.0254 | J142: 166.0254 | K142: 166.6578 | M142: 136 | N142: 42.8592 | O142: 48.5508 | P142: 62.3004 | Q142: 90.7686 | R142: 143.1456 | S142: 154.0494 | T142: 157.2114 | U142: 190.5406286 | V142: 213.2155929 | W142: 235.8905571
A143: 137 | B143: 41.5854 | C143: 47.3178 | D143: 61.1694 | E143: 89.8314 | F143: 142.596 | G143: 153.561 | H143: 156.7638 | I143: 167.2392 | J143: 167.2392 | K143: 167.9124 | M143: 137 | N143: 43.1754 | O143: 48.9078 | P143: 62.7594 | Q143: 91.4214 | R143: 144.186 | S143: 155.151 | T143: 158.3538 | U143: 191.9147143 | V143: 214.75215 | W143: 237.5895857
A144: 138 | B144: 41.8812 | C144: 47.6544 | D144: 61.6182 | E144: 90.5046 | F144: 143.6364 | G144: 154.6932 | H144: 157.9062 | I144: 168.4632 | J144: 168.4632 | K144: 169.1466 | M144: 138 | N144: 43.4712 | O144: 49.2444 | P144: 63.2082 | Q144: 92.0946 | R144: 145.2264 | S144: 156.2832 | T144: 159.4962 | U144: 193.3135714 | V144: 216.3196714 | W144: 239.3257714
A145: 139 | B145: 42.1974 | C145: 47.991 | D145: 62.0568 | E145: 91.1472 | F145: 144.687 | G145: 155.8152 | H145: 159.0486 | I145: 169.6872 | J145: 169.6872 | K145: 170.391 | M145: 139 | N145: 43.7874 | O145: 49.581 | P145: 63.6468 | Q145: 92.7372 | R145: 146.277 | S145: 157.4052 | T145: 160.6386 | U145: 194.7007714 | V145: 217.87335 | W145: 241.0459286
A146: 140 | B146: 42.483 | C146: 48.348 | D146: 62.5158 | E146: 91.8102 | F146: 145.7274 | G146: 156.9372 | H146: 160.2114 | I146: 170.9112 | J146: 170.9112 | K146: 171.615 | M146: 140 | N146: 44.073 | O146: 49.938 | P146: 64.1058 | Q146: 93.4002 | R146: 147.3174 | S146: 158.5272 | T146: 161.8014 | U146: 196.1054571 | V146: 219.4474286 | W146: 242.7894
A147: 141 | B147: 42.7992 | C147: 48.705 | D147: 62.9544 | E147: 92.463 | F147: 146.7678 | G147: 158.049 | H147: 161.3538 | I147: 172.125 | J147: 172.125 | K147: 172.8594 | M147: 141 | N147: 44.3892 | O147: 50.295 | P147: 64.5444 | Q147: 94.053 | R147: 148.3578 | S147: 159.639 | T147: 162.9438 | U147: 197.4839143 | V147: 220.9898143 | W147: 244.4957143
A148: 142 | B148: 43.0848 | C148: 49.0416 | D148: 63.393 | E148: 93.1056 | F148: 147.8082 | G148: 159.171 | H148: 162.5064 | I148: 173.3388 | J148: 173.3388 | K148: 174.1242 | M148: 142 | N148: 44.6748 | O148: 50.6316 | P148: 64.983 | Q148: 94.6956 | R148: 149.3982 | S148: 160.761 | T148: 164.0964 | U148: 198.8827714 | V148: 222.5591571 | W148: 246.2355429
A149: 143 | B149: 43.401 | C149: 49.3782 | D149: 63.8316 | E149: 93.7788 | F149: 148.8588 | G149: 160.3032 | H149: 163.6488 | I149: 174.5628 | J149: 174.5628 | K149: 175.3482 | M149: 143 | N149: 44.991 | O149: 50.9682 | P149: 65.4216 | Q149: 95.3688 | R149: 150.4488 | S149: 161.8932 | T149: 165.2388 | U149: 200.2787143 | V149: 224.1223071 | W149: 247.9659
A150: 144 | B150: 43.6968 | C150: 49.725 | D150: 64.3008 | E150: 94.4316 | F150: 149.8992 | G150: 161.4252 | H150: 164.781 | I150: 175.7868 | J150: 175.7868 | K150: 176.5926 | M150: 144 | N150: 45.2868 | O150: 51.315 | P150: 65.8908 | Q150: 96.0216 | R150: 151.4892 | S150: 163.0152 | T150: 166.371 | U150: 201.663 | V150: 225.6719786 | W150: 249.6809571
A151: 145 | B151: 44.013 | C151: 50.0718 | D151: 64.7394 | E151: 95.0742 | F151: 150.9294 | G151: 162.537 | H151: 165.9234 | I151: 177.0108 | J151: 177.0108 | K151: 177.8166 | M151: 145 | N151: 45.603 | O151: 51.6618 | P151: 66.3294 | Q151: 96.6642 | R151: 152.5194 | S151: 164.127 | T151: 167.5134 | U151: 203.0385429 | V151: 227.2118143 | W151: 251.3850857
A152: 146 | B152: 44.3088 | C152: 50.4288 | D152: 65.1882 | E152: 95.7372 | F152: 151.9698 | G152: 163.659 | H152: 167.0658 | I152: 178.2246 | J152: 178.2246 | K152: 179.0712 | M152: 146 | N152: 45.8988 | O152: 52.0188 | P152: 66.7782 | Q152: 97.3272 | R152: 153.5598 | S152: 165.249 | T152: 168.6558 | U152: 179.8146 | V152: 179.8146 | W152: 180.6612
A153: 147 | B153: 44.6148 | C153: 50.7654 | D153: 65.637 | E153: 96.4002 | F153: 153 | G153: 164.781 | H153: 168.2082 | I153: 179.4588 | J153: 179.4588 | K153: 180.3258 | M153: 147 | N153: 46.2048 | O153: 52.3554 | P153: 67.227 | Q153: 97.9902 | R153: 154.59 | S153: 166.371 | T153: 169.7982 | U153: 181.0488 | V153: 181.0488 | W153: 181.9158
A154: 148 | B154: 44.9106 | C154: 51.102 | D154: 66.0756 | E154: 97.0326 | F154: 154.0608 | G154: 165.9132 | H154: 169.3506 | I154: 180.6726 | J154: 180.6726 | K154: 181.5498 | M154: 148 | N154: 46.5006 | O154: 52.692 | P154: 67.6656 | Q154: 98.6226 | R154: 155.6508 | S154: 167.5032 | T154: 170.9406 | U154: 182.2626 | V154: 182.2626 | W154: 183.1398
A155: 149 | B155: 45.2166 | C155: 51.459 | D155: 66.5244 | E155: 97.7058 | F155: 155.1012 | G155: 167.0352 | H155: 170.5134 | I155: 181.8864 | J155: 181.8864 | K155: 182.7942 | M155: 149 | N155: 46.8066 | O155: 53.049 | P155: 68.1144 | Q155: 99.2958 | R155: 156.6912 | S155: 168.6252 | T155: 172.1034 | U155: 183.4764 | V155: 183.4764 | W155: 184.3842
A156: 150 | B156: 45.5226 | C156: 51.7956 | D156: 66.9834 | E156: 98.3688 | F156: 156.1314 | G156: 168.1368 | H156: 171.6558 | I156: 183.1104 | J156: 183.1104 | K156: 184.0284 | M156: 150 | N156: 47.1126 | O156: 53.3856 | P156: 68.5734 | Q156: 99.9588 | R156: 157.7214 | S156: 169.7268 | T156: 173.2458 | U156: 184.7004 | V156: 184.7004 | W156: 185.6184

Sheet 2DA AM Multi (hidden)
A1: UPS Second Day Air AM Service
A2: - Commercial
A3: (Per Package Rates from 48 State Origin)
A4: -Second Day Air A.M. does not have a Residential option
A5: Lbs. | B5: 2 | C5: 3 | D5: 4 | E5: 5 | F5: 6 | G5: 7 | H5: 8
A6: 0.5 | B6: 5.6406 | C6: 5.6406 | D6: 5.6406 | E6: 6.2628 | F6: 7.752 | G6: 8.0784 | H6: 8.16
A7: 1 | B7: 5.6916 | C7: 5.6916 | D7: 5.6916 | E7: 5.6916 | F7: 6.9054 | G7: 7.2216 | H7: 7.3338
A8: 2 | B8: 5.6916 | C8: 5.6916 | D8: 5.6916 | E8: 5.8548 | F8: 7.6296 | G8: 8.2926 | H8: 8.6598
A9: 3 | B9: 5.6916 | C9: 5.6916 | D9: 5.6916 | E9: 6.4362 | F9: 8.7618 | G9: 9.6084 | H9: 9.945
A10: 4 | B10: 5.6916 | C10: 5.6916 | D10: 5.6916 | E10: 7.4868 | F10: 10.1184 | G10: 10.9752 | H10: 11.322
A11: 5 | B11: 5.6916 | C11: 5.6916 | D11: 6.12 | E11: 8.2926 | F11: 11.2914 | G11: 12.189 | H11: 12.8724
A12: 6 | B12: 5.6916 | C12: 5.6916 | D12: 6.6402 | E12: 9.0474 | F12: 12.5562 | G12: 13.5456 | H12: 14.1066
A13: 7 | B13: 5.6916 | C13: 5.9466 | D13: 7.2216 | E13: 9.8838 | F13: 14.1066 | G13: 15.0246 | H13: 15.504
A14: 8 | B14: 5.6916 | C14: 6.4872 | D14: 7.7316 | E14: 10.7814 | F14: 15.5856 | G14: 16.5546 | H14: 17.0544
A15: 9 | B15: 5.8548 | C15: 6.7524 | D15: 8.3334 | E15: 11.5668 | F15: 16.932 | G15: 18.1458 | H15: 18.7374
A16: 10 | B16: 6.0996 | C16: 7.1706 | D16: 8.976 | E16: 12.342 | F16: 18.0948 | G16: 19.737 | H16: 20.2674
A17: 11 | B17: 6.375 | C17: 7.5582 | D17: 9.384 | E17: 13.2192 | F17: 19.5432 | G17: 21.165 | H17: 21.93
A18: 12 | B18: 6.7116 | C18: 8.007 | D18: 9.9042 | E18: 13.9434 | F18: 21.0426 | G18: 22.6746 | H18: 23.4396
A19: 13 | B19: 7.1706 | C19: 8.415 | D19: 10.2714 | E19: 14.8002 | F19: 22.3992 | G19: 23.7762 | H19: 24.786
A20: 14 | B20: 7.5174 | C20: 8.8536 | D20: 10.9344 | E20: 15.6264 | F20: 23.7762 | G20: 25.0002 | H20: 25.8978
A21: 15 | B21: 7.803 | C21: 9.0678 | D21: 11.4648 | E21: 16.2486 | F21: 25.0002 | G21: 26.1324 | H21: 27.0708
A22: 16 | B22: 8.007 | C22: 9.3636 | D22: 11.9748 | E22: 16.779 | F22: 26.1324 | G22: 27.4584 | H22: 28.2132
A23: 17 | B23: 8.262 | C23: 9.6696 | D23: 12.4848 | E23: 17.544 | F23: 27.3156 | G23: 28.9272 | H23: 29.5392
A24: 18 | B24: 8.5476 | C24: 9.9756 | D24: 12.954 | E24: 18.1764 | F24: 28.4376 | G24: 30.2022 | H24: 31.2936
A25: 19 | B25: 8.8536 | C25: 10.251 | D25: 13.3212 | E25: 18.921 | F25: 29.4882 | G25: 31.6098 | H25: 32.3136
A26: 20 | B26: 9.18 | C26: 10.6794 | D26: 13.821 | E26: 19.7982 | F26: 30.5082 | G26: 32.6604 | H26: 33.4866
A27: 21 | B27: 9.6084 | C27: 11.118 | D27: 14.3616 | E27: 20.4408 | F27: 31.6098 | G27: 33.7926 | H27: 35.0472
A28: 22 | B28: 9.8838 | C28: 11.6382 | D28: 14.7594 | E28: 21.0222 | F28: 32.6298 | G28: 35.0778 | H28: 36.3426
A29: 23 | B29: 10.1388 | C29: 11.9034 | D29: 15.249 | E29: 21.624 | F29: 33.7926 | G29: 36.2202 | H29: 37.7094
A30: 24 | B30: 10.3632 | C30: 12.342 | D30: 15.7386 | E30: 22.4604 | F30: 35.0268 | G30: 37.6278 | H30: 39.0456
A31: 25 | B31: 10.6794 | C31: 12.7092 | D31: 16.065 | E31: 23.2458 | F31: 36.1692 | G31: 38.9946 | H31: 40.3614
A32: 26 | B32: 11.0058 | C32: 13.056 | D32: 16.6566 | E32: 23.9802 | F32: 37.3932 | G32: 40.29 | H32: 41.463
A33: 27 | B33: 11.373 | C33: 13.413 | D33: 17.0952 | E33: 24.8472 | F33: 38.658 | G33: 41.6568 | H33: 42.7788
A34: 28 | B34: 11.7096 | C34: 13.8822 | D34: 17.442 | E34: 25.4388 | F34: 39.6372 | G34: 42.7074 | H34: 43.8294
A35: 29 | B35: 12.0666 | C35: 14.127 | D35: 17.9826 | E35: 26.0202 | F35: 40.7082 | G35: 43.8294 | H35: 45.1146
A36: 30 | B36: 12.2706 | C36: 14.5044 | D36: 18.6048 | E36: 26.877 | F36: 41.8098 | G36: 44.982 | H36: 46.2468
A37: 31 | B37: 12.6276 | C37: 14.9736 | D37: 19.125 | E37: 27.4686 | F37: 42.7788 | G37: 45.9612 | H37: 47.481
A38: 32 | B38: 12.8214 | C38: 15.3204 | D38: 19.6554 | E38: 28.1418 | F38: 44.0028 | G38: 47.226 | H38: 48.6336
A39: 33 | B39: 13.1682 | C39: 15.708 | D39: 20.1756 | E39: 28.7334 | F39: 45.1962 | G39: 48.3174 | H39: 49.8576
A40: 34 | B40: 13.6068 | C40: 16.0038 | D40: 20.6346 | E40: 29.7534 | F40: 46.5834 | G40: 49.4904 | H40: 51.102
A41: 35 | B41: 13.872 | C41: 16.4832 | D41: 21.0732 | E41: 30.3348 | F41: 47.9706 | G41: 50.7552 | H41: 52.3566
A42: 36 | B42: 14.0556 | C42: 16.8606 | D42: 21.4812 | E42: 30.9468 | F42: 49.2762 | G42: 52.3566 | H42: 53.6826
A43: 37 | B43: 14.3208 | C43: 17.1156 | D43: 22.0014 | E43: 31.7526 | F43: 50.6022 | G43: 53.754 | H43: 55.1004
A44: 38 | B44: 14.586 | C44: 17.391 | D44: 22.5828 | E44: 32.3952 | F44: 51.8976 | G44: 55.1616 | H44: 56.61
A45: 39 | B45: 15.0246 | C45: 17.8194 | D45: 22.9602 | E45: 33.0276 | F45: 53.1318 | G45: 56.61 | H45: 58.0788
A46: 40 | B46: 15.4326 | C46: 18.2886 | D46: 23.4906 | E46: 33.7926 | F46: 54.366 | G46: 57.9972 | H46: 59.3844
A47: 41 | B47: 15.8304 | C47: 18.7272 | D47: 23.7558 | E47: 34.425 | F47: 55.5594 | G47: 59.4864 | H47: 60.996
A48: 42 | B48: 16.065 | C48: 19.1658 | D48: 24.225 | E48: 35.1186 | F48: 56.7528 | G48: 60.996 | H48: 62.5158
A49: 43 | B49: 16.4118 | C49: 19.584 | D49: 24.6126 | E49: 35.6898 | F49: 58.0788 | G49: 62.118 | H49: 63.801
A50: 44 | B50: 16.728 | C50: 19.8492 | D50: 25.143 | E50: 36.3426 | F50: 59.2212 | G50: 63.1686 | H50: 65.0658
A51: 45 | B51: 17.0952 | C51: 20.298 | D51: 25.5102 | E51: 36.8526 | F51: 60.2718 | G51: 64.3212 | H51: 66.0246
A52: 46 | B52: 17.2686 | C52: 20.5326 | D52: 26.0406 | E52: 37.434 | F52: 61.3224 | G52: 65.3616 | H52: 67.6362
A53: 47 | B53: 17.6562 | C53: 20.9304 | D53: 26.5098 | E53: 37.9542 | F53: 62.5158 | G53: 66.3918 | H53: 68.9418
A54: 48 | B54: 17.9826 | C54: 21.42 | D54: 26.9688 | E54: 38.505 | F54: 63.6174 | G54: 67.5342 | H54: 70.074
A55: 49 | B55: 18.3396 | C55: 21.93 | D55: 27.4176 | E55: 39.168 | F55: 64.6884 | G55: 68.493 | H55: 71.4204
A56: 50 | B56: 18.615 | C56: 22.2156 | D56: 27.8562 | E56: 39.8412 | F56: 65.8002 | G56: 69.5334 | H56: 72.5424
A57: 51 | B57: 18.8802 | C57: 22.4604 | D57: 28.3254 | E57: 40.4226 | F57: 66.9018 | G57: 70.8288 | H57: 73.8072
A58: 52 | B58: 19.125 | C58: 22.797 | D58: 28.8456 | E58: 41.3814 | F58: 67.9014 | G58: 72.114 | H58: 75.1026
A59: 53 | B59: 19.482 | C59: 23.2458 | D59: 29.2434 | E59: 41.9934 | F59: 68.9418 | G59: 73.389 | H59: 76.0206
A60: 54 | B60: 19.7574 | C60: 23.6334 | D60: 29.682 | E60: 42.6564 | F60: 70.074 | G60: 74.8272 | H60: 77.163
A61: 55 | B61: 20.145 | C61: 24.0312 | D61: 30.0492 | E61: 43.4316 | F61: 71.3388 | G61: 76.2654 | H61: 78.3156
A62: 56 | B62: 20.4306 | C62: 24.3372 | D62: 30.4776 | E62: 44.115 | F62: 72.42 | G62: 77.4588 | H62: 79.713
A63: 57 | B63: 20.6856 | C63: 24.735 | D63: 30.9672 | E63: 44.727 | F63: 73.6848 | G63: 78.7338 | H63: 81.192
A64: 58 | B64: 21.0732 | C64: 25.143 | D64: 31.5282 | E64: 45.4614 | F64: 75.1026 | G64: 80.0802 | H64: 82.4364
A65: 59 | B65: 21.3384 | C65: 25.4388 | D65: 32.1198 | E65: 46.2876 | F65: 76.4898 | G65: 81.3858 | H65: 83.7522
A66: 60 | B66: 21.5322 | C66: 25.704 | D66: 32.6298 | E66: 46.9404 | F66: 77.8362 | G66: 82.7832 | H66: 84.8028
A67: 61 | B67: 21.93 | C67: 26.0406 | D67: 33.0684 | E67: 47.532 | F67: 78.999 | G67: 83.7216 | H67: 86.19
A68: 62 | B68: 22.338 | C68: 26.5506 | D68: 33.4662 | E68: 48.3174 | F68: 80.0802 | G68: 85.1496 | H68: 87.6996
A69: 63 | B69: 22.6746 | C69: 26.9688 | D69: 33.9048 | E69: 48.9498 | F69: 81.2634 | G69: 86.5368 | H69: 89.3724
A70: 64 | B70: 23.0928 | C70: 27.3666 | D70: 34.2924 | E70: 49.6128 | F70: 82.4568 | G70: 87.9546 | H70: 90.5352
A71: 65 | B71: 23.4396 | C71: 27.7848 | D71: 34.8228 | E71: 50.3676 | F71: 83.6808 | G71: 89.4132 | H71: 92.0958
A72: 66 | B72: 23.7354 | C72: 28.05 | D72: 35.292 | E72: 51.1734 | F72: 85.0476 | G72: 90.5352 | H72: 93.7482
A73: 67 | B73: 23.9496 | C73: 28.5906 | D73: 35.853 | E73: 52.0098 | F73: 86.0982 | G73: 91.8714 | H73: 95.0946
A74: 68 | B74: 24.225 | C74: 28.8456 | D74: 36.3426 | E74: 52.8972 | F74: 87.2508 | G74: 93.0954 | H74: 96.3084
A75: 69 | B75: 24.633 | C75: 29.2638 | D75: 36.822 | E75: 53.8764 | F75: 88.3626 | G75: 94.3704 | H75: 97.9914
A76: 70 | B76: 25.0002 | C76: 29.7024 | D76: 37.3932 | E76: 54.8046 | F76: 89.4132 | G76: 95.5434 | H76: 99.0726
A77: 71 | B77: 25.3368 | C77: 30.1002 | D77: 37.9032 | E77: 55.5594 | F77: 90.6168 | G77: 96.6348 | H77: 100.3884
A78: 72 | B78: 25.6428 | C78: 30.6612 | D78: 38.3724 | E78: 56.3958 | F78: 91.8714 | G78: 98.022 | H78: 101.898
A79: 73 | B79: 25.8774 | C79: 30.906 | D79: 38.9334 | E79: 57.3444 | F79: 93.1668 | G79: 99.3684 | H79: 103.0404
A80: 74 | B80: 26.2446 | C80: 31.2936 | D80: 39.4638 | E80: 58.0788 | F80: 94.4214 | G80: 100.878 | H80: 104.601
A81: 75 | B81: 26.6118 | C81: 31.7832 | D81: 39.9126 | E81: 58.8744 | F81: 95.7066 | G81: 102.2244 | H81: 105.9984
A82: 76 | B82: 26.8974 | C82: 32.1402 | D82: 40.3818 | E82: 59.5578 | F82: 96.2472 | G82: 103.7034 | H82: 107.1408
A83: 77 | B83: 27.3666 | C83: 32.5584 | D83: 40.8918 | E83: 60.3126 | F83: 98.3178 | G83: 104.907 | H83: 108.4362
A84: 78 | B84: 27.6114 | C84: 32.8338 | D84: 41.4834 | E84: 61.1898 | F84: 98.3382 | G84: 106.2432 | H84: 109.3236
A85: 79 | B85: 27.948 | C85: 33.2418 | D85: 42.0444 | E85: 62.0772 | F85: 100.9494 | G85: 107.457 | H85: 111.1494
A86: 80 | B86: 28.3764 | C86: 33.6498 | D86: 42.6564 | E86: 62.8728 | F86: 102.2244 | G86: 108.8034 | H86: 111.1698
A87: 81 | B87: 28.6314 | C87: 34.0068 | D87: 42.6666 | E87: 62.8932 | F87: 102.2448 | G87: 108.8238 | H87: 111.1902
A88: 82 | B88: 28.9578 | C88: 34.4454 | D88: 43.605 | E88: 64.4844 | F88: 104.5806 | G88: 111.537 | H88: 115.1886
A89: 83 | B89: 29.1516 | C89: 34.8432 | D89: 44.166 | E89: 64.5252 | F89: 105.774 | G89: 111.9552 | H89: 116.5554
A90: 84 | B90: 29.5188 | C90: 35.292 | D90: 44.5536 | E90: 65.6268 | F90: 105.8046 | G90: 114.5358 | H90: 117.6978
A91: 85 | B91: 29.8758 | C91: 35.7612 | D91: 45.0024 | E91: 66.6774 | F91: 108.1506 | G91: 116.0658 | H91: 118.9524
A92: 86 | B92: 30.294 | C92: 35.7816 | D92: 45.5328 | E92: 67.4628 | F92: 108.171 | G92: 117.5652 | H92: 120.3396
A93: 87 | B93: 30.5082 | C93: 36.5058 | D93: 46.0326 | E93: 68.2176 | F93: 108.1914 | G93: 117.5856 | H93: 121.533
A94: 88 | B94: 30.7836 | C94: 36.9444 | D94: 46.5834 | E94: 68.85 | F94: 108.2016 | G94: 117.606 | H94: 121.5636
A95: 89 | B95: 31.1202 | C95: 37.179 | D95: 47.0322 | E95: 69.5028 | F95: 108.222 | G95: 117.6264 | H95: 121.584
A96: 90 | B96: 31.6404 | C96: 37.5564 | D96: 47.5014 | E96: 70.2168 | F96: 112.7814 | G96: 123.1752 | H96: 125.7558
A97: 91 | B97: 32.0892 | C97: 38.0256 | D97: 47.5116 | E97: 71.1144 | F97: 112.8018 | G97: 124.7256 | H97: 127.1124
A98: 92 | B98: 32.487 | C98: 38.4132 | D98: 48.4908 | E98: 71.1348 | F98: 112.8426 | G98: 124.7358 | H98: 128.3874
A99: 93 | B99: 32.7624 | C99: 38.9946 | D99: 48.5112 | E99: 71.1654 | F99: 112.8528 | G99: 124.7562 | H99: 128.418
A100: 94 | B100: 33.0276 | C100: 39.0048 | D100: 49.0518 | E100: 71.1858 | F100: 112.8732 | G100: 128.5812 | H100: 129.6828
A101: 95 | B101: 33.303 | C101: 39.0252 | D101: 50.0718 | E101: 71.2164 | F101: 112.8936 | G101: 128.6118 | H101: 132.192
A102: 96 | B102: 33.558 | C102: 39.4638 | D102: 50.49 | E102: 71.6244 | F102: 113.832 | G102: 128.6322 | H102: 133.5894
A103: 97 | B103: 33.9048 | C103: 39.4842 | D103: 50.5104 | E103: 75.0006 | F103: 122.4102 | G103: 128.6526 | H103: 134.283
A104: 98 | B104: 34.1904 | C104: 39.5148 | D104: 51.0714 | E104: 75.021 | F104: 122.4204 | G104: 133.7322 | H104: 134.2932
A105: 99 | B105: 34.4862 | C105: 39.933 | D105: 51.102 | E105: 75.072 | F105: 122.4408 | G105: 133.7526 | H105: 134.334
A106: 100 | B106: 34.7514 | C106: 39.9534 | D106: 51.1224 | E106: 75.0822 | F106: 124.5828 | G106: 134.1504 | H106: 136.9656
A107: 101 | B107: 35.0982 | C107: 40.341 | D107: 51.6324 | E107: 75.8064 | F107: 125.8068 | G107: 135.4764 | H107: 138.3222
A108: 102 | B108: 35.4348 | C108: 40.3614 | D108: 52.1424 | E108: 76.5612 | F108: 127.0716 | G108: 136.833 | H108: 139.6992
A109: 103 | B109: 35.7816 | C109: 40.7286 | D109: 52.6626 | E109: 77.3262 | F109: 128.3058 | G109: 138.1692 | H109: 141.0558
A110: 104 | B110: 36.1488 | C110: 41.1264 | D110: 53.1522 | E110: 78.0708 | F110: 129.5604 | G110: 139.5156 | H110: 142.4328
A111: 105 | B111: 36.465 | C111: 41.5038 | D111: 53.6622 | E111: 78.8052 | F111: 130.7844 | G111: 140.8722 | H111: 143.7792
A112: 106 | B112: 36.8322 | C112: 41.9016 | D112: 54.1926 | E112: 79.5804 | F112: 132.039 | G112: 142.1982 | H112: 145.1664
A113: 107 | B113: 37.179 | C113: 42.2994 | D113: 54.6822 | E113: 80.3148 | F113: 133.3038 | G113: 143.5344 | H113: 146.523
A114: 108 | B114: 37.5156 | C114: 42.7074 | D114: 55.1922 | E114: 81.0696 | F114: 134.538 | G114: 144.9012 | H114: 147.9
A115: 109 | B115: 37.8726 | C115: 43.095 | D115: 55.7022 | E115: 81.8346 | F115: 135.7824 | G115: 146.2374 | H115: 149.2566
A116: 110 | B116: 38.2296 | C116: 43.4826 | D116: 56.2224 | E116: 82.5588 | F116: 137.0166 | G116: 147.5532 | H116: 150.654
A117: 111 | B117: 38.556 | C117: 43.8804 | D117: 56.7324 | E117: 83.3238 | F117: 138.2814 | G117: 148.8996 | H117: 152.0106
A118: 112 | B118: 38.9232 | C118: 44.2782 | D118: 57.2424 | E118: 84.0786 | F118: 139.5156 | G118: 150.2562 | H118: 153.3876
A119: 113 | B119: 39.2598 | C119: 44.676 | D119: 57.7728 | E119: 84.8436 | F119: 140.76 | G119: 151.5924 | H119: 154.7442
A120: 114 | B120: 39.6066 | C120: 45.0534 | D120: 58.2726 | E120: 85.5678 | F120: 141.9942 | G120: 152.9184 | H120: 156.1212
A121: 115 | B121: 39.9534 | C121: 45.4614 | D121: 58.7826 | E121: 86.3226 | F121: 143.2386 | G121: 154.275 | H121: 157.4778
A122: 116 | B122: 40.3104 | C122: 45.849 | D122: 59.313 | E122: 87.0876 | F122: 144.5136 | G122: 155.6112 | H122: 158.8548
A123: 117 | B123: 40.6368 | C123: 46.2468 | D123: 59.8026 | E123: 87.8322 | F123: 145.7478 | G123: 156.9474 | H123: 160.2114
A124: 118 | B124: 41.004 | C124: 46.665 | D124: 60.3126 | E124: 88.5768 | F124: 146.9922 | G124: 158.3142 | H124: 161.5884
A125: 119 | B125: 41.3406 | C125: 47.0322 | D125: 60.8124 | E125: 89.3316 | F125: 148.2264 | G125: 159.63 | H125: 162.945
A126: 120 | B126: 41.6874 | C126: 47.4402 | D126: 61.3428 | E126: 90.0762 | F126: 149.4912 | G126: 160.9764 | H126: 164.3424
A127: 121 | B127: 42.024 | C127: 47.8482 | D127: 61.8426 | E127: 90.831 | F127: 150.7254 | G127: 162.3126 | H127: 165.699
A128: 122 | B128: 42.3912 | C128: 48.246 | D128: 62.3424 | E128: 91.5858 | F128: 151.9698 | G128: 163.6794 | H128: 167.076
A129: 123 | B129: 42.7278 | C129: 48.6336 | D129: 62.8728 | E129: 92.3202 | F129: 153.2244 | G129: 164.9952 | H129: 168.4326
A130: 124 | B130: 43.0746 | C130: 49.0212 | D130: 63.3828 | E130: 93.075 | F130: 154.4586 | G130: 166.3314 | H130: 169.8096
A131: 125 | B131: 43.4316 | C131: 49.419 | D131: 63.8928 | E131: 93.8502 | F131: 155.7234 | G131: 167.6982 | H131: 171.1662
A132: 126 | B132: 43.7784 | C132: 49.827 | D132: 64.3926 | E132: 94.5642 | F132: 156.9474 | G132: 169.0242 | H132: 172.5534
A133: 127 | B133: 44.1252 | C133: 50.2146 | D133: 64.923 | E133: 95.3292 | F133: 158.202 | G133: 170.3706 | H133: 173.8998
A134: 128 | B134: 44.4822 | C134: 50.6124 | D134: 65.433 | E134: 96.0942 | F134: 159.4362 | G134: 171.6966 | H134: 175.287
A135: 129 | B135: 44.829 | C135: 51 | D135: 65.9226 | E135: 96.8286 | F135: 160.6806 | G135: 173.0532 | H135: 176.6334
A136: 130 | B136: 45.1656 | C136: 51.3876 | D136: 66.4428 | E136: 97.5732 | F136: 161.9556 | G136: 174.3894 | H136: 178.041
A137: 131 | B137: 45.5328 | C137: 51.7956 | D137: 66.9528 | E137: 98.3382 | F137: 163.1898 | G137: 175.7358 | H137: 179.4078
A138: 132 | B138: 45.849 | C138: 52.1934 | D138: 67.4628 | E138: 99.0726 | F138: 164.4342 | G138: 177.072 | H138: 180.7746
A139: 133 | B139: 46.2162 | C139: 52.5708 | D139: 67.983 | E139: 99.8376 | F139: 165.6582 | G139: 178.4082 | H139: 182.1414
A140: 134 | B140: 46.563 | C140: 52.9686 | D140: 68.493 | E140: 100.6026 | F140: 166.9332 | G140: 179.7546 | H140: 183.5082
A141: 135 | B141: 46.8996 | C141: 53.3664 | D141: 68.9928 | E141: 101.337 | F141: 168.1674 | G141: 181.1112 | H141: 184.875
A142: 136 | B142: 47.2464 | C142: 53.7642 | D142: 69.5028 | E142: 102.0816 | F142: 169.4118 | G142: 182.4576 | H142: 186.2418
A143: 137 | B143: 47.6136 | C143: 54.1722 | D143: 70.023 | E143: 102.8466 | F143: 170.646 | G143: 183.7734 | H143: 187.6086
A144: 138 | B144: 47.9298 | C144: 54.5394 | D144: 70.533 | E144: 103.6014 | F144: 171.9006 | G144: 185.1198 | H144: 188.9754
A145: 139 | B145: 48.297 | C145: 54.9474 | D145: 71.043 | E145: 104.3358 | F145: 173.1654 | G145: 186.4764 | H145: 190.3422
A146: 140 | B146: 48.6336 | C146: 55.3452 | D146: 71.5632 | E146: 105.0906 | F146: 174.3894 | G146: 187.8126 | H146: 191.7294
A147: 141 | B147: 48.9804 | C147: 55.7328 | D147: 72.0732 | E147: 105.8454 | F147: 175.644 | G147: 189.1386 | H147: 193.0962
A148: 142 | B148: 49.3374 | C148: 56.1408 | D148: 72.5628 | E148: 106.59 | F148: 176.8782 | G148: 190.485 | H148: 194.463
A149: 143 | B149: 49.6842 | C149: 56.5182 | D149: 73.0728 | E149: 107.3346 | F149: 178.143 | G149: 191.8314 | H149: 195.8298
A150: 144 | B150: 50.0208 | C150: 56.9262 | D150: 73.6032 | E150: 108.0996 | F150: 179.367 | G150: 193.1676 | H150: 197.1966
A151: 145 | B151: 50.388 | C151: 57.3138 | D151: 74.103 | E151: 108.834 | F151: 180.6216 | G151: 194.514 | H151: 198.5736
A152: 146 | B152: 50.7246 | C152: 57.7116 | D152: 74.613 | E152: 109.599 | F152: 181.8558 | G152: 195.8502 | H152: 199.9302
A153: 147 | B153: 51.0714 | C153: 58.1298 | D153: 75.1434 | E153: 110.3436 | F153: 183.1002 | G153: 197.1966 | H153: 201.3072
A154: 148 | B154: 51.408 | C154: 58.4868 | D154: 75.6432 | E154: 111.078 | F154: 184.365 | G154: 198.5532 | H154: 202.6638
A155: 149 | B155: 51.7752 | C155: 58.905 | D155: 76.143 | E155: 111.843 | F155: 185.6094 | G155: 199.8996 | H155: 204.051
A156: 150 | B156: 51.28780612 | C156: 58.80613439 | D156: 75.88758105 | E156: 111.7136804 | F156: 185.1495438 | G156: 199.7425246 | H156: 204.0737266

Sheet 3DS Multi (hidden)
J1: Residential Surcharge | P1: 1.59
A2: UPS Three Day Select Service | J2: UPS Three Day Select Service
A3: - Commercial | J3: - Residential
A4: (Per Package Rates from 48 State Origin) | J4: (Per Package Rates from 48 State Origin)
A5: Rates below do not include Residential Surcharge | J5: Rates Include Residential Surcharge
A6: Lbs. | B6: 2 | C6: 3 | D6: 4 | E6: 5 | F6: 6 | G6: 7 | H6: 8 | J6: Lbs. | K6: 2 | L6: 3 | M6: 4 | N6: 5 | O6: 6 | P6: 7 | Q6: 8
A7: 1 | B7: 4.794 | C7: 4.794 | D7: 4.794 | E7: 4.794 | F7: 5.1204 | G7: 5.7528 | H7: 5.9466 | J7: 1 | K7: 6.384 | L7: 6.384 | M7: 6.384 | N7: 6.384 | O7: 6.7104 | P7: 7.3428 | Q7: 7.5366
A8: 2 | B8: 4.794 | C8: 4.794 | D8: 4.794 | E8: 4.794 | F8: 5.9466 | G8: 6.426 | H8: 6.9462 | J8: 2 | K8: 6.384 | L8: 6.384 | M8: 6.384 | N8: 6.384 | O8: 7.5366 | P8: 8.016 | Q8: 8.5362
A9: 3 | B9: 4.794 | C9: 4.794 | D9: 4.794 | E9: 4.998 | F9: 6.7422 | G9: 7.3134 | H9: 7.9254 | J9: 3 | K9: 6.384 | L9: 6.384 | M9: 6.384 | N9: 6.588 | O9: 8.3322 | P9: 8.9034 | Q9: 9.5154
A10: 4 | B10: 4.794 | C10: 4.794 | D10: 4.794 | E10: 5.5794 | F10: 7.5276 | G10: 8.2722 | H10: 8.823 | J10: 4 | K10: 6.384 | L10: 6.384 | M10: 6.384 | N10: 7.1694 | O10: 9.1176 | P10: 9.8622 | Q10: 10.413
A11: 5 | B11: 4.794 | C11: 4.794 | D11: 5.1204 | E11: 6.1302 | F11: 8.2722 | G11: 9.1698 | H11: 9.6798 | J11: 5 | K11: 6.384 | L11: 6.384 | M11: 6.7104 | N11: 7.7202 | O11: 9.8622 | P11: 10.7598 | Q11: 11.2698
A12: 6 | B12: 4.794 | C12: 4.845 | D12: 5.508 | E12: 6.681 | F12: 8.9454 | G12: 10.0776 | H12: 10.6896 | J12: 6 | K12: 6.384 | L12: 6.435 | M12: 7.098 | N12: 8.271 | O12: 10.5354 | P12: 11.6676 | Q12: 12.2796
A13: 7 | B13: 4.794 | C13: 5.2428 | D13: 5.9874 | E13: 7.1604 | F13: 9.6798 | G13: 10.8324 | H13: 11.6994 | J13: 7 | K13: 6.384 | L13: 6.8328 | M13: 7.5774 | N13: 8.7504 | O13: 11.2698 | P13: 12.4224 | Q13: 13.2894
A14: 8 | B14: 4.794 | C14: 5.6712 | D14: 6.4464 | E14: 7.6602 | F14: 10.4754 | G14: 11.6994 | H14: 12.801 | J14: 8 | K14: 6.384 | L14: 7.2612 | M14: 8.0364 | N14: 9.2502 | O14: 12.0654 | P14: 13.2894 | Q14: 14.391
A15: 9 | B15: 4.794 | C15: 5.9874 | D15: 6.834 | E15: 8.16 | F15: 11.1996 | G15: 12.4848 | H15: 13.719 | J15: 9 | K15: 6.384 | L15: 7.5774 | M15: 8.424 | N15: 9.75 | O15: 12.7896 | P15: 14.0748 | Q15: 15.309
A16: 10 | B16: 5.049 | C16: 6.3342 | D16: 7.2624 | E16: 8.7108 | F16: 11.8116 | G16: 13.3314 | H16: 14.7798 | J16: 10 | K16: 6.639 | L16: 7.9242 | M16: 8.8524 | N16: 10.3008 | O16: 13.4016 | P16: 14.9214 | Q16: 16.3698
A17: 11 | B17: 5.2836 | C17: 6.681 | D17: 7.6602 | E17: 9.129 | F17: 12.5562 | G17: 14.127 | H17: 15.6264 | J17: 11 | K17: 6.8736 | L17: 8.271 | M17: 9.2502 | N17: 10.719 | O17: 14.1462 | P17: 15.717 | Q17: 17.2164
A18: 12 | B18: 5.559 | C18: 7.0278 | D18: 8.0988 | E18: 9.5982 | F18: 13.3926 | G18: 14.8818 | H18: 16.575 | J18: 12 | K18: 7.149 | L18: 8.6178 | M18: 9.6888 | N18: 11.1882 | O18: 14.9826 | P18: 16.4718 | Q18: 18.165
A19: 13 | B19: 5.814 | C19: 7.3338 | D19: 8.5068 | E19: 10.149 | F19: 14.1474 | G19: 15.8508 | H19: 17.5338 | J19: 13 | K19: 7.404 | L19: 8.9238 | M19: 10.0968 | N19: 11.739 | O19: 15.7374 | P19: 17.4408 | Q19: 19.1238
A20: 14 | B20: 6.0078 | C20: 7.6806 | D20: 8.9454 | E20: 10.6488 | F20: 14.8818 | G20: 16.6872 | H20: 18.4518 | J20: 14 | K20: 7.5978 | L20: 9.2706 | M20: 10.5354 | N20: 12.2388 | O20: 16.4718 | P20: 18.2772 | Q20: 20.0418
A21: 15 | B21: 6.3342 | C21: 8.007 | D21: 9.3432 | E21: 11.1792 | F21: 15.6876 | G21: 17.493 | H21: 19.4922 | J21: 15 | K21: 7.9242 | L21: 9.597 | M21: 10.9332 | N21: 12.7692 | O21: 17.2776 | P21: 19.083 | Q21: 21.0822
A22: 16 | B22: 6.4668 | C22: 8.1192 | D22: 9.537 | E22: 11.6994 | F22: 16.3302 | G22: 18.309 | H22: 20.4306 | J22: 16 | K22: 8.0568 | L22: 9.7092 | M22: 11.127 | N22: 13.2894 | O22: 17.9202 | P22: 19.899 | Q22: 22.0206
A23: 17 | B23: 6.681 | C23: 8.4048 | D23: 9.945 | E23: 12.1992 | F23: 16.9218 | G23: 19.0026 | H23: 21.267 | J23: 17 | K23: 8.271 | L23: 9.9948 | M23: 11.535 | N23: 13.7892 | O23: 18.5118 | P23: 20.5926 | Q23: 22.857
A24: 18 | B24: 6.9258 | C24: 8.7108 | D24: 10.3122 | E24: 12.7092 | F24: 17.493 | G24: 19.737 | H24: 22.0014 | J24: 18 | K24: 8.5158 | L24: 10.3008 | M24: 11.9022 | N24: 14.2992 | O24: 19.083 | P24: 21.327 | Q24: 23.5914
A25: 19 | B25: 7.1094 | C25: 8.9862 | D25: 10.6692 | E25: 13.2294 | F25: 18.1356 | G25: 20.4816 | H25: 22.7664 | J25: 19 | K25: 8.6994 | L25: 10.5762 | M25: 12.2592 | N25: 14.8194 | O25: 19.7256 | P25: 22.0716 | Q25: 24.3564
A26: 20 | B26: 7.395 | C26: 9.282 | D26: 11.1792 | E26: 13.668 | F26: 18.768 | G26: 21.2874 | H26: 23.664 | J26: 20 | K26: 8.985 | L26: 10.872 | M26: 12.7692 | N26: 15.258 | O26: 20.358 | P26: 22.8774 | Q26: 25.254
A27: 21 | B27: 7.599 | C27: 9.5064 | D27: 11.526 | E27: 14.1066 | F27: 19.278 | G27: 22.1034 | H27: 24.4596 | J27: 21 | K27: 9.189 | L27: 11.0964 | M27: 13.116 | N27: 15.6966 | O27: 20.868 | P27: 23.6934 | Q27: 26.0496
A28: 22 | B28: 7.7724 | C28: 9.8328 | D28: 11.9136 | E28: 14.6574 | F28: 19.9716 | G28: 22.8378 | H28: 25.3572 | J28: 22 | K28: 9.3624 | L28: 11.4228 | M28: 13.5036 | N28: 16.2474 | O28: 21.5616 | P28: 24.4278 | Q28: 26.9472
A29: 23 | B29: 8.0784 | C29: 10.098 | D29: 12.4032 | E29: 15.1776 | F29: 20.6346 | G29: 23.5926 | H29: 26.2038 | J29: 23 | K29: 9.6684 | L29: 11.688 | M29: 13.9932 | N29: 16.7676 | O29: 22.2246 | P29: 25.1826 | Q29: 27.7938
A30: 24 | B30: 8.3436 | C30: 10.404 | D30: 12.6888 | E30: 15.5652 | F30: 21.3792 | G30: 24.3678 | H30: 27.0912 | J30: 24 | K30: 9.9336 | L30: 11.994 | M30: 14.2788 | N30: 17.1552 | O30: 22.9692 | P30: 25.9578 | Q30: 28.6812
A31: 25 | B31: 8.6496 | C31: 10.7916 | D31: 13.0764 | E31: 16.116 | F31: 22.0422 | G31: 25.2348 | H31: 27.9378 | J31: 25 | K31: 10.2396 | L31: 12.3816 | M31: 14.6664 | N31: 17.706 | O31: 23.6322 | P31: 26.8248 | Q31: 29.5278
A32: 26 | B32: 8.8842 | C32: 11.1996 | D32: 13.515 | E32: 16.7586 | F32: 22.746 | G32: 26.0406 | H32: 28.7844 | J32: 26 | K32: 10.4742 | L32: 12.7896 | M32: 15.105 | N32: 18.3486 | O32: 24.336 | P32: 27.6306 | Q32: 30.3744
A33: 27 | B33: 9.1902 | C33: 11.5872 | D33: 13.9638 | E33: 17.2992 | F33: 23.5722 | G33: 26.979 | H33: 29.7024 | J33: 27 | K33: 10.7802 | L33: 13.1772 | M33: 15.5538 | N33: 18.8892 | O33: 25.1622 | P33: 28.569 | Q33: 31.2924
A34: 28 | B34: 9.4656 | C34: 11.8728 | D34: 14.3616 | E34: 17.85 | F34: 24.3678 | G34: 27.8358 | H34: 30.5898 | J34: 28 | K34: 11.0556 | L34: 13.4628 | M34: 15.9516 | N34: 19.44 | O34: 25.9578 | P34: 29.4258 | Q34: 32.1798
A35: 29 | B35: 9.7818 | C35: 12.2502 | D35: 14.8002 | E35: 18.2682 | F35: 25.041 | G35: 28.6008 | H35: 31.569 | J35: 29 | K35: 11.3718 | L35: 13.8402 | M35: 16.3902 | N35: 19.8582 | O35: 26.631 | P35: 30.1908 | Q35: 33.159
A36: 30 | B36: 9.996 | C36: 12.5052 | D36: 15.1776 | E36: 18.7272 | F36: 25.8876 | G36: 29.376 | H36: 32.487 | J36: 30 | K36: 11.586 | L36: 14.0952 | M36: 16.7676 | N36: 20.3172 | O36: 27.4776 | P36: 30.966 | Q36: 34.077
A37: 31 | B37: 10.2408 | C37: 12.8724 | D37: 15.5652 | E37: 19.278 | F37: 26.6526 | G37: 30.2532 | H37: 33.405 | J37: 31 | K37: 11.8308 | L37: 14.4624 | M37: 17.1552 | N37: 20.868 | O37: 28.2426 | P37: 31.8432 | Q37: 34.995
A38: 32 | B38: 10.4346 | C38: 13.209 | D38: 16.0242 | E38: 19.7982 | F38: 27.3258 | G38: 31.059 | H38: 34.3128 | J38: 32 | K38: 12.0246 | L38: 14.799 | M38: 17.6142 | N38: 21.3882 | O38: 28.9158 | P38: 32.649 | Q38: 35.9028
A39: 33 | B39: 10.6896 | C39: 13.515 | D39: 16.4118 | E39: 20.298 | F39: 28.0704 | G39: 31.8444 | H39: 35.2104 | J39: 33 | K39: 12.2796 | L39: 15.105 | M39: 18.0018 | N39: 21.888 | O39: 29.6604 | P39: 33.4344 | Q39: 36.8004
A40: 34 | B40: 10.9548 | C40: 13.8516 | D40: 16.8096 | E40: 20.8488 | F40: 28.8456 | G40: 32.6706 | H40: 36.2814 | J40: 34 | K40: 12.5448 | L40: 15.4416 | M40: 18.3996 | N40: 22.4388 | O40: 30.4356 | P40: 34.2606 | Q40: 37.8714
A41: 35 | B41: 11.1486 | C41: 14.127 | D41: 17.2584 | E41: 21.3996 | F41: 29.4984 | G41: 33.4458 | H41: 37.1382 | J41: 35 | K41: 12.7386 | L41: 15.717 | M41: 18.8484 | N41: 22.9896 | O41: 31.0884 | P41: 35.0358 | Q41: 38.7282
A42: 36 | B42: 11.4342 | C42: 14.4432 | D42: 17.6766 | E42: 21.8586 | F42: 30.2736 | G42: 34.1598 | H42: 37.995 | J42: 36 | K42: 13.0242 | L42: 16.0332 | M42: 19.2666 | N42: 23.4486 | O42: 31.8636 | P42: 35.7498 | Q42: 39.585
A43: 37 | B43: 11.6586 | C43: 14.8206 | D43: 18.054 | E43: 22.2972 | F43: 30.8856 | G43: 34.833 | H43: 38.8212 | J43: 37 | K43: 13.2486 | L43: 16.4106 | M43: 19.644 | N43: 23.8872 | O43: 32.4756 | P43: 36.423 | Q43: 40.4112
A44: 38 | B44: 11.9136 | C44: 15.1062 | D44: 18.5232 | E44: 22.8378 | F44: 31.5384 | G44: 35.5164 | H44: 39.576 | J44: 38 | K44: 13.5036 | L44: 16.6962 | M44: 20.1132 | N44: 24.4278 | O44: 33.1284 | P44: 37.1064 | Q44: 41.166
A45: 39 | B45: 12.2502 | C45: 15.4122 | D45: 18.8394 | E45: 23.358 | F45: 32.2626 | G45: 36.1692 | H45: 40.3512 | J45: 39 | K45: 13.8402 | L45: 17.0022 | M45: 20.4294 | N45: 24.948 | O45: 33.8526 | P45: 37.7592 | Q45: 41.9412
A46: 40 | B46: 12.4644 | C46: 15.7794 | D46: 19.1862 | E46: 23.8782 | F46: 32.9868 | G46: 36.873 | H46: 41.0856 | J46: 40 | K46: 14.0544 | L46: 17.3694 | M46: 20.7762 | N46: 25.4682 | O46: 34.5768 | P46: 38.463 | Q46: 42.6756
A47: 41 | B47: 12.6888 | C47: 16.0038 | D47: 19.6044 | E47: 24.3984 | F47: 33.5376 | G47: 37.6278 | H47: 41.973 | J47: 41 | K47: 14.2788 | L47: 17.5938 | M47: 21.1944 | N47: 25.9884 | O47: 35.1276 | P47: 39.2178 | Q47: 43.563
A48: 42 | B48: 12.9132 | C48: 16.371 | D48: 20.0226 | E48: 24.99 | F48: 34.2414 | G48: 38.4336 | H48: 42.8706 | J48: 42 | K48: 14.5032 | L48: 17.961 | M48: 21.6126 | N48: 26.58 | O48: 35.8314 | P48: 40.0236 | Q48: 44.4606
A49: 43 | B49: 13.1886 | C49: 16.8096 | D49: 20.4102 | E49: 25.5102 | F49: 34.9044 | G49: 39.27 | H49: 43.8294 | J49: 43 | K49: 14.7786 | L49: 18.3996 | M49: 22.0002 | N49: 27.1002 | O49: 36.4944 | P49: 40.86 | Q49: 45.4194
A50: 44 | B50: 13.3926 | C50: 17.0544 | D50: 20.8488 | E50: 26.061 | F50: 35.6286 | G50: 40.0962 | H50: 44.7882 | J50: 44 | K50: 14.9826 | L50: 18.6444 | M50: 22.4388 | N50: 27.651 | O50: 37.2186 | P50: 41.6862 | Q50: 46.3782
A51: 45 | B51: 13.6884 | C51: 17.3808 | D51: 21.3078 | E51: 26.5404 | F51: 36.3018 | G51: 40.9428 | H51: 45.6858 | J51: 45 | K51: 15.2784 | L51: 18.9708 | M51: 22.8978 | N51: 28.1304 | O51: 37.8918 | P51: 42.5328 | Q51: 47.2758
A52: 46 | B52: 13.923 | C52: 17.6766 | D52: 21.6444 | E52: 27.0912 | F52: 37.0362 | G52: 41.718 | H52: 46.7568 | J52: 46 | K52: 15.513 | L52: 19.2666 | M52: 23.2344 | N52: 28.6812 | O52: 38.6262 | P52: 43.308 | Q52: 48.3468
A53: 47 | B53: 14.127 | C53: 18.054 | D53: 22.0626 | E53: 27.591 | F53: 37.9134 | G53: 42.5646 | H53: 47.7666 | J53: 47 | K53: 15.717 | L53: 19.644 | M53: 23.6526 | N53: 29.181 | O53: 39.5034 | P53: 44.1546 | Q53: 49.3566
A54: 48 | B54: 14.4024 | C54: 18.4314 | D54: 22.3584 | E54: 28.0704 | F54: 38.7804 | G54: 43.4214 | H54: 48.6846 | J54: 48 | K54: 15.9924 | L54: 20.0214 | M54: 23.9484 | N54: 29.6604 | O54: 40.3704 | P54: 45.0114 | Q54: 50.2746
A55: 49 | B55: 14.6574 | C55: 18.6558 | D55: 22.746 | E55: 28.6008 | F55: 39.6882 | G55: 44.3394 | H55: 49.674 | J55: 49 | K55: 16.2474 | L55: 20.2458 | M55: 24.336 | N55: 30.1908 | O55: 41.2782 | P55: 45.9294 | Q55: 51.264
A56: 50 | B56: 14.841 | C56: 18.9414 | D56: 23.154 | E56: 29.0598 | F56: 40.4736 | G56: 45.2268 | H56: 50.592 | J56: 50 | K56: 16.431 | L56: 20.5314 | M56: 24.744 | N56: 30.6498 | O56: 42.0636 | P56: 46.8168 | Q56: 52.182
A57: 51 | B57: 15.0552 | C57: 19.2984 | D57: 23.5518 | E57: 29.5596 | F57: 41.1774 | G57: 46.1244 | H57: 51.3468 | J57: 51 | K57: 16.6452 | L57: 20.8884 | M57: 25.1418 | N57: 31.1496 | O57: 42.7674 | P57: 47.7144 | Q57: 52.9368
A58: 52 | B58: 15.2796 | C58: 19.6656 | D58: 23.9496 | E58: 30.0186 | F58: 41.7996 | G58: 46.971 | H58: 52.1934 | J58: 52 | K58: 16.8696 | L58: 21.2556 | M58: 25.5396 | N58: 31.6086 | O58: 43.3896 | P58: 48.561 | Q58: 53.7834
A59: 53 | B59: 15.5448 | C59: 20.0226 | D59: 24.3984 | E59: 30.5286 | F59: 42.5238 | G59: 47.8482 | H59: 53.1828 | J59: 53 | K59: 17.1348 | L59: 21.6126 | M59: 25.9884 | N59: 32.1186 | O59: 44.1138 | P59: 49.4382 | Q59: 54.7728
A60: 54 | B60: 15.7998 | C60: 20.3694 | D60: 24.8472 | E60: 31.059 | F60: 43.1562 | G60: 48.7458 | H60: 54.0906 | J60: 54 | K60: 17.3898 | L60: 21.9594 | M60: 26.4372 | N60: 32.649 | O60: 44.7462 | P60: 50.3358 | Q60: 55.6806
A61: 55 | B61: 15.9834 | C61: 20.5938 | D61: 25.2348 | E61: 31.5894 | F61: 43.8294 | G61: 49.6536 | H61: 55.0494 | J61: 55 | K61: 17.5734 | L61: 22.1838 | M61: 26.8248 | N61: 33.1794 | O61: 45.4194 | P61: 51.2436 | Q61: 56.6394
A62: 56 | B62: 16.2384 | C62: 20.961 | D62: 25.6326 | E62: 32.0892 | F62: 44.4414 | G62: 50.592 | H62: 56.0796 | J62: 56 | K62: 17.8284 | L62: 22.551 | M62: 27.2226 | N62: 33.6792 | O62: 46.0314 | P62: 52.182 | Q62: 57.6696
A63: 57 | B63: 16.4424 | C63: 21.2466 | D63: 26.0202 | E63: 32.6298 | F63: 45.1962 | G63: 51.4692 | H63: 57.069 | J63: 57 | K63: 18.0324 | L63: 22.8366 | M63: 27.6102 | N63: 34.2198 | O63: 46.7862 | P63: 53.0592 | Q63: 58.659
A64: 58 | B64: 16.6872 | C64: 21.5628 | D64: 26.367 | E64: 33.1092 | F64: 45.9306 | G64: 52.4484 | H64: 57.9564 | J64: 58 | K64: 18.2772 | L64: 23.1528 | M64: 27.957 | N64: 34.6992 | O64: 47.5206 | P64: 54.0384 | Q64: 59.5464
A65: 59 | B65: 16.9422 | C65: 21.8586 | D65: 26.775 | E65: 33.5682 | F65: 46.7364 | G65: 53.3664 | H65: 59.0478 | J65: 59 | K65: 18.5322 | L65: 23.4486 | M65: 28.365 | N65: 35.1582 | O65: 48.3264 | P65: 54.9564 | Q65: 60.6378
A66: 60 | B66: 17.1156 | C66: 22.1748 | D66: 27.0912 | E66: 34.1598 | F66: 47.5422 | G66: 54.1824 | H66: 60.0984 | J66: 60 | K66: 18.7056 | L66: 23.7648 | M66: 28.6812 | N66: 35.7498 | O66: 49.1322 | P66: 55.7724 | Q66: 61.6884
A67: 61 | B67: 17.3808 | C67: 22.5726 | D67: 27.4992 | E67: 34.7514 | F67: 48.3582 | G67: 55.0698 | H67: 61.0878 | J67: 61 | K67: 18.9708 | L67: 24.1626 | M67: 29.0892 | N67: 36.3414 | O67: 49.9482 | P67: 56.6598 | Q67: 62.6778
A68: 62 | B68: 17.5746 | C68: 22.9806 | D68: 27.9888 | E68: 35.2716 | F68: 49.1742 | G68: 56.0184 | H68: 62.118 | J68: 62 | K68: 19.1646 | L68: 24.5706 | M68: 29.5788 | N68: 36.8616 | O68: 50.7642 | P68: 57.6084 | Q68: 63.708
A69: 63 | B69: 17.85 | C69: 23.205 | D69: 28.356 | E69: 35.802 | F69: 49.98 | G69: 56.9058 | H69: 63.1074 | J69: 63 | K69: 19.44 | L69: 24.795 | M69: 29.946 | N69: 37.392 | O69: 51.57 | P69: 58.4958 | Q69: 64.6974
A70: 64 | B70: 18.0846 | C70: 23.511 | D70: 28.8252 | E70: 36.2406 | F70: 50.8368 | G70: 57.8442 | H70: 64.1172 | J70: 64 | K70: 19.6746 | L70: 25.101 | M70: 30.4152 | N70: 37.8306 | O70: 52.4268 | P70: 59.4342 | Q70: 65.7072
A71: 65 | B71: 18.309 | C71: 23.7966 | D71: 29.2842 | E71: 36.7404 | F71: 51.6732 | G71: 58.7418 | H71: 65.0454 | J71: 65 | K71: 19.899 | L71: 25.3866 | M71: 30.8742 | N71: 38.3304 | O71: 53.2632 | P71: 60.3318 | Q71: 66.6354
A72: 66 | B72: 18.5232 | C72: 24.2046 | D72: 29.7432 | E72: 37.2708 | F72: 52.428 | G72: 59.6292 | H72: 66.096 | J72: 66 | K72: 20.1132 | L72: 25.7946 | M72: 31.3332 | N72: 38.8608 | O72: 54.018 | P72: 61.2192 | Q72: 67.686
A73: 67 | B73: 18.819 | C73: 24.4902 | D73: 30.039 | E73: 37.791 | F73: 53.244 | G73: 60.537 | H73: 67.1466 | J73: 67 | K73: 20.409 | L73: 26.0802 | M73: 31.629 | N73: 39.381 | O73: 54.834 | P73: 62.127 | Q73: 68.7366
A74: 68 | B74: 19.0434 | C74: 24.8472 | D74: 30.447 | E74: 38.2908 | F74: 53.958 | G74: 61.455 | H74: 68.1768 | J74: 68 | K74: 20.6334 | L74: 26.4372 | M74: 32.037 | N74: 39.8808 | O74: 55.548 | P74: 63.045 | Q74: 69.7668
A75: 69 | B75: 19.2984 | C75: 25.1736 | D75: 30.8448 | E75: 38.8008 | F75: 54.7026 | G75: 62.3424 | H75: 69.207 | J75: 69 | K75: 20.8884 | L75: 26.7636 | M75: 32.4348 | N75: 40.3908 | O75: 56.2926 | P75: 63.9324 | Q75: 70.797
A76: 70 | B76: 19.5126 | C76: 25.5102 | D76: 31.2528 | E76: 39.2904 | F76: 55.488 | G76: 63.1992 | H76: 70.329 | J76: 70 | K76: 21.1026 | L76: 27.1002 | M76: 32.8428 | N76: 40.8804 | O76: 57.078 | P76: 64.7892 | Q76: 71.919
A77: 71 | B77: 19.7064 | C77: 25.7244 | D77: 31.7424 | E77: 39.6678 | F77: 56.1 | G77: 63.9438 | H77: 71.4 | J77: 71 | K77: 21.2964 | L77: 27.3144 | M77: 33.3324 | N77: 41.2578 | O77: 57.69 | P77: 65.5338 | Q77: 72.99
A78: 72 | B78: 20.0226 | C78: 25.9896 | D78: 32.283 | E78: 40.188 | F78: 56.9058 | G78: 64.8108 | H78: 72.4302 | J78: 72 | K78: 21.6126 | L78: 27.5796 | M78: 33.873 | N78: 41.778 | O78: 58.4958 | P78: 66.4008 | Q78: 74.0202
A79: 73 | B79: 20.2776 | C79: 26.367 | D79: 32.8134 | E79: 40.6878 | F79: 57.681 | G79: 65.7594 | H79: 73.4808 | J79: 73 | K79: 21.8676 | L79: 27.957 | M79: 34.4034 | N79: 42.2778 | O79: 59.271 | P79: 67.3494 | Q79: 75.0708
A80: 74 | B80: 20.553 | C80: 26.6832 | D80: 33.3132 | E80: 41.2896 | F80: 58.4358 | G80: 66.6672 | H80: 74.5518 | J80: 74 | K80: 22.143 | L80: 28.2732 | M80: 34.9032 | N80: 42.8796 | O80: 60.0258 | P80: 68.2572 | Q80: 76.1418
A81: 75 | B81: 20.808 | C81: 26.9994 | D81: 33.8232 | E81: 41.9322 | F81: 59.16 | G81: 67.5138 | H81: 75.6024 | J81: 75 | K81: 22.398 | L81: 28.5894 | M81: 35.4132 | N81: 43.5222 | O81: 60.75 | P81: 69.1038 | Q81: 77.1924
A82: 76 | B82: 21.1242 | C82: 27.3462 | D82: 34.3332 | E82: 42.5442 | F82: 59.925 | G82: 68.3808 | H82: 76.6734 | J82: 76 | K82: 22.7142 | L82: 28.9362 | M82: 35.9232 | N82: 44.1342 | O82: 61.515 | P82: 69.9708 | Q82: 78.2634
A83: 77 | B83: 21.4404 | C83: 27.7032 | D83: 34.68 | E83: 43.2684 | F83: 60.6798 | G83: 69.3192 | H83: 77.7342 | J83: 77 | K83: 23.0304 | L83: 29.2932 | M83: 36.27 | N83: 44.8584 | O83: 62.2698 | P83: 70.9092 | Q83: 79.3242
A84: 78 | B84: 21.6954 | C84: 28.0704 | D84: 35.139 | E84: 43.9008 | F84: 61.3632 | G84: 70.227 | H84: 78.7338 | J84: 78 | K84: 23.2854 | L84: 29.6604 | M84: 36.729 | N84: 45.4908 | O84: 62.9532 | P84: 71.817 | Q84: 80.3238
A85: 79 | B85: 22.0014 | C85: 28.509 | D85: 35.5776 | E85: 44.4414 | F85: 62.1384 | G85: 71.1144 | H85: 79.764 | J85: 79 | K85: 23.5914 | L85: 30.099 | M85: 37.1676 | N85: 46.0314 | O85: 63.7284 | P85: 72.7044 | Q85: 81.354
A86: 80 | B86: 22.2768 | C86: 28.968 | D86: 36.006 | E86: 44.9718 | F86: 62.9136 | G86: 71.9916 | H86: 80.8146 | J86: 80 | K86: 23.8668 | L86: 30.558 | M86: 37.596 | N86: 46.5618 | O86: 64.5036 | P86: 73.5816 | Q86: 82.4046
A87: 81 | B87: 22.593 | C87: 29.4474 | D87: 36.3936 | E87: 45.4716 | F87: 63.699 | G87: 72.8892 | H87: 81.7122 | J87: 81 | K87: 24.183 | L87: 31.0374 | M87: 37.9836 | N87: 47.0616 | O87: 65.289 | P87: 74.4792 | Q87: 83.3022
A88: 82 | B88: 22.8888 | C88: 29.835 | D88: 36.7404 | E88: 46.0632 | F88: 64.4028 | G88: 73.797 | H88: 82.8138 | J88: 82 | K88: 24.4788 | L88: 31.425 | M88: 38.3304 | N88: 47.6532 | O88: 65.9928 | P88: 75.387 | Q88: 84.4038
A89: 83 | B89: 23.1846 | C89: 30.1512 | D89: 37.179 | E89: 46.6854 | F89: 65.1882 | G89: 74.6946 | H89: 83.8644 | J89: 83 | K89: 24.7746 | L89: 31.7412 | M89: 38.769 | N89: 48.2754 | O89: 66.7782 | P89: 76.2846 | Q89: 85.4544
A90: 84 | B90: 23.46 | C90: 30.4878 | D90: 37.6278 | E90: 47.124 | F90: 65.9634 | G90: 75.633 | H90: 84.8436 | J90: 84 | K90: 25.05 | L90: 32.0778 | M90: 39.2178 | N90: 48.714 | O90: 67.5534 | P90: 77.223 | Q90: 86.4336
A91: 85 | B91: 23.7966 | C91: 30.906 | D91: 38.0256 | E91: 47.7156 | F91: 66.6876 | G91: 76.4898 | H91: 85.8228 | J91: 85 | K91: 25.3866 | L91: 32.496 | M91: 39.6156 | N91: 49.3056 | O91: 68.2776 | P91: 78.0798 | Q91: 87.4128
A92: 86 | B92: 24.0516 | C92: 31.2528 | D92: 38.4132 | E92: 48.195 | F92: 67.473 | G92: 77.4078 | H92: 86.8836 | J92: 86 | K92: 25.6416 | L92: 32.8428 | M92: 40.0032 | N92: 49.785 | O92: 69.063 | P92: 78.9978 | Q92: 88.4736
A93: 87 | B93: 24.2352 | C93: 31.5894 | D93: 38.9232 | E93: 48.7254 | F93: 68.1972 | G93: 78.3768 | H93: 87.9036 | J93: 87 | K93: 25.8252 | L93: 33.1794 | M93: 40.5132 | N93: 50.3154 | O93: 69.7872 | P93: 79.9668 | Q93: 89.4936
A94: 88 | B94: 24.4902 | C94: 31.9566 | D94: 39.3822 | E94: 49.3374 | F94: 68.7888 | G94: 79.2132 | H94: 88.9542 | J94: 88 | K94: 26.0802 | L94: 33.5466 | M94: 40.9722 | N94: 50.9274 | O94: 70.3788 | P94: 80.8032 | Q94: 90.5442
A95: 89 | B95: 24.7962 | C95: 32.334 | D95: 39.8004 | E95: 49.929 | F95: 69.5742 | G95: 80.1618 | H95: 89.8926 | J95: 89 | K95: 26.3862 | L95: 33.924 | M95: 41.3904 | N95: 51.519 | O95: 71.1642 | P95: 81.7518 | Q95: 91.4826
A96: 90 | B96: 25.0614 | C96: 32.6502 | D96: 40.188 | E96: 50.4084 | F96: 70.3494 | G96: 80.9982 | H96: 90.8718 | J96: 90 | K96: 26.6514 | L96: 34.2402 | M96: 41.778 | N96: 51.9984 | O96: 71.9394 | P96: 82.5882 | Q96: 92.4618
A97: 91 | B97: 25.3266 | C97: 33.0072 | D97: 40.6062 | E97: 50.9694 | F97: 71.094 | G97: 81.8754 | H97: 91.9224 | J97: 91 | K97: 26.9166 | L97: 34.5972 | M97: 42.1962 | N97: 52.5594 | O97: 72.684 | P97: 83.4654 | Q97: 93.5124
A98: 92 | B98: 25.6326 | C98: 33.3846 | D98: 40.9938 | E98: 51.6222 | F98: 71.7978 | G98: 82.8138 | H98: 92.9424 | J98: 92 | K98: 27.2226 | L98: 34.9746 | M98: 42.5838 | N98: 53.2122 | O98: 73.3878 | P98: 84.4038 | Q98: 94.5324
A99: 93 | B99: 25.908 | C99: 33.7008 | D99: 41.3406 | E99: 52.1118 | F99: 72.522 | G99: 83.7114 | H99: 93.891 | J99: 93 | K99: 27.498 | L99: 35.2908 | M99: 42.9306 | N99: 53.7018 | O99: 74.112 | P99: 85.3014 | Q99: 95.481
A100: 94 | B100: 26.1528 | C100: 34.0884 | D100: 41.6772 | E100: 52.6728 | F100: 73.2972 | G100: 84.5886 | H100: 94.9314 | J100: 94 | K100: 27.7428 | L100: 35.6784 | M100: 43.2672 | N100: 54.2628 | O100: 74.8872 | P100: 86.1786 | Q100: 96.5214
A101: 95 | B101: 26.4486 | C101: 34.4352 | D101: 42.0138 | E101: 53.1624 | F101: 74.0112 | G101: 85.4964 | H101: 95.9616 | J101: 95 | K101: 28.0386 | L101: 36.0252 | M101: 43.6038 | N101: 54.7524 | O101: 75.6012 | P101: 87.0864 | Q101: 97.5516
A102: 96 | B102: 26.724 | C102: 34.7922 | D102: 42.432 | E102: 53.6826 | F102: 74.766 | G102: 86.445 | H102: 96.9816 | J102: 96 | K102: 28.314 | L102: 36.3822 | M102: 44.022 | N102: 55.2726 | O102: 76.356 | P102: 88.035 | Q102: 98.5716
A103: 97 | B103: 26.9994 | C103: 35.139 | D103: 42.738 | E103: 54.2334 | F103: 75.6024 | G103: 87.3426 | H103: 97.9914 | J103: 97 | K103: 28.5894 | L103: 36.729 | M103: 44.328 | N103: 55.8234 | O103: 77.1924 | P103: 88.9326 | Q103: 99.5814
A104: 98 | B104: 27.2748 | C104: 35.5164 | D104: 43.044 | E104: 54.7026 | F104: 76.4286 | G104: 88.2504 | H104: 99.0114 | J104: 98 | K104: 28.8648 | L104: 37.1064 | M104: 44.634 | N104: 56.2926 | O104: 78.0186 | P104: 89.8404 | Q104: 100.6014
A105: 99 | B105: 27.5298 | C105: 35.8632 | D105: 43.4826 | E105: 55.3146 | F105: 77.112 | G105: 89.1684 | H105: 100.0008 | J105: 99 | K105: 29.1198 | L105: 37.4532 | M105: 45.0726 | N105: 56.9046 | O105: 78.702 | P105: 90.7584 | Q105: 101.5908
A106: 100 | B106: 27.8358 | C106: 36.1896 | D106: 43.7886 | E106: 55.7328 | F106: 77.9382 | G106: 89.964 | H106: 100.9902 | J106: 100 | K106: 29.4258 | L106: 37.7796 | M106: 45.3786 | N106: 57.3228 | O106: 79.5282 | P106: 91.554 | Q106: 102.5802
A107: 101 | B107: 28.05 | C107: 36.5568 | D107: 44.1354 | E107: 56.2326 | F107: 78.7338 | G107: 90.8514 | H107: 101.9796 | J107: 101 | K107: 29.64 | L107: 38.1468 | M107: 45.7254 | N107: 57.8226 | O107: 80.3238 | P107: 92.4414 | Q107: 103.5696
A108: 102 | B108: 28.3764 | C108: 36.975 | D108: 44.472 | E108: 56.6916 | F108: 79.4478 | G108: 91.7694 | H108: 103.0098 | J108: 102 | K108: 29.9664 | L108: 38.565 | M108: 46.062 | N108: 58.2816 | O108: 81.0378 | P108: 93.3594 | Q108: 104.5998
A109: 103 | B109: 28.6212 | C109: 37.3116 | D109: 44.8392 | E109: 57.1506 | F109: 80.2434 | G109: 92.667 | H109: 103.9992 | J109: 103 | K109: 30.2112 | L109: 38.9016 | M109: 46.4292 | N109: 58.7406 | O109: 81.8334 | P109: 94.257 | Q109: 105.5892
A110: 104 | B110: 28.9272 | C110: 37.6482 | D110: 45.1962 | E110: 57.7116 | F110: 81.0186 | G110: 93.5544 | H110: 105.0804 | J110: 104 | K110: 30.5172 | L110: 39.2382 | M110: 46.7862 | N110: 59.3016 | O110: 82.6086 | P110: 95.1444 | Q110: 106.6704
A111: 105 | B111: 29.121 | C111: 37.9746 | D111: 45.543 | E111: 58.1604 | F111: 81.855 | G111: 94.4928 | H111: 106.0392 | J111: 105 | K111: 30.711 | L111: 39.5646 | M111: 47.133 | N111: 59.7504 | O111: 83.445 | P111: 96.0828 | Q111: 107.6292
A112: 106 | B112: 29.427 | C112: 38.3928 | D112: 45.9306 | E112: 58.6908 | F112: 82.5588 | G112: 95.4108 | H112: 107.0286 | J112: 106 | K112: 31.017 | L112: 39.9828 | M112: 47.5206 | N112: 60.2808 | O112: 84.1488 | P112: 97.0008 | Q112: 108.6186
A113: 107 | B113: 29.7228 | C113: 38.6988 | D113: 46.2774 | E113: 59.1804 | F113: 83.4054 | G113: 96.2472 | H113: 108.0996 | J113: 107 | K113: 31.3128 | L113: 40.2888 | M113: 47.8674 | N113: 60.7704 | O113: 84.9954 | P113: 97.8372 | Q113: 109.6896
A114: 108 | B114: 30.039 | C114: 39.0456 | D114: 46.6038 | E114: 59.6802 | F114: 84.1806 | G114: 97.1856 | H114: 109.0074 | J114: 108 | K114: 31.629 | L114: 40.6356 | M114: 48.1938 | N114: 61.2702 | O114: 85.7706 | P114: 98.7756 | Q114: 110.5974
A115: 109 | B115: 30.2328 | C115: 39.4434 | D115: 47.0832 | E115: 60.1494 | F115: 85.0068 | G115: 98.124 | H115: 110.058 | J115: 109 | K115: 31.8228 | L115: 41.0334 | M115: 48.6732 | N115: 61.7394 | O115: 86.5968 | P115: 99.714 | Q115: 111.648
A116: 110 | B116: 30.4878 | C116: 39.7494 | D116: 47.5014 | E116: 60.5574 | F116: 85.6392 | G116: 98.9502 | H116: 111.0882 | J116: 110 | K116: 32.0778 | L116: 41.3394 | M116: 49.0914 | N116: 62.1474 | O116: 87.2292 | P116: 100.5402 | Q116: 112.6782
A117: 111 | B117: 30.8448 | C117: 40.1472 | D117: 47.889 | E117: 61.0572 | F117: 86.4144 | G117: 99.8682 | H117: 112.1388 | J117: 111 | K117: 32.4348 | L117: 41.7372 | M117: 49.479 | N117: 62.6472 | O117: 88.0044 | P117: 101.4582 | Q117: 113.7288
A118: 112 | B118: 31.1202 | C118: 40.5348 | D118: 48.3582 | E118: 61.6182 | F118: 87.2916 | G118: 100.7556 | H118: 113.0772 | J118: 112 | K118: 32.7102 | L118: 42.1248 | M118: 49.9482 | N118: 63.2082 | O118: 88.8816 | P118: 102.3456 | Q118: 114.6672
A119: 113 | B119: 31.3446 | C119: 40.8816 | D119: 48.7662 | E119: 62.169 | F119: 88.0158 | G119: 101.6736 | H119: 114.0564 | J119: 113 | K119: 32.9346 | L119: 42.4716 | M119: 50.3562 | N119: 63.759 | O119: 89.6058 | P119: 103.2636 | Q119: 115.6464
A120: 114 | B120: 31.5894 | C120: 41.1774 | D120: 49.1946 | E120: 62.8626 | F120: 88.7706 | G120: 102.5814 | H120: 115.107 | J120: 114 | K120: 33.1794 | L120: 42.7674 | M120: 50.7846 | N120: 64.4526 | O120: 90.3606 | P120: 104.1714 | Q120: 116.697
A121: 115 | B121: 31.9158 | C121: 41.5242 | D121: 49.6536 | E121: 63.4746 | F121: 89.5458 | G121: 103.4892 | H121: 116.0658 | J121: 115 | K121: 33.5058 | L121: 43.1142 | M121: 51.2436 | N121: 65.0646 | O121: 91.1358 | P121: 105.0792 | Q121: 117.6558
A122: 116 | B122: 32.1402 | C122: 41.9322 | D122: 50.0514 | E122: 64.0866 | F122: 90.372 | G122: 104.3664 | H122: 117.147 | J122: 116 | K122: 33.7302 | L122: 43.5222 | M122: 51.6414 | N122: 65.6766 | O122: 91.962 | P122: 105.9564 | Q122: 118.737
A123: 117 | B123: 32.436 | C123: 42.228 | D123: 50.388 | E123: 64.515 | F123: 91.1778 | G123: 105.2742 | H123: 118.1976 | J123: 117 | K123: 34.026 | L123: 43.818 | M123: 51.978 | N123: 66.105 | O123: 92.7678 | P123: 106.8642 | Q123: 119.7876
A124: 118 | B124: 32.7114 | C124: 42.5646 | D124: 50.8572 | E124: 65.0658 | F124: 91.9224 | G124: 106.2432 | H124: 119.1666 | J124: 118 | K124: 34.3014 | L124: 44.1546 | M124: 52.4472 | N124: 66.6558 | O124: 93.5124 | P124: 107.8332 | Q124: 120.7566
A125: 119 | B125: 33.0072 | C125: 42.9828 | D125: 51.2958 | E125: 65.5962 | F125: 92.7588 | G125: 107.1102 | H125: 120.1764 | J125: 119 | K125: 34.5972 | L125: 44.5728 | M125: 52.8858 | N125: 67.1862 | O125: 94.3488 | P125: 108.7002 | Q125: 121.7664
A126: 120 | B126: 33.2418 | C126: 43.35 | D126: 51.7752 | E126: 66.0246 | F126: 93.5136 | G126: 107.9568 | H126: 121.125 | J126: 120 | K126: 34.8318 | L126: 44.94 | M126: 53.3652 | N126: 67.6146 | O126: 95.1036 | P126: 109.5468 | Q126: 122.715
A127: 121 | B127: 33.5376 | C127: 43.6764 | D127: 52.173 | E127: 66.6672 | F127: 94.2072 | G127: 108.8748 | H127: 122.1552 | J127: 121 | K127: 35.1276 | L127: 45.2664 | M127: 53.763 | N127: 68.2572 | O127: 95.7972 | P127: 110.4648 | Q127: 123.7452
A128: 122 | B128: 33.8232 | C128: 44.0742 | D128: 52.5708 | E128: 67.1466 | F128: 95.0028 | G128: 109.7826 | H128: 123.2466 | J128: 122 | K128: 35.4132 | L128: 45.6642 | M128: 54.1608 | N128: 68.7366 | O128: 96.5928 | P128: 111.3726 | Q128: 124.8366
A129: 123 | B129: 34.068 | C129: 44.4006 | D129: 53.04 | E129: 67.7178 | F129: 95.8902 | G129: 110.6088 | H129: 124.2156 | J129: 123 | K129: 35.658 | L129: 45.9906 | M129: 54.63 | N129: 69.3078 | O129: 97.4802 | P129: 112.1988 | Q129: 125.8056
A130: 124 | B130: 34.3332 | C130: 44.7372 | D130: 53.4582 | E130: 68.1972 | F130: 96.645 | G130: 111.5472 | H130: 125.2152 | J130: 124 | K130: 35.9232 | L130: 46.3272 | M130: 55.0482 | N130: 69.7872 | O130: 98.235 | P130: 113.1372 | Q130: 126.8052
A131: 125 | B131: 34.6392 | C131: 45.084 | D131: 53.8458 | E131: 68.6766 | F131: 97.3488 | G131: 112.4346 | H131: 126.225 | J131: 125 | K131: 36.2292 | L131: 46.674 | M131: 55.4358 | N131: 70.2666 | O131: 98.9388 | P131: 114.0246 | Q131: 127.815
A132: 126 | B132: 34.9044 | C132: 45.492 | D132: 54.2946 | E132: 69.2274 | F132: 98.175 | G132: 113.3322 | H132: 127.1532 | J132: 126 | K132: 36.4944 | L132: 47.082 | M132: 55.8846 | N132: 70.8174 | O132: 99.765 | P132: 114.9222 | Q132: 128.7432
A133: 127 | B133: 35.1696 | C133: 45.7878 | D133: 54.7536 | E133: 69.7272 | F133: 98.9298 | G133: 114.2706 | H133: 128.214 | J133: 127 | K133: 36.7596 | L133: 47.3778 | M133: 56.3436 | N133: 71.3172 | O133: 100.5198 | P133: 115.8606 | Q133: 129.804
A134: 128 | B134: 35.496 | C134: 46.1856 | D134: 55.1616 | E134: 70.2678 | F134: 99.6744 | G134: 115.158 | H134: 129.2442 | J134: 128 | K134: 37.086 | L134: 47.7756 | M134: 56.7516 | N134: 71.8578 | O134: 101.2644 | P134: 116.748 | Q134: 130.8342
A135: 129 | B135: 35.7306 | C135: 46.6038 | D135: 55.5798 | E135: 70.7676 | F135: 100.5312 | G135: 116.0658 | H135: 130.2744 | J135: 129 | K135: 37.3206 | L135: 48.1938 | M135: 57.1698 | N135: 72.3576 | O135: 102.1212 | P135: 117.6558 | Q135: 131.8644
A136: 130 | B136: 36.0366 | C136: 46.8894 | D136: 55.9878 | E136: 71.247 | F136: 101.3064 | G136: 116.9226 | H136: 131.2842 | J136: 130 | K136: 37.6266 | L136: 48.4794 | M136: 57.5778 | N136: 72.837 | O136: 102.8964 | P136: 118.5126 | Q136: 132.8742
A137: 131 | B137: 36.2202 | C137: 47.2566 | D137: 56.4264 | E137: 71.859 | F137: 102.102 | G137: 117.8508 | H137: 132.3144 | J137: 131 | K137: 37.8102 | L137: 48.8466 | M137: 58.0164 | N137: 73.449 | O137: 103.692 | P137: 119.4408 | Q137: 133.9044
A138: 132 | B138: 36.4854 | C138: 47.6544 | D138: 56.8752 | E138: 72.369 | F138: 102.8772 | G138: 118.728 | H138: 133.2426 | J138: 132 | K138: 38.0754 | L138: 49.2444 | M138: 58.4652 | N138: 73.959 | O138: 104.4672 | P138: 120.318 | Q138: 134.8326
A139: 133 | B139: 36.8322 | C139: 47.94 | D139: 57.3342 | E139: 72.9606 | F139: 103.5912 | G139: 119.646 | H139: 134.2422 | J139: 133 | K139: 38.4222 | L139: 49.53 | M139: 58.9242 | N139: 74.5506 | O139: 105.1812 | P139: 121.236 | Q139: 135.8322
A140: 134 | B140: 37.1382 | C140: 48.2868 | D140: 57.7728 | E140: 73.4604 | F140: 104.3664 | G140: 120.5334 | H140: 135.3234 | J140: 134 | K140: 38.7282 | L140: 49.8768 | M140: 59.3628 | N140: 75.0504 | O140: 105.9564 | P140: 122.1234 | Q140: 136.9134
A141: 135 | B141: 37.332 | C141: 48.6234 | D141: 58.2318 | E141: 73.9806 | F141: 105.1212 | G141: 121.4718 | H141: 136.2822 | J141: 135 | K141: 38.922 | L141: 50.2134 | M141: 59.8218 | N141: 75.5706 | O141: 106.7112 | P141: 123.0618 | Q141: 137.8722
A142: 136 | B142: 37.6074 | C142: 49.0416 | D142: 58.599 | E142: 74.5008 | F142: 105.9678 | G142: 122.3286 | H142: 137.3328 | J142: 136 | K142: 39.1974 | L142: 50.6316 | M142: 60.189 | N142: 76.0908 | O142: 107.5578 | P142: 123.9186 | Q142: 138.9228
A143: 137 | B143: 37.9338 | C143: 49.3782 | D143: 59.0478 | E143: 75.0516 | F143: 106.743 | G143: 123.267 | H143: 138.3324 | J143: 137 | K143: 39.5238 | L143: 50.9682 | M143: 60.6378 | N143: 76.6416 | O143: 108.333 | P143: 124.857 | Q143: 139.9224
A144: 138 | B144: 38.199 | C144: 49.725 | D144: 59.4864 | E144: 75.6024 | F144: 107.508 | G144: 124.1646 | H144: 139.3218 | J144: 138 | K144: 39.789 | L144: 51.315 | M144: 61.0764 | N144: 77.1924 | O144: 109.098 | P144: 125.7546 | Q144: 140.9118
A145: 139 | B145: 38.4336 | C145: 50.133 | D145: 59.9046 | E145: 76.1532 | F145: 108.324 | G145: 125.0928 | H145: 140.2908 | J145: 139 | K145: 40.0236 | L145: 51.723 | M145: 61.4946 | N145: 77.7432 | O145: 109.914 | P145: 126.6828 | Q145: 141.8808
A146: 140 | B146: 38.6988 | C146: 50.4288 | D146: 60.3636 | E146: 76.7142 | F146: 109.0074 | G146: 125.9496 | H146: 141.321 | J146: 140 | K146: 40.2888 | L146: 52.0188 | M146: 61.9536 | N146: 78.3042 | O146: 110.5974 | P146: 127.5396 | Q146: 142.911
A147: 141 | B147: 38.964 | C147: 50.7756 | D147: 60.7716 | E147: 77.2242 | F147: 109.803 | G147: 126.8268 | H147: 142.392 | J147: 141 | K147: 40.554 | L147: 52.3656 | M147: 62.3616 | N147: 78.8142 | O147: 111.393 | P147: 128.4168 | Q147: 143.982
A148: 142 | B148: 39.2496 | C148: 51.1836 | D148: 61.1388 | E148: 77.775 | F148: 110.5578 | G148: 127.755 | H148: 143.3508 | J148: 142 | K148: 40.8396 | L148: 52.7736 | M148: 62.7288 | N148: 79.365 | O148: 112.1478 | P148: 129.345 | Q148: 144.9408
A149: 143 | B149: 39.5352 | C149: 51.5202 | D149: 61.6386 | E149: 78.3156 | F149: 111.435 | G149: 128.6424 | H149: 144.3606 | J149: 143 | K149: 41.1252 | L149: 53.1102 | M149: 63.2286 | N149: 79.9056 | O149: 113.025 | P149: 130.2324 | Q149: 145.9506
A150: 144 | B150: 39.8004 | C150: 51.8466 | D150: 62.0262 | E150: 78.9174 | F150: 112.1592 | G150: 129.54 | H150: 145.401 | J150: 144 | K150: 41.3904 | L150: 53.4366 | M150: 63.6162 | N150: 80.5074 | O150: 113.7492 | P150: 131.13 | Q150: 146.991
A151: 145 | B151: 40.0146 | C151: 52.1934 | D151: 62.4342 | E151: 79.4274 | F151: 112.8936 | G151: 130.4478 | H151: 146.3394 | J151: 145 | K151: 41.6046 | L151: 53.7834 | M151: 64.0242 | N151: 81.0174 | O151: 114.4836 | P151: 132.0378 | Q151: 147.9294
A152: 146 | B152: 40.3002 | C152: 52.632 | D152: 62.8626 | E152: 79.9272 | F152: 113.7504 | G152: 131.3658 | H152: 147.39 | J152: 146 | K152: 41.8902 | L152: 54.222 | M152: 64.4526 | N152: 81.5172 | O152: 115.3404 | P152: 132.9558 | Q152: 148.98
A153: 147 | B153: 40.5654 | C153: 52.9482 | D153: 63.3522 | E153: 80.5188 | F153: 114.5154 | G153: 132.2328 | H153: 148.4202 | J153: 147 | K153: 42.1554 | L153: 54.5382 | M153: 64.9422 | N153: 82.1088 | O153: 116.1054 | P153: 133.8228 | Q153: 150.0102
A154: 148 | B154: 40.7796 | C154: 53.2848 | D154: 63.7602 | E154: 81.0492 | F154: 115.26 | G154: 133.1916 | H154: 149.379 | J154: 148 | K154: 42.3696 | L154: 54.8748 | M154: 65.3502 | N154: 82.6392 | O154: 116.85 | P154: 134.7816 | Q154: 150.969
A155: 149 | B155: 41.0652 | C155: 53.6826 | D155: 64.158 | E155: 81.5694 | F155: 116.0862 | G155: 134.0484 | H155: 150.3786 | J155: 149 | K155: 42.6552 | L155: 55.2726 | M155: 65.748 | N155: 83.1594 | O155: 117.6762 | P155: 135.6384 | Q155: 151.9686
A156: 150 | B156: 40.59 | C156: 52.96 | D156: 63.3 | E156: 80.51 | F156: 114.59 | G156: 132.24 | H156: 148.43 | J156: 150 | K156: 43.77 | L156: 56.14 | M156: 66.48 | N156: 83.69 | O156: 117.76 | P156: 135.42 | Q156: 151.61

Sheet GND E&I (hidden)
A7: FedEx Continental U.S. Ground
A8: Weight | B8: Packages Weighing 1-50 Pounds
A9: Not To | B9: Continental U.S. Ground
A10: Exceed | B10: 2 | C10: 3 | D10: 4 | E10: 5 | F10: 6 | G10: 7 | H10: 8
A11: 1 | B11: 6.36 | C11: 6.36 | D11: 6.36 | E11: 6.36 | F11: 6.36 | G11: 6.36 | H11: 6.36
A12: 2 | B12: 6.36 | C12: 6.36 | D12: 6.36 | E12: 6.36 | F12: 6.36 | G12: 6.36 | H12: 6.36
A13: 3 | B13: 6.36 | C13: 6.36 | D13: 6.36 | E13: 6.36 | F13: 6.36 | G13: 6.42 | H13: 6.79
A14: 4 | B14: 6.36 | C14: 6.36 | D14: 6.36 | E14: 6.36 | F14: 6.53 | G14: 6.83 | H14: 7.27
A15: 5 | B15: 6.36 | C15: 6.36 | D15: 6.36 | E15: 6.58 | F15: 6.74 | G15: 7.09 | H15: 7.63
A16: 6 | B16: 6.36 | C16: 6.36 | D16: 6.36 | E16: 6.36 | F16: 6.36 | G16: 6.36 | H16: 6.69
A17: 7 | B17: 6.36 | C17: 6.36 | D17: 6.36 | E17: 6.36 | F17: 6.36 | G17: 6.43 | H17: 6.88
A18: 8 | B18: 6.36 | C18: 6.36 | D18: 6.36 | E18: 6.36 | F18: 6.36 | G18: 6.63 | H18: 7.19
A19: 9 | B19: 6.36 | C19: 6.36 | D19: 6.36 | E19: 6.36 | F19: 6.37 | G19: 6.9 | H19: 7.64
A20: 10 | B20: 6.36 | C20: 6.36 | D20: 6.36 | E20: 6.36 | F20: 6.63 | G20: 7.37 | H20: 8.14
A21: 11 | B21: 6.36 | C21: 6.36 | D21: 6.36 | E21: 6.36 | F21: 6.36 | G21: 7.21 | H21: 7.91
A22: 12 | B22: 6.36 | C22: 6.36 | D22: 6.36 | E22: 6.36 | F22: 6.41 | G22: 7.57 | H22: 8.36
A23: 13 | B23: 6.36 | C23: 6.36 | D23: 6.36 | E23: 6.36 | F23: 6.67 | G23: 8.04 | H23: 8.9
A24: 14 | B24: 6.36 | C24: 6.36 | D24: 6.36 | E24: 6.36 | F24: 6.98 | G24: 8.54 | H24: 9.42
A25: 15 | B25: 6.36 | C25: 6.36 | D25: 6.36 | E25: 6.36 | F25: 7.3 | G25: 8.88 | H25: 9.89
A26: 16 | B26: 6.36 | C26: 6.36 | D26: 6.36 | E26: 6.44 | F26: 7.54 | G26: 9.26 | H26: 10.19
A27: 17 | B27: 6.36 | C27: 6.36 | D27: 6.36 | E27: 6.68 | F27: 7.93 | G27: 9.73 | H27: 10.68
A28: 18 | B28: 6.36 | C28: 6.36 | D28: 6.36 | E28: 7.01 | F28: 8.25 | G28: 10.03 | H28: 11.2
A29: 19 | B29: 6.36 | C29: 6.36 | D29: 6.36 | E29: 7.14 | F29: 8.52 | G29: 10.34 | H29: 11.61
A30: 20 | B30: 6.36 | C30: 6.36 | D30: 6.36 | E30: 7.5 | F30: 8.9 | G30: 10.73 | H30: 12.15
A31: 21 | B31: 6.36 | C31: 6.38 | D31: 6.54 | E31: 7.65 | F31: 9.26 | G31: 11.13 | H31: 12.64
A32: 22 | B32: 6.36 | C32: 6.5 | D32: 6.78 | E32: 8.01 | F32: 9.64 | G32: 11.54 | H32: 13.19
A33: 23 | B33: 6.36 | C33: 6.67 | D33: 6.99 | E33: 8.24 | F33: 10 | G33: 11.92 | H33: 13.72
A34: 24 | B34: 6.36 | C34: 6.82 | D34: 7.22 | E34: 8.5 | F34: 10.38 | G34: 12.33 | H34: 14.26
A35: 25 | B35: 6.36 | C35: 6.9 | D35: 7.31 | E35: 8.75 | F35: 10.74 | G35: 12.72 | H35: 14.79
A36: 26 | B36: 6.36 | C36: 7.14 | D36: 7.61 | E36: 9.02 | F36: 11.14 | G36: 13.27 | H36: 15.28
A37: 27 | B37: 6.36 | C37: 7.31 | D37: 7.69 | E37: 9.16 | F37: 11.5 | G37: 13.51 | H37: 15.81
A38: 28 | B38: 6.46 | C38: 7.49 | D38: 8.05 | E38: 9.58 | F38: 12.04 | G38: 14.09 | H38: 16.35
A39: 29 | B39: 6.59 | C39: 7.62 | D39: 8.28 | E39: 9.8 | F39: 12.38 | G39: 14.43 | H39: 16.84
A40: 30 | B40: 6.66 | C40: 7.81 | D40: 8.52 | E40: 10.1 | F40: 12.58 | G40: 14.61 | H40: 17.38
A41: 31 | B41: 6.76 | C41: 7.85 | D41: 8.56 | E41: 10.16 | F41: 12.84 | G41: 14.92 | H41: 17.79
A42: 32 | B42: 6.76 | C42: 7.95 | D42: 8.79 | E42: 10.44 | F42: 13.21 | G42: 15.33 | H42: 18.32
A43: 33 | B43: 6.88 | C43: 8.2 | D43: 9.09 | E43: 10.83 | F43: 13.56 | G43: 15.73 | H43: 18.82
A44: 34 | B44: 6.92 | C44: 8.3 | D44: 9.29 | E44: 11 | F44: 13.94 | G44: 16.15 | H44: 19.35
A45: 35 | B45: 7.04 | C45: 8.58 | D45: 9.51 | E45: 11.26 | F45: 14.28 | G45: 16.56 | H45: 19.86
A46: 36 | B46: 7.14 | C46: 8.67 | D46: 9.68 | E46: 11.65 | F46: 14.64 | G46: 16.97 | H46: 20.25
A47: 37 | B47: 7.33 | C47: 8.86 | D47: 9.87 | E47: 11.91 | F47: 14.96 | G47: 17.34 | H47: 20.65
A48: 38 | B48: 7.43 | C48: 9 | D48: 10.09 | E48: 12.2 | F48: 15.29 | G48: 17.75 | H48: 21.03
A49: 39 | B49: 7.54 | C49: 9.18 | D49: 10.32 | E49: 12.33 | F49: 15.68 | G49: 18.23 | H49: 21.46
A50: 40 | B50: 7.55 | C50: 9.3 | D50: 10.44 | E50: 12.59 | F50: 16 | G50: 18.62 | H50: 21.82
A51: 41 | B51: 7.65 | C51: 9.52 | D51: 10.73 | E51: 12.83 | F51: 16.36 | G51: 19.02 | H51: 22.07
A52: 42 | B52: 7.77 | C52: 9.64 | D52: 10.93 | E52: 13.07 | F52: 16.75 | G52: 19.52 | H52: 22.39
A53: 43 | B53: 7.87 | C53: 9.7 | D53: 11.05 | E53: 13.47 | F53: 17.16 | G53: 20.04 | H53: 22.78
A54: 44 | B54: 8.05 | C54: 9.97 | D54: 11.35 | E54: 13.72 | F54: 17.47 | G54: 20.47 | H54: 23.02
A55: 45 | B55: 8.05 | C55: 10.12 | D55: 11.55 | E55: 13.99 | F55: 17.76 | G55: 20.87 | H55: 23.41
A56: 46 | B56: 8.16 | C56: 10.13 | D56: 11.7 | E56: 14.11 | F56: 18.06 | G56: 21.29 | H56: 23.8
A57: 47 | B57: 8.22 | C57: 10.26 | D57: 11.89 | E57: 14.35 | F57: 18.3 | G57: 21.71 | H57: 24.18
A58: 48 | B58: 8.22 | C58: 10.31 | D58: 12.04 | E58: 14.59 | F58: 18.58 | G58: 22.12 | H58: 24.57
A59: 49 | B59: 8.24 | C59: 10.31 | D59: 12.09 | E59: 14.84 | F59: 18.81 | G59: 22.51 | H59: 24.94
A60: 50 | B60: 8.28 | C60: 10.37 | D60: 12.22 | E60: 14.89 | F60: 18.87 | G60: 22.57 | H60: 25.32
A61: 51 | B61: 8.28 | C61: 10.37 | D61: 12.3 | E61: 14.89 | F61: 18.88 | G61: 22.57 | H61: 25.33
A62: 52 | B62: 8.29 | C62: 10.38 | D62: 12.39 | E62: 15.08 | F62: 18.88 | G62: 22.58 | H62: 25.35
A63: 53 | B63: 8.29 | C63: 10.38 | D63: 12.39 | E63: 15.08 | F63: 18.89 | G63: 22.63 | H63: 25.72
A64: 54 | B64: 8.3 | C64: 10.39 | D64: 12.4 | E64: 15.28 | F64: 18.89 | G64: 22.71 | H64: 26.05
A65: 55 | B65: 8.36 | C65: 10.46 | D65: 12.44 | E65: 15.5 | F65: 18.9 | G65: 22.78 | H65: 26.35
A66: 56 | B66: 8.42 | C66: 10.56 | D66: 12.55 | E66: 15.72 | F66: 18.9 | G66: 22.82 | H66: 26.68
A67: 57 | B67: 8.61 | C67: 10.74 | D67: 12.58 | E67: 15.94 | F67: 19.04 | G67: 22.9 | H67: 26.96
A68: 58 | B68: 8.62 | C68: 10.75 | D68: 12.7 | E68: 16.11 | F68: 19.25 | G68: 22.96 | H68: 27.18
A69: 59 | B69: 8.69 | C69: 10.85 | D69: 12.76 | E69: 16.27 | F69: 19.43 | G69: 23.08 | H69: 27.38
A70: 60 | B70: 8.78 | C70: 10.96 | D70: 12.95 | E70: 16.39 | F70: 19.6 | G70: 23.2 | H70: 27.55
A71: 61 | B71: 8.86 | C71: 11.19 | D71: 12.96 | E71: 16.57 | F71: 19.78 | G71: 23.34 | H71: 27.71
A72: 62 | B72: 9.1 | C72: 11.65 | D72: 13.06 | E72: 16.72 | F72: 19.91 | G72: 23.48 | H72: 27.88
A73: 63 | B73: 9.14 | C73: 11.66 | D73: 13.07 | E73: 16.83 | F73: 20.04 | G73: 23.62 | H73: 28.05
A74: 64 | B74: 9.3 | C74: 11.88 | D74: 13.4 | E74: 17.05 | F74: 20.18 | G74: 23.78 | H74: 28.21
A75: 65 | B75: 9.49 | C75: 12.11 | D75: 13.41 | E75: 17.05 | F75: 20.36 | G75: 23.91 | H75: 28.39
A76: 66 | B76: 9.63 | C76: 12.32 | D76: 13.43 | E76: 17.15 | F76: 20.57 | G76: 24.03 | H76: 28.6
A77: 67 | B77: 9.75 | C77: 12.45 | D77: 13.7 | E77: 17.18 | F77: 20.73 | G77: 24.15 | H77: 28.66
A78: 68 | B78: 9.84 | C78: 12.68 | D78: 14.22 | E78: 17.33 | F78: 20.84 | G78: 24.28 | H78: 28.73
A79: 69 | B79: 9.89 | C79: 12.68 | D79: 14.23 | E79: 17.6 | F79: 20.95 | G79: 24.4 | H79: 28.81
A80: 70 | B80: 9.92 | C80: 12.7 | D80: 14.54 | E80: 17.82 | F80: 21.37 | G80: 24.49 | H80: 29.06
A81: 71 | B81: 9.94 | C81: 12.94 | D81: 14.77 | E81: 18.04 | F81: 21.7 | G81: 24.91 | H81: 29.12
A82: 72 | B82: 10.18 | C82: 12.95 | D82: 14.97 | E82: 18.27 | F82: 21.87 | G82: 25.49 | H82: 29.19
A83: 73 | B83: 10.54 | C83: 12.95 | D83: 15.17 | E83: 18.51 | F83: 22.1 | G83: 25.88 | H83: 29.27
A84: 74 | B84: 11.02 | C84: 12.99 | D84: 15.37 | E84: 18.75 | F84: 22.45 | G84: 26.28 | H84: 29.38
A85: 75 | B85: 11.43 | C85: 13.36 | D85: 15.42 | E85: 19.07 | F85: 22.87 | G85: 26.54 | H85: 29.45
A86: 76 | B86: 11.86 | C86: 13.85 | D86: 15.47 | E86: 19.38 | F86: 23.16 | G86: 26.98 | H86: 29.6
A87: 77 | B87: 12.32 | C87: 14.17 | D87: 15.77 | E87: 19.62 | F87: 23.3 | G87: 27.49 | H87: 29.65
A88: 78 | B88: 12.7 | C88: 14.44 | D88: 16.11 | E88: 19.84 | F88: 23.43 | G88: 27.95 | H88: 29.68
A89: 79 | B89: 13.14 | C89: 15.04 | D89: 16.52 | E89: 20.15 | F89: 23.92 | G89: 28.11 | H89: 29.89
A90: 80 | B90: 13.5 | C90: 15.47 | D90: 16.91 | E90: 20.43 | F90: 24.33 | G90: 28.51 | H90: 30.11
A91: 81 | B91: 13.81 | C91: 15.74 | D91: 17.3 | E91: 20.58 | F91: 24.65 | G91: 28.94 | H91: 30.2
A92: 82 | B92: 14.27 | C92: 16.1 | D92: 17.69 | E92: 20.96 | F92: 24.7 | G92: 29.29 | H92: 30.34
A93: 83 | B93: 14.68 | C93: 16.43 | D93: 18.08 | E93: 21.11 | F93: 25.01 | G93: 29.69 | H93: 30.69
A94: 84 | B94: 15.12 | C94: 16.82 | D94: 18.45 | E94: 21.51 | F94: 25.38 | G94: 30.06 | H94: 31.04
A95: 85 | B95: 15.53 | C95: 17.24 | D95: 18.8 | E95: 21.86 | F95: 25.78 | G95: 30.38 | H95: 31.38
A96: 86 | B96: 15.96 | C96: 17.63 | D96: 19.18 | E96: 22.13 | F96: 26.09 | G96: 30.65 | H96: 31.73
A97: 87 | B97: 16.42 | C97: 18.04 | D97: 19.61 | E97: 22.21 | F97: 26.42 | G97: 30.97 | H97: 32.08
A98: 88 | B98: 16.94 | C98: 18.45 | D98: 19.98 | E98: 22.55 | F98: 26.77 | G98: 31.29 | H98: 32.43
A99: 89 | B99: 17.53 | C99: 18.78 | D99: 20.36 | E99: 22.91 | F99: 27.11 | G99: 31.61 | H99: 32.79
A100: 90 | B100: 18.1 | C100: 19.09 | D100: 20.66 | E100: 23.06 | F100: 27.23 | G100: 31.67 | H100: 33.13
A101: 91 | B101: 18.4 | C101: 19.41 | D101: 21.06 | E101: 23.3 | F101: 27.52 | G101: 31.74 | H101: 33.48
A102: 92 | B102: 18.84 | C102: 19.78 | D102: 21.37 | E102: 23.65 | F102: 27.87 | G102: 31.88 | H102: 33.85
A103: 93 | B103: 19.29 | C103: 20.16 | D103: 21.78 | E103: 23.98 | F103: 28.09 | G103: 32 | H103: 34.19
A104: 94 | B104: 19.74 | C104: 20.53 | D104: 22.09 | E104: 24.29 | F104: 28.42 | G104: 32.06 | H104: 34.55
A105: 95 | B105: 20.2 | C105: 20.87 | D105: 22.43 | E105: 24.61 | F105: 28.61 | G105: 32.17 | H105: 34.91
A106: 96 | B106: 20.65 | C106: 21.22 | D106: 22.8 | E106: 24.89 | F106: 28.77 | G106: 32.35 | H106: 35.25
A107: 97 | B107: 21.13 | C107: 21.63 | D107: 23.16 | E107: 25.28 | F107: 29.12 | G107: 32.4 | H107: 35.61
A108: 98 | B108: 21.61 | C108: 21.98 | D108: 23.6 | E108: 25.58 | F108: 29.45 | G108: 32.64 | H108: 35.97
A109: 99 | B109: 22.09 | C109: 22.33 | D109: 24.05 | E109: 25.9 | F109: 29.79 | G109: 32.97 | H109: 36.33
A110: 100 | B110: 22.5 | C110: 22.69 | D110: 24.49 | E110: 26.29 | F110: 30.12 | G110: 33.3 | H110: 36.68
A111: 101 | B111: 22.84 | C111: 23.01 | D111: 24.89 | E111: 26.61 | F111: 30.38 | G111: 33.56 | H111: 36.96
A112: 102 | B112: 23.08 | C112: 23.36 | D112: 25.18 | E112: 26.96 | F112: 30.69 | G112: 33.86 | H112: 37.31
A113: 103 | B113: 23.48 | C113: 23.72 | D113: 25.49 | E113: 27.22 | F113: 30.98 | G113: 34.16 | H113: 37.64
A114: 104 | B114: 23.85 | C114: 24.06 | D114: 25.79 | E114: 27.51 | F114: 31.27 | G114: 34.45 | H114: 38
A115: 105 | B115: 24.24 | C115: 24.42 | D115: 26.09 | E115: 27.8 | F115: 31.57 | G115: 34.75 | H115: 38.32
A116: 106 | B116: 24.64 | C116: 24.79 | D116: 26.39 | E116: 28.08 | F116: 31.86 | G116: 35.06 | H116: 38.68
A117: 107 | B117: 25 | C117: 25.16 | D117: 26.69 | E117: 28.37 | F117: 32.15 | G117: 35.37 | H117: 39.02
A118: 108 | B118: 25.36 | C118: 25.52 | D118: 26.99 | E118: 28.65 | F118: 32.45 | G118: 35.68 | H118: 39.37
A119: 109 | B119: 25.72 | C119: 25.87 | D119: 27.29 | E119: 28.94 | F119: 32.73 | G119: 35.98 | H119: 39.72
A120: 110 | B120: 26.04 | C120: 26.25 | D120: 27.6 | E120: 29.21 | F120: 33.05 | G120: 36.31 | H120: 40.06
A121: 111 | B121: 26.33 | C121: 26.54 | D121: 27.91 | E121: 29.5 | F121: 33.33 | G121: 36.61 | H121: 40.5
A122: 112 | B122: 26.61 | C122: 26.83 | D122: 28.21 | E122: 29.79 | F122: 33.61 | G122: 36.93 | H122: 40.93
A123: 113 | B123: 26.86 | C123: 27.12 | D123: 28.52 | E123: 30.06 | F123: 33.91 | G123: 37.23 | H123: 41.28
A124: 114 | B124: 27.18 | C124: 27.42 | D124: 28.84 | E124: 30.35 | F124: 34.21 | G124: 37.53 | H124: 41.62
A125: 115 | B125: 27.47 | C125: 27.72 | D125: 29.16 | E125: 30.64 | F125: 34.48 | G125: 37.85 | H125: 41.95
A126: 116 | B126: 27.76 | C126: 28.1 | D126: 29.46 | E126: 30.87 | F126: 34.72 | G126: 38.08 | H126: 42.21
A127: 117 | B127: 28.04 | C127: 28.4 | D127: 29.76 | E127: 31.16 | F127: 35.01 | G127: 38.38 | H127: 42.56
A128: 118 | B128: 28.33 | C128: 28.7 | D128: 30.08 | E128: 31.44 | F128: 35.29 | G128: 38.69 | H128: 42.89
A129: 119 | B129: 28.63 | C129: 29 | D129: 30.39 | E129: 31.71 | F129: 35.58 | G129: 39 | H129: 43.44
A130: 120 | B130: 29.12 | C130: 29.3 | D130: 30.7 | E130: 32.01 | F130: 35.88 | G130: 39.31 | H130: 43.79
A131: 121 | B131: 29.44 | C131: 29.55 | D131: 31.02 | E131: 32.24 | F131: 36.11 | G131: 39.52 | H131: 44.04
A132: 122 | B132: 29.64 | C132: 29.71 | D132: 31.33 | E132: 32.52 | F132: 36.39 | G132: 39.83 | H132: 44.4
A133: 123 | B133: 29.95 | C133: 30.03 | D133: 31.65 | E133: 32.8 | F133: 36.67 | G133: 40.14 | H133: 44.75
A134: 124 | B134: 30.23 | C134: 30.32 | D134: 31.98 | E134: 33.1 | F134: 36.98 | G134: 40.44 | H134: 45.09
A135: 125 | B135: 30.54 | C135: 30.62 | D135: 32.3 | E135: 33.38 | F135: 37.26 | G135: 40.74 | H135: 45.43
A136: 126 | B136: 30.84 | C136: 30.91 | D136: 32.62 | E136: 33.6 | F136: 37.47 | G136: 40.97 | H136: 45.71
A137: 127 | B137: 31.12 | C137: 31.23 | D137: 32.94 | E137: 33.89 | F137: 37.76 | G137: 41.27 | H137: 46.03
A138: 128 | B138: 31.44 | C138: 31.45 | D138: 33.26 | E138: 34.18 | F138: 38.04 | G138: 41.56 | H138: 46.39
A139: 129 | B139: 31.74 | C139: 31.75 | D139: 33.58 | E139: 34.48 | F139: 38.33 | G139: 41.86 | H139: 46.74
A140: 130 | B140: 32.04 | C140: 32.06 | D140: 33.89 | E140: 34.74 | F140: 38.62 | G140: 42.16 | H140: 47.09
A141: 131 | B141: 32.34 | C141: 32.37 | D141: 34.23 | E141: 34.98 | F141: 38.83 | G141: 42.39 | H141: 47.56
A142: 132 | B142: 32.65 | C142: 32.69 | D142: 34.55 | E142: 35.27 | F142: 39.12 | G142: 42.68 | H142: 47.9
A143: 133 | B143: 32.96 | C143: 33 | D143: 34.88 | E143: 35.55 | F143: 39.39 | G143: 42.98 | H143: 48.25
A144: 134 | B144: 33.25 | C144: 33.3 | D144: 35.22 | E144: 35.85 | F144: 39.7 | G144: 43.27 | H144: 48.61
A145: 135 | B145: 33.51 | C145: 33.63 | D145: 35.54 | E145: 36.15 | F145: 40.02 | G145: 43.6 | H145: 48.95
A146: 136 | B146: 33.79 | C146: 33.94 | D146: 35.88 | E146: 36.45 | F146: 40.34 | G146: 43.91 | H146: 49.31
A147: 137 | B147: 34.08 | C147: 34.26 | D147: 36.21 | E147: 36.72 | F147: 40.57 | G147: 44.19 | H147: 49.65
A148: 138 | B148: 34.4 | C148: 34.58 | D148: 36.56 | E148: 37.06 | F148: 40.97 | G148: 44.55 | H148: 50
A149: 139 | B149: 34.7 | C149: 34.93 | D149: 36.9 | E149: 37.37 | F149: 41.29 | G149: 44.86 | H149: 50.36
A150: 140 | B150: 35.02 | C150: 35.26 | D150: 37.25 | E150: 37.68 | F150: 41.62 | G150: 45.17 | H150: 50.7
A151: 141 | B151: 35.32 | C151: 35.59 | D151: 37.61 | E151: 37.97 | F151: 41.86 | G151: 45.4 | H151: 50.95
A152: 142 | B152: 35.46 | C152: 35.93 | D152: 37.95 | E152: 38.28 | F152: 42.16 | G152: 45.71 | H152: 51.29
A153: 143 | B153: 35.78 | C153: 36.25 | D153: 38.3 | E153: 38.59 | F153: 42.49 | G153: 46.03 | H153: 51.65
A154: 144 | B154: 36.1 | C154: 36.59 | D154: 38.66 | E154: 38.9 | F154: 42.81 | G154: 46.35 | H154: 51.99
A155: 145 | B155: 36.22 | C155: 36.94 | D155: 39.01 | E155: 39.21 | F155: 43.13 | G155: 46.65 | H155: 52.34
A156: 146 | B156: 36.53 | C156: 37.26 | D156: 39.36 | E156: 39.51 | F156: 43.45 | G156: 46.96 | H156: 52.67
A157: 147 | B157: 36.84 | C157: 37.61 | D157: 39.74 | E157: 39.83 | F157: 43.76 | G157: 47.28 | H157: 53.03
A158: 148 | B158: 37.07 | C158: 37.94 | D158: 40.08 | E158: 40.15 | F158: 44.09 | G158: 47.6 | H158: 53.39
A159: 149 | B159: 37.28 | C159: 38.29 | D159: 40.44 | E159: 40.45 | F159: 44.41 | G159: 47.9 | H159: 53.99
A160: 150 | B160: 37.6 | C160: 38.63 | D160: 41.11 | E160: 41.8 | F160: 44.74 | G160: 48.23 | H160: 54.34

Sheet PO E&I (hidden)
A1: FedEx Priority Overnight
A2: E&I Contract Zone Rates
B3: Guaranteed delivery by 10:30 a.m. by Next Day
A5: LBS | B5: 2 | C5: 3 | D5: 4 | E5: 5 | F5: 6 | G5: 7 | H5: 8 | I5: 9 | J5: 10 | K5: 11 | L5: 12 | M5: 13 | N5: 14 | O5: 15 | P5: 16
A6: 0.5 | B6: 8.51 | C6: 8.51 | D6: 8.86 | E6: 9.44 | F6: 9.45 | G6: 10.64 | H6: 10.82 | I6: 12.37 | J6: 12.37 | K6: 13.67 | L6: 13.67 | M6: 8.51 | N6: 8.51 | O6: 8.51 | P6: 8.51
A7: PAK1 | B7: 8.87 | C7: 10.22 | D7: 13.37 | E7: 14.83 | F7: 15.62 | G7: 17.23 | H7: 17.7 | I7: 19.46 | J7: 19.46 | K7: 19.65 | L7: 19.65 | M7: 12.54 | N7: 12.54 | O7: 12.54 | P7: 12.54
A8: PAK2 | B8: 8.87 | C8: 11.13 | D8: 14.6 | E8: 15.93 | F8: 17.67 | G8: 18.41 | H8: 19.77 | I8: 21.34 | J8: 21.34 | K8: 21.57 | L8: 21.57 | M8: 13.36 | N8: 13.36 | O8: 13.36 | P8: 13.36
A9: 1 | B9: 8.87 | C9: 10.22 | D9: 13.37 | E9: 14.83 | F9: 15.62 | G9: 17.23 | H9: 17.7 | I9: 19.46 | J9: 19.46 | K9: 19.65 | L9: 19.65 | M9: 12.54 | N9: 12.54 | O9: 12.54 | P9: 12.54
A10: 2 | B10: 8.87 | C10: 11.13 | D10: 14.6 | E10: 15.93 | F10: 17.67 | G10: 18.41 | H10: 19.77 | I10: 21.34 | J10: 21.34 | K10: 21.57 | L10: 21.57 | M10: 13.36 | N10: 13.36 | O10: 13.36 | P10: 13.36
A11: 3 | B11: 8.87 | C11: 11.82 | D11: 16.16 | E11: 18.2 | F11: 19.58 | G11: 20.88 | H11: 21.62 | I11: 23.82 | J11: 23.82 | K11: 27.61 | L11: 27.61 | M11: 14.83 | N11: 14.83 | O11: 14.83 | P11: 14.83
A12: 4 | B12: 9.16 | C12: 12.46 | D12: 18.08 | E12: 19.93 | F12: 21.39 | G12: 22.72 | H12: 23.58 | I12: 26 | J12: 26 | K12: 29.9 | L12: 29.9 | M12: 16.43 | N12: 16.43 | O12: 16.43 | P12: 16.43
A13: 5 | B13: 9.31 | C13: 12.9 | D13: 18.73 | E13: 20.64 | F13: 22.21 | G13: 23.34 | H13: 24.22 | I13: 28.15 | J13: 28.15 | K13: 32.05 | L13: 32.05 | M13: 17.85 | N13: 17.85 | O13: 17.85 | P13: 17.85
A14: 6 | B14: 10.58 | C14: 13.64 | D14: 20.76 | E14: 23.52 | F14: 24.6 | G14: 26.36 | H14: 27.5 | I14: 30.19 | J14: 30.19 | K14: 34.29 | L14: 34.29 | M14: 19.67 | N14: 19.67 | O14: 19.67 | P14: 19.67
A15: 7 | B15: 10.73 | C15: 14.41 | D15: 21.69 | E15: 24.67 | F15: 26.34 | G15: 27.51 | H15: 29.37 | I15: 32.18 | J15: 32.18 | K15: 36.54 | L15: 36.54 | M15: 20.74 | N15: 20.74 | O15: 20.74 | P15: 20.74
A16: 8 | B16: 10.82 | C16: 15.1 | D16: 23.08 | E16: 26.88 | F16: 28.69 | G16: 29.14 | H16: 30.29 | I16: 34.13 | J16: 34.13 | K16: 38.25 | L16: 38.25 | M16: 24.19 | N16: 24.19 | O16: 24.19 | P16: 24.19
A17: 9 | B17: 10.96 | C17: 15.14 | D17: 24.95 | E17: 27.98 | F17: 29.18 | G17: 31.38 | H17: 32.3 | I17: 36.33 | J17: 36.33 | K17: 40.59 | L17: 40.59 | M17: 24.73 | N17: 24.73 | O17: 24.73 | P17: 24.73
A18: 10 | B18: 11.01 | C18: 15.19 | D18: 25.47 | E18: 28.26 | F18: 29.56 | G18: 31.43 | H18: 32.34 | I18: 38.46 | J18: 38.46 | K18: 40.62 | L18: 40.62 | M18: 24.78 | N18: 24.78 | O18: 24.78 | P18: 24.78
A19: 11 | B19: 12.48 | C19: 17.33 | D19: 28.9 | E19: 32.65 | F19: 35.06 | G19: 37.34 | H19: 38.21 | I19: 40.62 | J19: 40.62 | K19: 44.66 | L19: 44.66 | M19: 27.42 | N19: 27.42 | O19: 27.42 | P19: 27.42
A20: 12 | B20: 13 | C20: 17.89 | D20: 29.55 | E20: 34.17 | F20: 36.76 | G20: 38.46 | H20: 40.28 | I20: 42.6 | J20: 42.6 | K20: 45.64 | L20: 45.64 | M20: 30.33 | N20: 30.33 | O20: 30.33 | P20: 30.33
A21: 13 | B21: 13.18 | C21: 18.57 | D21: 30.21 | E21: 35.73 | F21: 38.25 | G21: 40.48 | H21: 42.21 | I21: 44.72 | J21: 44.72 | K21: 46.88 | L21: 46.88 | M21: 31.46 | N21: 31.46 | O21: 31.46 | P21: 31.46
A22: 14 | B22: 13.4 | C22: 19.02 | D22: 32.53 | E22: 36.72 | F22: 38.92 | G22: 41.36 | H22: 42.91 | I22: 46.73 | J22: 46.73 | K22: 48.15 | L22: 48.15 | M22: 31.5 | N22: 31.5 | O22: 31.5 | P22: 31.5
A23: 15 | B23: 13.45 | C23: 19.06 | D23: 32.95 | E23: 36.76 | F23: 38.96 | G23: 41.41 | H23: 42.95 | I23: 48.17 | J23: 48.17 | K23: 49.32 | L23: 49.32 | M23: 31.54 | N23: 31.54 | O23: 31.54 | P23: 31.54
A24: 16 | B24: 13.99 | C24: 20.7 | D24: 35.24 | E24: 40.19 | F24: 41.7 | G24: 44.75 | H24: 45.65 | I24: 50.07 | J24: 50.07 | K24: 51.4 | L24: 51.4 | M24: 35.84 | N24: 35.84 | O24: 35.84 | P24: 35.84
A25: 17 | B25: 15.04 | C25: 21.34 | D25: 36.26 | E25: 41.43 | F25: 43.57 | G25: 45.29 | H25: 46.67 | I25: 51.18 | J25: 51.18 | K25: 52.82 | L25: 52.82 | M25: 35.89 | N25: 35.89 | O25: 35.89 | P25: 35.89
A26: 18 | B26: 15.32 | C26: 21.87 | D26: 36.48 | E26: 41.47 | F26: 44.53 | G26: 45.33 | H26: 47.89 | I26: 52.45 | J26: 52.45 | K26: 54.86 | L26: 54.86 | M26: 36.27 | N26: 36.27 | O26: 36.27 | P26: 36.27
A27: 19 | B27: 15.37 | C27: 21.91 | D27: 38.19 | E27: 43.25 | F27: 45.52 | G27: 46.41 | H27: 50.16 | I27: 54.19 | J27: 54.19 | K27: 56.29 | L27: 56.29 | M27: 37.09 | N27: 37.09 | O27: 37.09 | P27: 37.09
A28: 20 | B28: 15.4 | C28: 21.96 | D28: 38.22 | E28: 43.35 | F28: 45.55 | G28: 47.93 | H28: 50.19 | I28: 55.26 | J28: 55.26 | K28: 59.87 | L28: 59.87 | M28: 37.11 | N28: 37.11 | O28: 37.11 | P28: 37.11
A29: 21 | B29: 16.18 | C29: 23.06 | D29: 41.47 | E29: 44.96 | F29: 48.26 | G29: 50.34 | H29: 52.57 | I29: 56.53 | J29: 56.53 | K29: 61.45 | L29: 61.45 | M29: 37.26 | N29: 37.26 | O29: 37.26 | P29: 37.26
A30: 22 | B30: 16.92 | C30: 24.35 | D30: 42.52 | E30: 46.59 | F30: 49.51 | G30: 51.71 | H30: 53.68 | I30: 57.8 | J30: 57.8 | K30: 62.81 | L30: 62.81 | M30: 37.59 | N30: 37.59 | O30: 37.59 | P30: 37.59
A31: 23 | B31: 17.01 | C31: 24.39 | D31: 43.7 | E31: 47.75 | F31: 50.22 | G31: 53.63 | H31: 56.1 | I31: 59.37 | J31: 59.37 | K31: 63.83 | L31: 63.83 | M31: 37.63 | N31: 37.63 | O31: 37.63 | P31: 37.63
A32: 24 | B32: 17.46 | C32: 24.44 | D32: 44.74 | E32: 48.33 | F32: 51.98 | G32: 54.77 | H32: 56.14 | I32: 60.49 | J32: 60.49 | K32: 65.01 | L32: 65.01 | M32: 41.46 | N32: 41.46 | O32: 41.46 | P32: 41.46
A33: 25 | B33: 17.51 | C33: 24.48 | D33: 45.08 | E33: 48.46 | F33: 52.02 | G33: 54.82 | H33: 56.19 | I33: 62.39 | J33: 62.39 | K33: 65.39 | L33: 65.39 | M33: 41.5 | N33: 41.5 | O33: 41.5 | P33: 41.5
A34: 26 | B34: 18.63 | C34: 26.64 | D34: 47.4 | E34: 51.21 | F34: 54.52 | G34: 57.55 | H34: 58.67 | I34: 63.34 | J34: 63.34 | K34: 67.4 | L34: 67.4 | M34: 44.09 | N34: 44.09 | O34: 44.09 | P34: 44.09
A35: 27 | B35: 18.68 | C35: 26.8 | D35: 48.57 | E35: 52.35 | F35: 55.66 | G35: 58.41 | H35: 60.13 | I35: 64.66 | J35: 64.66 | K35: 68.5 | L35: 68.5 | M35: 44.13 | N35: 44.13 | O35: 44.13 | P35: 44.13
A36: 28 | B36: 19.13 | C36: 26.85 | D36: 49.87 | E36: 53.38 | F36: 56.99 | G36: 59.69 | H36: 62.5 | I36: 65.87 | J36: 65.87 | K36: 69.92 | L36: 69.92 | M36: 44.18 | N36: 44.18 | O36: 44.18 | P36: 44.18
A37: 29 | B37: 19.18 | C37: 26.89 | D37: 51.12 | E37: 54.4 | F37: 57.03 | G37: 60.73 | H37: 63.81 | I37: 66.92 | J37: 66.92 | K37: 71.45 | L37: 71.45 | M37: 44.92 | N37: 44.92 | O37: 44.92 | P37: 44.92
A38: 30 | B38: 19.21 | C38: 26.92 | D38: 51.15 | E38: 54.43 | F38: 57.06 | G38: 61.67 | H38: 63.84 | I38: 68.13 | J38: 68.13 | K38: 71.72 | L38: 71.72 | M38: 45.42 | N38: 45.42 | O38: 45.42 | P38: 45.42
A39: 31 | B39: 20.05 | C39: 27.88 | D39: 53.28 | E39: 56.93 | F39: 60.61 | G39: 62.84 | H39: 65.88 | I39: 69.35 | J39: 69.35 | K39: 73.99 | L39: 73.99 | M39: 48.09 | N39: 48.09 | O39: 48.09 | P39: 48.09
A40: 32 | B40: 20.63 | C40: 28.55 | D40: 54.4 | E40: 58.12 | F40: 61.8 | G40: 64.05 | H40: 66.93 | I40: 70.67 | J40: 70.67 | K40: 75.53 | L40: 75.53 | M40: 48.14 | N40: 48.14 | O40: 48.14 | P40: 48.14
A41: 33 | B41: 21.11 | C41: 30.16 | D41: 55.48 | E41: 59.28 | F41: 63.47 | G41: 65.2 | H41: 68.57 | I41: 72.26 | J41: 72.26 | K41: 77.11 | L41: 77.11 | M41: 49.07 | N41: 49.07 | O41: 49.07 | P41: 49.07
A42: 34 | B42: 21.57 | C42: 30.2 | D42: 56.78 | E42: 61.43 | F42: 64.82 | G42: 67.89 | H42: 69.9 | I42: 73.76 | J42: 73.76 | K42: 78.53 | L42: 78.53 | M42: 50.65 | N42: 50.65 | O42: 50.65 | P42: 50.65
A43: 35 | B43: 22.03 | C43: 30.24 | D43: 56.82 | E43: 61.49 | F43: 64.86 | G43: 68.01 | H43: 70.98 | I43: 75.23 | J43: 75.23 | K43: 80.04 | L43: 80.04 | M43: 55.11 | N43: 55.11 | O43: 55.11 | P43: 55.11
A44: 36 | B44: 22.95 | C44: 31 | D44: 59.13 | E44: 62.72 | F44: 67.12 | G44: 69.24 | H44: 72.71 | I44: 76.7 | J44: 76.7 | K44: 81.76 | L44: 81.76 | M44: 55.97 | N44: 55.97 | O44: 55.97 | P44: 55.97
A45: 37 | B45: 23.11 | C45: 33.08 | D45: 60.55 | E45: 65.6 | F45: 68.64 | G45: 72.43 | H45: 73.59 | I45: 78.34 | J45: 78.34 | K45: 83.05 | L45: 83.05 | M45: 56.01 | N45: 56.01 | O45: 56.01 | P45: 56.01
A46: 38 | B46: 23.15 | C46: 33.13 | D46: 61.52 | E46: 65.66 | F46: 69.97 | G46: 72.47 | H46: 74.81 | I46: 79.78 | J46: 79.78 | K46: 84.63 | L46: 84.63 | M46: 56.06 | N46: 56.06 | O46: 56.06 | P46: 56.06
A47: 39 | B47: 23.92 | C47: 33.17 | D47: 62.69 | E47: 68.02 | F47: 71.63 | G47: 74.07 | H47: 76.15 | I47: 81.35 | J47: 81.35 | K47: 84.66 | L47: 84.66 | M47: 56.1 | N47: 56.1 | O47: 56.1 | P47: 56.1
A48: 40 | B48: 23.97 | C48: 33.21 | D48: 62.73 | E48: 68.07 | F48: 71.67 | G48: 74.13 | H48: 76.19 | I48: 82.98 | J48: 82.98 | K48: 84.69 | L48: 84.69 | M48: 56.14 | N48: 56.14 | O48: 56.14 | P48: 56.14
A49: 41 | B49: 25.07 | C49: 35.06 | D49: 64.98 | E49: 69.8 | F49: 74.54 | G49: 75.9 | H49: 79.4 | I49: 84.62 | J49: 84.62 | K49: 89.82 | L49: 89.82 | M49: 59.97 | N49: 59.97 | O49: 59.97 | P49: 59.97
A50: 42 | B50: 25.44 | C50: 35.11 | D50: 66.25 | E50: 71.32 | F50: 75.81 | G50: 77.69 | H50: 81.23 | I50: 86.33 | J50: 86.33 | K50: 89.86 | L50: 89.86 | M50: 62.29 | N50: 62.29 | O50: 62.29 | P50: 62.29
A51: 43 | B51: 26.12 | C51: 35.79 | D51: 67.55 | E51: 72.75 | F51: 77.36 | G51: 78.93 | H51: 84.35 | I51: 88.07 | J51: 88.07 | K51: 89.89 | L51: 89.89 | M51: 63.06 | N51: 63.06 | O51: 63.06 | P51: 63.06
A52: 44 | B52: 26.71 | C52: 37.66 | D52: 68.7 | E52: 74.13 | F52: 78.8 | G52: 79.95 | H52: 84.82 | I52: 89.98 | J52: 89.98 | K52: 94.31 | L52: 94.31 | M52: 63.12 | N52: 63.12 | O52: 63.12 | P52: 63.12
A53: 45 | B53: 27.08 | C53: 38.46 | D53: 69.93 | E53: 75.46 | F53: 78.84 | G53: 82.58 | H53: 86.3 | I53: 91.4 | J53: 91.4 | K53: 94.34 | L53: 94.34 | M53: 63.16 | N53: 63.16 | O53: 63.16 | P53: 63.16
A54: 46 | B54: 27.82 | C54: 39.27 | D54: 71.14 | E54: 76.43 | F54: 81.56 | G54: 82.73 | H54: 87.66 | I54: 92.99 | J54: 92.99 | K54: 97.23 | L54: 97.23 | M54: 64.27 | N54: 64.27 | O54: 64.27 | P54: 64.27
A55: 47 | B55: 28.16 | C55: 39.85 | D55: 72.07 | E55: 77.82 | F55: 82.61 | G55: 83.2 | H55: 88.98 | I55: 94.49 | J55: 94.49 | K55: 97.28 | L55: 97.28 | M55: 64.32 | N55: 64.32 | O55: 64.32 | P55: 64.32
A56: 48 | B56: 28.21 | C56: 39.89 | D56: 72.12 | E56: 77.86 | F56: 82.67 | G56: 83.24 | H56: 90.19 | I56: 96.26 | J56: 96.26 | K56: 97.31 | L56: 97.31 | M56: 64.66 | N56: 64.66 | O56: 64.66 | P56: 64.66
A57: 49 | B57: 28.26 | C57: 39.94 | D57: 72.16 | E57: 77.91 | F57: 82.71 | G57: 83.29 | H57: 91 | I57: 97.94 | J57: 97.94 | K57: 99.38 | L57: 99.38 | M57: 64.7 | N57: 64.7 | O57: 64.7 | P57: 64.7
A58: 50 | B58: 28.31 | C58: 39.98 | D58: 72.21 | E58: 77.95 | F58: 83.01 | G58: 83.33 | H58: 91.04 | I58: 97.97 | J58: 97.97 | K58: 99.44 | L58: 99.44 | M58: 64.74 | N58: 64.74 | O58: 64.74 | P58: 64.74
A59: 51 | B59: 31.22 | C59: 43.6 | D59: 76.79 | E59: 82.81 | F59: 87.99 | G59: 90.23 | H59: 94.53 | I59: 101.28 | J59: 101.28 | K59: 102.24 | L59: 102.24 | M59: 65.87 | N59: 65.87 | O59: 65.87 | P59: 65.87
A60: 52 | B60: 31.69 | C60: 44.53 | D60: 77.92 | E60: 84.37 | F60: 89.2 | G60: 91.87 | H60: 99.32 | I60: 103.71 | J60: 103.71 | K60: 106 | L60: 106 | M60: 65.91 | N60: 65.91 | O60: 65.91 | P60: 65.91
A61: 53 | B61: 32.05 | C61: 45.26 | D61: 79.09 | E61: 85.78 | F61: 89.83 | G61: 93.82 | H61: 99.38 | I61: 105.04 | J61: 105.04 | K61: 106.03 | L61: 106.03 | M61: 69.5 | N61: 69.5 | O61: 69.5 | P61: 69.5
A62: 54 | B62: 32.09 | C62: 46.16 | D62: 80.36 | E62: 85.83 | F62: 89.88 | G62: 93.87 | H62: 100.03 | I62: 107.44 | J62: 107.44 | K62: 108.88 | L62: 108.88 | M62: 69.55 | N62: 69.55 | O62: 69.55 | P62: 69.55
A63: 55 | B63: 32.14 | C63: 47.01 | D63: 81.93 | E63: 88.19 | F63: 89.92 | G63: 97.22 | H63: 101.77 | I63: 108.94 | J63: 108.94 | K63: 109.97 | L63: 109.97 | M63: 69.59 | N63: 69.59 | O63: 69.59 | P63: 69.59
A64: 56 | B64: 33.94 | C64: 47.9 | D64: 83.39 | E64: 89.36 | F64: 94.07 | G64: 99.21 | H64: 103.5 | I64: 110.43 | J64: 110.43 | K64: 111.46 | L64: 111.46 | M64: 69.63 | N64: 69.63 | O64: 69.63 | P64: 69.63
A65: 57 | B65: 34.91 | C65: 49.2 | D65: 83.43 | E65: 90.62 | F65: 95.83 | G65: 100.94 | H65: 107.98 | I65: 112.28 | J65: 112.28 | K65: 112.29 | L65: 112.29 | M65: 75.44 | N65: 75.44 | O65: 75.44 | P65: 75.44
A66: 58 | B66: 34.96 | C66: 49.53 | D66: 83.48 | E66: 91.86 | F66: 95.87 | G66: 102.82 | H66: 108.02 | I66: 114.49 | J66: 114.49 | K66: 115.57 | L66: 115.57 | M66: 77.21 | N66: 77.21 | O66: 77.21 | P66: 77.21
A67: 59 | B67: 35 | C67: 50.34 | D67: 83.52 | E67: 93.29 | F67: 95.92 | G67: 104.47 | H67: 108.51 | I67: 115.13 | J67: 115.13 | K67: 117.28 | L67: 117.28 | M67: 80.27 | N67: 80.27 | O67: 80.27 | P67: 80.27
A68: 60 | B68: 35.05 | C68: 50.38 | D68: 83.57 | E68: 94.47 | F68: 95.96 | G68: 104.52 | H68: 110.25 | I68: 117.55 | J68: 117.55 | K68: 118.66 | L68: 118.66 | M68: 80.32 | N68: 80.32 | O68: 80.32 | P68: 80.32
A69: 61 | B69: 36.97 | C69: 52.14 | D69: 89.39 | E69: 96.13 | F69: 102.26 | G69: 108.12 | H69: 113.18 | I69: 120.7 | J69: 120.7 | K69: 121.82 | L69: 121.82 | M69: 81.34 | N69: 81.34 | O69: 81.34 | P69: 81.34
A70: 62 | B70: 37.45 | C70: 53.07 | D70: 90.75 | E70: 97.35 | F70: 103.85 | G70: 109.69 | H70: 117.39 | I70: 122.17 | J70: 122.17 | K70: 123.33 | L70: 123.33 | M70: 81.38 | N70: 81.38 | O70: 81.38 | P70: 81.38
A71: 63 | B71: 37.5 | C71: 54.12 | D71: 90.9 | E71: 98.84 | F71: 103.9 | G71: 111.26 | H71: 117.43 | I71: 124.18 | J71: 124.18 | K71: 125.35 | L71: 125.35 | M71: 85.58 | N71: 85.58 | O71: 85.58 | P71: 85.58
A72: 64 | B72: 39.45 | C72: 54.79 | D72: 91.96 | E72: 101.13 | F72: 106.71 | G72: 113.29 | H72: 117.49 | I72: 126.08 | J72: 126.08 | K72: 127.26 | L72: 127.26 | M72: 85.62 | N72: 85.62 | O72: 85.62 | P72: 85.62
A73: 65 | B73: 39.49 | C73: 56.22 | D73: 94.83 | E73: 101.65 | F73: 106.75 | G73: 115.07 | H73: 122.96 | I73: 126.1 | J73: 126.1 | K73: 127.3 | L73: 127.3 | M73: 85.67 | N73: 85.67 | O73: 85.67 | P73: 85.67
A74: 66 | B74: 39.73 | C74: 56.26 | D74: 95.12 | E74: 101.71 | F74: 107.9 | G74: 117.09 | H74: 123 | I74: 128.26 | J74: 128.26 | K74: 129.47 | L74: 129.47 | M74: 85.71 | N74: 85.71 | O74: 85.71 | P74: 85.71
A75: 67 | B75: 39.77 | C75: 58.32 | D75: 97.99 | E75: 104.62 | F75: 112.63 | G75: 119.41 | H75: 123.31 | I75: 132.34 | J75: 132.34 | K75: 133.58 | L75: 133.58 | M75: 85.75 | N75: 85.75 | O75: 85.75 | P75: 85.75
A76: 68 | B76: 41.03 | C76: 59.81 | D76: 99.27 | E76: 107.56 | F76: 112.67 | G76: 120.49 | H76: 125.32 | I76: 132.64 | J76: 132.64 | K76: 133.88 | L76: 133.88 | M76: 85.8 | N76: 85.8 | O76: 85.8 | P76: 85.8
A77: 69 | B77: 41.07 | C77: 59.85 | D77: 100.59 | E77: 107.62 | F77: 113.04 | G77: 121.63 | H77: 127.4 | I77: 132.66 | J77: 132.66 | K77: 133.91 | L77: 133.91 | M77: 85.84 | N77: 85.84 | O77: 85.84 | P77: 85.84
A78: 70 | B78: 41.12 | C78: 59.9 | D78: 101.74 | E78: 109.08 | F78: 113.09 | G78: 121.67 | H78: 129.19 | I78: 132.69 | J78: 132.69 | K78: 133.94 | L78: 133.94 | M78: 85.89 | N78: 85.89 | O78: 85.89 | P78: 85.89
A79: 71 | B79: 42.39 | C79: 60.06 | D79: 101.83 | E79: 110.53 | F79: 115.16 | G79: 124.57 | H79: 130.73 | I79: 132.72 | J79: 132.72 | K79: 133.98 | L79: 133.98 | M79: 89.8 | N79: 89.8 | O79: 89.8 | P79: 89.8
A80: 72 | B80: 42.76 | C80: 60.68 | D80: 101.87 | E80: 112.02 | F80: 115.2 | G80: 125.79 | H80: 132.83 | I80: 135.22 | J80: 135.22 | K80: 135.24 | L80: 135.24 | M80: 89.85 | N80: 89.85 | O80: 89.85 | P80: 89.85
A81: 73 | B81: 42.8 | C81: 63.24 | D81: 102.98 | E81: 112.07 | F81: 115.24 | G81: 127.73 | H81: 133.76 | I81: 141.46 | J81: 141.46 | K81: 141.47 | L81: 141.47 | M81: 89.89 | N81: 89.89 | O81: 89.89 | P81: 89.89
A82: 74 | B82: 42.85 | C82: 63.28 | D82: 103.1 | E82: 112.11 | F82: 115.29 | G82: 127.77 | H82: 133.8 | I82: 141.49 | J82: 141.49 | K82: 145.77 | L82: 145.77 | M82: 89.94 | N82: 89.94 | O82: 89.94 | P82: 89.94
A83: 75 | B83: 42.89 | C83: 63.33 | D83: 104.78 | E83: 112.16 | F83: 115.33 | G83: 127.82 | H83: 133.85 | I83: 141.51 | J83: 141.51 | K83: 145.8 | L83: 145.8 | M83: 89.98 | N83: 89.98 | O83: 89.98 | P83: 89.98
A84: 76 | B84: 45.49 | C84: 65.23 | D84: 107.75 | E84: 115.81 | F84: 120.67 | G84: 130.08 | H84: 140.61 | I84: 146.89 | J84: 146.89 | K84: 146.91 | L84: 146.91 | M84: 95.08 | N84: 95.08 | O84: 95.08 | P84: 95.08
A85: 77 | B85: 45.54 | C85: 67.42 | D85: 109.02 | E85: 117.76 | F85: 125.56 | G85: 137.36 | H85: 142.46 | I85: 152.91 | J85: 152.91 | K85: 152.92 | L85: 152.92 | M85: 96.58 | N85: 96.58 | O85: 96.58 | P85: 96.58
A86: 78 | B86: 45.6 | C86: 68.19 | D86: 109.07 | E86: 123.16 | F86: 126.37 | G86: 138.22 | H86: 142.5 | I86: 152.94 | J86: 152.94 | K86: 152.95 | L86: 152.95 | M86: 96.63 | N86: 96.63 | O86: 96.63 | P86: 96.63
A87: 79 | B87: 45.64 | C87: 68.23 | D87: 110.47 | E87: 125.42 | F87: 128.54 | G87: 141.2 | H87: 142.55 | I87: 152.98 | J87: 152.98 | K87: 154.41 | L87: 154.41 | M87: 96.67 | N87: 96.67 | O87: 96.67 | P87: 96.67
A88: 80 | B88: 45.68 | C88: 68.28 | D88: 110.52 | E88: 125.48 | F88: 128.59 | G88: 141.25 | H88: 142.59 | I88: 153.01 | J88: 153.01 | K88: 154.44 | L88: 154.44 | M88: 99.75 | N88: 99.75 | O88: 99.75 | P88: 99.75
A89: 81 | B89: 49.87 | C89: 71.42 | D89: 114.68 | E89: 127.49 | F89: 131.05 | G89: 143.95 | H89: 147.2 | I89: 153.04 | J89: 153.04 | K89: 154.47 | L89: 154.47 | M89: 99.79 | N89: 99.79 | O89: 99.79 | P89: 99.79
A90: 82 | B90: 49.91 | C90: 71.47 | D90: 114.73 | E90: 127.54 | F90: 131.1 | G90: 144 | H90: 147.26 | I90: 153.07 | J90: 153.07 | K90: 154.5 | L90: 154.5 | M90: 99.83 | N90: 99.83 | O90: 99.83 | P90: 99.83
A91: 83 | B91: 49.95 | C91: 71.56 | D91: 114.77 | E91: 127.58 | F91: 131.16 | G91: 144.04 | H91: 147.31 | I91: 153.1 | J91: 153.1 | K91: 154.53 | L91: 154.53 | M91: 99.88 | N91: 99.88 | O91: 99.88 | P91: 99.88
A92: 84 | B92: 50 | C92: 71.67 | D92: 114.82 | E92: 127.63 | F92: 131.2 | G92: 144.09 | H92: 147.35 | I92: 153.16 | J92: 153.16 | K92: 160.94 | L92: 160.94 | M92: 99.92 | N92: 99.92 | O92: 99.92 | P92: 99.92
A93: 85 | B93: 50.04 | C93: 72.56 | D93: 118.58 | E93: 127.67 | F93: 134.22 | G93: 144.13 | H93: 147.4 | I93: 159.75 | J93: 159.75 | K93: 165.55 | L93: 165.55 | M93: 99.97 | N93: 99.97 | O93: 99.97 | P93: 99.97
A94: 86 | B94: 51.61 | C94: 73.45 | D94: 118.64 | E94: 131.23 | F94: 134.26 | G94: 149.23 | H94: 150.91 | I94: 159.78 | J94: 159.78 | K94: 170.73 | L94: 170.73 | M94: 103.9 | N94: 103.9 | O94: 103.9 | P94: 103.9
A95: 87 | B95: 51.65 | C95: 75 | D95: 123.03 | E95: 133.89 | F95: 134.32 | G95: 150.17 | H95: 155.77 | I95: 164.79 | J95: 164.79 | K95: 170.75 | L95: 170.75 | M95: 111.05 | N95: 111.05 | O95: 111.05 | P95: 111.05
A96: 88 | B96: 51.7 | C96: 75.2 | D96: 123.87 | E96: 133.94 | F96: 138.18 | G96: 152.74 | H96: 155.82 | I96: 170.77 | J96: 170.77 | K96: 170.78 | L96: 170.78 | M96: 111.09 | N96: 111.09 | O96: 111.09 | P96: 111.09
A97: 89 | B97: 51.77 | C97: 75.25 | D97: 123.92 | E97: 134.51 | F97: 144.97 | G97: 154.01 | H97: 161.82 | I97: 177.15 | J97: 177.15 | K97: 177.17 | L97: 177.17 | M97: 111.14 | N97: 111.14 | O97: 111.14 | P97: 111.14
A98: 90 | B98: 51.82 | C98: 75.31 | D98: 128.59 | E98: 138.19 | F98: 145.02 | G98: 154.19 | H98: 164.84 | I98: 178.7 | J98: 178.7 | K98: 182.81 | L98: 182.81 | M98: 115.33 | N98: 115.33 | O98: 115.33 | P98: 115.33
A99: 91 | B99: 54.65 | C99: 78.47 | D99: 131.57 | E99: 138.23 | F99: 145.06 | G99: 154.24 | H99: 164.89 | I99: 178.73 | J99: 178.73 | K99: 182.86 | L99: 182.86 | M99: 115.39 | N99: 115.39 | O99: 115.39 | P99: 115.39
A100: 92 | B100: 54.7 | C100: 78.74 | D100: 131.62 | E100: 139.52 | F100: 148.16 | G100: 154.53 | H100: 164.93 | I100: 183.9 | J100: 183.9 | K100: 183.92 | L100: 183.92 | M100: 119.41 | N100: 119.41 | O100: 119.41 | P100: 119.41
A101: 93 | B101: 54.74 | C101: 78.78 | D101: 133.63 | E101: 143.51 | F101: 148.21 | G101: 159.84 | H101: 164.98 | I101: 183.93 | J101: 183.93 | K101: 183.95 | L101: 183.95 | M101: 119.46 | N101: 119.46 | O101: 119.46 | P101: 119.46
A102: 94 | B102: 54.79 | C102: 79.55 | D102: 133.67 | E102: 143.55 | F102: 148.27 | G102: 160.47 | H102: 165.02 | I102: 183.96 | J102: 183.96 | K102: 183.98 | L102: 183.98 | M102: 124.11 | N102: 124.11 | O102: 124.11 | P102: 124.11
A103: 95 | B103: 54.84 | C103: 79.59 | D103: 133.71 | E103: 144.32 | F103: 148.31 | G103: 160.52 | H103: 165.08 | I103: 184.01 | J103: 184.01 | K103: 184.02 | L103: 184.02 | M103: 124.15 | N103: 124.15 | O103: 124.15 | P103: 124.15
A104: 96 | B104: 58.33 | C104: 83.46 | D104: 134.91 | E104: 145.86 | F104: 149.43 | G104: 163.99 | H104: 170.34 | I104: 184.04 | J104: 184.04 | K104: 184.05 | L104: 184.05 | M104: 124.2 | N104: 124.2 | O104: 124.2 | P104: 124.2
A105: 97 | B105: 58.98 | C105: 83.69 | D105: 138.72 | E105: 147.54 | F105: 156.78 | G105: 169.71 | H105: 170.39 | I105: 184.07 | J105: 184.07 | K105: 184.08 | L105: 184.08 | M105: 124.24 | N105: 124.24 | O105: 124.24 | P105: 124.24
A106: 98 | B106: 59.03 | C106: 83.73 | D106: 138.77 | E106: 147.59 | F106: 156.82 | G106: 169.76 | H106: 170.43 | I106: 184.1 | J106: 184.1 | K106: 187.75 | L106: 187.75 | M106: 124.36 | N106: 124.36 | O106: 124.36 | P106: 124.36
A107: 99 | B107: 59.69 | C107: 83.77 | D107: 138.83 | E107: 147.63 | F107: 156.87 | G107: 169.81 | H107: 176.64 | I107: 184.13 | J107: 184.13 | K107: 187.78 | L107: 187.78 | M107: 125.65 | N107: 125.65 | O107: 125.65 | P107: 125.65
A108: 100 | B108: 60.58 | C108: 85.99 | D108: 143.91 | E108: 154.84 | F108: 161.05 | G108: 174.05 | H108: 181.14 | I108: 190.6 | J108: 190.6 | K108: 194.44 | L108: 194.44 | M108: 130.02 | N108: 130.02 | O108: 130.02 | P108: 130.02
A109: 101 | B109: 61.18 | C109: 86.85 | D109: 145.35 | E109: 156.39 | F109: 162.66 | G109: 175.79 | H109: 182.95 | I109: 192.5 | J109: 192.5 | K109: 196.38 | L109: 196.38 | M109: 131.32 | N109: 131.32 | O109: 131.32 | P109: 131.32
A110: 102 | B110: 61.79 | C110: 87.71 | D110: 146.79 | E110: 157.94 | F110: 164.27 | G110: 177.53 | H110: 184.76 | I110: 194.41 | J110: 194.41 | K110: 198.33 | L110: 198.33 | M110: 132.62 | N110: 132.62 | O110: 132.62 | P110: 132.62
